Workbook

Sheet AER only (hidden)
B1: Data in these columns used for data validation and database purposes.
B2: Date last modified: | C2: 2017-01-16 | D2: added (Albury and Victora) for AGN
C3: 2016-10-17 | D3: updated TransGrid's correct legal name, corrected TasNetworks (T) to June financial year
C4: 2017-02-01 | D4: inserted Power and Water, added NRs (dms_FeederCat_1 and dms_FeederCat_2)
C5: 2017-03-03 | D5: inserted AEMO as a business | AB5: FOR ELECTRICITY BUSINESSES ONLY
AB6: Feeder Types | AF6: TasNetworks (D) | AG6: MAIFI flag | AH6: Feeder Names
AB7: CBD | AC7: Urban | AD7: Short rural | AE7: long rural | AF7: EXTRA
B8: dms_TradingName_List | C8: dms_TradingNameFull_List | D8: dms_ABN_List | E8: dms_JurisdictionList | F8: dms_Sector_List | G8: dms_Segment_List | H8: dms_FormControl_List | I8: dms_RPT_List | J8: dms_RPTMonth_List | K8: dms_CRCPlength_List | L8: dms_FRCPlength_List | M8: dms_663_List | N8: dms_DeterminationRef_List | O8: dms_Addr1_List | P8: dms_Addr2_List | Q8: dms_Suburb_List | R8: dms_State_List | S8: dms_PostCode_List | T8: dms_PAddr1_List | U8: dms_PAddr2_List | V8: dms_PSuburb_List | W8: dms_PState_List | X8: dms_PPostCode_List | Y8: dms_ContactName1_List | Z8: dms_ContactPh1_List | AA8: dms_ContactEmail_List | AB8: dms_CBD_flag | AC8: dms_Urban_flag | AD8: dms_ShortRural_flag | AE8: dms_LongRural_flag | AF8: dms_FeederType_5_flag | AG8: dms_MAIFI_flag_List | AH8: dms_FeederName_1 | AI8: dms_FeederName_2 | AJ8: dms_FeederName_3 | AK8: dms_FeederName_4 | AL8: dms_FeederName_5 | AM8: Column1
B9: Jemena Electricity | C9: Jemena Electricity | D9: 82064651083 | E9: Vic | F9: Electricity | G9: Distribution | H9: Revenue cap | I9: Calendar | J9: December | K9: 5 | L9: 5 | M9: 2 | N9: 2016-20 Distribution Determination | O9: Level 16 | P9: 567 Collins Street | Q9: MELBOURNE | R9: VIC | S9: 3000 | T9: PO Box 16182 | V9: MELBOURNE | W9: VIC | X9: 8001 | AD9: YES | AE9: NO | AF9: NO | AH9: CBD | AI9: Urban | AJ9: Short rural | AK9: Long rural | AM9: Jemena Electricity
Y12: For EB & Reset RINs only | AD12: For AARs only
B13: The Reg Year Ending (dms_RYE) must be set to the last year of the regulatory period. For forecast data is is usually (FRCP_y5) for actual it is a single year (CRY). For historical actual data the RYE will need to be set manually in the business details sheet by setting the dms_Multiyear_flag to 1 and putting the correct value in 'dms_Specified_FinalYear. See cells C67:C68 | G13: =IF(dms_RPT="financial",VALUE(LEFT(CRCP_y1,4)-1)&"-"&TEXT(VALUE(RIGHT(CRCP_y1,2)-1),"00"),VALUE(LEFT(CRCP_y1,4)-1)) ->  | N13: Drop down selector box for CA & Reset RINs. | O13: For CA & Reset RINs only | Y13: for DNSP only | AD13: For DNSPs only | AJ13: Reason for interruption | AK13: dms_Reason_Interruption_Detailed | AL13: dms_Reason_Interruption | AM13: dms_STPIS_Exclusion_List
B14: dms_Model_List | C14: DELETE NR 'CRY' IF NOT AN ANNUAL RIN (EB, CA , ARR) | E14: dms_RYE_Formula_Result | N14: dms_0203_ProjectType | O14: dms_020303_01_UOM | P14: dms_020501_01_UOM | Q14: dms_020501_02_UOM | R14: dms_020501_03_UOM | S14: dms_020501_04_UOM | T14: dms_020603_01_UOM | U14: dms_020701_01_UOM | V14: dms_020701_02_UOM | W14: dms_040102_01_UOM | X14: dms_040102_04_UOM | Y14: dms_030601_01_UOM | Z14: dms_030601_02_UOM | AA14: dms_030701_01_UOM | AB14: dms_030702_01_UOM | AC14: dms_030703_01_UOM | AD14: dms_030605_UOM | AE14: dms_03060703_UOM | AJ14: Animal | AK14: Animal impact | AL14: Animal | AM14: Weather
B15: ARR | C15: ANNUAL REPORTING STATEMENT | E15: =LEFT(dms_SingleYear_FinalYear_Result,2)&RIGHT(dms_SingleYear_FinalYear_Result,2) -> 2016 | F15: =LEFT(dms_SingleYear_FinalYear_Result,2)&RIGHT(dms_SingleYear_FinalYear_Result,2) | H15: Formula errors are OK | N15: New line on new route - single circuit | O15: Circuit line length in km | P15: 0's | Q15: 0's | R15: 0's | S15: 0's | T15: 0's | U15: km | V15: km | W15: 0's | X15: days | Y15: minutes/customer | Z15: minutes/customer | AA15: Customer / km | AB15: % | AC15: km | AD15: number | AE15: number | AK15: Animal nesting/burrowing, etc and other | AL15: Asset failure | AM15: Equipment failure
B16: CA | C16: CATEGORY ANALYSIS | E16: =LEFT(dms_SingleYear_FinalYear_Result,2)&RIGHT(dms_SingleYear_FinalYear_Result,2) -> 2016 | F16: =LEFT(dms_SingleYear_FinalYear_Result,2)&RIGHT(dms_SingleYear_FinalYear_Result,2) | H16: Formula errors are OK | N16: New line on new route - dual circuit | O16: Circuit line length in km | P16: 0's | Q16: 0's | R16: 0's | S16: 0's | T16: 0's | U16: 0's | V16: 0's | W16: 0's | X16: 0's | Y16: minutes/customer | Z16: minutes/customer | AA16: MWh/customer | AB16: Number of spans | AD16: number | AE16: number | AK16: Other | AL16: Other | AM16: Operational error
B17: CPI | C17: CPI | N17: New line on new route - other | O17: Circuit line length in km | P17: MVA added | Q17: MVA added | R17: MVA added | S17: MVA added | T17: 0's | U17: km | V17: km | W17: 0's | X17: $0s | Y17: interruptions/customer | Z17: interruptions/customer | AA17: kVA / customer | AB17: Number of spans | AD17: number | AE17: number | AJ17: Asset failure | AK17: LV | AL17: Overloads | AM17: Vegetation
B18: EB | C18: ECONOMIC BENCHMARKING | E18: =LEFT(dms_SingleYear_FinalYear_Result,2)&RIGHT(dms_SingleYear_FinalYear_Result,2) -> 2016 | F18: =LEFT(dms_SingleYear_FinalYear_Result,2)&RIGHT(dms_SingleYear_FinalYear_Result,2) | H18: Formula errors are OK | N18: Line rebuild over existing route - single circuit | O18: Circuit line length in km | P18: 0's | Q18: 0's | R18: 0's | S18: 0's | T18: 0's | U18: km | V18: km | W18: $0s | X18: 0's | Y18: interruptions/customer | Z18: interruptions/customer | AB18: Number of spans | AD18: number | AE18: number | AK18: Distribution substation | AL18: Planned | AM18: Animals
B19: PTRM | C19: POST TAX REVENUE MODEL | E19: =LEFT(dms_MultiYear_FinalYear_Result,2)&RIGHT(dms_MultiYear_FinalYear_Result,2) ->  | F19: =LEFT(dms_MultiYear_FinalYear_Result,2)&RIGHT(dms_MultiYear_FinalYear_Result,2) | N19: Line rebuild over existing route - dual circuit | O19: Number | P19: total spend $0s | Q19: total spend $0s | R19: total spend $0s | S19: total spend $0s | T19: (per cent) | U19: 0's | V19: 0's | AB19: Number of spans | AD19: number | AE19: (per cent) | AK19: HV | AL19: Network business | AM19: Third party impacts
B20: Reset | C20: REGULATORY REPORTING STATEMENT | E20: =LEFT(dms_MultiYear_FinalYear_Result,2)&RIGHT(dms_MultiYear_FinalYear_Result,2) ->  | F20: =LEFT(dms_MultiYear_FinalYear_Result,2)&RIGHT(dms_MultiYear_FinalYear_Result,2) | H20: Formula errors are OK | N20: Reconductor - Single circuit | O20: Number | P20: net circuit km added | Q20: net circuit km added | R20: net circuit km added | S20: net circuit km added | U20: years | V20: years | AB20: Years | AD20: number | AK20: Zone substation | AL20: Third party | AM20: Transmission failure
B21: RFM | C21: ROLL FORWARD MODEL | E21: =LEFT(dms_CRCP_FinalYear_Result,2)&RIGHT(dms_CRCP_FinalYear_Result,2) ->  | F21: =LEFT(dms_CRCP_FinalYear_Result,2)&RIGHT(dms_CRCP_FinalYear_Result,2) | N21: Reconductor - Dual circuit | O21: Number | P21: total spend $0s | Q21: total spend $0s | R21: total spend $0s | S21: total spend $0s | AB21: Years | AD21: number | AK21: Subtransmission | AL21: Unknown | AM21: Load shedding
B22: WACC | C22: WEIGHTED AVERAGE COST OF CAPITAL | E22: =LEFT(dms_MultiYear_FinalYear_Result,2)&RIGHT(dms_MultiYear_FinalYear_Result,2) ->  | F22: =LEFT(dms_MultiYear_FinalYear_Result,2)&RIGHT(dms_MultiYear_FinalYear_Result,2) | N22: Other | P22: net circuit km added | Q22: net circuit km added | R22: net circuit km added | S22: net circuit km added | AB22: Trees | AD22: number | AJ22: Other | AK22: insert description of 'other' | AL22: Vegetation | AM22: Inter-distributor connection failure
P23: total spend $0s | Q23: total spend $0s | R23: total spend $0s | S23: total spend $0s | AB23: Trees | AD23: number | AJ23: Overloads | AK23: - | AL23: Weather | AM23: Other
B24: dms_DataQuality_List | P24: 0's | R24: $0s | AB24: Defects | AD24: number | AJ24: Planned | AK24: - | AL24: 2 - STPIS Exclusion (3.3)(a)
B25: Actual | P25: 0's | AB25: Defects | AD25: number | AJ25: Network business | AK25: Network error | AL25: 3 - STPIS Exclusion (3.3)(a)
B26: Estimate | P26: 0's | AB26: Spans | AD26: number | AK26: Switching and protection error | AL26: 4 - STPIS Exclusion (3.3)(a)
B27: Consolidated | P27: $0s | AB27: km | AD27: (per cent) | AJ27: Third party | AK27: Fire | AL27: 5 - STPIS Exclusion (3.3)(a)
B28: Recast | AB28: Spans | AD28: (per cent) | AK28: Other | AL28: 6 - STPIS Exclusion (3.3)(a)
B29: Public | AK29: Dig-in | AL29: 7 - STPIS Exclusion (3.3)(a)
AK30: Unauthorised access
B31: For all files either AER or business needs to be able to specify the type of submission | C31: For PTRM & RFM templates we must provide a choice in case they change their form of control - otherwise it is drawn from the business specific lookup table above. | O31: For PTRM files - this field set the text for the named range "DMS_Xfactor" which in all cases is simply the text "x factors" - this saves putting in each old gas PTRM file | Y31: for TNSP only | AK31: Vehicle impact
B32: dms_SourceList | C32: dms_FormControl_Choices | O32: DMS_Xfactor | Y32: dms_030601_01_UOM | AA32: dms_030701_01_UOM | AB32: dms_030702_01_UOM | AJ32: Unknown | AK32: Unknown
B33: After appeal | C33: Revenue cap | O33: x factors | Y33: % | AA33: Number of spans | AB33: km | AJ33: Vegetation | AK33: Blow-in/Fall-in - NSP responsibility
B34: Draft decision | C34: Revenue yield | Y34: number | AA34: Years | AB34: % | AK34: Grow-in - NSP responsibility
B35: Final decision | C35: Weighted average price cap | Y35: number | AA35: Trees | AB35: km | AK35: Blow-in/Fall-in - Other responsible party
B36: PTRM update 1 | Y36: % | AA36: Defects | AB36: number | AK36: Grow-in - Other responsible party
B37: PTRM update 2 | Y37: number | AA37: Number of spans | AJ37: Weather
B38: PTRM update 3 | Y38: number | AA38: km | AJ38: 2 - STPIS Exclusion (3.3)(a)
B39: PTRM update 4 | Y39: % | AA39: km | AJ39: 3 - STPIS Exclusion (3.3)(a)
B40: PTRM update 5 | Y40: number | AA40: Number of spans | AJ40: 4 - STPIS Exclusion (3.3)(a)
B41: PTRM update 6 | Y41: number | AJ41: 5 - STPIS Exclusion (3.3)(a)
B42: PTRM update 7 | Y42: % | AJ42: 6 - STPIS Exclusion (3.3)(a)
B43: Regulatory proposal | Y43: number | AJ43: 7 - STPIS Exclusion (3.3)(a)
B44: Reporting | Y44: %
B45: Revised regulatory proposal | Y45: number
Y46: %
Y47: number
B51: These are indeces and lookup values for various dates. All step from the value placed in FRCP_y1 on the business and other details worksheet | L51: These date tables are currently used in the Recast templates to provide column headings and conditional formatting
B52: dms_FRCPlength_Num_List | C52: dms_FinalYear_List | D52: dms_CRCPlength_Num_List | E52: dms_CFinalYear_List | F52: dms_FRCP_years | H52: dms_CRCP_years | J52: dms_CRCP_index | L52: CRY from input cell on business sheet | M52: CRY - financial | N52: dms_FinYears | O52: CRY calendar | P52: dms_CalYears
B53: 1 | C53: dms_FRCP_y1 | D53: 1 | E53: CRCP_y1 | F53: =FRCP_y1 -> 2019-20 | G53: dms_FRCP_y1 | H53: =IF(dms_RPT="financial",VALUE(LEFT(dms_FRCP_y1,4)-1)&"-"&TEXT(VALUE(MID(dms_FRCP_y1,3,2)),"00"),VALUE(LEFT(dms_FRCP_y1,4)-1)) ->  | I53: dms_CRCP_yZ | J53: 1 | L53: =CRY -> 2016 | M53: =VALUE(LEFT(CRY,4))&"-"&TEXT(MID(CRY,3,2)+1,"00") -> 2016-17 | N53: dms_CRYf_y1 | O53: =VALUE(LEFT(CRY,4)+1) -> 2017 | P53: dms_CRYc_y1
B54: 2 | C54: dms_FRCP_y2 | D54: 2 | E54: CRCP_y2 | F54: =IF(dms_RPT="financial",VALUE(LEFT(dms_FRCP_y1,4)+1)&"-"&TEXT(VALUE(RIGHT(dms_FRCP_y1,2)+1),"00"),VALUE(LEFT(dms_FRCP_y1,4)+1)) ->  | G54: dms_FRCP_y2 | H54: =IF(dms_RPT="financial",VALUE(LEFT(dms_CRCP_yZ,4)-1)&"-"&TEXT(VALUE(MID(dms_CRCP_yZ,3,2)),"00"),VALUE(LEFT(dms_CRCP_yZ,4)-1)) ->  | I54: dms_CRCP_yY | J54: 2 | M54: =VALUE(LEFT(dms_CRYf_y1,4)+1)&"-"&TEXT(MID(dms_CRYf_y1,3,2)+2,"00") -> 2017-18 | N54: dms_CRYf_y2 | O54: =VALUE(LEFT(dms_CRYc_y1,4)+1) -> 2018 | P54: dms_CRYc_y2
B55: 3 | C55: dms_FRCP_y3 | D55: 3 | E55: CRCP_y3 | F55: =IF(dms_RPT="financial",VALUE(LEFT(dms_FRCP_y2,4)+1)&"-"&TEXT(VALUE(RIGHT(dms_FRCP_y2,2)+1),"00"),VALUE(LEFT(dms_FRCP_y2,4)+1)) ->  | G55: dms_FRCP_y3 | H55: =IF(dms_RPT="financial",VALUE(LEFT(dms_CRCP_yY,4)-1)&"-"&TEXT(VALUE(MID(dms_CRCP_yY,3,2)),"00"),VALUE(LEFT(dms_CRCP_yY,4)-1)) ->  | I55: dms_CRCP_yX | J55: 3 | M55: =VALUE(LEFT(dms_CRYf_y2,4)+1)&"-"&TEXT(MID(dms_CRYf_y2,3,2)+2,"00") -> 2018-19 | N55: dms_CRYf_y3 | O55: =VALUE(LEFT(dms_CRYc_y2,4)+1) -> 2019 | P55: dms_CRYc_y3
B56: 4 | C56: dms_FRCP_y4 | D56: 4 | E56: CRCP_y4 | F56: =IF(dms_RPT="financial",VALUE(LEFT(dms_FRCP_y3,4)+1)&"-"&TEXT(VALUE(RIGHT(dms_FRCP_y3,2)+1),"00"),VALUE(LEFT(dms_FRCP_y3,4)+1)) ->  | G56: dms_FRCP_y4 | H56: =IF(dms_RPT="financial",VALUE(LEFT(dms_CRCP_yX,4)-1)&"-"&TEXT(VALUE(MID(dms_CRCP_yX,3,2)),"00"),VALUE(LEFT(dms_CRCP_yX,4)-1)) ->  | I56: dms_CRCP_yW | J56: 4 | M56: =VALUE(LEFT(dms_CRYf_y3,4)+1)&"-"&TEXT(MID(dms_CRYf_y3,3,2)+2,"00") -> 2019-20 | N56: dms_CRYf_y4 | O56: =VALUE(LEFT(dms_CRYc_y3,4)+1) -> 2020 | P56: dms_CRYc_y4
B57: 5 | C57: dms_FRCP_y5 | D57: 5 | E57: CRCP_y5 | F57: =IF(dms_RPT="financial",VALUE(LEFT(dms_FRCP_y4,4)+1)&"-"&TEXT(VALUE(RIGHT(dms_FRCP_y4,2)+1),"00"),VALUE(LEFT(dms_FRCP_y4,4)+1)) ->  | G57: dms_FRCP_y5 | H57: =IF(dms_RPT="financial",VALUE(LEFT(dms_CRCP_yW,4)-1)&"-"&TEXT(VALUE(MID(dms_CRCP_yW,3,2)),"00"),VALUE(LEFT(dms_CRCP_yW,4)-1)) ->  | I57: dms_CRCP_yV | J57: 5 | M57: =VALUE(LEFT(dms_CRYf_y4,4)+1)&"-"&TEXT(MID(dms_CRYf_y4,3,2)+2,"00") -> 2020-21 | N57: dms_CRYf_y5 | O57: =VALUE(LEFT(dms_CRYc_y4,4)+1) -> 2021 | P57: dms_CRYc_y5
B58: 6 | C58: dms_FRCP_y6 | D58: 6 | E58: CRCP_y6 | F58: =IF(dms_RPT="financial",VALUE(LEFT(dms_FRCP_y5,4)+1)&"-"&TEXT(VALUE(RIGHT(dms_FRCP_y5,2)+1),"00"),VALUE(LEFT(dms_FRCP_y5,4)+1)) ->  | G58: dms_FRCP_y6 | H58: =IF(dms_RPT="financial",VALUE(LEFT(dms_CRCP_yV,4)-1)&"-"&TEXT(VALUE(MID(dms_CRCP_yV,3,2)),"00"),VALUE(LEFT(dms_CRCP_yV,4)-1)) ->  | I58: dms_CRCP_yU | J58: 6 | M58: =VALUE(LEFT(dms_CRYf_y5,4)+1)&"-"&TEXT(MID(dms_CRYf_y5,3,2)+2,"00") -> 2021-22 | N58: dms_CRYf_y6 | O58: =VALUE(LEFT(dms_CRYc_y5,4)+1) -> 2022 | P58: dms_CRYc_y6
B59: 7 | C59: dms_FRCP_y7 | D59: 7 | E59: CRCP_y7 | F59: =IF(dms_RPT="financial",VALUE(LEFT(dms_FRCP_y6,4)+1)&"-"&TEXT(VALUE(RIGHT(dms_FRCP_y6,2)+1),"00"),VALUE(LEFT(dms_FRCP_y6,4)+1)) ->  | G59: dms_FRCP_y7 | H59: =IF(dms_RPT="financial",VALUE(LEFT(dms_CRCP_yU,4)-1)&"-"&TEXT(VALUE(MID(dms_CRCP_yU,3,2)),"00"),VALUE(LEFT(dms_CRCP_yU,4)-1)) ->  | I59: dms_CRCP_yT | J59: 7 | M59: =VALUE(LEFT(dms_CRYf_y6,4)+1)&"-"&TEXT(MID(dms_CRYf_y6,3,2)+2,"00") -> 2022-23 | N59: dms_CRYf_y7 | O59: =VALUE(LEFT(dms_CRYc_y6,4)+1) -> 2023 | P59: dms_CRYc_y7
B60: 8 | C60: dms_FRCP_y8 | D60: 8 | E60: CRCP_y8 | F60: =IF(dms_RPT="financial",VALUE(LEFT(dms_FRCP_y7,4)+1)&"-"&TEXT(VALUE(RIGHT(dms_FRCP_y7,2)+1),"00"),VALUE(LEFT(dms_FRCP_y7,4)+1)) ->  | G60: dms_FRCP_y8 | H60: =IF(dms_RPT="financial",VALUE(LEFT(dms_CRCP_yT,4)-1)&"-"&TEXT(VALUE(MID(dms_CRCP_yT,3,2)),"00"),VALUE(LEFT(dms_CRCP_yT,4)-1)) ->  | I60: dms_CRCP_yS | J60: 8 | M60: =VALUE(LEFT(dms_CRYf_y7,4)+1)&"-"&TEXT(MID(dms_CRYf_y7,3,2)+2,"00") -> 2023-24 | N60: dms_CRYf_y8 | O60: =VALUE(LEFT(dms_CRYc_y7,4)+1) -> 2024 | P60: dms_CRYc_y8
B61: 9 | C61: dms_FRCP_y9 | D61: 9 | E61: CRCP_y9 | F61: =IF(dms_RPT="financial",VALUE(LEFT(dms_FRCP_y8,4)+1)&"-"&TEXT(VALUE(RIGHT(dms_FRCP_y8,2)+1),"00"),VALUE(LEFT(dms_FRCP_y8,4)+1)) ->  | G61: dms_FRCP_y9 | H61: =IF(dms_RPT="financial",VALUE(LEFT(dms_CRCP_yS,4)-1)&"-"&TEXT(VALUE(MID(dms_CRCP_yS,3,2)),"00"),VALUE(LEFT(dms_CRCP_yS,4)-1)) ->  | I61: dms_CRCP_yR | J61: 9 | M61: =VALUE(LEFT(dms_CRYf_y8,4)+1)&"-"&TEXT(MID(dms_CRYf_y8,3,2)+2,"00") -> 2024-25 | N61: dms_CRYf_y9 | O61: =VALUE(LEFT(dms_CRYc_y8,4)+1) -> 2025 | P61: dms_CRYc_y9
B62: 10 | C62: dms_FRCP_y10 | D62: 10 | E62: CRCP_y10 | F62: =IF(dms_RPT="financial",VALUE(LEFT(dms_FRCP_y9,4)+1)&"-"&TEXT(VALUE(RIGHT(dms_FRCP_y9,2)+1),"00"),VALUE(LEFT(dms_FRCP_y9,4)+1)) ->  | G62: dms_FRCP_y10 | H62: =IF(dms_RPT="financial",VALUE(LEFT(dms_CRCP_yR,4)-1)&"-"&TEXT(VALUE(MID(dms_CRCP_yR,3,2)),"00"),VALUE(LEFT(dms_CRCP_yR,4)-1)) ->  | I62: dms_CRCP_yQ | J62: 10 | M62: =VALUE(LEFT(dms_CRYf_y9,4)+1)&"-"&TEXT(MID(dms_CRYf_y9,3,2)+2,"00") -> 2025-26 | N62: dms_CRYf_y10 | O62: =VALUE(LEFT(dms_CRYc_y9,4)+1) -> 2026 | P62: dms_CRYc_y10
B63: 11 | C63: dms_FRCP_y11 | D63: 11 | E63: CRCP_y11 | F63: =IF(dms_RPT="financial",VALUE(LEFT(dms_FRCP_y10,4)+1)&"-"&TEXT(VALUE(RIGHT(dms_FRCP_y10,2)+1),"00"),VALUE(LEFT(dms_FRCP_y10,4)+1)) ->  | G63: dms_FRCP_y11 | H63: =IF(dms_RPT="financial",VALUE(LEFT(dms_CRCP_yQ,4)-1)&"-"&TEXT(VALUE(MID(dms_CRCP_yQ,3,2)),"00"),VALUE(LEFT(dms_CRCP_yQ,4)-1)) ->  | I63: dms_CRCP_yP | J63: 11 | M63: =VALUE(LEFT(dms_CRYf_y10,4)+1)&"-"&TEXT(MID(dms_CRYf_y10,3,2)+2,"00") -> 2026-27 | N63: dms_CRYf_y11 | O63: =VALUE(LEFT(dms_CRYc_y10,4)+1) -> 2027 | P63: dms_CRYc_y11
B64: 12 | C64: dms_FRCP_y12 | D64: 12 | E64: CRCP_y12 | F64: =IF(dms_RPT="financial",VALUE(LEFT(dms_FRCP_y11,4)+1)&"-"&TEXT(VALUE(RIGHT(dms_FRCP_y11,2)+1),"00"),VALUE(LEFT(dms_FRCP_y11,4)+1)) ->  | G64: dms_FRCP_y12 | H64: =IF(dms_RPT="financial",VALUE(LEFT(dms_CRCP_yP,4)-1)&"-"&TEXT(VALUE(MID(dms_CRCP_yP,3,2)),"00"),VALUE(LEFT(dms_CRCP_yP,4)-1)) ->  | I64: dms_CRCP_yO | J64: 12 | M64: =VALUE(LEFT(dms_CRYf_y11,4)+1)&"-"&TEXT(MID(dms_CRYf_y11,3,2)+2,"00") -> 2027-28 | N64: dms_CRYf_y12 | O64: =VALUE(LEFT(dms_CRYc_y11,4)+1) -> 2028 | P64: dms_CRYc_y12
B65: 13 | C65: dms_FRCP_y13 | D65: 13 | E65: CRCP_y13 | F65: =IF(dms_RPT="financial",VALUE(LEFT(dms_FRCP_y12,4)+1)&"-"&TEXT(VALUE(RIGHT(dms_FRCP_y12,2)+1),"00"),VALUE(LEFT(dms_FRCP_y12,4)+1)) ->  | G65: dms_FRCP_y13 | H65: =IF(dms_RPT="financial",VALUE(LEFT(dms_CRCP_yO,4)-1)&"-"&TEXT(VALUE(MID(dms_CRCP_yO,3,2)),"00"),VALUE(LEFT(dms_CRCP_yO,4)-1)) ->  | I65: dms_CRCP_yN | J65: 13 | M65: =VALUE(LEFT(dms_CRYf_y12,4)+1)&"-"&TEXT(MID(dms_CRYf_y12,3,2)+2,"00") -> 2028-29 | N65: dms_CRYf_y13 | O65: =VALUE(LEFT(dms_CRYc_y12,4)+1) -> 2029 | P65: dms_CRYc_y13
B66: 14 | C66: dms_FRCP_y14 | D66: 14 | E66: CRCP_y14 | F66: =IF(dms_RPT="financial",VALUE(LEFT(dms_FRCP_y13,4)+1)&"-"&TEXT(VALUE(RIGHT(dms_FRCP_y13,2)+1),"00"),VALUE(LEFT(dms_FRCP_y13,4)+1)) ->  | G66: dms_FRCP_y14 | H66: =IF(dms_RPT="financial",VALUE(LEFT(dms_CRCP_yN,4)-1)&"-"&TEXT(VALUE(MID(dms_CRCP_yN,3,2)),"00"),VALUE(LEFT(dms_CRCP_yN,4)-1)) ->  | I66: dms_CRCP_yM | J66: 14 | M66: =VALUE(LEFT(dms_CRYf_y13,4)+1)&"-"&TEXT(MID(dms_CRYf_y13,3,2)+2,"00") -> 2029-30 | N66: dms_CRYf_y14 | O66: =VALUE(LEFT(dms_CRYc_y13,4)+1) -> 2030 | P66: dms_CRYc_y14
B67: 15 | C67: dms_FRCP_y15 | D67: 15 | E67: CRCP_y15 | F67: =IF(dms_RPT="financial",VALUE(LEFT(dms_FRCP_y14,4)+1)&"-"&TEXT(VALUE(RIGHT(dms_FRCP_y14,2)+1),"00"),VALUE(LEFT(dms_FRCP_y14,4)+1)) ->  | G67: dms_FRCP_y15 | H67: =IF(dms_RPT="financial",VALUE(LEFT(dms_CRCP_yM,4)-1)&"-"&TEXT(VALUE(MID(dms_CRCP_yM,3,2)),"00"),VALUE(LEFT(dms_CRCP_yM,4)-1)) ->  | I67: dms_CRCP_yL | J67: 15 | M67: =VALUE(LEFT(dms_CRYf_y14,4)+1)&"-"&TEXT(MID(dms_CRYf_y14,3,2)+2,"00") -> 2030-31 | N67: dms_CRYf_y15 | O67: =VALUE(LEFT(dms_CRYc_y14,4)+1) -> 2031 | P67: dms_CRYc_y15
M68: =VALUE(LEFT(dms_CRYf_y15,4)+1)&"-"&TEXT(MID(dms_CRYf_y15,3,2)+2,"00") -> 2031-32 | N68: dms_CRYf_y16 | O68: =VALUE(LEFT(dms_CRYc_y15,4)+1) -> 2032 | P68: dms_CRYc_y16
B69: These are drop down lists for businesses to select the correct FRCP_y1 on the business and other details worksheet. This also populates the column headings in the worksheets | M69: =VALUE(LEFT(dms_CRYf_y16,4)+1)&"-"&TEXT(MID(dms_CRYf_y16,3,2)+2,"00") -> 2032-33 | N69: dms_CRYf_y17 | O69: =VALUE(LEFT(dms_CRYc_y16,4)+1) -> 2033 | P69: dms_CRYc_y17
B70: dms_RCP_fyear_list | C70: dms_CRY_ListF | D70: dms_CRY_ListC | E70: dms_RCP_cyear_list | F70: dms_FRCP_fyear_list | G70: dms_FRCP_ListF | H70: dms_FRCP_ListC | I70: dms_FRCP_cyear_list | M70: =VALUE(LEFT(dms_CRYf_y17,4)+1)&"-"&TEXT(MID(dms_CRYf_y17,3,2)+2,"00") -> 2033-34 | N70: dms_CRYf_y18 | O70: =VALUE(LEFT(dms_CRYc_y17,4)+1) -> 2034 | P70: dms_CRYc_y18
B71: dms_fy1 | C71: 2005-06 | D71: 2006 | E71: dms_cy1 | F71: dms_frcp_fy1 | G71: 2015-16 | H71: 2016 | I71: dms_crcp_cy1 | M71: =VALUE(LEFT(dms_CRYf_y18,4)+1)&"-"&TEXT(MID(dms_CRYf_y18,3,2)+2,"00") -> 2034-35 | N71: dms_CRYf_y19 | O71: =VALUE(LEFT(dms_CRYc_y18,4)+1) -> 2035 | P71: dms_CRYc_y19
B72: dms_fy2 | C72: 2006-07 | D72: 2007 | E72: dms_cy2 | F72: dms_frcp_fy2 | G72: 2016-17 | H72: 2017 | I72: dms_crcp_cy2 | M72: =VALUE(LEFT(dms_CRYf_y19,4)+1)&"-"&TEXT(MID(dms_CRYf_y19,3,2)+2,"00") -> 2035-36 | N72: dms_CRYf_y20 | O72: =VALUE(LEFT(dms_CRYc_y19,4)+1) -> 2036 | P72: dms_CRYc_y20
B73: dms_fy3 | C73: 2007-08 | D73: 2008 | E73: dms_cy3 | F73: dms_frcp_fy3 | G73: 2017-18 | H73: 2018 | I73: dms_crcp_cy3
B74: dms_fy4 | C74: 2008-09 | D74: 2009 | E74: dms_cy4 | F74: dms_frcp_fy4 | G74: 2018-19 | H74: 2019 | I74: dms_crcp_cy4
B75: dms_fy5 | C75: 2009-10 | D75: 2010 | E75: dms_cy5 | F75: dms_frcp_fy5 | G75: 2019-20 | H75: 2020 | I75: dms_crcp_cy5
B76: dms_fy6 | C76: 2010-11 | D76: 2011 | E76: dms_cy6 | F76: dms_frcp_fy6 | G76: 2020-21 | H76: 2021 | I76: dms_crcp_cy6
B77: dms_fy7 | C77: 2011-12 | D77: 2012 | E77: dms_cy7 | F77: dms_frcp_fy7 | G77: 2021-22 | H77: 2022 | I77: dms_crcp_cy7
B78: dms_fy8 | C78: 2012-13 | D78: 2013 | E78: dms_cy8 | F78: dms_frcp_fy8 | G78: 2022-23 | H78: 2023 | I78: dms_crcp_cy8 | L78: 2005-06 | M78: 2006
B79: dms_fy9 | C79: 2013-14 | D79: 2014 | E79: dms_cy9 | F79: dms_frcp_fy9 | G79: 2023-24 | H79: 2024 | I79: dms_crcp_cy9 | L79: 2006-07 | M79: 2007
B80: dms_fy10 | C80: 2014-15 | D80: 2015 | E80: dms_cy10 | F80: dms_frcp_fy10 | G80: 2024-25 | H80: 2025 | I80: dms_crcp_cy10 | L80: 2007-08 | M80: 2008
B81: dms_fy11 | C81: 2015-16 | D81: 2016 | E81: dms_cy11 | F81: dms_frcp_fy11 | G81: 2025-26 | H81: 2026 | I81: dms_crcp_cy11 | L81: 2008-09 | M81: 2009
B82: dms_fy12 | C82: 2016-17 | D82: 2017 | E82: dms_cy12 | F82: dms_frcp_fy12 | G82: 2026-27 | H82: 2027 | I82: dms_crcp_cy12 | L82: 2009-10 | M82: 2010
B83: dms_fy13 | C83: 2017-18 | D83: 2018 | E83: dms_cy13 | F83: dms_frcp_fy13 | G83: 2027-28 | H83: 2028 | I83: dms_crcp_cy13 | L83: 2010-11 | M83: 2011
B84: dms_fy14 | C84: 2018-19 | D84: 2019 | E84: dms_cy14 | F84: dms_frcp_fy14 | G84: 2028-29 | H84: 2029 | I84: dms_crcp_cy14 | L84: 2011-12 | M84: 2012
B85: dms_fy15 | C85: 2019-20 | D85: 2020 | E85: dms_cy15 | F85: dms_frcp_fy15 | G85: 2029-30 | H85: 2030 | I85: dms_crcp_cy15 | L85: 2012-13 | M85: 2013
B86: dms_fy16 | C86: 2020-21 | D86: 2021 | E86: dms_cy16 | L86: 2013-14 | M86: 2014
B87: dms_fy17 | C87: 2021-22 | D87: 2022 | E87: dms_cy17 | L87: 2014-15 | M87: 2015
B88: dms_fy18 | C88: 2022-23 | D88: 2023 | E88: dms_cy18 | L88: 2015-16 | M88: 2016
B89: dms_fy19 | C89: 2023-24 | D89: 2024 | E89: dms_cy19 | L89: 2016-17 | M89: 2017
B90: dms_fy20 | C90: 2024-25 | D90: 2025 | E90: dms_cy20 | L90: 2017-18 | M90: 2018
L91: 2018-19 | M91: 2019
L92: 2019-20 | M92: 2020
L93: 2020-21 | M93: 2021
L94: 2021-22 | M94: 2022
L95: 2022-23 | M95: 2023
L96: 2023-24 | M96: 2024
L97: 2024-25 | M97: 2025
L98: 2025-26 | M98: 2026
L99: 2026-27 | M99: 2027
L100: 2027-28 | M100: 2028
L101: 2028-29 | M101: 2029
L102: 2029-30 | M102: 2030
L103: 2030-31 | M103: 2031
L104: 2031-32 | M104: 2032
L105: 2032-33 | M105: 2033
L106: 2033-34 | M106: 2034
L107: 2034-35 | M107: 2035
L108: 2035-36 | M108: 2036

Sheet Business & other details (hidden)
B1: =IF(dms_DataQuality="backcast",INDEX(dms_Worksheet_List,MATCH(dms_Model,dms_Model_List))&" BACKCAST",INDEX(dms_Worksheet_List,MATCH(dms_Model,dms_Model_List))) -> ROLL FORWARD MODEL
B2: =INDEX(dms_TradingNameFull_List,MATCH(dms_TradingName,dms_TradingName_List)) -> 
B3: =IF(SUM(dms_SingleYear_Model)>0,CONCATENATE(CRY," to ",FRY),CONCATENATE(FRCP_y1," to ",dms_MultiYear_FinalYear_Result)) -> 
B4: BUSINESS & OTHER DETAILS
B7: Instructions
B8: Complete the following business details regulatory template before entering data or values in any other regulatory template. This regulatory template is linked to other cells within the spreadsheet and automatically generates column headings and conditional formatting to distinguish business specific input and non-input cells.
B10: SUBMISSION PARTICULARS INPUT SHEETS
B12: ENTITY DETAILS
B14: Short name | C14: Australian Distribution Co. | F14: Select business name from drop down list first
B15: ACN / ABN | C15: =INDEX(dms_ABN_List,MATCH(dms_TradingName,dms_TradingName_List)) -> 
B18: Business address | C18: Address 1 | E18: =INDEX(dms_Addr1_List,MATCH(dms_TradingName,dms_TradingName_List)) -> 
D19: Address 2 | E19: =IF(ISBLANK(INDEX(dms_Addr2_List,MATCH(dms_TradingName,dms_TradingName_List))),"",INDEX(dms_Addr2_List,MATCH(dms_TradingName,dms_TradingName_List))) -> 
C20: Suburb | E20: =INDEX(dms_Suburb_List,MATCH(dms_TradingName,dms_TradingName_List)) -> 
D21: State | E21: =INDEX(dms_State_List,MATCH(dms_TradingName,dms_TradingName_List)) ->  | F21: p/code | G21: =INDEX(dms_PostCode_List,MATCH(dms_TradingName,dms_TradingName_List)) -> 
B23: Postal address | C23: Address 1 | E23: =INDEX(dms_PAddr1_List,MATCH(dms_TradingName,dms_TradingName_List)) -> 
D24: Address 2 | E24: =IF(ISBLANK(INDEX(dms_PAddr2_List,MATCH(dms_TradingName,dms_TradingName_List))),"",INDEX(dms_PAddr2_List,MATCH(dms_TradingName,dms_TradingName_List))) -> 
C25: Suburb | E25: =INDEX(dms_PSuburb_List,MATCH(dms_TradingName,dms_TradingName_List)) -> 
D26: State | E26: =INDEX(dms_PState_List,MATCH(dms_TradingName,dms_TradingName_List)) ->  | F26: p/code | G26: =INDEX(dms_PPostCode_List,MATCH(dms_TradingName,dms_TradingName_List)) -> 
B29: Contact name/s
B30: Contact phone/s
B31: Contact email address/s
B33: REGULATORY CONTROL PERIODS
B35: Forthcoming regulatory control period | C35: 2019-20 | D35: =dms_FRCP_y2 ->  | E35: =dms_FRCP_y3 ->  | F35: =dms_FRCP_y4 ->  | G35: =dms_FRCP_y5 ->  | H35: =dms_FRCP_y6 ->  | I35: =dms_FRCP_y7 ->  | J35: =dms_FRCP_y8 ->  | K35: =dms_FRCP_y9 ->  | L35: =dms_FRCP_y10 -> 
B38: Current regulatory control period | C38: =dms_CRCP_FirstYear_Result ->  | D38: =IF(dms_RPT="financial",VALUE(LEFT(CRCP_y1,4)+1)&"-"&TEXT(MID(CRCP_y1,3,2)+2,"00"),VALUE(LEFT(CRCP_y1,4)+1)) ->  | E38: =IF(dms_RPT="financial",VALUE(LEFT(CRCP_y2,4)+1)&"-"&TEXT(VALUE(MID(CRCP_y2,3,2)+2),"00"),VALUE(LEFT(CRCP_y2,4)+1)) ->  | F38: =IF(dms_RPT="financial",VALUE(LEFT(CRCP_y3,4)+1)&"-"&TEXT(VALUE(MID(CRCP_y3,3,2)+2),"00"),VALUE(LEFT(CRCP_y3,4)+1)) ->  | G38: =IF(dms_RPT="financial",VALUE(LEFT(CRCP_y4,4)+1)&"-"&TEXT(VALUE(MID(CRCP_y4,3,2)+2),"00"),VALUE(LEFT(CRCP_y4,4)+1)) ->  | H38: =IF(dms_RPT="financial",VALUE(LEFT(CRCP_y5,4)+1)&"-"&TEXT(VALUE(MID(CRCP_y5,3,2)+2),"00"),VALUE(LEFT(CRCP_y5,4)+1)) ->  | I38: =IF(dms_RPT="financial",VALUE(LEFT(CRCP_y6,4)+1)&"-"&TEXT(VALUE(MID(CRCP_y6,3,2)+2),"00"),VALUE(LEFT(CRCP_y6,4)+1)) ->  | J38: =IF(dms_RPT="financial",VALUE(LEFT(CRCP_y7,4)+1)&"-"&TEXT(VALUE(MID(CRCP_y7,3,2)+2),"00"),VALUE(LEFT(CRCP_y7,4)+1)) ->  | K38: =IF(dms_RPT="financial",VALUE(LEFT(CRCP_y8,4)+1)&"-"&TEXT(VALUE(MID(CRCP_y8,3,2)+2),"00"),VALUE(LEFT(CRCP_y8,4)+1)) ->  | L38: =IF(dms_RPT="financial",VALUE(LEFT(CRCP_y9,4)+1)&"-"&TEXT(VALUE(MID(CRCP_y9,3,2)+2),"00"),VALUE(LEFT(CRCP_y9,4)+1)) -> 
B41: Previous regulatory control period | C41: =IF(dms_RPT="financial",VALUE(LEFT(PRCP_y2,4)-1)&"-"&TEXT(VALUE(MID(PRCP_y2,3,2)),"00"),VALUE(LEFT(PRCP_y2,4)-1)) ->  | D41: =IF(dms_RPT="financial",VALUE(LEFT(PRCP_y3,4)-1)&"-"&TEXT(VALUE(MID(PRCP_y3,3,2)),"00"),VALUE(LEFT(PRCP_y3,4)-1)) ->  | E41: =IF(dms_RPT="financial",VALUE(LEFT(PRCP_y4,4)-1)&"-"&TEXT(VALUE(MID(PRCP_y4,3,2)),"00"),VALUE(LEFT(PRCP_y4,4)-1)) ->  | F41: =IF(dms_RPT="financial",VALUE(LEFT(PRCP_y5,4)-1)&"-"&TEXT(VALUE(RIGHT(PRCP_y5,2)-1),"00"),VALUE(LEFT(PRCP_y5,4)-1)) ->  | G41: =IF(dms_RPT="financial",VALUE(LEFT(CRCP_y1,4)-1)&"-"&TEXT(VALUE(RIGHT(CRCP_y1,2)-1),"00"),VALUE(LEFT(CRCP_y1,4)-1)) -> 
B44: Commencing regulatory year | C44: =dms_RFM_BaseYear -> 2016 | D44: CRY
B46: Last completed regulatory year | C46: =dms_CRCP_FinalYear_Result ->  | D46: dms_FinalYear
C49: DELETE NR 'CRY' IF NOT AN ANNUAL RIN (EB, CA , ARR)
C50: APPLY NR 'CRY' IF AN ANNUAL RIN (EB, CA , ARR) - including multi year annual RINs eg. Recast CA. EB
B52: Source | C52: Regulatory proposal | E52: Please select the correct submission type from the dropdown list.
B53: Data quality (actual, estimate, public, consolidated) | C53: Consolidated
B54: Amended RIN submission - amendment reason
B55: Submission Date | C55: dd/mm/yyyy | D55: dms_SubmissionDate | E55: Please enter date this file submitted to AER (dd/mm/yyyy)
B56: EBSS - First application of scheme in forthcoming period? | C56: No
B57: Sector | C57: =INDEX(dms_Sector_List,MATCH(dms_TradingName,dms_TradingName_List)) ->  | D57: dms_Sector | E57: =INDEX(dms_Sector_List,MATCH(dms_TradingName,dms_TradingName_List))
B58: Segment | C58: =INDEX(dms_Segment_List,MATCH(dms_TradingName,dms_TradingName_List)) ->  | D58: dms_Segment | E58: =INDEX(dms_Segment_List,MATCH(dms_TradingName,dms_TradingName_List))
B59: Regulatory Year Ending | C59: =IF(dms_MultiYear_Flag=1,LEFT(dms_Specified_FinalYear,2)&RIGHT(dms_Specified_FinalYear,2),INDEX(dms_RYE_Formula_Result,MATCH(dms_Model,dms_Model_List))) ->  | D59: dms_RYE | E59: =IF(dms_MultiYear_Flag=1,LEFT(dms_Specified_FinalYear,2)&RIGHT(dms_Specified_FinalYear,2),INDEX(dms_RYE_Formula_Result,MATCH(dms_Model,dms_Model_List)))
B60: Reporting Period Type | C60: =INDEX(dms_RPT_List,MATCH(dms_TradingName,dms_TradingName_List)) ->  | D60: dms_RPT | E60: =INDEX(dms_RPT_List,MATCH(dms_TradingName,dms_TradingName_List))
B61: Model or RIN Type | C61: RFM | D61: dms_Model | E61: Drop down selection
B62: Security Classification | C62: Public | D62: dms_Classification | E62: Always Public
B63: Template - version no. | C63: 5 | D63: dms_TemplateNumber
B64: Dollar $ real month | C64: =INDEX(dms_RPTMonth_List,MATCH(dms_TradingName,dms_TradingName_List)) ->  | D64: dms_RPTMonth | E64: =INDEX(dms_RPTMonth_List,MATCH(dms_TradingName,dms_TradingName_List))
B65: Dollar $ real (the last month before the FRCP_y1) | C65: =CONCATENATE(dms_RPTMonth)&" "&VALUE((LEFT(dms_CRCP_FinalYear_Result,2)&RIGHT(dms_CRCP_FinalYear_Result,2))) ->  | D65: dms_DollarReal | E65: =IF(SUM(dms_SingleYear_Model)>0,CONCATENATE(dms_RPTMonth)&" "&VALUE((LEFT(CRY,2))&RIGHT(CRY,2)),CONCATENATE(dms_RPTMonth)&" "&VALUE((LEFT(dms_CRCP_FinalYear_Result,2)&RIGHT(dms_CRCP_FinalYear_Result,2))))
B66: Dollar $ real previous year (PRCP_y5) | C66: June 2014 | D66: dms_DollarReal_Prev | E66: =IF(SUM(dms_SingleYear_Model)>0,CONCATENATE(dms_RPTMonth)&" "&VALUE(((LEFT(CRY,2))&RIGHT(CRY,2))-1),CONCATENATE(dms_RPTMonth)&" "&VALUE(((LEFT(dms_CRCP_FirstYear_Result,2)&RIGHT(dms_CRCP_FirstYear_Result,2))))-1)
B67: Form of control | C67: =INDEX(dms_FormControl_List,MATCH(dms_TradingName,dms_TradingName_List)) ->  | D67: dms_FormControl | E67: =INDEX(dms_FormControl_List,MATCH(dms_TradingName,dms_TradingName_List))
B68: Calendar Year for table 3.6 data | C68: =VALUE(dms_RYE)-1 ->  | D68: dms_0306_Year | E68: =VALUE(dms_RYE)-1
B69: RIN response - version no. | C69: 1 | D69: dms_RINversion
B70: Jurisdiction | C70: =INDEX(dms_JurisdictionList,MATCH(dms_TradingName,dms_TradingName_List)) ->  | D70: dms_Jurisdiction | E70: =INDEX(dms_JurisdictionList,MATCH(dms_TradingName,dms_TradingName_List))
B71: Backcast Multiyear EB, CA or ARR? | C71: 0 | D71: dms_MultiYear_Flag | E71: 1=y, 0-n
C72: 2013 | D72: dms_Specified_FinalYear | E72: The result here is returned to dms_CRCP_FinalYear_Result if dms_MultiYear_Flag is set to 1
B73: Single Year Model T/F | C73: =IF(dms_Model="EB",1,0) -> 0 | D73: dms_EB
C74: =IF(dms_Model="CA",1,0) -> 0 | D74: dms_CA | E74: =dms_SingleYear_Model
C75: =IF(dms_Model="ARR",1,0) -> 0 | D75: dms_ARR
B76: Single Year Final Year Reference | C76: CRY | D76: dms_SingleYear_FinalYear_Ref | E76: This is the reference for EB, CA & ARR RINs
B77: Single Year Final Year Result | C77: =INDIRECT(dms_SingleYear_FinalYear_Ref) -> 2016 | D77: dms_SingleYear_FinalYear_Result | E77: =INDIRECT(dms_SingleYear_FinalYear_Ref) | I77: Formula errors OK
B78: FRCP length in years | C78: =INDEX(dms_FRCPlength_List,MATCH(dms_TradingName,dms_TradingName_List)) ->  | D78: dms_FRCPlength_Num | E78: =INDEX(dms_FRCPlength_List,MATCH(dms_TradingName,dms_TradingName_List))
B79: Multi Year Final Year Reference | C79: =INDEX(dms_FinalYear_List,MATCH(dms_FRCPlength_Num,dms_FRCPlength_Num_List)) ->  | D79: dms_MultiYear_FinalYear_Ref | E79: =INDEX(dms_FinalYear_List,MATCH(dms_FRCPlength_Num,dms_FRCPlength_Num_List))
B80: Multi Year Final Year Result | C80: =IF(dms_MultiYear_Flag=0,INDIRECT(dms_MultiYear_FinalYear_Ref),dms_Specified_FinalYear) ->  | D80: dms_MultiYear_FinalYear_Result | E80: =IF(dms_MultiYear_Flag=0,INDIRECT(dms_MultiYear_FinalYear_Ref),dms_Specified_FinalYear) | I80: Formula errors OK
B81: CRCP length in years | C81: =INDEX(dms_CRCPlength_List,MATCH(dms_TradingName,dms_TradingName_List)) ->  | D81: dms_CRCPlength_Num | E81: =INDEX(dms_CRCPlength_List,MATCH(dms_TradingName,dms_TradingName_List))
B82: CRCP Final Year Reference | C82: =INDEX(dms_CFinalYear_List,MATCH(dms_CRCPlength_Num,dms_CRCPlength_Num_List)) ->  | D82: dms_CRCP_FinalYear_Ref | E82: =INDEX(dms_CFinalYear_List,MATCH(dms_CRCPlength_Num,dms_CRCPlength_Num_List))
B83: CRCP First Year Result | C83: =INDEX(dms_CRCP_years,MATCH(dms_CRCPlength_Num,dms_CRCP_index)) ->  | D83: dms_CRCP_FirstYear_Result | E83: =INDEX(dms_CRCP_years,MATCH(dms_CRCPlength_Num,dms_CRCP_index))
B84: CRCP Final Year Result | C84: =IF(dms_MultiYear_Flag=0,(IF(SUM(dms_SingleYear_Model)>0,CRY,dms_CRCP_yZ)),dms_Specified_FinalYear) ->  | D84: dms_CRCP_FinalYear_Result | E84: =IF(dms_MultiYear_Flag=0,(IF(SUM(dms_SingleYear_Model)>0,CRY,dms_CRCP_yZ)),dms_Specified_FinalYear)
B85: Table 6.6.3 - Public lighting repair - no. business days | C85: =INDEX(dms_663_List,MATCH(dms_TradingName,dms_TradingName_List)) ->  | D85: dms_663
B86: Distribution Determination Reference | C86: =INDEX(dms_DeterminationRef_List,MATCH(dms_TradingName,dms_TradingName_List)) ->  | D86: dms_DeterminationRef
B87: Backcast templates only - unit of measure | C87: $0s | D87: dms_Backcast_UOM | E87: If the cover sheet is for Backcast data ensure to apply dms_Backcast_UOM named range to this field. Otherwise, do not apply this named range.
B88: EB/CA Unit of Measure for Monetary Values | C88: $0s | D88: dms_dollar_nom_UOM | E88: If the cover sheet is attached to an EB files make sure this field is set
B89: Is this Submission File a Subset File | C89: NO | D89: dms_Partial
B90: discard this record? | C90: NO | D90: dms_DISCARD | E90: If record is to be discarded from DB set this flag to YES
B91: CBD Feeder for this business | C91: =INDEX(dms_CBD_flag,MATCH(dms_TradingName,dms_TradingName_List)) ->  | D91: dms_CBD_flag_NSP
B92: Urban Feeder for this business | C92: =INDEX(dms_Urban_flag,MATCH(dms_TradingName,dms_TradingName_List)) ->  | D92: dms_Urban_flag_NSP
B93: Short rural Feeder for this business | C93: =INDEX(dms_ShortRural_flag,MATCH(dms_TradingName,dms_TradingName_List)) ->  | D93: dms_ShortRural_flag_NSP
B94: Long rural Feeder for this business | C94: =INDEX(dms_LongRural_flag,MATCH(dms_TradingName,dms_TradingName_List)) ->  | D94: dms_LongRural_flag_NSP
B97: USES NAMED RANGES FLAG | C97: yes | D97: dms_Defined_Names_Used

Sheet Intro
G2: Electricity Distribution Network Service Provider
I3: Roll Forward Model
L4: Version: | M4: 2
L5: Date: | M5: December 2016
B8: Introduction | J8: Electricity Distribution Module
C14: This model is used by the AER to determine the opening regulatory and tax asset bases for a distribution network service provider. It also calculates the weighted average remaining asset lives for regulatory and tax purposes using the asset values as weights.
C15: The roll forward of the asset base is undertaken in nominal terms.
C17: INSTRUCTIONS FOR USE
C18: The RFM handbook is available on the AER website at http://www.aer.gov.au
C20: a. Fill out input cells on the 'DMS Input' sheet. These input cells are highlighted blue.
C21: This provides information on the service provider submitting the RFM and the context for the RFM preparation.
C22: This information also controls the automatic import of the RFM into the AER's Data Management System (DMS).
C24: b. Fill out input cells on the 'RFM Input' sheet. These input cells are highlighted blue.
C25: This provides the data for the RFM calculations.
C26: In general, input expenditure data should be valued in nominal dollar terms of the year indicated.
C27: Units and basis for entry are specified where required for each data table.
C29: c. The values in the 'PTRM input summary' sheet
C30: This sheet summarises the key outputs of the RFM. These include the opening regulatory and tax asset values, and remaining asset lives. They become the inputs to the PTRM.
C33: VERSION RECORD
C35: Version | D35: Date | F35: Description
C36: 1 | D36: June 2008 | F36: Initial model
C38: 2 | D38: December 2016 | F38: Added new input sections for end of period adjustments, and removed redundant inputs
F39: Built-in option to select actual or forecast depreciation approach for the RAB roll forward
F40: Adjusted depreciation calculation formula in the RAB roll forward and TAB roll forward period start date
F41: Updated inputs to handle different annual WACCs due to time-varying return on debt
F42: Added calculations of weighted average remaining lives for RAB and TAB to individually track capex over multiple periods
F43: Enabled automatic import into AER DMS

Sheet DMS input
B2: =$C$16&" - DMS Input"&" - DNSP RFM - version "&Intro!$M$4 -> JEN - DMS Input - DNSP RFM - version 2 | G2: Input cells are in blue
B6: This sheet requests information that allows the AER to automatically import the RFM into our data management system (DMS).
B7: This sheet's metadata relates to the business and context for the RFM (rather than the RFM itself).
B8: Some of this data is automatically populated based on data entered on the RFM input sheet. Only change blue input cells.
B9: Some rows are hidden. To facilitate the automatic import, please do not delete or add rows on this sheet.
B10: Throughout the rest of the workbook, defined name ranges are used to identify data that is imported into the DMS.
B12: Entity details
B14: Trading name | C14: Jemena Electricity
B15: ACN / ABN | C15: 82 064 651 083
B16: Business short name | C16: JEN
B18: Business address | C18: Address 1 | E18: Level 16
D19: Address 2 | E19: 567 Collins street
C20: Suburb | E20: Melbourne
D21: State | E21: Vic | F21: Postcode | G21: 3000
B23: Postal address | C23: Address 1 | E23: PO Box 16182
D24: Address 2
C25: Suburb | E25: Melbourne
D26: State | E26: Vic | F26: Postcode | G26: 3000
B29: Contact name/s
B30: Contact phone/s
B31: Contact email address/s
B33: Regulatory process details
B36: Source | C36: Revised regulatory proposal
B37: Amended model submission - reason

Sheet 16 Oct changes
A3: Issue | B3: Location | C3: Comment | D3: Jemena Response
A5: 2 | B5: Adjustment for previous period'!I107:M166 | C5: Given the half-year PTRM is used the final year adjustment compound interest relating to capex in 2015 should stop in 2020 as per the 2016-20 RFM and then CPI applied for 2021
B6: Total RAB roll forward'!L234:M263
B7: Total RAB roll forward'!L266:M295
C8: These amendments will address the second issue raised by Jemena in the their feedback to the AER on 4 October 2019
A10: 3.1 | B10: RFM input'!G35:U35 | C10: New Asset class (ECR 2021) to be included as the half-year PTRM is used
B11: RFM input'!M69 | C11: Value should be consistent with the half-year PTRM.
C12: These amendments address the third issue raised by Jemena in the their feedback to the AER on 4 October 2019 | D12: JEN decided not to include a new RAB asset class for a number of reasons. Additional RAB asset classes complicate subsequent regulatory modelling, perhaps unwarranted in this case due to immateriality. There is no impact of not adopting this change given forecast depreciation and equivalent TAB standard lives.
B15: RFM input'!M198:M204 | C15: Values for cells made consistent with 1/2 PTRM.

Sheet Change log
A1: Detailed log of changes made to Distribution RFM (version 2) template to implement a 5.5 years RFM
A3: Issue | B3: Sheet | C3: Section | D3: Cell reference | E3: Change Description
A4: 1 | B4: RFM Input | C4: Length of regulatory control period | D4: W7 | E4: Input cell requirement changed to half-year (Not a formula change)
A5: =A4+1 -> 2 | B5: RFM Input | C5: Actual Capital Expenditure – As Incurred | D5: M41:M70 | E5: Input cell requirement changed to half-year (Not a formula change)
A6: =A5+1 -> 3 | B6: RFM Input | C6: Actual Asset Disposal – As Incurred | D6: M75: M104 | E6: Input cell requirement changed to half-year (Not a formula change)
A7: 4 | B7: RFM Input | C7: Actual Customer Contributions – As Incurred | D7: M109:M138 | E7: Input cell requirement changed to half-year (Not a formula change)
A8: 5 | B8: RFM Input | C8: Lagged Actual CPI inflation Rate | D8: M182 | E8: Input cell requirement changed to half-year (Not a formula change)
A9: 6 | B9: RFM Input | C9: Forecast inflation rate | D9: M184 | E9: Formula removed and cell changed to input cell
A10: 7 | B10: RFM Input | C10: Nominal Vanilla WACC | D10: M187 | E10: Input cell requirement changed to half-year (Not a formula change)
A11: 8 | B11: RFM Input | C11: Forecast Straight line depreciation | D11: M198: M227 | E11: Input cell requirement changed to half-year (Not a formula change)
A12: 9 | B12: RFM Input | C12: Forecast final year asset adjustments | D12: F230 | E12: Label amended to reference correct year
A13: 10 | B13: Adjustment for previous period | C13: Compounded Nominal Return on Difference - Net Capex | D13: I108: Q108, I110: Q110,…,I166: Q166 | E13: Formula changed so that the sub total is calculated in the correct year
A14: 11 | B14: TAB roll forward | C14: Opening Tax Asset Values | D14: K8: R37 | E14: Formula changed to remove final year adjustments
A15: 12 | B15: TAB roll forward | C15: Actual Tax depreciation | D15: M84, M97,…,M461 | E15: Formula changed to calculate half year actual depreciation in 2021
A16: 13 | B16: TAB roll forward | C16: Final Year Asset Adjustments | D16: Rows 463: 493 | E16: Added new section to calculate final year adjustments in the correct year
A17: 14 | B17: TAB roll forward | C17: Closing Tax Asset Base | D17: Rows 495 :525 | E17: Added new section to calculate the closing tax asset base in the correct year
A18: 15 | B18: TAB remaining lives | C18: Value of TAB adjustment | D18: D11: M11, D65: M65,..,D1577: M1577 | E18: Formula changed so that the value is calculated in the correct year
A19: 16 | B19: TAB remaining lives | C19: Remaining life of TAB adjustment | D19: D12: M12, D66: M66,..,D1578: M1578 | E19: Formula changed so that the value is calculated in the correct year
A20: 17 | B20: TAB remaining lives | C20: Depreciated starting TAB/ Depreciating Net Capex | D20: I14: I19, I28: I43,…,I1580: I1585 | E20: Formula changed to apply half year depreciation on TAB/net capex in 2021
A21: 18 | B21: TAB remaining lives | C21: RL Start TAB/ RL Capex | D21: I38: I43, I92: I97,..,I1604: I1609 | E21: Formula changed to apply half year depreciation on TAB/net capex in 2022
A22: 19 | B22: PTRM input summary | C22: Opening Asset Value | D22: J7: J36 | E22: Formula changed to remove #N/A error and so that the asset values from the correct years is referenced
A23: 20 | B23: PTRM input summary | C23: Average Remaining life | D23: L7: L36 | E23: Hard coded to n/a due to year by year tracking depreciation on the RAB
A24: 21 | B24: PTRM input summary | C24: Opening Tax Asset Value | D24: N7: N36 | E24: Formula changed to remove #N/A error and so that the asset values from the correct years is referenced
A25: 22 | B25: PTRM input summary | C25: Average Tax Remaining Life | D25: O7: O36 | E25: Formula changed to remove #N/A error and also so that the remaining lives from the correct years are referenced
A26: 23 | B26: PTRM input summary | C26: Base Regulatory Year | D26: Q7 | E26: Hard coded the correct base year
B28: Please note: No changes were made to the RAB remaining lives sheet as Victorian DNSPs use year by year tracking depreciation on the RAB

Sheet Input changes
A1: No. | B1: Sheet | C1: Cell | D1: Changes
A2: 1 | B2: RFM input | C2: K41:K48, K75:K82, K109:K116 | D2: Capex, disposals and customer contributions updated to be consistent with 2019 Annual RINs
A3: 2 | B3: RFM input | C3: H70 | D3: Revised 2016 ERC based on revsised 2016 CPI
A4: 3 | B4: RFM input | C4: M70 | D4: Including 2021 half year ERC based on the forecast for the 6 month period consistent with approach in AER letter to Jemena in August 2020
A5: 4 | B5: RFM input | C5: H182 | D5: Updated 2016 actual CPI
A6: 5 | B6: RFM input | C6: M182 | D6: Updated 2021 half year actual CPI
A7: 6 | B7: RFM input | C7: M184 | D7: Updated 2021 half year forecast CPI based on the forecast for the 6 month period consistent with approach in AER letter to Jemena in August 2020
A8: 7 | B8: RFM input | C8: M187 | D8: Updated 2021 half year WACC based on the forecast for the 6 month period consistent with approach in AER letter to Jemena in August 2020
A9: 8 | B9: RFM input | C9: M198:M227 | D9: Updated half year forecast depreciation based on the forecast for the 6 month period consistent with approach in AER letter to Jemena in August 2020
A11: The AER's draft decision amendments are highlighted in Orange unless noted.
A13: No. | B13: Sheet | C13: Cell | D13: Changes
A14: 1 | B14: RFM input | C14: M187 | D14: JEN updated the Nominal Vanilla WACC based on the latest available data
A16: JEN's revised proposal amendments are highlighted in light red unless noted.

Sheet RFM input
M1: Formula changes | N1: placeholders | O1: Half year placeholder inputs for 1/1/2021-30/06/2021
F2: ='DMS input'!$C$16&" - RFM Input"&" - DNSP RFM - version "&Intro!$M$4 -> JEN - RFM Input - DNSP RFM - version 2 | G2: Input cells are in blue
F5: ="Opening Regulatory Asset Base for "&IF(LEN($V$7)>4,CONCATENATE(LEFT($V$7,4)-1&"-"&IF($V$7>"2009-10",,"0")&RIGHT($V$7,2)-1),$V$7-1)&" and Opening Tax Asset Base for "&$V$7&" ($m Nominal)" -> Opening Regulatory Asset Base for 2015 and Opening Tax Asset Base for 2016 ($m Nominal)
G6: Asset Class Name | J6: Opening Asset Value | K6: Average Remaining Life (Year) | L6: Standard Life (Year) | M6: Forecast Net Capex | N6: Forecast Regulatory Depreciation | O6: Forecast Customer Contributions | P6: Difference in Final Year Capex | Q6: Return on Difference in Final Year Capex | R6: Other Final Year Adjustments | S6: Opening Tax Asset Value | T6: Average Tax Remaining Life (Year) | U6: Tax Standard Life (Year) | V6: Base Regulatory Year | W6: Length of Regulatory Control Period (Year)
F7: Asset Class 1 | G7: Subtransmission | J7: 219.3726611 | K7: n/a | L7: 53.36214286 | M7: 21.54764772 | N7: 2.325803081 | O7: 0 | P7: 2.785868405 | Q7: 1.764129509 | S7: 150.1094446 | T7: 26.56563077 | U7: 42.97648397 | V7: 2016 | W7: 5.5
F8: Asset Class 2 | G8: Distribution system assets | J8: 765.1273813 | K8: n/a | L8: 49.4679916 | M8: 84.83414948 | N8: 15.88817753 | O8: 3.910461599 | P8: -18.63277978 | Q8: -11.79906293 | S8: 496.1419198 | T8: 28.16355851 | U8: 45.1629244
F9: Asset Class 3 | G9: Metering | J9: 2.675748922 | K9: n/a | L9: n/a | M9: 0 | N9: 2.675748922 | O9: 0 | P9: 0.0190064605 | Q9: 0.01203569334 | S9: 0.06911796455 | T9: 1 | U9: n/a
F10: Asset Class 4 | G10: Public Lighting | J10: 8.418200598 | K10: n/a | L10: n/a | M10: 0 | N10: 1.232475394 | O10: 0 | P10: 0 | Q10: 0 | S10: 4.436231144 | T10: 1.259114719 | U10: n/a
F11: Asset Class 5 | G11: SCADA/Network control | J11: 0.9170957033 | K11: n/a | L11: 10 | M11: 0.01726683579 | N11: -1.041560972 | O11: 0 | P11: -0.008640846094 | Q11: -0.005471748611 | S11: 3.429412905 | T11: 7.787729295 | U11: 10
F12: Asset Class 6 | G12: Non network - IT | J12: 57.71546746 | K12: n/a | L12: 5.236260408 | M12: 9.227487357 | N12: 21.19325307 | O12: 0 | P12: 5.353755287 | Q12: 3.390223913 | S12: 22.86274131 | T12: 2.403247656 | U12: 4.385434498
F13: Asset Class 7 | G13: Non network - other | J13: 61.34213641 | K13: n/a | L13: 24.20373958 | M13: 21.45775628 | N13: 3.773062771 | O13: 0 | P13: -1.645569178 | Q13: -1.042043888 | S13: 49.39976181 | T13: 11.21903592 | U13: 17.42563677
F14: Asset Class 8 | G14: Land | J14: 0 | K14: n/a | L14: n/a | M14: 0 | N14: 0 | O14: 0 | P14: 0 | Q14: 0 | S14: 20.39371235 | T14: n/a | U14: n/a
F15: Asset Class 9
F16: Asset Class 10
F17: Asset Class 11
F18: Asset Class 12
F19: Asset Class 13
F20: Asset Class 14
F21: Asset Class 15
F22: Asset Class 16
F23: Asset Class 17
F24: Asset Class 18
F25: Asset Class 19
F26: Asset Class 20
F27: Asset Class 21
F28: Asset Class 22
F29: Asset Class 23
F30: Asset Class 24
F31: Asset Class 25
F32: Asset Class 26
F33: Asset Class 27
F34: Asset Class 28
F35: Asset Class 29
F36: Asset Class 30 | G36: Equity raising costs | J36: 0 | K36: n/a | L36: 46.52661569 | M36: 0 | N36: 0 | O36: 0 | P36: 0 | Q36: 0 | T36: n/a | U36: 5
F37: Total | J37: =SUM(J7:J36) -> 1115.568691 | M37: =SUM(M7:M36) -> 137.0843077 | N37: 46.0469598 | O37: =SUM(O7:O36) -> 3.910461599 | P37: =SUM(P7:P36) -> -12.12835965 | Q37: =SUM(Q7:Q36) -> -7.680189457 | R37: =SUM(R7:R36) -> 0 | S37: =SUM(S7:S36) -> 746.8423419
F39: Actual Capital Expenditure – As Incurred ($m Nominal)
F40: Year | G40: =IF(LEN(H40)>4,CONCATENATE(LEFT(H40,4)-1&"-"&IF(H40>"2009-10",,"0")&RIGHT(H40,2)-1),H40-1) -> 2015 | H40: =V7 -> 2016 | I40: =IF(LEN(H40)>4,CONCATENATE(LEFT(H40,4)+1&"-"&IF(H40>"2007-08",,"0")&RIGHT(H40,2)+1),H40+1) -> 2017 | J40: =IF(LEN(I40)>4,CONCATENATE(LEFT(I40,4)+1&"-"&IF(I40>"2007-08",,"0")&RIGHT(I40,2)+1),I40+1) -> 2018 | K40: =IF(LEN(J40)>4,CONCATENATE(LEFT(J40,4)+1&"-"&IF(J40>"2007-08",,"0")&RIGHT(J40,2)+1),J40+1) -> 2019 | L40: =IF(LEN(K40)>4,CONCATENATE(LEFT(K40,4)+1&"-"&IF(K40>"2007-08",,"0")&RIGHT(K40,2)+1),K40+1) -> 2020 | M40: =IF(LEN(L40)>4,CONCATENATE(LEFT(L40,4)+1&"-"&IF(L40>"2007-08",,"0")&RIGHT(L40,2)+1),L40+1) -> 2021 | N40: =IF(LEN(M40)>4,CONCATENATE(LEFT(M40,4)+1&"-"&IF(M40>"2007-08",,"0")&RIGHT(M40,2)+1),M40+1) -> 2022 | O40: =IF(LEN(N40)>4,CONCATENATE(LEFT(N40,4)+1&"-"&IF(N40>"2007-08",,"0")&RIGHT(N40,2)+1),N40+1) -> 2023 | P40: =IF(LEN(O40)>4,CONCATENATE(LEFT(O40,4)+1&"-"&IF(O40>"2007-08",,"0")&RIGHT(O40,2)+1),O40+1) -> 2024 | Q40: =IF(LEN(P40)>4,CONCATENATE(LEFT(P40,4)+1&"-"&IF(P40>"2007-08",,"0")&RIGHT(P40,2)+1),P40+1) -> 2025
F41: =Asset1 -> Subtransmission | G41: 20.42978734 | H41: 11.78464209 | I41: 23.84907767 | J41: 45.19300725 | K41: 42.06580461 | L41: 27.93608068 | M41: 12.81563301
F42: =Asset2 -> Distribution system assets | G42: 84.78290355 | H42: 89.82723471 | I42: 82.27415636 | J42: 79.44843297 | K42: 77.51748606 | L42: 101.2682875 | M42: 50.88043873
F43: =Asset3 -> Metering | G43: 0 | H43: 0 | I43: 0 | J43: 0 | K43: 0 | L43: 0 | M43: 0
F44: =Asset4 -> Public Lighting | G44: 0 | H44: 0 | I44: 0 | J44: 0 | K44: 0 | L44: 0 | M44: 0
F45: =Asset5 -> SCADA/Network control | G45: 0.01646005 | H45: 0.14288206 | I45: 2.82035261 | J45: -0.0139153 | K45: 0 | L45: 0.4168719096 | M45: 0.2894470036
F46: =Asset6 -> Non network - IT | G46: 8.79633681 | H46: 14.23473955 | I46: 30.85228034 | J46: 21.32726709 | K46: 21.67552376 | L46: 23.13861607 | M46: 13.59704981
F47: =Asset7 -> Non network - other | G47: 20.62972677 | H47: 4.477867782 | I47: 16.12329749 | J47: 3.76402301 | K47: 3.97716639 | L47: 7.762274046 | M47: 0.4462838091
F48: =Asset8 -> Land | G48: 0.00702122 | H48: 0 | I48: 0 | J48: 0 | K48: 0 | L48: 0.02176143422 | M48: 0.03209030039
F49: =Asset9 -> 0
F50: =Asset10 -> 0
F51: =Asset11 -> 0
F52: =Asset12 -> 0
F53: =Asset13 -> 0
F54: =Asset14 -> 0
F55: =Asset15 -> 0
F56: =Asset16 -> 0
F57: =Asset17 -> 0
F58: =Asset18 -> 0
F59: =Asset19 -> 0
F60: =Asset20 -> 0
F61: =Asset21 -> 0
F62: =Asset22 -> 0
F63: =Asset23 -> 0
F64: =Asset24 -> 0
F65: =Asset25 -> 0
F66: =Asset26 -> 0
F67: =Asset27 -> 0
F68: =Asset28 -> 0
F69: =Asset29 -> 0
F70: =Asset30 -> Equity raising costs | H70: =5.33187566397041*(1+H182)^0.5 -> 5.372003234 | M70: =0.593948994802964*(1+M182)^0.5 -> 0.5975596602
F71: Total | G71: =SUM(G41:G70) -> 134.6622357 | H71: 125.8393694 | I71: 155.9191645 | J71: 149.718815 | K71: 145.2359808 | L71: 160.5438916 | M71: 78.65850233
R72: =SUM(G71:Q71) -> 950.5779594
F73: Actual Asset Disposal – As Incurred ($m Nominal)
F74: Year | G74: =G$40 -> 2015 | H74: =H$40 -> 2016 | I74: 2017 | J74: 2018 | K74: 2019 | L74: 2020 | M74: 2021 | N74: 2022 | O74: 2023 | P74: 2024 | Q74: 2025
F75: =Asset1 -> Subtransmission | G75: 0 | H75: 0 | I75: 0 | J75: 0 | K75: 0 | L75: 0 | M75: 0
F76: =Asset2 -> Distribution system assets | G76: 0 | H76: 0 | I76: 0 | J76: 0 | K76: 0 | L76: 0 | M76: 0
F77: =Asset3 -> Metering | G77: 0 | H77: 0 | I77: 0 | J77: 0 | K77: 0 | L77: 0 | M77: 0
F78: =Asset4 -> Public Lighting | G78: 0 | H78: 0 | I78: 0 | J78: 0 | K78: 0 | L78: 0 | M78: 0
F79: =Asset5 -> SCADA/Network control | G79: 0 | H79: 0 | I79: 0 | J79: 0 | K79: 0 | L79: 0 | M79: 0
F80: =Asset6 -> Non network - IT | G80: 0 | H80: 0 | I80: 0 | J80: 0 | K80: 0 | L80: 0 | M80: 0
F81: =Asset7 -> Non network - other | G81: 0.22693654 | H81: 0.13893909 | I81: 0.2198215 | J81: 0.34981207 | K81: 0.4376241 | L81: 0.2247133846 | M81: 0.09295807968
F82: =Asset8 -> Land | G82: 0 | H82: 0 | I82: 0 | J82: 0 | K82: 0 | L82: 0 | M82: 0
F83: =Asset9 -> 0
F84: =Asset10 -> 0
F85: =Asset11 -> 0
F86: =Asset12 -> 0
F87: =Asset13 -> 0
F88: =Asset14 -> 0
F89: =Asset15 -> 0
F90: =Asset16 -> 0
F91: =Asset17 -> 0
F92: =Asset18 -> 0
F93: =Asset19 -> 0
F94: =Asset20 -> 0
F95: =Asset21 -> 0
F96: =Asset22 -> 0
F97: =Asset23 -> 0
F98: =Asset24 -> 0
F99: =Asset25 -> 0
F100: =Asset26 -> 0
F101: =Asset27 -> 0
F102: =Asset28 -> 0
F103: =Asset29 -> 0
F104: =Asset30 -> Equity raising costs
F105: Total | G105: =SUM(G75:G104) -> 0.22693654 | H105: 0.13893909 | I105: 0.2198215 | J105: 0.34981207 | K105: 0.4376241 | L105: 0.2247133846 | M105: 0.09295807968 | N105: 0 | O105: 0 | P105: 0 | Q105: 0
R106: =SUM(G105:Q105) -> 1.690804764
F107: Actual Customer Contributions – As Incurred ($m Nominal)
F108: Year | G108: =G$40 -> 2015 | H108: =H$40 -> 2016 | I108: 2017 | J108: 2018 | K108: 2019 | L108: 2020 | M108: 2021 | N108: 2022 | O108: 2023 | P108: 2024 | Q108: 2025
F109: =Asset1 -> Subtransmission | G109: 0 | H109: 0 | I109: 0.80274595 | J109: 0.772537 | K109: 11.0124756 | L109: 3.332948003 | M109: 0.1847558656
F110: =Asset2 -> Distribution system assets | G110: 3.910461599 | H110: 12.87470794 | I110: 23.42362756 | J110: 23.73885638 | K110: 36.39387175 | L110: 34.07320645 | M110: 17.53169502
F111: =Asset3 -> Metering | G111: 0 | H111: 0 | I111: 0 | J111: 0 | K111: 0 | L111: 0 | M111: 0
F112: =Asset4 -> Public Lighting | G112: 0 | H112: 0 | I112: 0 | J112: 0 | K112: 0 | L112: 0 | M112: 0
F113: =Asset5 -> SCADA/Network control | G113: 0 | H113: 0 | I113: 0 | J113: 0 | K113: 0 | L113: 0 | M113: 0
F114: =Asset6 -> Non network - IT | G114: 0 | H114: 0 | I114: 0 | J114: 0 | K114: 0 | L114: 0 | M114: 0
F115: =Asset7 -> Non network - other | G115: 0 | H115: 0 | I115: 0 | J115: 0 | K115: 0 | L115: 0 | M115: 0
F116: =Asset8 -> Land | G116: 0 | H116: 0 | I116: 0 | J116: 0 | K116: 0 | L116: 0 | M116: 0
F117: =Asset9 -> 0
F118: =Asset10 -> 0
F119: =Asset11 -> 0
F120: =Asset12 -> 0
F121: =Asset13 -> 0
F122: =Asset14 -> 0
F123: =Asset15 -> 0
F124: =Asset16 -> 0
F125: =Asset17 -> 0
F126: =Asset18 -> 0
F127: =Asset19 -> 0
F128: =Asset20 -> 0
F129: =Asset21 -> 0
F130: =Asset22 -> 0
F131: =Asset23 -> 0
F132: =Asset24 -> 0
F133: =Asset25 -> 0
F134: =Asset26 -> 0
F135: =Asset27 -> 0
F136: =Asset28 -> 0
F137: =Asset29 -> 0
F138: =Asset30 -> Equity raising costs
F139: Total | G139: =SUM(G109:G138) -> 3.910461599 | H139: 12.87470794 | I139: 24.22637351 | J139: 24.51139338 | K139: 47.40634735 | L139: 37.40615445 | M139: 17.71645088 | N139: 0 | O139: 0 | P139: 0 | Q139: 0
R140: =SUM(G139:Q139) -> 168.0518891
F141: ="Actual Net Capital Expenditure – As Incurred ($m Real "&IF(LEN($V$7)>4,CONCATENATE(LEFT($V$7, 4)-1 &"-" &IF($V$7>"2009-10",,"0") &RIGHT($V$7,2)-1),$V$7-1)&")" -> Actual Net Capital Expenditure – As Incurred ($m Real 2015)
F142: Year | G142: =G$40 -> 2015 | H142: =H$40 -> 2016 | I142: 2017 | J142: 2018 | K142: 2019 | L142: 2020 | M142: 2021 | N142: 2022 | O142: 2023 | P142: 2024 | Q142: 2025
F143: =Asset1 -> Subtransmission | G143: =(G41-G75-G109)/G$183 -> 20.42978734 | H143: 11.60924277 | I143: 22.47335662 | J143: 42.4943794 | K143: 29.10219064 | L143: 22.69574696 | M143: 11.51127272 | N143: 0 | O143: 0 | P143: 0 | Q143: 0
F144: =Asset2 -> Distribution system assets | G144: =(G42-G76-G110)/G$183 -> 80.87244196 | H144: 75.80718684 | I144: 57.38739411 | J144: 53.29398519 | K144: 38.5397412 | L144: 61.98570629 | M144: 30.39270189 | N144: 0 | O144: 0 | P144: 0 | Q144: 0
F145: =Asset3 -> Metering | G145: =(G43-G77-G111)/G$183 -> 0 | H145: 0 | I145: 0 | J145: 0 | K145: 0 | L145: 0 | M145: 0 | N145: 0 | O145: 0 | P145: 0 | Q145: 0
F146: =Asset4 -> Public Lighting | G146: =(G44-G78-G112)/G$183 -> 0 | H146: 0 | I146: 0 | J146: 0 | K146: 0 | L146: 0 | M146: 0 | N146: 0 | O146: 0 | P146: 0 | Q146: 0
F147: =Asset5 -> SCADA/Network control | G147: =(G45-G79-G113)/G$183 -> 0.01646005 | H147: 0.1407554433 | I147: 2.750233346 | J147: -0.01331192656 | K147: 0 | L147: 0.3845534427 | M147: 0.2637903415 | N147: 0 | O147: 0 | P147: 0 | Q147: 0
F148: =Asset6 -> Non network - IT | G148: =(G46-G80-G114)/G$183 -> 8.79633681 | H148: 14.02287366 | I148: 30.0852347 | J148: 20.40250754 | K148: 20.31361032 | L148: 21.34476865 | M148: 12.39180357 | N148: 0 | O148: 0 | P148: 0 | Q148: 0
F149: =Asset7 -> Non network - other | G149: =(G47-G81-G115)/G$183 -> 20.40279023 | H149: 4.274349289 | I149: 15.50808571 | J149: 3.266169273 | K149: 3.31714627 | L149: 6.953202736 | M149: 0.3220068394 | N149: 0 | O149: 0 | P149: 0 | Q149: 0
F150: =Asset8 -> Land | G150: =(G48-G82-G116)/G$183 -> 0.00702122 | H150: 0 | I150: 0 | J150: 0 | K150: 0 | L150: 0.02007435439 | M150: 0.02924580732 | N150: 0 | O150: 0 | P150: 0 | Q150: 0
F151: =Asset9 -> 0 | G151: =(G49-G83-G117)/G$183 -> 0 | H151: 0 | I151: 0 | J151: 0 | K151: 0 | L151: 0 | M151: 0 | N151: 0 | O151: 0 | P151: 0 | Q151: 0
F152: =Asset10 -> 0 | G152: =(G50-G84-G118)/G$183 -> 0 | H152: 0 | I152: 0 | J152: 0 | K152: 0 | L152: 0 | M152: 0 | N152: 0 | O152: 0 | P152: 0 | Q152: 0
F153: =Asset11 -> 0 | G153: =(G51-G85-G119)/G$183 -> 0 | H153: 0 | I153: 0 | J153: 0 | K153: 0 | L153: 0 | M153: 0 | N153: 0 | O153: 0 | P153: 0 | Q153: 0
F154: =Asset12 -> 0 | G154: =(G52-G86-G120)/G$183 -> 0 | H154: 0 | I154: 0 | J154: 0 | K154: 0 | L154: 0 | M154: 0 | N154: 0 | O154: 0 | P154: 0 | Q154: 0
F155: =Asset13 -> 0 | G155: =(G53-G87-G121)/G$183 -> 0 | H155: 0 | I155: 0 | J155: 0 | K155: 0 | L155: 0 | M155: 0 | N155: 0 | O155: 0 | P155: 0 | Q155: 0
F156: =Asset14 -> 0 | G156: =(G54-G88-G122)/G$183 -> 0 | H156: 0 | I156: 0 | J156: 0 | K156: 0 | L156: 0 | M156: 0 | N156: 0 | O156: 0 | P156: 0 | Q156: 0
F157: =Asset15 -> 0 | G157: =(G55-G89-G123)/G$183 -> 0 | H157: 0 | I157: 0 | J157: 0 | K157: 0 | L157: 0 | M157: 0 | N157: 0 | O157: 0 | P157: 0 | Q157: 0
F158: =Asset16 -> 0 | G158: =(G56-G90-G124)/G$183 -> 0 | H158: 0 | I158: 0 | J158: 0 | K158: 0 | L158: 0 | M158: 0 | N158: 0 | O158: 0 | P158: 0 | Q158: 0
F159: =Asset17 -> 0 | G159: =(G57-G91-G125)/G$183 -> 0 | H159: 0 | I159: 0 | J159: 0 | K159: 0 | L159: 0 | M159: 0 | N159: 0 | O159: 0 | P159: 0 | Q159: 0
F160: =Asset18 -> 0 | G160: =(G58-G92-G126)/G$183 -> 0 | H160: 0 | I160: 0 | J160: 0 | K160: 0 | L160: 0 | M160: 0 | N160: 0 | O160: 0 | P160: 0 | Q160: 0
F161: =Asset19 -> 0 | G161: =(G59-G93-G127)/G$183 -> 0 | H161: 0 | I161: 0 | J161: 0 | K161: 0 | L161: 0 | M161: 0 | N161: 0 | O161: 0 | P161: 0 | Q161: 0
F162: =Asset20 -> 0 | G162: =(G60-G94-G128)/G$183 -> 0 | H162: 0 | I162: 0 | J162: 0 | K162: 0 | L162: 0 | M162: 0 | N162: 0 | O162: 0 | P162: 0 | Q162: 0
F163: =Asset21 -> 0 | G163: =(G61-G95-G129)/G$183 -> 0 | H163: 0 | I163: 0 | J163: 0 | K163: 0 | L163: 0 | M163: 0 | N163: 0 | O163: 0 | P163: 0 | Q163: 0
F164: =Asset22 -> 0 | G164: =(G62-G96-G130)/G$183 -> 0 | H164: 0 | I164: 0 | J164: 0 | K164: 0 | L164: 0 | M164: 0 | N164: 0 | O164: 0 | P164: 0 | Q164: 0
F165: =Asset23 -> 0 | G165: =(G63-G97-G131)/G$183 -> 0 | H165: 0 | I165: 0 | J165: 0 | K165: 0 | L165: 0 | M165: 0 | N165: 0 | O165: 0 | P165: 0 | Q165: 0
F166: =Asset24 -> 0 | G166: =(G64-G98-G132)/G$183 -> 0 | H166: 0 | I166: 0 | J166: 0 | K166: 0 | L166: 0 | M166: 0 | N166: 0 | O166: 0 | P166: 0 | Q166: 0
F167: =Asset25 -> 0 | G167: =(G65-G99-G133)/G$183 -> 0 | H167: 0 | I167: 0 | J167: 0 | K167: 0 | L167: 0 | M167: 0 | N167: 0 | O167: 0 | P167: 0 | Q167: 0
F168: =Asset26 -> 0 | G168: =(G66-G100-G134)/G$183 -> 0 | H168: 0 | I168: 0 | J168: 0 | K168: 0 | L168: 0 | M168: 0 | N168: 0 | O168: 0 | P168: 0 | Q168: 0
F169: =Asset27 -> 0 | G169: =(G67-G101-G135)/G$183 -> 0 | H169: 0 | I169: 0 | J169: 0 | K169: 0 | L169: 0 | M169: 0 | N169: 0 | O169: 0 | P169: 0 | Q169: 0
F170: =Asset28 -> 0 | G170: =(G68-G102-G136)/G$183 -> 0 | H170: 0 | I170: 0 | J170: 0 | K170: 0 | L170: 0 | M170: 0 | N170: 0 | O170: 0 | P170: 0 | Q170: 0
F171: =Asset29 -> 0 | G171: =(G69-G103-G137)/G$183 -> 0 | H171: 0 | I171: 0 | J171: 0 | K171: 0 | L171: 0 | M171: 0 | N171: 0 | O171: 0 | P171: 0 | Q171: 0
F172: =Asset30 -> Equity raising costs | G172: =(G70-G104-G138)/G$183 -> 0 | H172: 5.292047837 | I172: 0 | J172: 0 | K172: 0 | L172: 0 | M172: 0.5445918074 | N172: 0 | O172: 0 | P172: 0 | Q172: 0
F173: Total | G173: =SUM(G143:G172) -> 130.5248376 | H173: 111.1464558 | I173: 128.2043045 | J173: 119.4437295 | K173: 91.27268843 | L173: 113.3840524 | M173: 55.45541298 | N173: 0 | O173: 0 | P173: 0 | Q173: 0
R174: =SUM(G173:Q173) -> 749.4314812
F175: Lagged Inflation Option
H176: Partially-lagged Inflation
F177: All-lagged Inflation | H177: All-lagged Inflation
H178: =IF(F177=H176,"Partially-lagged","All-lagged") -> All-lagged
F180: Inflation and Rate of Return
F181: Year | G181: =G$40 -> 2015 | H181: =H$40 -> 2016 | I181: 2017 | J181: 2018 | K181: 2019 | L181: 2020 | M181: 2021 | N181: 2022 | O181: 2023 | P181: 2024 | Q181: 2025
F182: =IF($F$177=$H$176,"Actual ","Lagged Actual ")&"CPI Inflation Rate" -> Lagged Actual CPI Inflation Rate | G182: 0.02307692308 | H182: 0.01510859301 | I182: 0.01023255814 | J182: 0.01933701657 | K182: 0.02077687444 | L182: 0.01592920354 | M182: =116.2/114.8-1 -> 0.01219512195
F183: Actual CPI (one year lagged) | G183: 1 | H183: =G183*(1+IF($F$177=$H$176,G182,H182)) -> 1.015108593 | I183: =H183*(1+IF($F$177=$H$176,H182,I182)) -> 1.025495751 | J183: 1.045325779 | K183: 1.067044381 | L183: 1.084041549 | M183: 1.097261568 | N183: 1.097261568 | O183: 1.097261568 | P183: 1.097261568 | Q183: 1.097261568
F184: Forecast Inflation Rate | G184: 0.0257487534 | H184: 0.02349497251 | I184: =H184 -> 0.02349497251 | J184: =I184 -> 0.02349497251 | K184: 0.02349497251 | L184: 0.02349497251 | M184: 0.01118103795 | N184: 0.01118103795 | O184: =N184 -> 0.01118103795 | P184: 0.01118103795 | Q184: 0.01118103795
F185: Forecast Inflation Cumulative Index | G185: 1 | H185: =G185*(1+H184) -> 1.023494973 | I185: =H185*(1+I184) -> 1.047541959 | J185: 1.072153928 | K185: 1.097344155 | L185: 1.123126226 | M185: 1.135683943 | N185: 1.148382068 | O185: =N185*(1+O184) -> 1.161222172 | P185: 1.174205841 | Q185: 1.187334681
F187: Nominal Vanilla WACC | G187: 0.1033058648 | H187: 0.06374762627 | I187: 0.06313551768 | J187: 0.06260749044 | K187: 0.06204912343 | L187: 0.06091594556 | M187: 0.02333777693
F188: Real Vanilla WACC | G188: =(1+G187)/(1+G184)-1 -> 0.07561024189 | H188: 0.03932862871 | I188: 0.03873057145 | J188: 0.03821466541 | K188: 0.03766911607 | L188: 0.03656195102 | M188: 0.012022317 | N188: -0.01105740468 | O188: -0.01105740468 | P188: -0.01105740468 | Q188: -0.01105740468
F189: Nominal vanilla WACC (fixed real time varying) | G189: =(1+G188)*(1+G182)-1 -> 0.1004320167 | H189: 0.05503142196 | I189: 0.04935944242 | J189: 0.05829063961 | K189: 0.059228637 | L189: 0.05307355732 | M189: 0.02436405257 | N189: -0.01105740468 | O189: -0.01105740468 | P189: -0.01105740468 | Q189: -0.01105740468
F191: Real Straight-line Depreciation Option
H192: Forecast Real SL Depreciation
F193: Forecast Real SL Depreciation | H193: Actual Real SL Depreciation
H194: =IF(F193=H192,"Forecast","Actual") -> Forecast
F196: ="Forecast Straight-line Depreciation ($m Real "&IF(LEN($V$7)>4,CONCATENATE(LEFT($V$7, 4)-1 &"-" &IF($V$7>"2009-10",,"0") &RIGHT($V$7,2)-1),$V$7-1)&")" -> Forecast Straight-line Depreciation ($m Real 2015)
F197: Year | H197: =H$40 -> 2016 | I197: =I$40 -> 2017 | J197: 2018 | K197: 2019 | L197: 2020 | M197: 2021 | N197: 2022 | O197: 2023 | P197: 2024 | Q197: 2025
F198: =Asset1 -> Subtransmission | H198: 7.984617056 | I198: 8.246334172 | J198: 9.098343461 | K198: 9.84415199 | L198: 10.3121943 | M198: 5.207849646
F199: =Asset2 -> Distribution system assets | H199: 34.56503454 | I199: 35.92867683 | J199: 37.46287381 | K199: 38.96830928 | L199: 40.58592058 | M199: 20.22166859
F200: =Asset3 -> Metering | H200: 0.03104215384 | I200: 0 | J200: 0 | K200: 0 | L200: 0 | M200: 0
F201: =Asset4 -> Public Lighting | H201: 1.426741562 | I201: 1.426741562 | J201: 1.426741562 | K201: 1.426741562 | L201: 1.426741562 | M201: 0.02600869703
F202: =Asset5 -> SCADA/Network control | H202: 0.2539436657 | I202: 1.170323772 | J202: 1.788225751 | K202: 1.97522854 | L202: 3.101378293 | M202: -1.492244901
F203: =Asset6 -> Non network - IT | H203: 30.84922053 | I203: 17.65847017 | J203: 20.02060057 | K203: 21.98617019 | L203: 23.64547007 | M203: 7.562490734
F204: =Asset7 -> Non network - other | H204: 6.086114175 | I204: 6.651488127 | J204: 6.814251029 | K204: 6.978773811 | L204: 7.217332737 | M204: 3.736897851
F205: =Asset8 -> Land | H205: 0 | I205: 0 | J205: 0 | K205: 0 | L205: 0
F206: =Asset9 -> 0
F207: =Asset10 -> 0
... 54 more rows

Sheet Adjustment for previous period
O1: Jemena Changes
B2: ='DMS input'!$C$16&" - Adjustment For Previous Period"&" - DNSP RFM - version "&Intro!$M$4 -> JEN - Adjustment For Previous Period - DNSP RFM - version 2
B4: Year | G4: ='RFM input'!G40 -> 2015 | H4: ='RFM input'!H40 -> 2016 | I4: ='RFM input'!I40 -> 2017 | J4: ='RFM input'!J40 -> 2018 | K4: ='RFM input'!K40 -> 2019 | L4: ='RFM input'!L40 -> 2020 | M4: ='RFM input'!M40 -> 2021 | N4: ='RFM input'!N40 -> 2022 | O4: ='RFM input'!O40 -> 2023 | P4: ='RFM input'!P40 -> 2024 | Q4: ='RFM input'!Q40 -> 2025
B6: Nominal Vanilla WACC (fixed real time varying) | H6: =vanilla1 -> 0.05503142196 | I6: =vanilla2 -> 0.04935944242 | J6: =vanilla3 -> 0.05829063961 | K6: =vanilla4 -> 0.059228637 | L6: =vanilla5 -> 0.05307355732 | M6: =vanilla6 -> 0.02436405257 | N6: =vanilla7 -> -0.01105740468 | O6: =vanilla8 -> -0.01105740468 | P6: =vanilla9 -> -0.01105740468 | Q6: =vanilla10 -> -0.01105740468
B8: Nominal Adjustments for Difference Between Forecast and Actual Net Capex
B10: Nominal Forecast Net Capex (previous regulatory control period) | G10: =SUM(G11:G40) -> 137.0843077
C11: =Asset1 -> Subtransmission | G11: ='RFM input'!M7 -> 21.54764772
C12: =Asset2 -> Distribution system assets | G12: ='RFM input'!M8 -> 84.83414948
C13: =Asset3 -> Metering | G13: ='RFM input'!M9 -> 0
C14: =Asset4 -> Public Lighting | G14: ='RFM input'!M10 -> 0
C15: =Asset5 -> SCADA/Network control | G15: ='RFM input'!M11 -> 0.01726683579
C16: =Asset6 -> Non network - IT | G16: ='RFM input'!M12 -> 9.227487357
C17: =Asset7 -> Non network - other | G17: ='RFM input'!M13 -> 21.45775628
C18: =Asset8 -> Land | G18: ='RFM input'!M14 -> 0
C19: =Asset9 -> 0 | G19: ='RFM input'!M15 -> 0
C20: =Asset10 -> 0 | G20: ='RFM input'!M16 -> 0
C21: =Asset11 -> 0 | G21: ='RFM input'!M17 -> 0
C22: =Asset12 -> 0 | G22: ='RFM input'!M18 -> 0
C23: =Asset13 -> 0 | G23: ='RFM input'!M19 -> 0
C24: =Asset14 -> 0 | G24: ='RFM input'!M20 -> 0
C25: =Asset15 -> 0 | G25: ='RFM input'!M21 -> 0
C26: =Asset16 -> 0 | G26: ='RFM input'!M22 -> 0
C27: =Asset17 -> 0 | G27: ='RFM input'!M23 -> 0
C28: =Asset18 -> 0 | G28: ='RFM input'!M24 -> 0
C29: =Asset19 -> 0 | G29: ='RFM input'!M25 -> 0
C30: =Asset20 -> 0 | G30: ='RFM input'!M26 -> 0
C31: =Asset21 -> 0 | G31: ='RFM input'!M27 -> 0
C32: =Asset22 -> 0 | G32: ='RFM input'!M28 -> 0
C33: =Asset23 -> 0 | G33: ='RFM input'!M29 -> 0
C34: =Asset24 -> 0 | G34: ='RFM input'!M30 -> 0
C35: =Asset25 -> 0 | G35: ='RFM input'!M31 -> 0
C36: =Asset26 -> 0 | G36: ='RFM input'!M32 -> 0
C37: =Asset27 -> 0 | G37: ='RFM input'!M33 -> 0
C38: =Asset28 -> 0 | G38: ='RFM input'!M34 -> 0
C39: =Asset29 -> 0 | G39: ='RFM input'!M35 -> 0
C40: =Asset30 -> Equity raising costs | G40: ='RFM input'!M36 -> 0
B42: Nominal Actual Net Capex | G42: =SUM(G43:G72) -> 136.9224843
C43: =Asset1 -> Subtransmission | G43: ='RFM input'!G143*(1+previous_vanilla)^0.5 -> 21.43114895
C44: =Asset2 -> Distribution system assets | G44: ='RFM input'!G144*(1+previous_vanilla)^0.5 -> 84.83638722
C45: =Asset3 -> Metering | G45: ='RFM input'!G145*(1+previous_vanilla)^0.5 -> 0
C46: =Asset4 -> Public Lighting | G46: ='RFM input'!G146*(1+previous_vanilla)^0.5 -> 0
C47: =Asset5 -> SCADA/Network control | G47: ='RFM input'!G147*(1+previous_vanilla)^0.5 -> 0.01726683579
C48: =Asset6 -> Non network - IT | G48: ='RFM input'!G148*(1+previous_vanilla)^0.5 -> 9.227487357
C49: =Asset7 -> Non network - other | G49: ='RFM input'!G149*(1+previous_vanilla)^0.5 -> 21.40282858
C50: =Asset8 -> Land | G50: ='RFM input'!G150*(1+previous_vanilla)^0.5 -> 0.007365363581
C51: =Asset9 -> 0 | G51: ='RFM input'!G151*(1+previous_vanilla)^0.5 -> 0
C52: =Asset10 -> 0 | G52: ='RFM input'!G152*(1+previous_vanilla)^0.5 -> 0
C53: =Asset11 -> 0 | G53: ='RFM input'!G153*(1+previous_vanilla)^0.5 -> 0
C54: =Asset12 -> 0 | G54: ='RFM input'!G154*(1+previous_vanilla)^0.5 -> 0
C55: =Asset13 -> 0 | G55: ='RFM input'!G155*(1+previous_vanilla)^0.5 -> 0
C56: =Asset14 -> 0 | G56: ='RFM input'!G156*(1+previous_vanilla)^0.5 -> 0
C57: =Asset15 -> 0 | G57: ='RFM input'!G157*(1+previous_vanilla)^0.5 -> 0
C58: =Asset16 -> 0 | G58: ='RFM input'!G158*(1+previous_vanilla)^0.5 -> 0
C59: =Asset17 -> 0 | G59: ='RFM input'!G159*(1+previous_vanilla)^0.5 -> 0
C60: =Asset18 -> 0 | G60: ='RFM input'!G160*(1+previous_vanilla)^0.5 -> 0
C61: =Asset19 -> 0 | G61: ='RFM input'!G161*(1+previous_vanilla)^0.5 -> 0
C62: =Asset20 -> 0 | G62: ='RFM input'!G162*(1+previous_vanilla)^0.5 -> 0
C63: =Asset21 -> 0 | G63: ='RFM input'!G163*(1+previous_vanilla)^0.5 -> 0
C64: =Asset22 -> 0 | G64: ='RFM input'!G164*(1+previous_vanilla)^0.5 -> 0
C65: =Asset23 -> 0 | G65: ='RFM input'!G165*(1+previous_vanilla)^0.5 -> 0
C66: =Asset24 -> 0 | G66: ='RFM input'!G166*(1+previous_vanilla)^0.5 -> 0
C67: =Asset25 -> 0 | G67: ='RFM input'!G167*(1+previous_vanilla)^0.5 -> 0
C68: =Asset26 -> 0 | G68: ='RFM input'!G168*(1+previous_vanilla)^0.5 -> 0
C69: =Asset27 -> 0 | G69: ='RFM input'!G169*(1+previous_vanilla)^0.5 -> 0
C70: =Asset28 -> 0 | G70: ='RFM input'!G170*(1+previous_vanilla)^0.5 -> 0
C71: =Asset29 -> 0 | G71: ='RFM input'!G171*(1+previous_vanilla)^0.5 -> 0
C72: =Asset30 -> Equity raising costs | G72: ='RFM input'!G172*(1+previous_vanilla)^0.5 -> 0
B74: Nominal Difference Between Actual and Forecast Net Capex | G74: =SUM(G75:G104) -> -0.1618233703
C75: =Asset1 -> Subtransmission | G75: =G43-G11 -> -0.1164987774
C76: =Asset2 -> Distribution system assets | G76: 0.002237737357
C77: =Asset3 -> Metering | G77: 0
C78: =Asset4 -> Public Lighting | G78: 0
C79: =Asset5 -> SCADA/Network control | G79: 0
C80: =Asset6 -> Non network - IT | G80: 0
C81: =Asset7 -> Non network - other | G81: -0.05492769388
C82: =Asset8 -> Land | G82: 0.007365363581
C83: =Asset9 -> 0 | G83: 0
C84: =Asset10 -> 0 | G84: 0
C85: =Asset11 -> 0 | G85: 0
C86: =Asset12 -> 0 | G86: 0
C87: =Asset13 -> 0 | G87: 0
C88: =Asset14 -> 0 | G88: 0
C89: =Asset15 -> 0 | G89: 0
C90: =Asset16 -> 0 | G90: 0
C91: =Asset17 -> 0 | G91: 0
C92: =Asset18 -> 0 | G92: 0
C93: =Asset19 -> 0 | G93: 0
C94: =Asset20 -> 0 | G94: 0
C95: =Asset21 -> 0 | G95: 0
C96: =Asset22 -> 0 | G96: 0
C97: =Asset23 -> 0 | G97: 0
C98: =Asset24 -> 0 | G98: 0
C99: =Asset25 -> 0 | G99: 0
C100: =Asset26 -> 0 | G100: 0
C101: =Asset27 -> 0 | G101: 0
C102: =Asset28 -> 0 | G102: 0
C103: =Asset29 -> 0 | G103: 0
C104: =Asset30 -> Equity raising costs | G104: 0
B106: Compounded Nominal Return on Difference - Net Capex | H106: =SUM(H107,H109,H111,H113,H115,H117,H119,H121,H123,H125,H127,H129,H131,H133,H135,H137,H139,H141,H143,H145,H147,H149,H151,H153,H155,H157,H159,H161,H163,H165) -> -0.008905370177 | I106: =SUM(I107,I109,I111,I113,I115,I117,I119,I121,I123,I125,I127,I129,I131,I133,I135,I137,I139,I141,I143,I145,I147,I149,I151,I153,I155,I157,I159,I161,I163,I165) -> -0.008427075437 | J106: -0.0104431071 | K106: -0.01122968579 | L106: -0.01065868868 | M106: 0 | N106: 0 | O106: 0 | P106: 0 | Q106: 0
C107: =Asset1 -> Subtransmission | H107: =($G75+(SUM($G107:G107)))*H$6 -> -0.006411093378 | I107: =($G75+(SUM($G107:H107)))*I$6 -> -0.006066762689 | J107: =IF(COUNT($H107:I107)>='RFM input'!$W$7-0.5,0,($G75+(SUM($G107:I107)))*J$6) -> -0.007518130459 | K107: =IF(COUNT($H107:J107)>='RFM input'!$W$7-0.5,0,($G75+(SUM($G107:J107)))*K$6) -> -0.008084398825 | L107: =IF(COUNT($H107:K107)>='RFM input'!$W$7-0.5,0,($G75+(SUM($G107:K107)))*L$6) -> -0.007673330482 | M107: =IF(COUNT($H107:L107)>='RFM input'!$W$7-0.5,0,($G75+(SUM($G107:L107)))*M$6) -> 0 | N107: =IF(COUNT($H107:M107)>='RFM input'!$W$7,0,($G75+(SUM($G107:M107)))*N$6) -> 0 | O107: =IF(COUNT($H107:N107)>='RFM input'!$W$7,0,($G75+(SUM($G107:N107)))*O$6) -> 0 | P107: =IF(COUNT($H107:O107)>='RFM input'!$W$7,0,($G75+(SUM($G107:O107)))*P$6) -> 0 | Q107: =IF(COUNT($H107:P107)>='RFM input'!$W$7,0,($G75+(SUM($G107:P107)))*Q$6) -> 0
C108: Sub-total | I108: =IF(COUNT($H107:I107)=ROUNDUP('RFM input'!$W$7-0.5,0),SUM($G107:I107),0) -> 0 | J108: =IF(COUNT($H107:J107)=ROUNDUP('RFM input'!$W$7-0.5,0),SUM($G107:J107),0) -> 0 | K108: =IF(COUNT($H107:K107)=ROUNDUP('RFM input'!$W$7-0.5,0),SUM($G107:K107),0) -> 0 | L108: =IF(COUNT($H107:L107)=ROUNDUP('RFM input'!$W$7-0.5,0),SUM($G107:L107),0) -> -0.03575371583 | M108: =IF(COUNT($H107:M107)=ROUNDUP('RFM input'!$W$7-0.5,0),SUM($G107:M107),0) -> 0 | N108: =IF(COUNT($H107:N107)=ROUNDUP('RFM input'!$W$7,0),SUM($G107:N107),0) -> 0 | O108: =IF(COUNT($H107:O107)=ROUNDUP('RFM input'!$W$7,0),SUM($G107:O107),0) -> 0 | P108: =IF(COUNT($H107:P107)=ROUNDUP('RFM input'!$W$7,0),SUM($G107:P107),0) -> 0 | Q108: =IF(COUNT($H107:Q107)=ROUNDUP('RFM input'!$W$7,0),SUM($G107:Q107),0) -> 0
C109: =Asset2 -> Distribution system assets | H109: =($G76+(SUM($G109:G109)))*H$6 -> 0.0001231458687 | I109: =($G76+(SUM($G109:H109)))*I$6 -> 0.0001165318796 | J109: =IF(COUNT($H109:I109)>='RFM input'!$W$7-0.5,0,($G76+(SUM($G109:I109)))*J$6) -> 0.000144410111 | K109: =IF(COUNT($H109:J109)>='RFM input'!$W$7-0.5,0,($G76+(SUM($G109:J109)))*K$6) -> 0.000155287134 | L109: =IF(COUNT($H109:K109)>='RFM input'!$W$7-0.5,0,($G76+(SUM($G109:K109)))*L$6) -> 0.0001473912315 | M109: =IF(COUNT($H109:L109)>='RFM input'!$W$7-0.5,0,($G76+(SUM($G109:L109)))*M$6) -> 0 | N109: =IF(COUNT($H109:M109)>='RFM input'!$W$7,0,($G76+(SUM($G109:M109)))*N$6) -> 0 | O109: =IF(COUNT($H109:N109)>='RFM input'!$W$7,0,($G76+(SUM($G109:N109)))*O$6) -> 0 | P109: =IF(COUNT($H109:O109)>='RFM input'!$W$7,0,($G76+(SUM($G109:O109)))*P$6) -> 0 | Q109: =IF(COUNT($H109:P109)>='RFM input'!$W$7,0,($G76+(SUM($G109:P109)))*Q$6) -> 0
C110: Sub-total | I110: =IF(COUNT($H109:I109)=ROUNDUP('RFM input'!$W$7-0.5,0),SUM($G109:I109),0) -> 0 | J110: =IF(COUNT($H109:J109)=ROUNDUP('RFM input'!$W$7-0.5,0),SUM($G109:J109),0) -> 0 | K110: =IF(COUNT($H109:K109)=ROUNDUP('RFM input'!$W$7-0.5,0),SUM($G109:K109),0) -> 0 | L110: =IF(COUNT($H109:L109)=ROUNDUP('RFM input'!$W$7-0.5,0),SUM($G109:L109),0) -> 0.0006867662248 | M110: =IF(COUNT($H109:M109)=ROUNDUP('RFM input'!$W$7-0.5,0),SUM($G109:M109),0) -> 0 | N110: =IF(COUNT($H109:N109)=ROUNDUP('RFM input'!$W$7,0),SUM($G109:N109),0) -> 0 | O110: =IF(COUNT($H109:O109)=ROUNDUP('RFM input'!$W$7,0),SUM($G109:O109),0) -> 0 | P110: =IF(COUNT($H109:P109)=ROUNDUP('RFM input'!$W$7,0),SUM($G109:P109),0) -> 0 | Q110: =IF(COUNT($H109:Q109)=ROUNDUP('RFM input'!$W$7,0),SUM($G109:Q109),0) -> 0
C111: =Asset3 -> Metering | H111: =($G77+(SUM($G111:G111)))*H$6 -> 0 | I111: =($G77+(SUM($G111:H111)))*I$6 -> 0 | J111: =IF(COUNT($H111:I111)>='RFM input'!$W$7-0.5,0,($G77+(SUM($G111:I111)))*J$6) -> 0 | K111: =IF(COUNT($H111:J111)>='RFM input'!$W$7-0.5,0,($G77+(SUM($G111:J111)))*K$6) -> 0 | L111: =IF(COUNT($H111:K111)>='RFM input'!$W$7-0.5,0,($G77+(SUM($G111:K111)))*L$6) -> 0 | M111: =IF(COUNT($H111:L111)>='RFM input'!$W$7-0.5,0,($G77+(SUM($G111:L111)))*M$6) -> 0 | N111: =IF(COUNT($H111:M111)>='RFM input'!$W$7,0,($G77+(SUM($G111:M111)))*N$6) -> 0 | O111: =IF(COUNT($H111:N111)>='RFM input'!$W$7,0,($G77+(SUM($G111:N111)))*O$6) -> 0 | P111: =IF(COUNT($H111:O111)>='RFM input'!$W$7,0,($G77+(SUM($G111:O111)))*P$6) -> 0 | Q111: =IF(COUNT($H111:P111)>='RFM input'!$W$7,0,($G77+(SUM($G111:P111)))*Q$6) -> 0
C112: Sub-total | I112: =IF(COUNT($H111:I111)=ROUNDUP('RFM input'!$W$7-0.5,1),SUM($G111:I111),0) -> 0 | J112: =IF(COUNT($H111:J111)=ROUNDUP('RFM input'!$W$7-0.5,1),SUM($G111:J111),0) -> 0 | K112: =IF(COUNT($H111:K111)=ROUNDUP('RFM input'!$W$7-0.5,1),SUM($G111:K111),0) -> 0 | L112: =IF(COUNT($H111:L111)=ROUNDUP('RFM input'!$W$7-0.5,1),SUM($G111:L111),0) -> 0 | M112: =IF(COUNT($H111:M111)=ROUNDUP('RFM input'!$W$7-0.5,1),SUM($G111:M111),0) -> 0 | N112: =IF(COUNT($H111:N111)=ROUNDUP('RFM input'!$W$7,0),SUM($G111:N111),0) -> 0 | O112: =IF(COUNT($H111:O111)=ROUNDUP('RFM input'!$W$7,0),SUM($G111:O111),0) -> 0 | P112: =IF(COUNT($H111:P111)=ROUNDUP('RFM input'!$W$7,0),SUM($G111:P111),0) -> 0 | Q112: =IF(COUNT($H111:Q111)=ROUNDUP('RFM input'!$W$7,0),SUM($G111:Q111),0) -> 0
C113: =Asset4 -> Public Lighting | H113: =($G78+(SUM($G113:G113)))*H$6 -> 0 | I113: =($G78+(SUM($G113:H113)))*I$6 -> 0 | J113: =IF(COUNT($H113:I113)>='RFM input'!$W$7-0.5,0,($G78+(SUM($G113:I113)))*J$6) -> 0 | K113: =IF(COUNT($H113:J113)>='RFM input'!$W$7-0.5,0,($G78+(SUM($G113:J113)))*K$6) -> 0 | L113: =IF(COUNT($H113:K113)>='RFM input'!$W$7-0.5,0,($G78+(SUM($G113:K113)))*L$6) -> 0 | M113: =IF(COUNT($H113:L113)>='RFM input'!$W$7-0.5,0,($G78+(SUM($G113:L113)))*M$6) -> 0 | N113: =IF(COUNT($H113:M113)>='RFM input'!$W$7,0,($G78+(SUM($G113:M113)))*N$6) -> 0 | O113: =IF(COUNT($H113:N113)>='RFM input'!$W$7,0,($G78+(SUM($G113:N113)))*O$6) -> 0 | P113: =IF(COUNT($H113:O113)>='RFM input'!$W$7,0,($G78+(SUM($G113:O113)))*P$6) -> 0 | Q113: =IF(COUNT($H113:P113)>='RFM input'!$W$7,0,($G78+(SUM($G113:P113)))*Q$6) -> 0
C114: Sub-total | I114: =IF(COUNT($H113:I113)=ROUNDUP('RFM input'!$W$7-0.5,1),SUM($G113:I113),0) -> 0 | J114: =IF(COUNT($H113:J113)=ROUNDUP('RFM input'!$W$7-0.5,1),SUM($G113:J113),0) -> 0 | K114: =IF(COUNT($H113:K113)=ROUNDUP('RFM input'!$W$7-0.5,1),SUM($G113:K113),0) -> 0 | L114: =IF(COUNT($H113:L113)=ROUNDUP('RFM input'!$W$7-0.5,1),SUM($G113:L113),0) -> 0 | M114: =IF(COUNT($H113:M113)=ROUNDUP('RFM input'!$W$7-0.5,1),SUM($G113:M113),0) -> 0 | N114: =IF(COUNT($H113:N113)=ROUNDUP('RFM input'!$W$7,0),SUM($G113:N113),0) -> 0 | O114: =IF(COUNT($H113:O113)=ROUNDUP('RFM input'!$W$7,0),SUM($G113:O113),0) -> 0 | P114: =IF(COUNT($H113:P113)=ROUNDUP('RFM input'!$W$7,0),SUM($G113:P113),0) -> 0 | Q114: =IF(COUNT($H113:Q113)=ROUNDUP('RFM input'!$W$7,0),SUM($G113:Q113),0) -> 0
C115: =Asset5 -> SCADA/Network control | H115: =($G79+(SUM($G115:G115)))*H$6 -> 0 | I115: =($G79+(SUM($G115:H115)))*I$6 -> 0 | J115: =IF(COUNT($H115:I115)>='RFM input'!$W$7-0.5,0,($G79+(SUM($G115:I115)))*J$6) -> 0 | K115: =IF(COUNT($H115:J115)>='RFM input'!$W$7-0.5,0,($G79+(SUM($G115:J115)))*K$6) -> 0 | L115: =IF(COUNT($H115:K115)>='RFM input'!$W$7-0.5,0,($G79+(SUM($G115:K115)))*L$6) -> 0 | M115: =IF(COUNT($H115:L115)>='RFM input'!$W$7-0.5,0,($G79+(SUM($G115:L115)))*M$6) -> 0 | N115: =IF(COUNT($H115:M115)>='RFM input'!$W$7,0,($G79+(SUM($G115:M115)))*N$6) -> 0 | O115: =IF(COUNT($H115:N115)>='RFM input'!$W$7,0,($G79+(SUM($G115:N115)))*O$6) -> 0 | P115: =IF(COUNT($H115:O115)>='RFM input'!$W$7,0,($G79+(SUM($G115:O115)))*P$6) -> 0 | Q115: =IF(COUNT($H115:P115)>='RFM input'!$W$7,0,($G79+(SUM($G115:P115)))*Q$6) -> 0
C116: Sub-total | I116: =IF(COUNT($H115:I115)=ROUNDUP('RFM input'!$W$7-0.5,1),SUM($G115:I115),0) -> 0 | J116: =IF(COUNT($H115:J115)=ROUNDUP('RFM input'!$W$7-0.5,1),SUM($G115:J115),0) -> 0 | K116: =IF(COUNT($H115:K115)=ROUNDUP('RFM input'!$W$7-0.5,1),SUM($G115:K115),0) -> 0 | L116: =IF(COUNT($H115:L115)=ROUNDUP('RFM input'!$W$7-0.5,1),SUM($G115:L115),0) -> 0 | M116: =IF(COUNT($H115:M115)=ROUNDUP('RFM input'!$W$7-0.5,1),SUM($G115:M115),0) -> 0 | N116: =IF(COUNT($H115:N115)=ROUNDUP('RFM input'!$W$7,0),SUM($G115:N115),0) -> 0 | O116: =IF(COUNT($H115:O115)=ROUNDUP('RFM input'!$W$7,0),SUM($G115:O115),0) -> 0 | P116: =IF(COUNT($H115:P115)=ROUNDUP('RFM input'!$W$7,0),SUM($G115:P115),0) -> 0 | Q116: =IF(COUNT($H115:Q115)=ROUNDUP('RFM input'!$W$7,0),SUM($G115:Q115),0) -> 0
C117: =Asset6 -> Non network - IT | H117: =($G80+(SUM($G117:G117)))*H$6 -> 0 | I117: =($G80+(SUM($G117:H117)))*I$6 -> 0 | J117: =IF(COUNT($H117:I117)>='RFM input'!$W$7-0.5,0,($G80+(SUM($G117:I117)))*J$6) -> 0 | K117: =IF(COUNT($H117:J117)>='RFM input'!$W$7-0.5,0,($G80+(SUM($G117:J117)))*K$6) -> 0 | L117: =IF(COUNT($H117:K117)>='RFM input'!$W$7-0.5,0,($G80+(SUM($G117:K117)))*L$6) -> 0 | M117: =IF(COUNT($H117:L117)>='RFM input'!$W$7-0.5,0,($G80+(SUM($G117:L117)))*M$6) -> 0 | N117: =IF(COUNT($H117:M117)>='RFM input'!$W$7,0,($G80+(SUM($G117:M117)))*N$6) -> 0 | O117: =IF(COUNT($H117:N117)>='RFM input'!$W$7,0,($G80+(SUM($G117:N117)))*O$6) -> 0 | P117: =IF(COUNT($H117:O117)>='RFM input'!$W$7,0,($G80+(SUM($G117:O117)))*P$6) -> 0 | Q117: =IF(COUNT($H117:P117)>='RFM input'!$W$7,0,($G80+(SUM($G117:P117)))*Q$6) -> 0
C118: Sub-total | I118: =IF(COUNT($H117:I117)=ROUNDUP('RFM input'!$W$7-0.5,1),SUM($G117:I117),0) -> 0 | J118: =IF(COUNT($H117:J117)=ROUNDUP('RFM input'!$W$7-0.5,1),SUM($G117:J117),0) -> 0 | K118: =IF(COUNT($H117:K117)=ROUNDUP('RFM input'!$W$7-0.5,1),SUM($G117:K117),0) -> 0 | L118: =IF(COUNT($H117:L117)=ROUNDUP('RFM input'!$W$7-0.5,1),SUM($G117:L117),0) -> 0 | M118: =IF(COUNT($H117:M117)=ROUNDUP('RFM input'!$W$7-0.5,1),SUM($G117:M117),0) -> 0 | N118: =IF(COUNT($H117:N117)=ROUNDUP('RFM input'!$W$7,0),SUM($G117:N117),0) -> 0 | O118: =IF(COUNT($H117:O117)=ROUNDUP('RFM input'!$W$7,0),SUM($G117:O117),0) -> 0 | P118: =IF(COUNT($H117:P117)=ROUNDUP('RFM input'!$W$7,0),SUM($G117:P117),0) -> 0 | Q118: =IF(COUNT($H117:Q117)=ROUNDUP('RFM input'!$W$7,0),SUM($G117:Q117),0) -> 0
C119: =Asset7 -> Non network - other | H119: =($G81+(SUM($G119:G119)))*H$6 -> -0.003022749099 | I119: =($G81+(SUM($G119:H119)))*I$6 -> -0.002860401553 | J119: =IF(COUNT($H119:I119)>='RFM input'!$W$7-0.5,0,($G81+(SUM($G119:I119)))*J$6) -> -0.003544703023 | K119: =IF(COUNT($H119:J119)>='RFM input'!$W$7-0.5,0,($G81+(SUM($G119:J119)))*K$6) -> -0.003811691365 | L119: =IF(COUNT($H119:K119)>='RFM input'!$W$7-0.5,0,($G81+(SUM($G119:K119)))*L$6) -> -0.003617877862 | M119: =IF(COUNT($H119:L119)>='RFM input'!$W$7-0.5,0,($G81+(SUM($G119:L119)))*M$6) -> 0 | N119: =IF(COUNT($H119:M119)>='RFM input'!$W$7,0,($G81+(SUM($G119:M119)))*N$6) -> 0 | O119: =IF(COUNT($H119:N119)>='RFM input'!$W$7,0,($G81+(SUM($G119:N119)))*O$6) -> 0 | P119: =IF(COUNT($H119:O119)>='RFM input'!$W$7,0,($G81+(SUM($G119:O119)))*P$6) -> 0 | Q119: =IF(COUNT($H119:P119)>='RFM input'!$W$7,0,($G81+(SUM($G119:P119)))*Q$6) -> 0
C120: Sub-total | I120: =IF(COUNT($H119:I119)=ROUNDUP('RFM input'!$W$7-0.5,1),SUM($G119:I119),0) -> 0 | J120: =IF(COUNT($H119:J119)=ROUNDUP('RFM input'!$W$7-0.5,1),SUM($G119:J119),0) -> 0 | K120: =IF(COUNT($H119:K119)=ROUNDUP('RFM input'!$W$7-0.5,1),SUM($G119:K119),0) -> 0 | L120: =IF(COUNT($H119:L119)=ROUNDUP('RFM input'!$W$7-0.5,1),SUM($G119:L119),0) -> -0.0168574229 | M120: =IF(COUNT($H119:M119)=ROUNDUP('RFM input'!$W$7-0.5,1),SUM($G119:M119),0) -> 0 | N120: =IF(COUNT($H119:N119)=ROUNDUP('RFM input'!$W$7,0),SUM($G119:N119),0) -> 0 | O120: =IF(COUNT($H119:O119)=ROUNDUP('RFM input'!$W$7,0),SUM($G119:O119),0) -> 0 | P120: =IF(COUNT($H119:P119)=ROUNDUP('RFM input'!$W$7,0),SUM($G119:P119),0) -> 0 | Q120: =IF(COUNT($H119:Q119)=ROUNDUP('RFM input'!$W$7,0),SUM($G119:Q119),0) -> 0
C121: =Asset8 -> Land | H121: =($G82+(SUM($G121:G121)))*H$6 -> 0.0004053264311 | I121: =($G82+(SUM($G121:H121)))*I$6 -> 0.0003835569262 | J121: =IF(COUNT($H121:I121)>='RFM input'!$W$7-0.5,0,($G82+(SUM($G121:I121)))*J$6) -> 0.0004753162695 | K121: =IF(COUNT($H121:J121)>='RFM input'!$W$7-0.5,0,($G82+(SUM($G121:J121)))*K$6) -> 0.0005111172667 | L121: =IF(COUNT($H121:K121)>='RFM input'!$W$7-0.5,0,($G82+(SUM($G121:K121)))*L$6) -> 0.0004851284291 | M121: =IF(COUNT($H121:L121)>='RFM input'!$W$7-0.5,0,($G82+(SUM($G121:L121)))*M$6) -> 0 | N121: =IF(COUNT($H121:M121)>='RFM input'!$W$7,0,($G82+(SUM($G121:M121)))*N$6) -> 0 | O121: =IF(COUNT($H121:N121)>='RFM input'!$W$7,0,($G82+(SUM($G121:N121)))*O$6) -> 0 | P121: =IF(COUNT($H121:O121)>='RFM input'!$W$7,0,($G82+(SUM($G121:O121)))*P$6) -> 0 | Q121: =IF(COUNT($H121:P121)>='RFM input'!$W$7,0,($G82+(SUM($G121:P121)))*Q$6) -> 0
C122: Sub-total | I122: =IF(COUNT($H121:I121)=ROUNDUP('RFM input'!$W$7-0.5,1),SUM($G121:I121),0) -> 0 | J122: =IF(COUNT($H121:J121)=ROUNDUP('RFM input'!$W$7-0.5,1),SUM($G121:J121),0) -> 0 | K122: =IF(COUNT($H121:K121)=ROUNDUP('RFM input'!$W$7-0.5,1),SUM($G121:K121),0) -> 0 | L122: =IF(COUNT($H121:L121)=ROUNDUP('RFM input'!$W$7-0.5,1),SUM($G121:L121),0) -> 0.002260445323 | M122: =IF(COUNT($H121:M121)=ROUNDUP('RFM input'!$W$7-0.5,1),SUM($G121:M121),0) -> 0 | N122: =IF(COUNT($H121:N121)=ROUNDUP('RFM input'!$W$7,0),SUM($G121:N121),0) -> 0 | O122: =IF(COUNT($H121:O121)=ROUNDUP('RFM input'!$W$7,0),SUM($G121:O121),0) -> 0 | P122: =IF(COUNT($H121:P121)=ROUNDUP('RFM input'!$W$7,0),SUM($G121:P121),0) -> 0 | Q122: =IF(COUNT($H121:Q121)=ROUNDUP('RFM input'!$W$7,0),SUM($G121:Q121),0) -> 0
C123: =Asset9 -> 0 | H123: =($G83+(SUM($G123:G123)))*H$6 -> 0 | I123: =($G83+(SUM($G123:H123)))*I$6 -> 0 | J123: =IF(COUNT($H123:I123)>='RFM input'!$W$7-0.5,0,($G83+(SUM($G123:I123)))*J$6) -> 0 | K123: =IF(COUNT($H123:J123)>='RFM input'!$W$7-0.5,0,($G83+(SUM($G123:J123)))*K$6) -> 0 | L123: =IF(COUNT($H123:K123)>='RFM input'!$W$7-0.5,0,($G83+(SUM($G123:K123)))*L$6) -> 0 | M123: =IF(COUNT($H123:L123)>='RFM input'!$W$7-0.5,0,($G83+(SUM($G123:L123)))*M$6) -> 0 | N123: =IF(COUNT($H123:M123)>='RFM input'!$W$7,0,($G83+(SUM($G123:M123)))*N$6) -> 0 | O123: =IF(COUNT($H123:N123)>='RFM input'!$W$7,0,($G83+(SUM($G123:N123)))*O$6) -> 0 | P123: =IF(COUNT($H123:O123)>='RFM input'!$W$7,0,($G83+(SUM($G123:O123)))*P$6) -> 0 | Q123: =IF(COUNT($H123:P123)>='RFM input'!$W$7,0,($G83+(SUM($G123:P123)))*Q$6) -> 0
C124: Sub-total | I124: =IF(COUNT($H123:I123)=ROUNDUP('RFM input'!$W$7-0.5,1),SUM($G123:I123),0) -> 0 | J124: =IF(COUNT($H123:J123)=ROUNDUP('RFM input'!$W$7-0.5,1),SUM($G123:J123),0) -> 0 | K124: =IF(COUNT($H123:K123)=ROUNDUP('RFM input'!$W$7-0.5,1),SUM($G123:K123),0) -> 0 | L124: =IF(COUNT($H123:L123)=ROUNDUP('RFM input'!$W$7-0.5,1),SUM($G123:L123),0) -> 0 | M124: =IF(COUNT($H123:M123)=ROUNDUP('RFM input'!$W$7-0.5,1),SUM($G123:M123),0) -> 0 | N124: =IF(COUNT($H123:N123)=ROUNDUP('RFM input'!$W$7,0),SUM($G123:N123),0) -> 0 | O124: =IF(COUNT($H123:O123)=ROUNDUP('RFM input'!$W$7,0),SUM($G123:O123),0) -> 0 | P124: =IF(COUNT($H123:P123)=ROUNDUP('RFM input'!$W$7,0),SUM($G123:P123),0) -> 0 | Q124: =IF(COUNT($H123:Q123)=ROUNDUP('RFM input'!$W$7,0),SUM($G123:Q123),0) -> 0
C125: =Asset10 -> 0 | H125: =($G84+(SUM($G125:G125)))*H$6 -> 0 | I125: =($G84+(SUM($G125:H125)))*I$6 -> 0 | J125: =IF(COUNT($H125:I125)>='RFM input'!$W$7-0.5,0,($G84+(SUM($G125:I125)))*J$6) -> 0 | K125: =IF(COUNT($H125:J125)>='RFM input'!$W$7-0.5,0,($G84+(SUM($G125:J125)))*K$6) -> 0 | L125: =IF(COUNT($H125:K125)>='RFM input'!$W$7-0.5,0,($G84+(SUM($G125:K125)))*L$6) -> 0 | M125: =IF(COUNT($H125:L125)>='RFM input'!$W$7-0.5,0,($G84+(SUM($G125:L125)))*M$6) -> 0 | N125: =IF(COUNT($H125:M125)>='RFM input'!$W$7,0,($G84+(SUM($G125:M125)))*N$6) -> 0 | O125: =IF(COUNT($H125:N125)>='RFM input'!$W$7,0,($G84+(SUM($G125:N125)))*O$6) -> 0 | P125: =IF(COUNT($H125:O125)>='RFM input'!$W$7,0,($G84+(SUM($G125:O125)))*P$6) -> 0 | Q125: =IF(COUNT($H125:P125)>='RFM input'!$W$7,0,($G84+(SUM($G125:P125)))*Q$6) -> 0
C126: Sub-total | I126: =IF(COUNT($H125:I125)=ROUNDUP('RFM input'!$W$7-0.5,1),SUM($G125:I125),0) -> 0 | J126: =IF(COUNT($H125:J125)=ROUNDUP('RFM input'!$W$7-0.5,1),SUM($G125:J125),0) -> 0 | K126: =IF(COUNT($H125:K125)=ROUNDUP('RFM input'!$W$7-0.5,1),SUM($G125:K125),0) -> 0 | L126: =IF(COUNT($H125:L125)=ROUNDUP('RFM input'!$W$7-0.5,1),SUM($G125:L125),0) -> 0 | M126: =IF(COUNT($H125:M125)=ROUNDUP('RFM input'!$W$7-0.5,1),SUM($G125:M125),0) -> 0 | N126: =IF(COUNT($H125:N125)=ROUNDUP('RFM input'!$W$7,0),SUM($G125:N125),0) -> 0 | O126: =IF(COUNT($H125:O125)=ROUNDUP('RFM input'!$W$7,0),SUM($G125:O125),0) -> 0 | P126: =IF(COUNT($H125:P125)=ROUNDUP('RFM input'!$W$7,0),SUM($G125:P125),0) -> 0 | Q126: =IF(COUNT($H125:Q125)=ROUNDUP('RFM input'!$W$7,0),SUM($G125:Q125),0) -> 0
C127: =Asset11 -> 0 | H127: =($G85+(SUM($G127:G127)))*H$6 -> 0 | I127: =($G85+(SUM($G127:H127)))*I$6 -> 0 | J127: =IF(COUNT($H127:I127)>='RFM input'!$W$7-0.5,0,($G85+(SUM($G127:I127)))*J$6) -> 0 | K127: =IF(COUNT($H127:J127)>='RFM input'!$W$7-0.5,0,($G85+(SUM($G127:J127)))*K$6) -> 0 | L127: =IF(COUNT($H127:K127)>='RFM input'!$W$7-0.5,0,($G85+(SUM($G127:K127)))*L$6) -> 0 | M127: =IF(COUNT($H127:L127)>='RFM input'!$W$7-0.5,0,($G85+(SUM($G127:L127)))*M$6) -> 0 | N127: =IF(COUNT($H127:M127)>='RFM input'!$W$7,0,($G85+(SUM($G127:M127)))*N$6) -> 0 | O127: =IF(COUNT($H127:N127)>='RFM input'!$W$7,0,($G85+(SUM($G127:N127)))*O$6) -> 0 | P127: =IF(COUNT($H127:O127)>='RFM input'!$W$7,0,($G85+(SUM($G127:O127)))*P$6) -> 0 | Q127: =IF(COUNT($H127:P127)>='RFM input'!$W$7,0,($G85+(SUM($G127:P127)))*Q$6) -> 0
C128: Sub-total | I128: =IF(COUNT($H127:I127)=ROUNDUP('RFM input'!$W$7-0.5,1),SUM($G127:I127),0) -> 0 | J128: =IF(COUNT($H127:J127)=ROUNDUP('RFM input'!$W$7-0.5,1),SUM($G127:J127),0) -> 0 | K128: =IF(COUNT($H127:K127)=ROUNDUP('RFM input'!$W$7-0.5,1),SUM($G127:K127),0) -> 0 | L128: =IF(COUNT($H127:L127)=ROUNDUP('RFM input'!$W$7-0.5,1),SUM($G127:L127),0) -> 0 | M128: =IF(COUNT($H127:M127)=ROUNDUP('RFM input'!$W$7-0.5,1),SUM($G127:M127),0) -> 0 | N128: =IF(COUNT($H127:N127)=ROUNDUP('RFM input'!$W$7,0),SUM($G127:N127),0) -> 0 | O128: =IF(COUNT($H127:O127)=ROUNDUP('RFM input'!$W$7,0),SUM($G127:O127),0) -> 0 | P128: =IF(COUNT($H127:P127)=ROUNDUP('RFM input'!$W$7,0),SUM($G127:P127),0) -> 0 | Q128: =IF(COUNT($H127:Q127)=ROUNDUP('RFM input'!$W$7,0),SUM($G127:Q127),0) -> 0
C129: =Asset12 -> 0 | H129: =($G86+(SUM($G129:G129)))*H$6 -> 0 | I129: =($G86+(SUM($G129:H129)))*I$6 -> 0 | J129: =IF(COUNT($H129:I129)>='RFM input'!$W$7-0.5,0,($G86+(SUM($G129:I129)))*J$6) -> 0 | K129: =IF(COUNT($H129:J129)>='RFM input'!$W$7-0.5,0,($G86+(SUM($G129:J129)))*K$6) -> 0 | L129: =IF(COUNT($H129:K129)>='RFM input'!$W$7-0.5,0,($G86+(SUM($G129:K129)))*L$6) -> 0 | M129: =IF(COUNT($H129:L129)>='RFM input'!$W$7-0.5,0,($G86+(SUM($G129:L129)))*M$6) -> 0 | N129: =IF(COUNT($H129:M129)>='RFM input'!$W$7,0,($G86+(SUM($G129:M129)))*N$6) -> 0 | O129: =IF(COUNT($H129:N129)>='RFM input'!$W$7,0,($G86+(SUM($G129:N129)))*O$6) -> 0 | P129: =IF(COUNT($H129:O129)>='RFM input'!$W$7,0,($G86+(SUM($G129:O129)))*P$6) -> 0 | Q129: =IF(COUNT($H129:P129)>='RFM input'!$W$7,0,($G86+(SUM($G129:P129)))*Q$6) -> 0
C130: Sub-total | I130: =IF(COUNT($H129:I129)=ROUNDUP('RFM input'!$W$7-0.5,1),SUM($G129:I129),0) -> 0 | J130: =IF(COUNT($H129:J129)=ROUNDUP('RFM input'!$W$7-0.5,1),SUM($G129:J129),0) -> 0 | K130: =IF(COUNT($H129:K129)=ROUNDUP('RFM input'!$W$7-0.5,1),SUM($G129:K129),0) -> 0 | L130: =IF(COUNT($H129:L129)=ROUNDUP('RFM input'!$W$7-0.5,1),SUM($G129:L129),0) -> 0 | M130: =IF(COUNT($H129:M129)=ROUNDUP('RFM input'!$W$7-0.5,1),SUM($G129:M129),0) -> 0 | N130: =IF(COUNT($H129:N129)=ROUNDUP('RFM input'!$W$7,0),SUM($G129:N129),0) -> 0 | O130: =IF(COUNT($H129:O129)=ROUNDUP('RFM input'!$W$7,0),SUM($G129:O129),0) -> 0 | P130: =IF(COUNT($H129:P129)=ROUNDUP('RFM input'!$W$7,0),SUM($G129:P129),0) -> 0 | Q130: =IF(COUNT($H129:Q129)=ROUNDUP('RFM input'!$W$7,0),SUM($G129:Q129),0) -> 0
C131: =Asset13 -> 0 | H131: =($G87+(SUM($G131:G131)))*H$6 -> 0 | I131: =($G87+(SUM($G131:H131)))*I$6 -> 0 | J131: =IF(COUNT($H131:I131)>='RFM input'!$W$7-0.5,0,($G87+(SUM($G131:I131)))*J$6) -> 0 | K131: =IF(COUNT($H131:J131)>='RFM input'!$W$7-0.5,0,($G87+(SUM($G131:J131)))*K$6) -> 0 | L131: =IF(COUNT($H131:K131)>='RFM input'!$W$7-0.5,0,($G87+(SUM($G131:K131)))*L$6) -> 0 | M131: =IF(COUNT($H131:L131)>='RFM input'!$W$7-0.5,0,($G87+(SUM($G131:L131)))*M$6) -> 0 | N131: =IF(COUNT($H131:M131)>='RFM input'!$W$7,0,($G87+(SUM($G131:M131)))*N$6) -> 0 | O131: =IF(COUNT($H131:N131)>='RFM input'!$W$7,0,($G87+(SUM($G131:N131)))*O$6) -> 0 | P131: =IF(COUNT($H131:O131)>='RFM input'!$W$7,0,($G87+(SUM($G131:O131)))*P$6) -> 0 | Q131: =IF(COUNT($H131:P131)>='RFM input'!$W$7,0,($G87+(SUM($G131:P131)))*Q$6) -> 0
C132: Sub-total | I132: =IF(COUNT($H131:I131)=ROUNDUP('RFM input'!$W$7-0.5,1),SUM($G131:I131),0) -> 0 | J132: =IF(COUNT($H131:J131)=ROUNDUP('RFM input'!$W$7-0.5,1),SUM($G131:J131),0) -> 0 | K132: =IF(COUNT($H131:K131)=ROUNDUP('RFM input'!$W$7-0.5,1),SUM($G131:K131),0) -> 0 | L132: =IF(COUNT($H131:L131)=ROUNDUP('RFM input'!$W$7-0.5,1),SUM($G131:L131),0) -> 0 | M132: =IF(COUNT($H131:M131)=ROUNDUP('RFM input'!$W$7-0.5,1),SUM($G131:M131),0) -> 0 | N132: =IF(COUNT($H131:N131)=ROUNDUP('RFM input'!$W$7,0),SUM($G131:N131),0) -> 0 | O132: =IF(COUNT($H131:O131)=ROUNDUP('RFM input'!$W$7,0),SUM($G131:O131),0) -> 0 | P132: =IF(COUNT($H131:P131)=ROUNDUP('RFM input'!$W$7,0),SUM($G131:P131),0) -> 0 | Q132: =IF(COUNT($H131:Q131)=ROUNDUP('RFM input'!$W$7,0),SUM($G131:Q131),0) -> 0
C133: =Asset14 -> 0 | H133: =($G88+(SUM($G133:G133)))*H$6 -> 0 | I133: =($G88+(SUM($G133:H133)))*I$6 -> 0 | J133: =IF(COUNT($H133:I133)>='RFM input'!$W$7-0.5,0,($G88+(SUM($G133:I133)))*J$6) -> 0 | K133: =IF(COUNT($H133:J133)>='RFM input'!$W$7-0.5,0,($G88+(SUM($G133:J133)))*K$6) -> 0 | L133: =IF(COUNT($H133:K133)>='RFM input'!$W$7-0.5,0,($G88+(SUM($G133:K133)))*L$6) -> 0 | M133: =IF(COUNT($H133:L133)>='RFM input'!$W$7-0.5,0,($G88+(SUM($G133:L133)))*M$6) -> 0 | N133: =IF(COUNT($H133:M133)>='RFM input'!$W$7,0,($G88+(SUM($G133:M133)))*N$6) -> 0 | O133: =IF(COUNT($H133:N133)>='RFM input'!$W$7,0,($G88+(SUM($G133:N133)))*O$6) -> 0 | P133: =IF(COUNT($H133:O133)>='RFM input'!$W$7,0,($G88+(SUM($G133:O133)))*P$6) -> 0 | Q133: =IF(COUNT($H133:P133)>='RFM input'!$W$7,0,($G88+(SUM($G133:P133)))*Q$6) -> 0
C134: Sub-total | I134: =IF(COUNT($H133:I133)=ROUNDUP('RFM input'!$W$7-0.5,1),SUM($G133:I133),0) -> 0 | J134: =IF(COUNT($H133:J133)=ROUNDUP('RFM input'!$W$7-0.5,1),SUM($G133:J133),0) -> 0 | K134: =IF(COUNT($H133:K133)=ROUNDUP('RFM input'!$W$7-0.5,1),SUM($G133:K133),0) -> 0 | L134: =IF(COUNT($H133:L133)=ROUNDUP('RFM input'!$W$7-0.5,1),SUM($G133:L133),0) -> 0 | M134: =IF(COUNT($H133:M133)=ROUNDUP('RFM input'!$W$7-0.5,1),SUM($G133:M133),0) -> 0 | N134: =IF(COUNT($H133:N133)=ROUNDUP('RFM input'!$W$7,0),SUM($G133:N133),0) -> 0 | O134: =IF(COUNT($H133:O133)=ROUNDUP('RFM input'!$W$7,0),SUM($G133:O133),0) -> 0 | P134: =IF(COUNT($H133:P133)=ROUNDUP('RFM input'!$W$7,0),SUM($G133:P133),0) -> 0 | Q134: =IF(COUNT($H133:Q133)=ROUNDUP('RFM input'!$W$7,0),SUM($G133:Q133),0) -> 0
C135: =Asset15 -> 0 | H135: =($G89+(SUM($G135:G135)))*H$6 -> 0 | I135: =($G89+(SUM($G135:H135)))*I$6 -> 0 | J135: =IF(COUNT($H135:I135)>='RFM input'!$W$7-0.5,0,($G89+(SUM($G135:I135)))*J$6) -> 0 | K135: =IF(COUNT($H135:J135)>='RFM input'!$W$7-0.5,0,($G89+(SUM($G135:J135)))*K$6) -> 0 | L135: =IF(COUNT($H135:K135)>='RFM input'!$W$7-0.5,0,($G89+(SUM($G135:K135)))*L$6) -> 0 | M135: =IF(COUNT($H135:L135)>='RFM input'!$W$7-0.5,0,($G89+(SUM($G135:L135)))*M$6) -> 0 | N135: =IF(COUNT($H135:M135)>='RFM input'!$W$7,0,($G89+(SUM($G135:M135)))*N$6) -> 0 | O135: =IF(COUNT($H135:N135)>='RFM input'!$W$7,0,($G89+(SUM($G135:N135)))*O$6) -> 0 | P135: =IF(COUNT($H135:O135)>='RFM input'!$W$7,0,($G89+(SUM($G135:O135)))*P$6) -> 0 | Q135: =IF(COUNT($H135:P135)>='RFM input'!$W$7,0,($G89+(SUM($G135:P135)))*Q$6) -> 0
C136: Sub-total | I136: =IF(COUNT($H135:I135)=ROUNDUP('RFM input'!$W$7-0.5,1),SUM($G135:I135),0) -> 0 | J136: =IF(COUNT($H135:J135)=ROUNDUP('RFM input'!$W$7-0.5,1),SUM($G135:J135),0) -> 0 | K136: =IF(COUNT($H135:K135)=ROUNDUP('RFM input'!$W$7-0.5,1),SUM($G135:K135),0) -> 0 | L136: =IF(COUNT($H135:L135)=ROUNDUP('RFM input'!$W$7-0.5,1),SUM($G135:L135),0) -> 0 | M136: =IF(COUNT($H135:M135)=ROUNDUP('RFM input'!$W$7-0.5,1),SUM($G135:M135),0) -> 0 | N136: =IF(COUNT($H135:N135)=ROUNDUP('RFM input'!$W$7,0),SUM($G135:N135),0) -> 0 | O136: =IF(COUNT($H135:O135)=ROUNDUP('RFM input'!$W$7,0),SUM($G135:O135),0) -> 0 | P136: =IF(COUNT($H135:P135)=ROUNDUP('RFM input'!$W$7,0),SUM($G135:P135),0) -> 0 | Q136: =IF(COUNT($H135:Q135)=ROUNDUP('RFM input'!$W$7,0),SUM($G135:Q135),0) -> 0
C137: =Asset16 -> 0 | H137: =($G90+(SUM($G137:G137)))*H$6 -> 0 | I137: =($G90+(SUM($G137:H137)))*I$6 -> 0 | J137: =IF(COUNT($H137:I137)>='RFM input'!$W$7-0.5,0,($G90+(SUM($G137:I137)))*J$6) -> 0 | K137: =IF(COUNT($H137:J137)>='RFM input'!$W$7-0.5,0,($G90+(SUM($G137:J137)))*K$6) -> 0 | L137: =IF(COUNT($H137:K137)>='RFM input'!$W$7-0.5,0,($G90+(SUM($G137:K137)))*L$6) -> 0 | M137: =IF(COUNT($H137:L137)>='RFM input'!$W$7-0.5,0,($G90+(SUM($G137:L137)))*M$6) -> 0 | N137: =IF(COUNT($H137:M137)>='RFM input'!$W$7,0,($G90+(SUM($G137:M137)))*N$6) -> 0 | O137: =IF(COUNT($H137:N137)>='RFM input'!$W$7,0,($G90+(SUM($G137:N137)))*O$6) -> 0 | P137: =IF(COUNT($H137:O137)>='RFM input'!$W$7,0,($G90+(SUM($G137:O137)))*P$6) -> 0 | Q137: =IF(COUNT($H137:P137)>='RFM input'!$W$7,0,($G90+(SUM($G137:P137)))*Q$6) -> 0
C138: Sub-total | I138: =IF(COUNT($H137:I137)=ROUNDUP('RFM input'!$W$7-0.5,1),SUM($G137:I137),0) -> 0 | J138: =IF(COUNT($H137:J137)=ROUNDUP('RFM input'!$W$7-0.5,1),SUM($G137:J137),0) -> 0 | K138: =IF(COUNT($H137:K137)=ROUNDUP('RFM input'!$W$7-0.5,1),SUM($G137:K137),0) -> 0 | L138: =IF(COUNT($H137:L137)=ROUNDUP('RFM input'!$W$7-0.5,1),SUM($G137:L137),0) -> 0 | M138: =IF(COUNT($H137:M137)=ROUNDUP('RFM input'!$W$7-0.5,1),SUM($G137:M137),0) -> 0 | N138: =IF(COUNT($H137:N137)=ROUNDUP('RFM input'!$W$7,0),SUM($G137:N137),0) -> 0 | O138: =IF(COUNT($H137:O137)=ROUNDUP('RFM input'!$W$7,0),SUM($G137:O137),0) -> 0 | P138: =IF(COUNT($H137:P137)=ROUNDUP('RFM input'!$W$7,0),SUM($G137:P137),0) -> 0 | Q138: =IF(COUNT($H137:Q137)=ROUNDUP('RFM input'!$W$7,0),SUM($G137:Q137),0) -> 0
C139: =Asset17 -> 0 | H139: =($G91+(SUM($G139:G139)))*H$6 -> 0 | I139: =($G91+(SUM($G139:H139)))*I$6 -> 0 | J139: =IF(COUNT($H139:I139)>='RFM input'!$W$7-0.5,0,($G91+(SUM($G139:I139)))*J$6) -> 0 | K139: =IF(COUNT($H139:J139)>='RFM input'!$W$7-0.5,0,($G91+(SUM($G139:J139)))*K$6) -> 0 | L139: =IF(COUNT($H139:K139)>='RFM input'!$W$7-0.5,0,($G91+(SUM($G139:K139)))*L$6) -> 0 | M139: =IF(COUNT($H139:L139)>='RFM input'!$W$7-0.5,0,($G91+(SUM($G139:L139)))*M$6) -> 0 | N139: =IF(COUNT($H139:M139)>='RFM input'!$W$7,0,($G91+(SUM($G139:M139)))*N$6) -> 0 | O139: =IF(COUNT($H139:N139)>='RFM input'!$W$7,0,($G91+(SUM($G139:N139)))*O$6) -> 0 | P139: =IF(COUNT($H139:O139)>='RFM input'!$W$7,0,($G91+(SUM($G139:O139)))*P$6) -> 0 | Q139: =IF(COUNT($H139:P139)>='RFM input'!$W$7,0,($G91+(SUM($G139:P139)))*Q$6) -> 0
C140: Sub-total | I140: =IF(COUNT($H139:I139)=ROUNDUP('RFM input'!$W$7-0.5,1),SUM($G139:I139),0) -> 0 | J140: =IF(COUNT($H139:J139)=ROUNDUP('RFM input'!$W$7-0.5,1),SUM($G139:J139),0) -> 0 | K140: =IF(COUNT($H139:K139)=ROUNDUP('RFM input'!$W$7-0.5,1),SUM($G139:K139),0) -> 0 | L140: =IF(COUNT($H139:L139)=ROUNDUP('RFM input'!$W$7-0.5,1),SUM($G139:L139),0) -> 0 | M140: =IF(COUNT($H139:M139)=ROUNDUP('RFM input'!$W$7-0.5,1),SUM($G139:M139),0) -> 0 | N140: =IF(COUNT($H139:N139)=ROUNDUP('RFM input'!$W$7,0),SUM($G139:N139),0) -> 0 | O140: =IF(COUNT($H139:O139)=ROUNDUP('RFM input'!$W$7,0),SUM($G139:O139),0) -> 0 | P140: =IF(COUNT($H139:P139)=ROUNDUP('RFM input'!$W$7,0),SUM($G139:P139),0) -> 0 | Q140: =IF(COUNT($H139:Q139)=ROUNDUP('RFM input'!$W$7,0),SUM($G139:Q139),0) -> 0
C141: =Asset18 -> 0 | H141: =($G92+(SUM($G141:G141)))*H$6 -> 0 | I141: =($G92+(SUM($G141:H141)))*I$6 -> 0 | J141: =IF(COUNT($H141:I141)>='RFM input'!$W$7-0.5,0,($G92+(SUM($G141:I141)))*J$6) -> 0 | K141: =IF(COUNT($H141:J141)>='RFM input'!$W$7-0.5,0,($G92+(SUM($G141:J141)))*K$6) -> 0 | L141: =IF(COUNT($H141:K141)>='RFM input'!$W$7-0.5,0,($G92+(SUM($G141:K141)))*L$6) -> 0 | M141: =IF(COUNT($H141:L141)>='RFM input'!$W$7-0.5,0,($G92+(SUM($G141:L141)))*M$6) -> 0 | N141: =IF(COUNT($H141:M141)>='RFM input'!$W$7,0,($G92+(SUM($G141:M141)))*N$6) -> 0 | O141: =IF(COUNT($H141:N141)>='RFM input'!$W$7,0,($G92+(SUM($G141:N141)))*O$6) -> 0 | P141: =IF(COUNT($H141:O141)>='RFM input'!$W$7,0,($G92+(SUM($G141:O141)))*P$6) -> 0 | Q141: =IF(COUNT($H141:P141)>='RFM input'!$W$7,0,($G92+(SUM($G141:P141)))*Q$6) -> 0
C142: Sub-total | I142: =IF(COUNT($H141:I141)=ROUNDUP('RFM input'!$W$7-0.5,1),SUM($G141:I141),0) -> 0 | J142: =IF(COUNT($H141:J141)=ROUNDUP('RFM input'!$W$7-0.5,1),SUM($G141:J141),0) -> 0 | K142: =IF(COUNT($H141:K141)=ROUNDUP('RFM input'!$W$7-0.5,1),SUM($G141:K141),0) -> 0 | L142: =IF(COUNT($H141:L141)=ROUNDUP('RFM input'!$W$7-0.5,1),SUM($G141:L141),0) -> 0 | M142: =IF(COUNT($H141:M141)=ROUNDUP('RFM input'!$W$7-0.5,1),SUM($G141:M141),0) -> 0 | N142: =IF(COUNT($H141:N141)=ROUNDUP('RFM input'!$W$7,0),SUM($G141:N141),0) -> 0 | O142: =IF(COUNT($H141:O141)=ROUNDUP('RFM input'!$W$7,0),SUM($G141:O141),0) -> 0 | P142: =IF(COUNT($H141:P141)=ROUNDUP('RFM input'!$W$7,0),SUM($G141:P141),0) -> 0 | Q142: =IF(COUNT($H141:Q141)=ROUNDUP('RFM input'!$W$7,0),SUM($G141:Q141),0) -> 0
C143: =Asset19 -> 0 | H143: =($G93+(SUM($G143:G143)))*H$6 -> 0 | I143: =($G93+(SUM($G143:H143)))*I$6 -> 0 | J143: =IF(COUNT($H143:I143)>='RFM input'!$W$7-0.5,0,($G93+(SUM($G143:I143)))*J$6) -> 0 | K143: =IF(COUNT($H143:J143)>='RFM input'!$W$7-0.5,0,($G93+(SUM($G143:J143)))*K$6) -> 0 | L143: =IF(COUNT($H143:K143)>='RFM input'!$W$7-0.5,0,($G93+(SUM($G143:K143)))*L$6) -> 0 | M143: =IF(COUNT($H143:L143)>='RFM input'!$W$7-0.5,0,($G93+(SUM($G143:L143)))*M$6) -> 0 | N143: =IF(COUNT($H143:M143)>='RFM input'!$W$7,0,($G93+(SUM($G143:M143)))*N$6) -> 0 | O143: =IF(COUNT($H143:N143)>='RFM input'!$W$7,0,($G93+(SUM($G143:N143)))*O$6) -> 0 | P143: =IF(COUNT($H143:O143)>='RFM input'!$W$7,0,($G93+(SUM($G143:O143)))*P$6) -> 0 | Q143: =IF(COUNT($H143:P143)>='RFM input'!$W$7,0,($G93+(SUM($G143:P143)))*Q$6) -> 0
C144: Sub-total | I144: =IF(COUNT($H143:I143)=ROUNDUP('RFM input'!$W$7-0.5,1),SUM($G143:I143),0) -> 0 | J144: =IF(COUNT($H143:J143)=ROUNDUP('RFM input'!$W$7-0.5,1),SUM($G143:J143),0) -> 0 | K144: =IF(COUNT($H143:K143)=ROUNDUP('RFM input'!$W$7-0.5,1),SUM($G143:K143),0) -> 0 | L144: =IF(COUNT($H143:L143)=ROUNDUP('RFM input'!$W$7-0.5,1),SUM($G143:L143),0) -> 0 | M144: =IF(COUNT($H143:M143)=ROUNDUP('RFM input'!$W$7-0.5,1),SUM($G143:M143),0) -> 0 | N144: =IF(COUNT($H143:N143)=ROUNDUP('RFM input'!$W$7,0),SUM($G143:N143),0) -> 0 | O144: =IF(COUNT($H143:O143)=ROUNDUP('RFM input'!$W$7,0),SUM($G143:O143),0) -> 0 | P144: =IF(COUNT($H143:P143)=ROUNDUP('RFM input'!$W$7,0),SUM($G143:P143),0) -> 0 | Q144: =IF(COUNT($H143:Q143)=ROUNDUP('RFM input'!$W$7,0),SUM($G143:Q143),0) -> 0
C145: =Asset20 -> 0 | H145: =($G94+(SUM($G145:G145)))*H$6 -> 0 | I145: =($G94+(SUM($G145:H145)))*I$6 -> 0 | J145: =IF(COUNT($H145:I145)>='RFM input'!$W$7-0.5,0,($G94+(SUM($G145:I145)))*J$6) -> 0 | K145: =IF(COUNT($H145:J145)>='RFM input'!$W$7-0.5,0,($G94+(SUM($G145:J145)))*K$6) -> 0 | L145: =IF(COUNT($H145:K145)>='RFM input'!$W$7-0.5,0,($G94+(SUM($G145:K145)))*L$6) -> 0 | M145: =IF(COUNT($H145:L145)>='RFM input'!$W$7-0.5,0,($G94+(SUM($G145:L145)))*M$6) -> 0 | N145: =IF(COUNT($H145:M145)>='RFM input'!$W$7,0,($G94+(SUM($G145:M145)))*N$6) -> 0 | O145: =IF(COUNT($H145:N145)>='RFM input'!$W$7,0,($G94+(SUM($G145:N145)))*O$6) -> 0 | P145: =IF(COUNT($H145:O145)>='RFM input'!$W$7,0,($G94+(SUM($G145:O145)))*P$6) -> 0 | Q145: =IF(COUNT($H145:P145)>='RFM input'!$W$7,0,($G94+(SUM($G145:P145)))*Q$6) -> 0
C146: Sub-total | I146: =IF(COUNT($H145:I145)=ROUNDUP('RFM input'!$W$7-0.5,1),SUM($G145:I145),0) -> 0 | J146: =IF(COUNT($H145:J145)=ROUNDUP('RFM input'!$W$7-0.5,1),SUM($G145:J145),0) -> 0 | K146: =IF(COUNT($H145:K145)=ROUNDUP('RFM input'!$W$7-0.5,1),SUM($G145:K145),0) -> 0 | L146: =IF(COUNT($H145:L145)=ROUNDUP('RFM input'!$W$7-0.5,1),SUM($G145:L145),0) -> 0 | M146: =IF(COUNT($H145:M145)=ROUNDUP('RFM input'!$W$7-0.5,1),SUM($G145:M145),0) -> 0 | N146: =IF(COUNT($H145:N145)=ROUNDUP('RFM input'!$W$7,0),SUM($G145:N145),0) -> 0 | O146: =IF(COUNT($H145:O145)=ROUNDUP('RFM input'!$W$7,0),SUM($G145:O145),0) -> 0 | P146: =IF(COUNT($H145:P145)=ROUNDUP('RFM input'!$W$7,0),SUM($G145:P145),0) -> 0 | Q146: =IF(COUNT($H145:Q145)=ROUNDUP('RFM input'!$W$7,0),SUM($G145:Q145),0) -> 0
C147: =Asset21 -> 0 | H147: =($G95+(SUM($G147:G147)))*H$6 -> 0 | I147: =($G95+(SUM($G147:H147)))*I$6 -> 0 | J147: =IF(COUNT($H147:I147)>='RFM input'!$W$7-0.5,0,($G95+(SUM($G147:I147)))*J$6) -> 0 | K147: =IF(COUNT($H147:J147)>='RFM input'!$W$7-0.5,0,($G95+(SUM($G147:J147)))*K$6) -> 0 | L147: =IF(COUNT($H147:K147)>='RFM input'!$W$7-0.5,0,($G95+(SUM($G147:K147)))*L$6) -> 0 | M147: =IF(COUNT($H147:L147)>='RFM input'!$W$7-0.5,0,($G95+(SUM($G147:L147)))*M$6) -> 0 | N147: =IF(COUNT($H147:M147)>='RFM input'!$W$7,0,($G95+(SUM($G147:M147)))*N$6) -> 0 | O147: =IF(COUNT($H147:N147)>='RFM input'!$W$7,0,($G95+(SUM($G147:N147)))*O$6) -> 0 | P147: =IF(COUNT($H147:O147)>='RFM input'!$W$7,0,($G95+(SUM($G147:O147)))*P$6) -> 0 | Q147: =IF(COUNT($H147:P147)>='RFM input'!$W$7,0,($G95+(SUM($G147:P147)))*Q$6) -> 0
C148: Sub-total | I148: =IF(COUNT($H147:I147)=ROUNDUP('RFM input'!$W$7-0.5,1),SUM($G147:I147),0) -> 0 | J148: =IF(COUNT($H147:J147)=ROUNDUP('RFM input'!$W$7-0.5,1),SUM($G147:J147),0) -> 0 | K148: =IF(COUNT($H147:K147)=ROUNDUP('RFM input'!$W$7-0.5,1),SUM($G147:K147),0) -> 0 | L148: =IF(COUNT($H147:L147)=ROUNDUP('RFM input'!$W$7-0.5,1),SUM($G147:L147),0) -> 0 | M148: =IF(COUNT($H147:M147)=ROUNDUP('RFM input'!$W$7-0.5,1),SUM($G147:M147),0) -> 0 | N148: =IF(COUNT($H147:N147)=ROUNDUP('RFM input'!$W$7,0),SUM($G147:N147),0) -> 0 | O148: =IF(COUNT($H147:O147)=ROUNDUP('RFM input'!$W$7,0),SUM($G147:O147),0) -> 0 | P148: =IF(COUNT($H147:P147)=ROUNDUP('RFM input'!$W$7,0),SUM($G147:P147),0) -> 0 | Q148: =IF(COUNT($H147:Q147)=ROUNDUP('RFM input'!$W$7,0),SUM($G147:Q147),0) -> 0
C149: =Asset22 -> 0 | H149: =($G96+(SUM($G149:G149)))*H$6 -> 0 | I149: =($G96+(SUM($G149:H149)))*I$6 -> 0 | J149: =IF(COUNT($H149:I149)>='RFM input'!$W$7-0.5,0,($G96+(SUM($G149:I149)))*J$6) -> 0 | K149: =IF(COUNT($H149:J149)>='RFM input'!$W$7-0.5,0,($G96+(SUM($G149:J149)))*K$6) -> 0 | L149: =IF(COUNT($H149:K149)>='RFM input'!$W$7-0.5,0,($G96+(SUM($G149:K149)))*L$6) -> 0 | M149: =IF(COUNT($H149:L149)>='RFM input'!$W$7-0.5,0,($G96+(SUM($G149:L149)))*M$6) -> 0 | N149: =IF(COUNT($H149:M149)>='RFM input'!$W$7,0,($G96+(SUM($G149:M149)))*N$6) -> 0 | O149: =IF(COUNT($H149:N149)>='RFM input'!$W$7,0,($G96+(SUM($G149:N149)))*O$6) -> 0 | P149: =IF(COUNT($H149:O149)>='RFM input'!$W$7,0,($G96+(SUM($G149:O149)))*P$6) -> 0 | Q149: =IF(COUNT($H149:P149)>='RFM input'!$W$7,0,($G96+(SUM($G149:P149)))*Q$6) -> 0
C150: Sub-total | I150: =IF(COUNT($H149:I149)=ROUNDUP('RFM input'!$W$7-0.5,1),SUM($G149:I149),0) -> 0 | J150: =IF(COUNT($H149:J149)=ROUNDUP('RFM input'!$W$7-0.5,1),SUM($G149:J149),0) -> 0 | K150: =IF(COUNT($H149:K149)=ROUNDUP('RFM input'!$W$7-0.5,1),SUM($G149:K149),0) -> 0 | L150: =IF(COUNT($H149:L149)=ROUNDUP('RFM input'!$W$7-0.5,1),SUM($G149:L149),0) -> 0 | M150: =IF(COUNT($H149:M149)=ROUNDUP('RFM input'!$W$7-0.5,1),SUM($G149:M149),0) -> 0 | N150: =IF(COUNT($H149:N149)=ROUNDUP('RFM input'!$W$7,0),SUM($G149:N149),0) -> 0 | O150: =IF(COUNT($H149:O149)=ROUNDUP('RFM input'!$W$7,0),SUM($G149:O149),0) -> 0 | P150: =IF(COUNT($H149:P149)=ROUNDUP('RFM input'!$W$7,0),SUM($G149:P149),0) -> 0 | Q150: =IF(COUNT($H149:Q149)=ROUNDUP('RFM input'!$W$7,0),SUM($G149:Q149),0) -> 0
C151: =Asset23 -> 0 | H151: =($G97+(SUM($G151:G151)))*H$6 -> 0 | I151: =($G97+(SUM($G151:H151)))*I$6 -> 0 | J151: =IF(COUNT($H151:I151)>='RFM input'!$W$7-0.5,0,($G97+(SUM($G151:I151)))*J$6) -> 0 | K151: =IF(COUNT($H151:J151)>='RFM input'!$W$7-0.5,0,($G97+(SUM($G151:J151)))*K$6) -> 0 | L151: =IF(COUNT($H151:K151)>='RFM input'!$W$7-0.5,0,($G97+(SUM($G151:K151)))*L$6) -> 0 | M151: =IF(COUNT($H151:L151)>='RFM input'!$W$7-0.5,0,($G97+(SUM($G151:L151)))*M$6) -> 0 | N151: =IF(COUNT($H151:M151)>='RFM input'!$W$7,0,($G97+(SUM($G151:M151)))*N$6) -> 0 | O151: =IF(COUNT($H151:N151)>='RFM input'!$W$7,0,($G97+(SUM($G151:N151)))*O$6) -> 0 | P151: =IF(COUNT($H151:O151)>='RFM input'!$W$7,0,($G97+(SUM($G151:O151)))*P$6) -> 0 | Q151: =IF(COUNT($H151:P151)>='RFM input'!$W$7,0,($G97+(SUM($G151:P151)))*Q$6) -> 0
C152: Sub-total | I152: =IF(COUNT($H151:I151)=ROUNDUP('RFM input'!$W$7-0.5,1),SUM($G151:I151),0) -> 0 | J152: =IF(COUNT($H151:J151)=ROUNDUP('RFM input'!$W$7-0.5,1),SUM($G151:J151),0) -> 0 | K152: =IF(COUNT($H151:K151)=ROUNDUP('RFM input'!$W$7-0.5,1),SUM($G151:K151),0) -> 0 | L152: =IF(COUNT($H151:L151)=ROUNDUP('RFM input'!$W$7-0.5,1),SUM($G151:L151),0) -> 0 | M152: =IF(COUNT($H151:M151)=ROUNDUP('RFM input'!$W$7-0.5,1),SUM($G151:M151),0) -> 0 | N152: =IF(COUNT($H151:N151)=ROUNDUP('RFM input'!$W$7,0),SUM($G151:N151),0) -> 0 | O152: =IF(COUNT($H151:O151)=ROUNDUP('RFM input'!$W$7,0),SUM($G151:O151),0) -> 0 | P152: =IF(COUNT($H151:P151)=ROUNDUP('RFM input'!$W$7,0),SUM($G151:P151),0) -> 0 | Q152: =IF(COUNT($H151:Q151)=ROUNDUP('RFM input'!$W$7,0),SUM($G151:Q151),0) -> 0
C153: =Asset24 -> 0 | H153: =($G98+(SUM($G153:G153)))*H$6 -> 0 | I153: =($G98+(SUM($G153:H153)))*I$6 -> 0 | J153: =IF(COUNT($H153:I153)>='RFM input'!$W$7-0.5,0,($G98+(SUM($G153:I153)))*J$6) -> 0 | K153: =IF(COUNT($H153:J153)>='RFM input'!$W$7-0.5,0,($G98+(SUM($G153:J153)))*K$6) -> 0 | L153: =IF(COUNT($H153:K153)>='RFM input'!$W$7-0.5,0,($G98+(SUM($G153:K153)))*L$6) -> 0 | M153: =IF(COUNT($H153:L153)>='RFM input'!$W$7-0.5,0,($G98+(SUM($G153:L153)))*M$6) -> 0 | N153: =IF(COUNT($H153:M153)>='RFM input'!$W$7,0,($G98+(SUM($G153:M153)))*N$6) -> 0 | O153: =IF(COUNT($H153:N153)>='RFM input'!$W$7,0,($G98+(SUM($G153:N153)))*O$6) -> 0 | P153: =IF(COUNT($H153:O153)>='RFM input'!$W$7,0,($G98+(SUM($G153:O153)))*P$6) -> 0 | Q153: =IF(COUNT($H153:P153)>='RFM input'!$W$7,0,($G98+(SUM($G153:P153)))*Q$6) -> 0
C154: Sub-total | I154: =IF(COUNT($H153:I153)=ROUNDUP('RFM input'!$W$7-0.5,1),SUM($G153:I153),0) -> 0 | J154: =IF(COUNT($H153:J153)=ROUNDUP('RFM input'!$W$7-0.5,1),SUM($G153:J153),0) -> 0 | K154: =IF(COUNT($H153:K153)=ROUNDUP('RFM input'!$W$7-0.5,1),SUM($G153:K153),0) -> 0 | L154: =IF(COUNT($H153:L153)=ROUNDUP('RFM input'!$W$7-0.5,1),SUM($G153:L153),0) -> 0 | M154: =IF(COUNT($H153:M153)=ROUNDUP('RFM input'!$W$7-0.5,1),SUM($G153:M153),0) -> 0 | N154: =IF(COUNT($H153:N153)=ROUNDUP('RFM input'!$W$7,0),SUM($G153:N153),0) -> 0 | O154: =IF(COUNT($H153:O153)=ROUNDUP('RFM input'!$W$7,0),SUM($G153:O153),0) -> 0 | P154: =IF(COUNT($H153:P153)=ROUNDUP('RFM input'!$W$7,0),SUM($G153:P153),0) -> 0 | Q154: =IF(COUNT($H153:Q153)=ROUNDUP('RFM input'!$W$7,0),SUM($G153:Q153),0) -> 0
C155: =Asset25 -> 0 | H155: =($G99+(SUM($G155:G155)))*H$6 -> 0 | I155: =($G99+(SUM($G155:H155)))*I$6 -> 0 | J155: =IF(COUNT($H155:I155)>='RFM input'!$W$7-0.5,0,($G99+(SUM($G155:I155)))*J$6) -> 0 | K155: =IF(COUNT($H155:J155)>='RFM input'!$W$7-0.5,0,($G99+(SUM($G155:J155)))*K$6) -> 0 | L155: =IF(COUNT($H155:K155)>='RFM input'!$W$7-0.5,0,($G99+(SUM($G155:K155)))*L$6) -> 0 | M155: =IF(COUNT($H155:L155)>='RFM input'!$W$7-0.5,0,($G99+(SUM($G155:L155)))*M$6) -> 0 | N155: =IF(COUNT($H155:M155)>='RFM input'!$W$7,0,($G99+(SUM($G155:M155)))*N$6) -> 0 | O155: =IF(COUNT($H155:N155)>='RFM input'!$W$7,0,($G99+(SUM($G155:N155)))*O$6) -> 0 | P155: =IF(COUNT($H155:O155)>='RFM input'!$W$7,0,($G99+(SUM($G155:O155)))*P$6) -> 0 | Q155: =IF(COUNT($H155:P155)>='RFM input'!$W$7,0,($G99+(SUM($G155:P155)))*Q$6) -> 0
C156: Sub-total | I156: =IF(COUNT($H155:I155)=ROUNDUP('RFM input'!$W$7-0.5,1),SUM($G155:I155),0) -> 0 | J156: =IF(COUNT($H155:J155)=ROUNDUP('RFM input'!$W$7-0.5,1),SUM($G155:J155),0) -> 0 | K156: =IF(COUNT($H155:K155)=ROUNDUP('RFM input'!$W$7-0.5,1),SUM($G155:K155),0) -> 0 | L156: =IF(COUNT($H155:L155)=ROUNDUP('RFM input'!$W$7-0.5,1),SUM($G155:L155),0) -> 0 | M156: =IF(COUNT($H155:M155)=ROUNDUP('RFM input'!$W$7-0.5,1),SUM($G155:M155),0) -> 0 | N156: =IF(COUNT($H155:N155)=ROUNDUP('RFM input'!$W$7,0),SUM($G155:N155),0) -> 0 | O156: =IF(COUNT($H155:O155)=ROUNDUP('RFM input'!$W$7,0),SUM($G155:O155),0) -> 0 | P156: =IF(COUNT($H155:P155)=ROUNDUP('RFM input'!$W$7,0),SUM($G155:P155),0) -> 0 | Q156: =IF(COUNT($H155:Q155)=ROUNDUP('RFM input'!$W$7,0),SUM($G155:Q155),0) -> 0
C157: =Asset26 -> 0 | H157: =($G100+(SUM($G157:G157)))*H$6 -> 0 | I157: =($G100+(SUM($G157:H157)))*I$6 -> 0 | J157: =IF(COUNT($H157:I157)>='RFM input'!$W$7-0.5,0,($G100+(SUM($G157:I157)))*J$6) -> 0 | K157: =IF(COUNT($H157:J157)>='RFM input'!$W$7-0.5,0,($G100+(SUM($G157:J157)))*K$6) -> 0 | L157: =IF(COUNT($H157:K157)>='RFM input'!$W$7-0.5,0,($G100+(SUM($G157:K157)))*L$6) -> 0 | M157: =IF(COUNT($H157:L157)>='RFM input'!$W$7-0.5,0,($G100+(SUM($G157:L157)))*M$6) -> 0 | N157: =IF(COUNT($H157:M157)>='RFM input'!$W$7,0,($G100+(SUM($G157:M157)))*N$6) -> 0 | O157: =IF(COUNT($H157:N157)>='RFM input'!$W$7,0,($G100+(SUM($G157:N157)))*O$6) -> 0 | P157: =IF(COUNT($H157:O157)>='RFM input'!$W$7,0,($G100+(SUM($G157:O157)))*P$6) -> 0 | Q157: =IF(COUNT($H157:P157)>='RFM input'!$W$7,0,($G100+(SUM($G157:P157)))*Q$6) -> 0
C158: Sub-total | I158: =IF(COUNT($H157:I157)=ROUNDUP('RFM input'!$W$7-0.5,1),SUM($G157:I157),0) -> 0 | J158: =IF(COUNT($H157:J157)=ROUNDUP('RFM input'!$W$7-0.5,1),SUM($G157:J157),0) -> 0 | K158: =IF(COUNT($H157:K157)=ROUNDUP('RFM input'!$W$7-0.5,1),SUM($G157:K157),0) -> 0 | L158: =IF(COUNT($H157:L157)=ROUNDUP('RFM input'!$W$7-0.5,1),SUM($G157:L157),0) -> 0 | M158: =IF(COUNT($H157:M157)=ROUNDUP('RFM input'!$W$7-0.5,1),SUM($G157:M157),0) -> 0 | N158: =IF(COUNT($H157:N157)=ROUNDUP('RFM input'!$W$7,0),SUM($G157:N157),0) -> 0 | O158: =IF(COUNT($H157:O157)=ROUNDUP('RFM input'!$W$7,0),SUM($G157:O157),0) -> 0 | P158: =IF(COUNT($H157:P157)=ROUNDUP('RFM input'!$W$7,0),SUM($G157:P157),0) -> 0 | Q158: =IF(COUNT($H157:Q157)=ROUNDUP('RFM input'!$W$7,0),SUM($G157:Q157),0) -> 0
C159: =Asset27 -> 0 | H159: =($G101+(SUM($G159:G159)))*H$6 -> 0 | I159: =($G101+(SUM($G159:H159)))*I$6 -> 0 | J159: =IF(COUNT($H159:I159)>='RFM input'!$W$7-0.5,0,($G101+(SUM($G159:I159)))*J$6) -> 0 | K159: =IF(COUNT($H159:J159)>='RFM input'!$W$7-0.5,0,($G101+(SUM($G159:J159)))*K$6) -> 0 | L159: =IF(COUNT($H159:K159)>='RFM input'!$W$7-0.5,0,($G101+(SUM($G159:K159)))*L$6) -> 0 | M159: =IF(COUNT($H159:L159)>='RFM input'!$W$7-0.5,0,($G101+(SUM($G159:L159)))*M$6) -> 0 | N159: =IF(COUNT($H159:M159)>='RFM input'!$W$7,0,($G101+(SUM($G159:M159)))*N$6) -> 0 | O159: =IF(COUNT($H159:N159)>='RFM input'!$W$7,0,($G101+(SUM($G159:N159)))*O$6) -> 0 | P159: =IF(COUNT($H159:O159)>='RFM input'!$W$7,0,($G101+(SUM($G159:O159)))*P$6) -> 0 | Q159: =IF(COUNT($H159:P159)>='RFM input'!$W$7,0,($G101+(SUM($G159:P159)))*Q$6) -> 0
C160: Sub-total | I160: =IF(COUNT($H159:I159)=ROUNDUP('RFM input'!$W$7-0.5,1),SUM($G159:I159),0) -> 0 | J160: =IF(COUNT($H159:J159)=ROUNDUP('RFM input'!$W$7-0.5,1),SUM($G159:J159),0) -> 0 | K160: =IF(COUNT($H159:K159)=ROUNDUP('RFM input'!$W$7-0.5,1),SUM($G159:K159),0) -> 0 | L160: =IF(COUNT($H159:L159)=ROUNDUP('RFM input'!$W$7-0.5,1),SUM($G159:L159),0) -> 0 | M160: =IF(COUNT($H159:M159)=ROUNDUP('RFM input'!$W$7-0.5,1),SUM($G159:M159),0) -> 0 | N160: =IF(COUNT($H159:N159)=ROUNDUP('RFM input'!$W$7,0),SUM($G159:N159),0) -> 0 | O160: =IF(COUNT($H159:O159)=ROUNDUP('RFM input'!$W$7,0),SUM($G159:O159),0) -> 0 | P160: =IF(COUNT($H159:P159)=ROUNDUP('RFM input'!$W$7,0),SUM($G159:P159),0) -> 0 | Q160: =IF(COUNT($H159:Q159)=ROUNDUP('RFM input'!$W$7,0),SUM($G159:Q159),0) -> 0
C161: =Asset28 -> 0 | H161: =($G102+(SUM($G161:G161)))*H$6 -> 0 | I161: =($G102+(SUM($G161:H161)))*I$6 -> 0 | J161: =IF(COUNT($H161:I161)>='RFM input'!$W$7-0.5,0,($G102+(SUM($G161:I161)))*J$6) -> 0 | K161: =IF(COUNT($H161:J161)>='RFM input'!$W$7-0.5,0,($G102+(SUM($G161:J161)))*K$6) -> 0 | L161: =IF(COUNT($H161:K161)>='RFM input'!$W$7-0.5,0,($G102+(SUM($G161:K161)))*L$6) -> 0 | M161: =IF(COUNT($H161:L161)>='RFM input'!$W$7-0.5,0,($G102+(SUM($G161:L161)))*M$6) -> 0 | N161: =IF(COUNT($H161:M161)>='RFM input'!$W$7,0,($G102+(SUM($G161:M161)))*N$6) -> 0 | O161: =IF(COUNT($H161:N161)>='RFM input'!$W$7,0,($G102+(SUM($G161:N161)))*O$6) -> 0 | P161: =IF(COUNT($H161:O161)>='RFM input'!$W$7,0,($G102+(SUM($G161:O161)))*P$6) -> 0 | Q161: =IF(COUNT($H161:P161)>='RFM input'!$W$7,0,($G102+(SUM($G161:P161)))*Q$6) -> 0
C162: Sub-total | I162: =IF(COUNT($H161:I161)=ROUNDUP('RFM input'!$W$7-0.5,1),SUM($G161:I161),0) -> 0 | J162: =IF(COUNT($H161:J161)=ROUNDUP('RFM input'!$W$7-0.5,1),SUM($G161:J161),0) -> 0 | K162: =IF(COUNT($H161:K161)=ROUNDUP('RFM input'!$W$7-0.5,1),SUM($G161:K161),0) -> 0 | L162: =IF(COUNT($H161:L161)=ROUNDUP('RFM input'!$W$7-0.5,1),SUM($G161:L161),0) -> 0 | M162: =IF(COUNT($H161:M161)=ROUNDUP('RFM input'!$W$7-0.5,1),SUM($G161:M161),0) -> 0 | N162: =IF(COUNT($H161:N161)=ROUNDUP('RFM input'!$W$7,0),SUM($G161:N161),0) -> 0 | O162: =IF(COUNT($H161:O161)=ROUNDUP('RFM input'!$W$7,0),SUM($G161:O161),0) -> 0 | P162: =IF(COUNT($H161:P161)=ROUNDUP('RFM input'!$W$7,0),SUM($G161:P161),0) -> 0 | Q162: =IF(COUNT($H161:Q161)=ROUNDUP('RFM input'!$W$7,0),SUM($G161:Q161),0) -> 0
C163: =Asset29 -> 0 | H163: =($G103+(SUM($G163:G163)))*H$6 -> 0 | I163: =($G103+(SUM($G163:H163)))*I$6 -> 0 | J163: =IF(COUNT($H163:I163)>='RFM input'!$W$7-0.5,0,($G103+(SUM($G163:I163)))*J$6) -> 0 | K163: =IF(COUNT($H163:J163)>='RFM input'!$W$7-0.5,0,($G103+(SUM($G163:J163)))*K$6) -> 0 | L163: =IF(COUNT($H163:K163)>='RFM input'!$W$7-0.5,0,($G103+(SUM($G163:K163)))*L$6) -> 0 | M163: =IF(COUNT($H163:L163)>='RFM input'!$W$7-0.5,0,($G103+(SUM($G163:L163)))*M$6) -> 0 | N163: =IF(COUNT($H163:M163)>='RFM input'!$W$7,0,($G103+(SUM($G163:M163)))*N$6) -> 0 | O163: =IF(COUNT($H163:N163)>='RFM input'!$W$7,0,($G103+(SUM($G163:N163)))*O$6) -> 0 | P163: =IF(COUNT($H163:O163)>='RFM input'!$W$7,0,($G103+(SUM($G163:O163)))*P$6) -> 0 | Q163: =IF(COUNT($H163:P163)>='RFM input'!$W$7,0,($G103+(SUM($G163:P163)))*Q$6) -> 0
C164: Sub-total | I164: =IF(COUNT($H163:I163)=ROUNDUP('RFM input'!$W$7-0.5,1),SUM($G163:I163),0) -> 0 | J164: =IF(COUNT($H163:J163)=ROUNDUP('RFM input'!$W$7-0.5,1),SUM($G163:J163),0) -> 0 | K164: =IF(COUNT($H163:K163)=ROUNDUP('RFM input'!$W$7-0.5,1),SUM($G163:K163),0) -> 0 | L164: =IF(COUNT($H163:L163)=ROUNDUP('RFM input'!$W$7-0.5,1),SUM($G163:L163),0) -> 0 | M164: =IF(COUNT($H163:M163)=ROUNDUP('RFM input'!$W$7-0.5,1),SUM($G163:M163),0) -> 0 | N164: =IF(COUNT($H163:N163)=ROUNDUP('RFM input'!$W$7,0),SUM($G163:N163),0) -> 0 | O164: =IF(COUNT($H163:O163)=ROUNDUP('RFM input'!$W$7,0),SUM($G163:O163),0) -> 0 | P164: =IF(COUNT($H163:P163)=ROUNDUP('RFM input'!$W$7,0),SUM($G163:P163),0) -> 0 | Q164: =IF(COUNT($H163:Q163)=ROUNDUP('RFM input'!$W$7,0),SUM($G163:Q163),0) -> 0
C165: =Asset30 -> Equity raising costs | H165: =($G104+(SUM($G165:G165)))*H$6 -> 0 | I165: =($G104+(SUM($G165:H165)))*I$6 -> 0 | J165: =IF(COUNT($H165:I165)>='RFM input'!$W$7-0.5,0,($G104+(SUM($G165:I165)))*J$6) -> 0 | K165: =IF(COUNT($H165:J165)>='RFM input'!$W$7-0.5,0,($G104+(SUM($G165:J165)))*K$6) -> 0 | L165: =IF(COUNT($H165:K165)>='RFM input'!$W$7-0.5,0,($G104+(SUM($G165:K165)))*L$6) -> 0 | M165: =IF(COUNT($H165:L165)>='RFM input'!$W$7-0.5,0,($G104+(SUM($G165:L165)))*M$6) -> 0 | N165: =IF(COUNT($H165:M165)>='RFM input'!$W$7,0,($G104+(SUM($G165:M165)))*N$6) -> 0 | O165: =IF(COUNT($H165:N165)>='RFM input'!$W$7,0,($G104+(SUM($G165:N165)))*O$6) -> 0 | P165: =IF(COUNT($H165:O165)>='RFM input'!$W$7,0,($G104+(SUM($G165:O165)))*P$6) -> 0 | Q165: =IF(COUNT($H165:P165)>='RFM input'!$W$7,0,($G104+(SUM($G165:P165)))*Q$6) -> 0
C166: Sub-total | I166: =IF(COUNT($H165:I165)=ROUNDUP('RFM input'!$W$7-0.5,1),SUM($G165:I165),0) -> 0 | J166: =IF(COUNT($H165:J165)=ROUNDUP('RFM input'!$W$7-0.5,1),SUM($G165:J165),0) -> 0 | K166: =IF(COUNT($H165:K165)=ROUNDUP('RFM input'!$W$7-0.5,1),SUM($G165:K165),0) -> 0 | L166: =IF(COUNT($H165:L165)=ROUNDUP('RFM input'!$W$7-0.5,1),SUM($G165:L165),0) -> 0 | M166: =IF(COUNT($H165:M165)=ROUNDUP('RFM input'!$W$7-0.5,1),SUM($G165:M165),0) -> 0 | N166: =IF(COUNT($H165:N165)=ROUNDUP('RFM input'!$W$7,0),SUM($G165:N165),0) -> 0 | O166: =IF(COUNT($H165:O165)=ROUNDUP('RFM input'!$W$7,0),SUM($G165:O165),0) -> 0 | P166: =IF(COUNT($H165:P165)=ROUNDUP('RFM input'!$W$7,0),SUM($G165:P165),0) -> 0 | Q166: =IF(COUNT($H165:Q165)=ROUNDUP('RFM input'!$W$7,0),SUM($G165:Q165),0) -> 0
B167: Total Return at End of Regulatory Period | I167: =IF(COUNT($H106:I106)='RFM input'!$W$7-0.5, SUM($G106:I106), 0) -> 0 | J167: =IF(COUNT($H106:J106)='RFM input'!$W$7-0.5, SUM($G106:J106), 0) -> 0 | K167: =IF(COUNT($H106:K106)='RFM input'!$W$7-0.5, SUM($G106:K106), 0) -> 0 | L167: =IF(COUNT($H106:L106)='RFM input'!$W$7-0.5, SUM($G106:L106), 0) -> -0.04966392719 | M167: =IF(COUNT($H106:M106)='RFM input'!$W$7-0.5, SUM($G106:M106), 0) -> 0 | N167: =IF(COUNT($H106:N106)='RFM input'!$W$7-0.5, SUM($G106:N106), 0) -> 0 | O167: =IF(COUNT($H106:O106)='RFM input'!$W$7-0.5, SUM($G106:O106), 0) -> 0 | P167: =IF(COUNT($H106:P106)='RFM input'!$W$7-0.5, SUM($G106:P106), 0) -> 0 | Q167: =IF(COUNT($H106:Q106)='RFM input'!$W$7-0.5, SUM($G106:Q106), 0) -> 0

Sheet RAB roll forward
C2: ='DMS input'!$C$16&" - Asset Roll Forward"&" - DNSP RFM - version "&Intro!$M$4 -> JEN - Asset Roll Forward - DNSP RFM - version 2
G3: 0 | H3: =G3+1 -> 1 | I3: 2 | J3: 3 | K3: 4 | L3: 5 | M3: 6 | N3: 7 | O3: 8 | P3: 9 | Q3: 10 | R3: 11
C4: Year | G4: ='RFM input'!G40 -> 2015 | H4: ='RFM input'!H40 -> 2016 | I4: ='RFM input'!I40 -> 2017 | J4: ='RFM input'!J40 -> 2018 | K4: ='RFM input'!K40 -> 2019 | L4: ='RFM input'!L40 -> 2020 | M4: ='RFM input'!M40 -> 2021 | N4: ='RFM input'!N40 -> 2022 | O4: ='RFM input'!O40 -> 2023 | P4: ='RFM input'!P40 -> 2024 | Q4: ='RFM input'!Q40 -> 2025 | R4: =IF(LEN(Q4)>4,CONCATENATE(LEFT(Q4, 4)+1 &"-" &IF(Q4>"2007-08",,"0") &RIGHT(Q4,2)+1),Q4+1) -> 2026
C6: ='RFM input'!F182 -> Lagged Actual CPI Inflation Rate | G6: ='RFM input'!G182 -> 0.02307692308 | H6: ='RFM input'!H182 -> 0.01510859301 | I6: ='RFM input'!I182 -> 0.01023255814 | J6: ='RFM input'!J182 -> 0.01933701657 | K6: ='RFM input'!K182 -> 0.02077687444 | L6: ='RFM input'!L182 -> 0.01592920354 | M6: ='RFM input'!M182 -> 0.01219512195 | N6: ='RFM input'!N182 -> 0 | O6: ='RFM input'!O182 -> 0 | P6: ='RFM input'!P182 -> 0 | Q6: ='RFM input'!Q182 -> 0
C7: Actual CPI (one year lagged) | G7: ='RFM input'!G183 -> 1 | H7: ='RFM input'!H183 -> 1.015108593 | I7: ='RFM input'!I183 -> 1.025495751 | J7: ='RFM input'!J183 -> 1.045325779 | K7: ='RFM input'!K183 -> 1.067044381 | L7: ='RFM input'!L183 -> 1.084041549 | M7: ='RFM input'!M183 -> 1.097261568 | N7: ='RFM input'!N183 -> 1.097261568 | O7: ='RFM input'!O183 -> 1.097261568 | P7: ='RFM input'!P183 -> 1.097261568 | Q7: ='RFM input'!Q183 -> 1.097261568
C9: ="Asset Values ($m Real "&G4&")" -> Asset Values ($m Real 2015)
C11: Real Actual Net Capex - As Incurred | H11: =SUM(H12:H41) -> 114.1637737 | I11: 131.3302419 | J11: 122.8756513 | K11: 93.93678659 | L11: 116.3540029 | M11: 56.12690681 | N11: 0 | O11: 0 | P11: 0 | Q11: 0
D12: =Asset1 -> Subtransmission | H12: ='RFM input'!H143*(1+vanilla1)^0.5 -> 11.92440149 | I12: ='RFM input'!I143*(1+vanilla2)^0.5 -> 23.02131254 | J12: ='RFM input'!J143*(1+vanilla3)^0.5 -> 43.71535087 | K12: ='RFM input'!K143*(1+vanilla4)^0.5 -> 29.95163524 | L12: ='RFM input'!L143*(1+vanilla5)^0.5 -> 23.29023307 | M12: ='RFM input'!M143*(1+vanilla6)^0.5 -> 11.65065945 | N12: ='RFM input'!N143*(1+vanilla7)^0.5 -> 0 | O12: ='RFM input'!O143*(1+vanilla8)^0.5 -> 0 | P12: ='RFM input'!P143*(1+vanilla9)^0.5 -> 0 | Q12: ='RFM input'!Q143*(1+vanilla10)^0.5 -> 0
D13: =Asset2 -> Distribution system assets | H13: ='RFM input'!H144*(1+vanilla1)^0.5 -> 77.8651416 | I13: ='RFM input'!I144*(1+vanilla2)^0.5 -> 58.78664046 | J13: ='RFM input'!J144*(1+vanilla3)^0.5 -> 54.82525677 | K13: ='RFM input'!K144*(1+vanilla4)^0.5 -> 39.66465223 | L13: ='RFM input'!L144*(1+vanilla5)^0.5 -> 63.60934272 | M13: ='RFM input'!M144*(1+vanilla6)^0.5 -> 30.76071848 | N13: ='RFM input'!N144*(1+vanilla7)^0.5 -> 0 | O13: ='RFM input'!O144*(1+vanilla8)^0.5 -> 0 | P13: ='RFM input'!P144*(1+vanilla9)^0.5 -> 0 | Q13: ='RFM input'!Q144*(1+vanilla10)^0.5 -> 0
D14: =Asset3 -> Metering | H14: ='RFM input'!H145*(1+vanilla1)^0.5 -> 0 | I14: ='RFM input'!I145*(1+vanilla2)^0.5 -> 0 | J14: ='RFM input'!J145*(1+vanilla3)^0.5 -> 0 | K14: ='RFM input'!K145*(1+vanilla4)^0.5 -> 0 | L14: ='RFM input'!L145*(1+vanilla5)^0.5 -> 0 | M14: ='RFM input'!M145*(1+vanilla6)^0.5 -> 0 | N14: ='RFM input'!N145*(1+vanilla7)^0.5 -> 0 | O14: ='RFM input'!O145*(1+vanilla8)^0.5 -> 0 | P14: ='RFM input'!P145*(1+vanilla9)^0.5 -> 0 | Q14: ='RFM input'!Q145*(1+vanilla10)^0.5 -> 0
D15: =Asset4 -> Public Lighting | H15: ='RFM input'!H146*(1+vanilla1)^0.5 -> 0 | I15: ='RFM input'!I146*(1+vanilla2)^0.5 -> 0 | J15: ='RFM input'!J146*(1+vanilla3)^0.5 -> 0 | K15: ='RFM input'!K146*(1+vanilla4)^0.5 -> 0 | L15: ='RFM input'!L146*(1+vanilla5)^0.5 -> 0 | M15: ='RFM input'!M146*(1+vanilla6)^0.5 -> 0 | N15: ='RFM input'!N146*(1+vanilla7)^0.5 -> 0 | O15: ='RFM input'!O146*(1+vanilla8)^0.5 -> 0 | P15: ='RFM input'!P146*(1+vanilla9)^0.5 -> 0 | Q15: ='RFM input'!Q146*(1+vanilla10)^0.5 -> 0
D16: =Asset5 -> SCADA/Network control | H16: ='RFM input'!H147*(1+vanilla1)^0.5 -> 0.144576563 | I16: ='RFM input'!I147*(1+vanilla2)^0.5 -> 2.817290825 | J16: ='RFM input'!J147*(1+vanilla3)^0.5 -> -0.01369441203 | K16: ='RFM input'!K147*(1+vanilla4)^0.5 -> 0 | L16: ='RFM input'!L147*(1+vanilla5)^0.5 -> 0.3946263291 | M16: ='RFM input'!M147*(1+vanilla6)^0.5 -> 0.2669845037 | N16: ='RFM input'!N147*(1+vanilla7)^0.5 -> 0 | O16: ='RFM input'!O147*(1+vanilla8)^0.5 -> 0 | P16: ='RFM input'!P147*(1+vanilla9)^0.5 -> 0 | Q16: ='RFM input'!Q147*(1+vanilla10)^0.5 -> 0
D17: =Asset6 -> Non network - IT | H17: ='RFM input'!H148*(1+vanilla1)^0.5 -> 14.40355577 | I17: ='RFM input'!I148*(1+vanilla2)^0.5 -> 30.81878699 | J17: ='RFM input'!J148*(1+vanilla3)^0.5 -> 20.98872341 | K17: ='RFM input'!K148*(1+vanilla4)^0.5 -> 20.90653086 | L17: ='RFM input'!L148*(1+vanilla5)^0.5 -> 21.90386761 | M17: ='RFM input'!M148*(1+vanilla6)^0.5 -> 12.5418524 | N17: ='RFM input'!N148*(1+vanilla7)^0.5 -> 0 | O17: ='RFM input'!O148*(1+vanilla8)^0.5 -> 0 | P17: ='RFM input'!P148*(1+vanilla9)^0.5 -> 0 | Q17: ='RFM input'!Q148*(1+vanilla10)^0.5 -> 0
D18: =Asset7 -> Non network - other | H18: ='RFM input'!H149*(1+vanilla1)^0.5 -> 4.390386011 | I18: ='RFM input'!I149*(1+vanilla2)^0.5 -> 15.88621112 | J18: ='RFM input'!J149*(1+vanilla3)^0.5 -> 3.360014614 | K18: ='RFM input'!K149*(1+vanilla4)^0.5 -> 3.41396826 | L18: ='RFM input'!L149*(1+vanilla5)^0.5 -> 7.135333003 | M18: ='RFM input'!M149*(1+vanilla6)^0.5 -> 0.3259059287 | N18: ='RFM input'!N149*(1+vanilla7)^0.5 -> 0 | O18: ='RFM input'!O149*(1+vanilla8)^0.5 -> 0 | P18: ='RFM input'!P149*(1+vanilla9)^0.5 -> 0 | Q18: ='RFM input'!Q149*(1+vanilla10)^0.5 -> 0
D19: =Asset8 -> Land | H19: ='RFM input'!H150*(1+vanilla1)^0.5 -> 0 | I19: ='RFM input'!I150*(1+vanilla2)^0.5 -> 0 | J19: ='RFM input'!J150*(1+vanilla3)^0.5 -> 0 | K19: ='RFM input'!K150*(1+vanilla4)^0.5 -> 0 | L19: ='RFM input'!L150*(1+vanilla5)^0.5 -> 0.02060017647 | M19: ='RFM input'!M150*(1+vanilla6)^0.5 -> 0.02959993649 | N19: ='RFM input'!N150*(1+vanilla7)^0.5 -> 0 | O19: ='RFM input'!O150*(1+vanilla8)^0.5 -> 0 | P19: ='RFM input'!P150*(1+vanilla9)^0.5 -> 0 | Q19: ='RFM input'!Q150*(1+vanilla10)^0.5 -> 0
D20: =Asset9 -> 0 | H20: ='RFM input'!H151*(1+vanilla1)^0.5 -> 0 | I20: ='RFM input'!I151*(1+vanilla2)^0.5 -> 0 | J20: ='RFM input'!J151*(1+vanilla3)^0.5 -> 0 | K20: ='RFM input'!K151*(1+vanilla4)^0.5 -> 0 | L20: ='RFM input'!L151*(1+vanilla5)^0.5 -> 0 | M20: ='RFM input'!M151*(1+vanilla6)^0.5 -> 0 | N20: ='RFM input'!N151*(1+vanilla7)^0.5 -> 0 | O20: ='RFM input'!O151*(1+vanilla8)^0.5 -> 0 | P20: ='RFM input'!P151*(1+vanilla9)^0.5 -> 0 | Q20: ='RFM input'!Q151*(1+vanilla10)^0.5 -> 0
D21: =Asset10 -> 0 | H21: ='RFM input'!H152*(1+vanilla1)^0.5 -> 0 | I21: ='RFM input'!I152*(1+vanilla2)^0.5 -> 0 | J21: ='RFM input'!J152*(1+vanilla3)^0.5 -> 0 | K21: ='RFM input'!K152*(1+vanilla4)^0.5 -> 0 | L21: ='RFM input'!L152*(1+vanilla5)^0.5 -> 0 | M21: ='RFM input'!M152*(1+vanilla6)^0.5 -> 0 | N21: ='RFM input'!N152*(1+vanilla7)^0.5 -> 0 | O21: ='RFM input'!O152*(1+vanilla8)^0.5 -> 0 | P21: ='RFM input'!P152*(1+vanilla9)^0.5 -> 0 | Q21: ='RFM input'!Q152*(1+vanilla10)^0.5 -> 0
D22: =Asset11 -> 0 | H22: ='RFM input'!H153*(1+vanilla1)^0.5 -> 0 | I22: ='RFM input'!I153*(1+vanilla2)^0.5 -> 0 | J22: ='RFM input'!J153*(1+vanilla3)^0.5 -> 0 | K22: ='RFM input'!K153*(1+vanilla4)^0.5 -> 0 | L22: ='RFM input'!L153*(1+vanilla5)^0.5 -> 0 | M22: ='RFM input'!M153*(1+vanilla6)^0.5 -> 0 | N22: ='RFM input'!N153*(1+vanilla7)^0.5 -> 0 | O22: ='RFM input'!O153*(1+vanilla8)^0.5 -> 0 | P22: ='RFM input'!P153*(1+vanilla9)^0.5 -> 0 | Q22: ='RFM input'!Q153*(1+vanilla10)^0.5 -> 0
D23: =Asset12 -> 0 | H23: ='RFM input'!H154*(1+vanilla1)^0.5 -> 0 | I23: ='RFM input'!I154*(1+vanilla2)^0.5 -> 0 | J23: ='RFM input'!J154*(1+vanilla3)^0.5 -> 0 | K23: ='RFM input'!K154*(1+vanilla4)^0.5 -> 0 | L23: ='RFM input'!L154*(1+vanilla5)^0.5 -> 0 | M23: ='RFM input'!M154*(1+vanilla6)^0.5 -> 0 | N23: ='RFM input'!N154*(1+vanilla7)^0.5 -> 0 | O23: ='RFM input'!O154*(1+vanilla8)^0.5 -> 0 | P23: ='RFM input'!P154*(1+vanilla9)^0.5 -> 0 | Q23: ='RFM input'!Q154*(1+vanilla10)^0.5 -> 0
D24: =Asset13 -> 0 | H24: ='RFM input'!H155*(1+vanilla1)^0.5 -> 0 | I24: ='RFM input'!I155*(1+vanilla2)^0.5 -> 0 | J24: ='RFM input'!J155*(1+vanilla3)^0.5 -> 0 | K24: ='RFM input'!K155*(1+vanilla4)^0.5 -> 0 | L24: ='RFM input'!L155*(1+vanilla5)^0.5 -> 0 | M24: ='RFM input'!M155*(1+vanilla6)^0.5 -> 0 | N24: ='RFM input'!N155*(1+vanilla7)^0.5 -> 0 | O24: ='RFM input'!O155*(1+vanilla8)^0.5 -> 0 | P24: ='RFM input'!P155*(1+vanilla9)^0.5 -> 0 | Q24: ='RFM input'!Q155*(1+vanilla10)^0.5 -> 0
D25: =Asset14 -> 0 | H25: ='RFM input'!H156*(1+vanilla1)^0.5 -> 0 | I25: ='RFM input'!I156*(1+vanilla2)^0.5 -> 0 | J25: ='RFM input'!J156*(1+vanilla3)^0.5 -> 0 | K25: ='RFM input'!K156*(1+vanilla4)^0.5 -> 0 | L25: ='RFM input'!L156*(1+vanilla5)^0.5 -> 0 | M25: ='RFM input'!M156*(1+vanilla6)^0.5 -> 0 | N25: ='RFM input'!N156*(1+vanilla7)^0.5 -> 0 | O25: ='RFM input'!O156*(1+vanilla8)^0.5 -> 0 | P25: ='RFM input'!P156*(1+vanilla9)^0.5 -> 0 | Q25: ='RFM input'!Q156*(1+vanilla10)^0.5 -> 0
D26: =Asset15 -> 0 | H26: ='RFM input'!H157*(1+vanilla1)^0.5 -> 0 | I26: ='RFM input'!I157*(1+vanilla2)^0.5 -> 0 | J26: ='RFM input'!J157*(1+vanilla3)^0.5 -> 0 | K26: ='RFM input'!K157*(1+vanilla4)^0.5 -> 0 | L26: ='RFM input'!L157*(1+vanilla5)^0.5 -> 0 | M26: ='RFM input'!M157*(1+vanilla6)^0.5 -> 0 | N26: ='RFM input'!N157*(1+vanilla7)^0.5 -> 0 | O26: ='RFM input'!O157*(1+vanilla8)^0.5 -> 0 | P26: ='RFM input'!P157*(1+vanilla9)^0.5 -> 0 | Q26: ='RFM input'!Q157*(1+vanilla10)^0.5 -> 0
D27: =Asset16 -> 0 | H27: ='RFM input'!H158*(1+vanilla1)^0.5 -> 0 | I27: ='RFM input'!I158*(1+vanilla2)^0.5 -> 0 | J27: ='RFM input'!J158*(1+vanilla3)^0.5 -> 0 | K27: ='RFM input'!K158*(1+vanilla4)^0.5 -> 0 | L27: ='RFM input'!L158*(1+vanilla5)^0.5 -> 0 | M27: ='RFM input'!M158*(1+vanilla6)^0.5 -> 0 | N27: ='RFM input'!N158*(1+vanilla7)^0.5 -> 0 | O27: ='RFM input'!O158*(1+vanilla8)^0.5 -> 0 | P27: ='RFM input'!P158*(1+vanilla9)^0.5 -> 0 | Q27: ='RFM input'!Q158*(1+vanilla10)^0.5 -> 0
D28: =Asset17 -> 0 | H28: ='RFM input'!H159*(1+vanilla1)^0.5 -> 0 | I28: ='RFM input'!I159*(1+vanilla2)^0.5 -> 0 | J28: ='RFM input'!J159*(1+vanilla3)^0.5 -> 0 | K28: ='RFM input'!K159*(1+vanilla4)^0.5 -> 0 | L28: ='RFM input'!L159*(1+vanilla5)^0.5 -> 0 | M28: ='RFM input'!M159*(1+vanilla6)^0.5 -> 0 | N28: ='RFM input'!N159*(1+vanilla7)^0.5 -> 0 | O28: ='RFM input'!O159*(1+vanilla8)^0.5 -> 0 | P28: ='RFM input'!P159*(1+vanilla9)^0.5 -> 0 | Q28: ='RFM input'!Q159*(1+vanilla10)^0.5 -> 0
D29: =Asset18 -> 0 | H29: ='RFM input'!H160*(1+vanilla1)^0.5 -> 0 | I29: ='RFM input'!I160*(1+vanilla2)^0.5 -> 0 | J29: ='RFM input'!J160*(1+vanilla3)^0.5 -> 0 | K29: ='RFM input'!K160*(1+vanilla4)^0.5 -> 0 | L29: ='RFM input'!L160*(1+vanilla5)^0.5 -> 0 | M29: ='RFM input'!M160*(1+vanilla6)^0.5 -> 0 | N29: ='RFM input'!N160*(1+vanilla7)^0.5 -> 0 | O29: ='RFM input'!O160*(1+vanilla8)^0.5 -> 0 | P29: ='RFM input'!P160*(1+vanilla9)^0.5 -> 0 | Q29: ='RFM input'!Q160*(1+vanilla10)^0.5 -> 0
D30: =Asset19 -> 0 | H30: ='RFM input'!H161*(1+vanilla1)^0.5 -> 0 | I30: ='RFM input'!I161*(1+vanilla2)^0.5 -> 0 | J30: ='RFM input'!J161*(1+vanilla3)^0.5 -> 0 | K30: ='RFM input'!K161*(1+vanilla4)^0.5 -> 0 | L30: ='RFM input'!L161*(1+vanilla5)^0.5 -> 0 | M30: ='RFM input'!M161*(1+vanilla6)^0.5 -> 0 | N30: ='RFM input'!N161*(1+vanilla7)^0.5 -> 0 | O30: ='RFM input'!O161*(1+vanilla8)^0.5 -> 0 | P30: ='RFM input'!P161*(1+vanilla9)^0.5 -> 0 | Q30: ='RFM input'!Q161*(1+vanilla10)^0.5 -> 0
D31: =Asset20 -> 0 | H31: ='RFM input'!H162*(1+vanilla1)^0.5 -> 0 | I31: ='RFM input'!I162*(1+vanilla2)^0.5 -> 0 | J31: ='RFM input'!J162*(1+vanilla3)^0.5 -> 0 | K31: ='RFM input'!K162*(1+vanilla4)^0.5 -> 0 | L31: ='RFM input'!L162*(1+vanilla5)^0.5 -> 0 | M31: ='RFM input'!M162*(1+vanilla6)^0.5 -> 0 | N31: ='RFM input'!N162*(1+vanilla7)^0.5 -> 0 | O31: ='RFM input'!O162*(1+vanilla8)^0.5 -> 0 | P31: ='RFM input'!P162*(1+vanilla9)^0.5 -> 0 | Q31: ='RFM input'!Q162*(1+vanilla10)^0.5 -> 0
D32: =Asset21 -> 0 | H32: ='RFM input'!H163*(1+vanilla1)^0.5 -> 0 | I32: ='RFM input'!I163*(1+vanilla2)^0.5 -> 0 | J32: ='RFM input'!J163*(1+vanilla3)^0.5 -> 0 | K32: ='RFM input'!K163*(1+vanilla4)^0.5 -> 0 | L32: ='RFM input'!L163*(1+vanilla5)^0.5 -> 0 | M32: ='RFM input'!M163*(1+vanilla6)^0.5 -> 0 | N32: ='RFM input'!N163*(1+vanilla7)^0.5 -> 0 | O32: ='RFM input'!O163*(1+vanilla8)^0.5 -> 0 | P32: ='RFM input'!P163*(1+vanilla9)^0.5 -> 0 | Q32: ='RFM input'!Q163*(1+vanilla10)^0.5 -> 0
D33: =Asset22 -> 0 | H33: ='RFM input'!H164*(1+vanilla1)^0.5 -> 0 | I33: ='RFM input'!I164*(1+vanilla2)^0.5 -> 0 | J33: ='RFM input'!J164*(1+vanilla3)^0.5 -> 0 | K33: ='RFM input'!K164*(1+vanilla4)^0.5 -> 0 | L33: ='RFM input'!L164*(1+vanilla5)^0.5 -> 0 | M33: ='RFM input'!M164*(1+vanilla6)^0.5 -> 0 | N33: ='RFM input'!N164*(1+vanilla7)^0.5 -> 0 | O33: ='RFM input'!O164*(1+vanilla8)^0.5 -> 0 | P33: ='RFM input'!P164*(1+vanilla9)^0.5 -> 0 | Q33: ='RFM input'!Q164*(1+vanilla10)^0.5 -> 0
D34: =Asset23 -> 0 | H34: ='RFM input'!H165*(1+vanilla1)^0.5 -> 0 | I34: ='RFM input'!I165*(1+vanilla2)^0.5 -> 0 | J34: ='RFM input'!J165*(1+vanilla3)^0.5 -> 0 | K34: ='RFM input'!K165*(1+vanilla4)^0.5 -> 0 | L34: ='RFM input'!L165*(1+vanilla5)^0.5 -> 0 | M34: ='RFM input'!M165*(1+vanilla6)^0.5 -> 0 | N34: ='RFM input'!N165*(1+vanilla7)^0.5 -> 0 | O34: ='RFM input'!O165*(1+vanilla8)^0.5 -> 0 | P34: ='RFM input'!P165*(1+vanilla9)^0.5 -> 0 | Q34: ='RFM input'!Q165*(1+vanilla10)^0.5 -> 0
D35: =Asset24 -> 0 | H35: ='RFM input'!H166*(1+vanilla1)^0.5 -> 0 | I35: ='RFM input'!I166*(1+vanilla2)^0.5 -> 0 | J35: ='RFM input'!J166*(1+vanilla3)^0.5 -> 0 | K35: ='RFM input'!K166*(1+vanilla4)^0.5 -> 0 | L35: ='RFM input'!L166*(1+vanilla5)^0.5 -> 0 | M35: ='RFM input'!M166*(1+vanilla6)^0.5 -> 0 | N35: ='RFM input'!N166*(1+vanilla7)^0.5 -> 0 | O35: ='RFM input'!O166*(1+vanilla8)^0.5 -> 0 | P35: ='RFM input'!P166*(1+vanilla9)^0.5 -> 0 | Q35: ='RFM input'!Q166*(1+vanilla10)^0.5 -> 0
D36: =Asset25 -> 0 | H36: ='RFM input'!H167*(1+vanilla1)^0.5 -> 0 | I36: ='RFM input'!I167*(1+vanilla2)^0.5 -> 0 | J36: ='RFM input'!J167*(1+vanilla3)^0.5 -> 0 | K36: ='RFM input'!K167*(1+vanilla4)^0.5 -> 0 | L36: ='RFM input'!L167*(1+vanilla5)^0.5 -> 0 | M36: ='RFM input'!M167*(1+vanilla6)^0.5 -> 0 | N36: ='RFM input'!N167*(1+vanilla7)^0.5 -> 0 | O36: ='RFM input'!O167*(1+vanilla8)^0.5 -> 0 | P36: ='RFM input'!P167*(1+vanilla9)^0.5 -> 0 | Q36: ='RFM input'!Q167*(1+vanilla10)^0.5 -> 0
D37: =Asset26 -> 0 | H37: ='RFM input'!H168*(1+vanilla1)^0.5 -> 0 | I37: ='RFM input'!I168*(1+vanilla2)^0.5 -> 0 | J37: ='RFM input'!J168*(1+vanilla3)^0.5 -> 0 | K37: ='RFM input'!K168*(1+vanilla4)^0.5 -> 0 | L37: ='RFM input'!L168*(1+vanilla5)^0.5 -> 0 | M37: ='RFM input'!M168*(1+vanilla6)^0.5 -> 0 | N37: ='RFM input'!N168*(1+vanilla7)^0.5 -> 0 | O37: ='RFM input'!O168*(1+vanilla8)^0.5 -> 0 | P37: ='RFM input'!P168*(1+vanilla9)^0.5 -> 0 | Q37: ='RFM input'!Q168*(1+vanilla10)^0.5 -> 0
D38: =Asset27 -> 0 | H38: ='RFM input'!H169*(1+vanilla1)^0.5 -> 0 | I38: ='RFM input'!I169*(1+vanilla2)^0.5 -> 0 | J38: ='RFM input'!J169*(1+vanilla3)^0.5 -> 0 | K38: ='RFM input'!K169*(1+vanilla4)^0.5 -> 0 | L38: ='RFM input'!L169*(1+vanilla5)^0.5 -> 0 | M38: ='RFM input'!M169*(1+vanilla6)^0.5 -> 0 | N38: ='RFM input'!N169*(1+vanilla7)^0.5 -> 0 | O38: ='RFM input'!O169*(1+vanilla8)^0.5 -> 0 | P38: ='RFM input'!P169*(1+vanilla9)^0.5 -> 0 | Q38: ='RFM input'!Q169*(1+vanilla10)^0.5 -> 0
D39: =Asset28 -> 0 | H39: ='RFM input'!H170*(1+vanilla1)^0.5 -> 0 | I39: ='RFM input'!I170*(1+vanilla2)^0.5 -> 0 | J39: ='RFM input'!J170*(1+vanilla3)^0.5 -> 0 | K39: ='RFM input'!K170*(1+vanilla4)^0.5 -> 0 | L39: ='RFM input'!L170*(1+vanilla5)^0.5 -> 0 | M39: ='RFM input'!M170*(1+vanilla6)^0.5 -> 0 | N39: ='RFM input'!N170*(1+vanilla7)^0.5 -> 0 | O39: ='RFM input'!O170*(1+vanilla8)^0.5 -> 0 | P39: ='RFM input'!P170*(1+vanilla9)^0.5 -> 0 | Q39: ='RFM input'!Q170*(1+vanilla10)^0.5 -> 0
D40: =Asset29 -> 0 | H40: ='RFM input'!H171*(1+vanilla1)^0.5 -> 0 | I40: ='RFM input'!I171*(1+vanilla2)^0.5 -> 0 | J40: ='RFM input'!J171*(1+vanilla3)^0.5 -> 0 | K40: ='RFM input'!K171*(1+vanilla4)^0.5 -> 0 | L40: ='RFM input'!L171*(1+vanilla5)^0.5 -> 0 | M40: ='RFM input'!M171*(1+vanilla6)^0.5 -> 0 | N40: ='RFM input'!N171*(1+vanilla7)^0.5 -> 0 | O40: ='RFM input'!O171*(1+vanilla8)^0.5 -> 0 | P40: ='RFM input'!P171*(1+vanilla9)^0.5 -> 0 | Q40: ='RFM input'!Q171*(1+vanilla10)^0.5 -> 0
D41: =Asset30 -> Equity raising costs | H41: ='RFM input'!H172*(1+vanilla1)^0.5 -> 5.435712251 | I41: ='RFM input'!I172*(1+vanilla2)^0.5 -> 0 | J41: ='RFM input'!J172*(1+vanilla3)^0.5 -> 0 | K41: ='RFM input'!K172*(1+vanilla4)^0.5 -> 0 | L41: ='RFM input'!L172*(1+vanilla5)^0.5 -> 0 | M41: ='RFM input'!M172*(1+vanilla6)^0.5 -> 0.5511861148 | N41: ='RFM input'!N172*(1+vanilla7)^0.5 -> 0 | O41: ='RFM input'!O172*(1+vanilla8)^0.5 -> 0 | P41: ='RFM input'!P172*(1+vanilla9)^0.5 -> 0 | Q41: ='RFM input'!Q172*(1+vanilla10)^0.5 -> 0
C43: ="Real "&'RFM input'!$H$194& " Straight-line Depreciation" -> Real Forecast Straight-line Depreciation | H43: =H56+H69+H82+H95+H108+H121+H134+H147+H160+H173+H186+H199+H212+H225+H238+H251+H264+H277+H290+H303+H316+H329+H342+H355+H368+H381+H394+H407+H420+H433 -> -81.19671369 | I43: =I56+I69+I82+I95+I108+I121+I134+I147+I160+I173+I186+I199+I212+I225+I238+I251+I264+I277+I290+I303+I316+I329+I342+I355+I368+I381+I394+I407+I420+I433 -> -71.1988648 | J43: -76.72786636 | K43: -81.29620554 | L43: -86.4058677 | M43: -35.32108571 | N43: 0 | O43: 0 | P43: 0 | Q43: 0
C44: =Asset1 -> Subtransmission | E44: Opening RAB | H44: =IF(H$3>A1remlife,A1value-SUM($G44:G44),IF(A1remlife="N/A","n/a",A1value/A1remlife)) -> n/a | I44: =IF(I$3>A1remlife,A1value-SUM($G44:H44),IF(A1remlife="N/A","n/a",A1value/A1remlife)) -> n/a | J44: =IF(J$3>A1remlife,A1value-SUM($G44:I44),IF(A1remlife="N/A","n/a",A1value/A1remlife)) -> n/a | K44: =IF(K$3>A1remlife,A1value-SUM($G44:J44),IF(A1remlife="N/A","n/a",A1value/A1remlife)) -> n/a | L44: =IF(L$3>A1remlife,A1value-SUM($G44:K44),IF(A1remlife="N/A","n/a",A1value/A1remlife)) -> n/a | M44: =IF(M$3>A1remlife,A1value-SUM($G44:L44),IF(A1remlife="N/A","n/a",A1value/A1remlife)) -> n/a | N44: =IF(N$3>A1remlife,A1value-SUM($G44:M44),IF(A1remlife="N/A","n/a",A1value/A1remlife)) -> n/a | O44: =IF(O$3>A1remlife,A1value-SUM($G44:N44),IF(A1remlife="N/A","n/a",A1value/A1remlife)) -> n/a | P44: =IF(P$3>A1remlife,A1value-SUM($G44:O44),IF(A1remlife="N/A","n/a",A1value/A1remlife)) -> n/a | Q44: =IF(Q$3>A1remlife,A1value-SUM($G44:P44),IF(A1remlife="N/A","n/a",A1value/A1remlife)) -> n/a
E45: Capex in year
F46: 1 | I46: =IF(A1stdlife="n/a","n/a",IF(I$3>(A1stdlife+$F46),('RFM input'!$H$143*(1+vanilla1)^0.5)-SUM($H46:H46),('RFM input'!$H$143*(1+vanilla1)^0.5)/A1stdlife)) -> 0.2234618187 | J46: =IF(A1stdlife="n/a","n/a",IF(J$3>(A1stdlife+$F46),('RFM input'!$H$143*(1+vanilla1)^0.5)-SUM($H46:I46),('RFM input'!$H$143*(1+vanilla1)^0.5)/A1stdlife)) -> 0.2234618187 | K46: =IF(A1stdlife="n/a","n/a",IF(K$3>(A1stdlife+$F46),('RFM input'!$H$143*(1+vanilla1)^0.5)-SUM($H46:J46),('RFM input'!$H$143*(1+vanilla1)^0.5)/A1stdlife)) -> 0.2234618187 | L46: =IF(A1stdlife="n/a","n/a",IF(L$3>(A1stdlife+$F46),('RFM input'!$H$143*(1+vanilla1)^0.5)-SUM($H46:K46),('RFM input'!$H$143*(1+vanilla1)^0.5)/A1stdlife)) -> 0.2234618187 | M46: =IF(A1stdlife="n/a","n/a",IF(M$3>(A1stdlife+$F46),('RFM input'!$H$143*(1+vanilla1)^0.5)-SUM($H46:L46),('RFM input'!$H$143*(1+vanilla1)^0.5)/A1stdlife)) -> 0.2234618187 | N46: =IF(A1stdlife="n/a","n/a",IF(N$3>(A1stdlife+$F46),('RFM input'!$H$143*(1+vanilla1)^0.5)-SUM($H46:M46),('RFM input'!$H$143*(1+vanilla1)^0.5)/A1stdlife)) -> 0.2234618187 | O46: =IF(A1stdlife="n/a","n/a",IF(O$3>(A1stdlife+$F46),('RFM input'!$H$143*(1+vanilla1)^0.5)-SUM($H46:N46),('RFM input'!$H$143*(1+vanilla1)^0.5)/A1stdlife)) -> 0.2234618187 | P46: =IF(A1stdlife="n/a","n/a",IF(P$3>(A1stdlife+$F46),('RFM input'!$H$143*(1+vanilla1)^0.5)-SUM($H46:O46),('RFM input'!$H$143*(1+vanilla1)^0.5)/A1stdlife)) -> 0.2234618187 | Q46: =IF(A1stdlife="n/a","n/a",IF(Q$3>(A1stdlife+$F46),('RFM input'!$H$143*(1+vanilla1)^0.5)-SUM($H46:P46),('RFM input'!$H$143*(1+vanilla1)^0.5)/A1stdlife)) -> 0.2234618187
F47: 2 | J47: =IF(A1stdlife="n/a","n/a",IF(J$3>(A1stdlife+$F47),('RFM input'!$I$143*(1+vanilla2)^0.5)-SUM($I47:I47),('RFM input'!$I$143*(1+vanilla2)^0.5)/A1stdlife)) -> 0.4314165681 | K47: =IF(A1stdlife="n/a","n/a",IF(K$3>(A1stdlife+$F47),('RFM input'!$I$143*(1+vanilla2)^0.5)-SUM($I47:J47),('RFM input'!$I$143*(1+vanilla2)^0.5)/A1stdlife)) -> 0.4314165681 | L47: =IF(A1stdlife="n/a","n/a",IF(L$3>(A1stdlife+$F47),('RFM input'!$I$143*(1+vanilla2)^0.5)-SUM($I47:K47),('RFM input'!$I$143*(1+vanilla2)^0.5)/A1stdlife)) -> 0.4314165681 | M47: =IF(A1stdlife="n/a","n/a",IF(M$3>(A1stdlife+$F47),('RFM input'!$I$143*(1+vanilla2)^0.5)-SUM($I47:L47),('RFM input'!$I$143*(1+vanilla2)^0.5)/A1stdlife)) -> 0.4314165681 | N47: =IF(A1stdlife="n/a","n/a",IF(N$3>(A1stdlife+$F47),('RFM input'!$I$143*(1+vanilla2)^0.5)-SUM($I47:M47),('RFM input'!$I$143*(1+vanilla2)^0.5)/A1stdlife)) -> 0.4314165681 | O47: =IF(A1stdlife="n/a","n/a",IF(O$3>(A1stdlife+$F47),('RFM input'!$I$143*(1+vanilla2)^0.5)-SUM($I47:N47),('RFM input'!$I$143*(1+vanilla2)^0.5)/A1stdlife)) -> 0.4314165681 | P47: =IF(A1stdlife="n/a","n/a",IF(P$3>(A1stdlife+$F47),('RFM input'!$I$143*(1+vanilla2)^0.5)-SUM($I47:O47),('RFM input'!$I$143*(1+vanilla2)^0.5)/A1stdlife)) -> 0.4314165681 | Q47: =IF(A1stdlife="n/a","n/a",IF(Q$3>(A1stdlife+$F47),('RFM input'!$I$143*(1+vanilla2)^0.5)-SUM($I47:P47),('RFM input'!$I$143*(1+vanilla2)^0.5)/A1stdlife)) -> 0.4314165681
F48: 3 | K48: =IF(A1stdlife="n/a","n/a",IF(K$3>(A1stdlife+$F48),('RFM input'!$J$143*(1+vanilla3)^0.5)-SUM($J48:J48),('RFM input'!$J$143*(1+vanilla3)^0.5)/A1stdlife)) -> 0.8192203035 | L48: =IF(A1stdlife="n/a","n/a",IF(L$3>(A1stdlife+$F48),('RFM input'!$J$143*(1+vanilla3)^0.5)-SUM($J48:K48),('RFM input'!$J$143*(1+vanilla3)^0.5)/A1stdlife)) -> 0.8192203035 | M48: =IF(A1stdlife="n/a","n/a",IF(M$3>(A1stdlife+$F48),('RFM input'!$J$143*(1+vanilla3)^0.5)-SUM($J48:L48),('RFM input'!$J$143*(1+vanilla3)^0.5)/A1stdlife)) -> 0.8192203035 | N48: =IF(A1stdlife="n/a","n/a",IF(N$3>(A1stdlife+$F48),('RFM input'!$J$143*(1+vanilla3)^0.5)-SUM($J48:M48),('RFM input'!$J$143*(1+vanilla3)^0.5)/A1stdlife)) -> 0.8192203035 | O48: =IF(A1stdlife="n/a","n/a",IF(O$3>(A1stdlife+$F48),('RFM input'!$J$143*(1+vanilla3)^0.5)-SUM($J48:N48),('RFM input'!$J$143*(1+vanilla3)^0.5)/A1stdlife)) -> 0.8192203035 | P48: =IF(A1stdlife="n/a","n/a",IF(P$3>(A1stdlife+$F48),('RFM input'!$J$143*(1+vanilla3)^0.5)-SUM($J48:O48),('RFM input'!$J$143*(1+vanilla3)^0.5)/A1stdlife)) -> 0.8192203035 | Q48: =IF(A1stdlife="n/a","n/a",IF(Q$3>(A1stdlife+$F48),('RFM input'!$J$143*(1+vanilla3)^0.5)-SUM($J48:P48),('RFM input'!$J$143*(1+vanilla3)^0.5)/A1stdlife)) -> 0.8192203035
F49: 4 | L49: =IF(A1stdlife="n/a","n/a",IF(L$3>(A1stdlife+$F49),('RFM input'!$K$143*(1+vanilla4)^0.5)-SUM($K49:K49),('RFM input'!$K$143*(1+vanilla4)^0.5)/A1stdlife)) -> 0.5612899639 | M49: =IF(A1stdlife="n/a","n/a",IF(M$3>(A1stdlife+$F49),('RFM input'!$K$143*(1+vanilla4)^0.5)-SUM($K49:L49),('RFM input'!$K$143*(1+vanilla4)^0.5)/A1stdlife)) -> 0.5612899639 | N49: =IF(A1stdlife="n/a","n/a",IF(N$3>(A1stdlife+$F49),('RFM input'!$K$143*(1+vanilla4)^0.5)-SUM($K49:M49),('RFM input'!$K$143*(1+vanilla4)^0.5)/A1stdlife)) -> 0.5612899639 | O49: =IF(A1stdlife="n/a","n/a",IF(O$3>(A1stdlife+$F49),('RFM input'!$K$143*(1+vanilla4)^0.5)-SUM($K49:N49),('RFM input'!$K$143*(1+vanilla4)^0.5)/A1stdlife)) -> 0.5612899639 | P49: =IF(A1stdlife="n/a","n/a",IF(P$3>(A1stdlife+$F49),('RFM input'!$K$143*(1+vanilla4)^0.5)-SUM($K49:O49),('RFM input'!$K$143*(1+vanilla4)^0.5)/A1stdlife)) -> 0.5612899639 | Q49: =IF(A1stdlife="n/a","n/a",IF(Q$3>(A1stdlife+$F49),('RFM input'!$K$143*(1+vanilla4)^0.5)-SUM($K49:P49),('RFM input'!$K$143*(1+vanilla4)^0.5)/A1stdlife)) -> 0.5612899639
F50: 5 | M50: =IF(A1stdlife="n/a","n/a",IF(M$3>(A1stdlife+$F50),('RFM input'!$L$143*(1+vanilla5)^0.5)-SUM($L50:L50),('RFM input'!$L$143*(1+vanilla5)^0.5)/A1stdlife)) -> 0.4364561057 | N50: =IF(A1stdlife="n/a","n/a",IF(N$3>(A1stdlife+$F50),('RFM input'!$L$143*(1+vanilla5)^0.5)-SUM($L50:M50),('RFM input'!$L$143*(1+vanilla5)^0.5)/A1stdlife)) -> 0.4364561057 | O50: =IF(A1stdlife="n/a","n/a",IF(O$3>(A1stdlife+$F50),('RFM input'!$L$143*(1+vanilla5)^0.5)-SUM($L50:N50),('RFM input'!$L$143*(1+vanilla5)^0.5)/A1stdlife)) -> 0.4364561057 | P50: =IF(A1stdlife="n/a","n/a",IF(P$3>(A1stdlife+$F50),('RFM input'!$L$143*(1+vanilla5)^0.5)-SUM($L50:O50),('RFM input'!$L$143*(1+vanilla5)^0.5)/A1stdlife)) -> 0.4364561057 | Q50: =IF(A1stdlife="n/a","n/a",IF(Q$3>(A1stdlife+$F50),('RFM input'!$L$143*(1+vanilla5)^0.5)-SUM($L50:P50),('RFM input'!$L$143*(1+vanilla5)^0.5)/A1stdlife)) -> 0.4364561057
F51: 6 | N51: =IF(A1stdlife="n/a","n/a",IF(N$3>(A1stdlife+$F51),('RFM input'!$M$143*(1+vanilla6)^0.5)-SUM($M51:M51),('RFM input'!$M$143*(1+vanilla6)^0.5)/A1stdlife)) -> 0.2183319264 | O51: =IF(A1stdlife="n/a","n/a",IF(O$3>(A1stdlife+$F51),('RFM input'!$M$143*(1+vanilla6)^0.5)-SUM($M51:N51),('RFM input'!$M$143*(1+vanilla6)^0.5)/A1stdlife)) -> 0.2183319264 | P51: =IF(A1stdlife="n/a","n/a",IF(P$3>(A1stdlife+$F51),('RFM input'!$M$143*(1+vanilla6)^0.5)-SUM($M51:O51),('RFM input'!$M$143*(1+vanilla6)^0.5)/A1stdlife)) -> 0.2183319264 | Q51: =IF(A1stdlife="n/a","n/a",IF(Q$3>(A1stdlife+$F51),('RFM input'!$M$143*(1+vanilla6)^0.5)-SUM($M51:P51),('RFM input'!$M$143*(1+vanilla6)^0.5)/A1stdlife)) -> 0.2183319264
F52: 7 | O52: =IF(A1stdlife="n/a","n/a",IF(O$3>(A1stdlife+$F52),('RFM input'!$N$143*(1+vanilla7)^0.5)-SUM($N52:N52),('RFM input'!$N$143*(1+vanilla7)^0.5)/A1stdlife)) -> 0 | P52: =IF(A1stdlife="n/a","n/a",IF(P$3>(A1stdlife+$F52),('RFM input'!$N$143*(1+vanilla7)^0.5)-SUM($N52:O52),('RFM input'!$N$143*(1+vanilla7)^0.5)/A1stdlife)) -> 0 | Q52: =IF(A1stdlife="n/a","n/a",IF(Q$3>(A1stdlife+$F52),('RFM input'!$N$143*(1+vanilla7)^0.5)-SUM($N52:P52),('RFM input'!$N$143*(1+vanilla7)^0.5)/A1stdlife)) -> 0
F53: 8 | P53: =IF(A1stdlife="n/a","n/a",IF(P$3>(A1stdlife+$F53),('RFM input'!$O$143*(1+vanilla8)^0.5)-SUM($O53:O53),('RFM input'!$O$143*(1+vanilla8)^0.5)/A1stdlife)) -> 0 | Q53: =IF(A1stdlife="n/a","n/a",IF(Q$3>(A1stdlife+$F53),('RFM input'!$O$143*(1+vanilla8)^0.5)-SUM($O53:P53),('RFM input'!$O$143*(1+vanilla8)^0.5)/A1stdlife)) -> 0
F54: 9 | Q54: =IF(A1stdlife="n/a","n/a",IF(Q$3>(A1stdlife+$F54),('RFM input'!$P$143*(1+vanilla9)^0.5)-SUM($P54:P54),('RFM input'!$P$143*(1+vanilla9)^0.5)/A1stdlife)) -> 0
F55: 10
D56: =Asset1 -> Subtransmission | H56: =IF('RFM input'!$F$193='RFM input'!$H$192,-'RFM input'!H198,-SUM(H44:H55)) -> -7.984617056 | I56: =IF('RFM input'!$F$193='RFM input'!$H$192,-'RFM input'!I198,-SUM(I44:I55)) -> -8.246334172 | J56: =IF(COUNT($H56:I56)>='RFM input'!$W$7,0,IF('RFM input'!$F$193='RFM input'!$H$192,-'RFM input'!J198,-SUM(J44:J55))) -> -9.098343461 | K56: =IF(COUNT($H56:J56)>='RFM input'!$W$7,0,IF('RFM input'!$F$193='RFM input'!$H$192,-'RFM input'!K198,-SUM(K44:K55))) -> -9.84415199 | L56: =IF(COUNT($H56:K56)>='RFM input'!$W$7,0,IF('RFM input'!$F$193='RFM input'!$H$192,-'RFM input'!L198,-SUM(L44:L55))) -> -10.3121943 | M56: =IF(COUNT($H56:L56)>='RFM input'!$W$7,0,IF('RFM input'!$F$193='RFM input'!$H$192,-'RFM input'!M198,-SUM(M44:M55))) -> -5.207849646 | N56: =IF(COUNT($H56:M56)>='RFM input'!$W$7,0,IF('RFM input'!$F$193='RFM input'!$H$192,-'RFM input'!N198,-SUM(N44:N55))) -> 0 | O56: =IF(COUNT($H56:N56)>='RFM input'!$W$7,0,IF('RFM input'!$F$193='RFM input'!$H$192,-'RFM input'!O198,-SUM(O44:O55))) -> 0 | P56: =IF(COUNT($H56:O56)>='RFM input'!$W$7,0,IF('RFM input'!$F$193='RFM input'!$H$192,-'RFM input'!P198,-SUM(P44:P55))) -> 0 | Q56: =IF(COUNT($H56:P56)>='RFM input'!$W$7,0,IF('RFM input'!$F$193='RFM input'!$H$192,-'RFM input'!Q198,-SUM(Q44:Q55))) -> 0
C57: =Asset2 -> Distribution system assets | E57: Opening RAB | H57: =IF(H$3>A2remlife,A2value-SUM($G57:G57),IF(A2remlife="N/A","n/a",A2value/A2remlife)) -> n/a | I57: =IF(I$3>A2remlife,A2value-SUM($G57:H57),IF(A2remlife="N/A","n/a",A2value/A2remlife)) -> n/a | J57: =IF(J$3>A2remlife,A2value-SUM($G57:I57),IF(A2remlife="N/A","n/a",A2value/A2remlife)) -> n/a | K57: =IF(K$3>A2remlife,A2value-SUM($G57:J57),IF(A2remlife="N/A","n/a",A2value/A2remlife)) -> n/a | L57: =IF(L$3>A2remlife,A2value-SUM($G57:K57),IF(A2remlife="N/A","n/a",A2value/A2remlife)) -> n/a | M57: =IF(M$3>A2remlife,A2value-SUM($G57:L57),IF(A2remlife="N/A","n/a",A2value/A2remlife)) -> n/a | N57: =IF(N$3>A2remlife,A2value-SUM($G57:M57),IF(A2remlife="N/A","n/a",A2value/A2remlife)) -> n/a | O57: =IF(O$3>A2remlife,A2value-SUM($G57:N57),IF(A2remlife="N/A","n/a",A2value/A2remlife)) -> n/a | P57: =IF(P$3>A2remlife,A2value-SUM($G57:O57),IF(A2remlife="N/A","n/a",A2value/A2remlife)) -> n/a | Q57: =IF(Q$3>A2remlife,A2value-SUM($G57:P57),IF(A2remlife="N/A","n/a",A2value/A2remlife)) -> n/a
E58: Capex in year
F59: 1 | I59: =IF(A2stdlife="n/a","n/a",IF(I$3>(A2stdlife+$F59),('RFM input'!$H$144*(1+vanilla1)^0.5)-SUM($H59:H59),('RFM input'!$H$144*(1+vanilla1)^0.5)/A2stdlife)) -> 1.574050999 | J59: =IF(A2stdlife="n/a","n/a",IF(J$3>(A2stdlife+$F59),('RFM input'!$H$144*(1+vanilla1)^0.5)-SUM($H59:I59),('RFM input'!$H$144*(1+vanilla1)^0.5)/A2stdlife)) -> 1.574050999 | K59: =IF(A2stdlife="n/a","n/a",IF(K$3>(A2stdlife+$F59),('RFM input'!$H$144*(1+vanilla1)^0.5)-SUM($H59:J59),('RFM input'!$H$144*(1+vanilla1)^0.5)/A2stdlife)) -> 1.574050999 | L59: =IF(A2stdlife="n/a","n/a",IF(L$3>(A2stdlife+$F59),('RFM input'!$H$144*(1+vanilla1)^0.5)-SUM($H59:K59),('RFM input'!$H$144*(1+vanilla1)^0.5)/A2stdlife)) -> 1.574050999 | M59: =IF(A2stdlife="n/a","n/a",IF(M$3>(A2stdlife+$F59),('RFM input'!$H$144*(1+vanilla1)^0.5)-SUM($H59:L59),('RFM input'!$H$144*(1+vanilla1)^0.5)/A2stdlife)) -> 1.574050999 | N59: =IF(A2stdlife="n/a","n/a",IF(N$3>(A2stdlife+$F59),('RFM input'!$H$144*(1+vanilla1)^0.5)-SUM($H59:M59),('RFM input'!$H$144*(1+vanilla1)^0.5)/A2stdlife)) -> 1.574050999 | O59: =IF(A2stdlife="n/a","n/a",IF(O$3>(A2stdlife+$F59),('RFM input'!$H$144*(1+vanilla1)^0.5)-SUM($H59:N59),('RFM input'!$H$144*(1+vanilla1)^0.5)/A2stdlife)) -> 1.574050999 | P59: =IF(A2stdlife="n/a","n/a",IF(P$3>(A2stdlife+$F59),('RFM input'!$H$144*(1+vanilla1)^0.5)-SUM($H59:O59),('RFM input'!$H$144*(1+vanilla1)^0.5)/A2stdlife)) -> 1.574050999 | Q59: =IF(A2stdlife="n/a","n/a",IF(Q$3>(A2stdlife+$F59),('RFM input'!$H$144*(1+vanilla1)^0.5)-SUM($H59:P59),('RFM input'!$H$144*(1+vanilla1)^0.5)/A2stdlife)) -> 1.574050999
F60: 2 | J60: =IF(A2stdlife="n/a","n/a",IF(J$3>(A2stdlife+$F60),('RFM input'!$I$144*(1+vanilla2)^0.5)-SUM($I60:I60),('RFM input'!$I$144*(1+vanilla2)^0.5)/A2stdlife)) -> 1.188377344 | K60: =IF(A2stdlife="n/a","n/a",IF(K$3>(A2stdlife+$F60),('RFM input'!$I$144*(1+vanilla2)^0.5)-SUM($I60:J60),('RFM input'!$I$144*(1+vanilla2)^0.5)/A2stdlife)) -> 1.188377344 | L60: =IF(A2stdlife="n/a","n/a",IF(L$3>(A2stdlife+$F60),('RFM input'!$I$144*(1+vanilla2)^0.5)-SUM($I60:K60),('RFM input'!$I$144*(1+vanilla2)^0.5)/A2stdlife)) -> 1.188377344 | M60: =IF(A2stdlife="n/a","n/a",IF(M$3>(A2stdlife+$F60),('RFM input'!$I$144*(1+vanilla2)^0.5)-SUM($I60:L60),('RFM input'!$I$144*(1+vanilla2)^0.5)/A2stdlife)) -> 1.188377344 | N60: =IF(A2stdlife="n/a","n/a",IF(N$3>(A2stdlife+$F60),('RFM input'!$I$144*(1+vanilla2)^0.5)-SUM($I60:M60),('RFM input'!$I$144*(1+vanilla2)^0.5)/A2stdlife)) -> 1.188377344 | O60: =IF(A2stdlife="n/a","n/a",IF(O$3>(A2stdlife+$F60),('RFM input'!$I$144*(1+vanilla2)^0.5)-SUM($I60:N60),('RFM input'!$I$144*(1+vanilla2)^0.5)/A2stdlife)) -> 1.188377344 | P60: =IF(A2stdlife="n/a","n/a",IF(P$3>(A2stdlife+$F60),('RFM input'!$I$144*(1+vanilla2)^0.5)-SUM($I60:O60),('RFM input'!$I$144*(1+vanilla2)^0.5)/A2stdlife)) -> 1.188377344 | Q60: =IF(A2stdlife="n/a","n/a",IF(Q$3>(A2stdlife+$F60),('RFM input'!$I$144*(1+vanilla2)^0.5)-SUM($I60:P60),('RFM input'!$I$144*(1+vanilla2)^0.5)/A2stdlife)) -> 1.188377344
F61: 3 | K61: =IF(A2stdlife="n/a","n/a",IF(K$3>(A2stdlife+$F61),('RFM input'!$J$144*(1+vanilla3)^0.5)-SUM($J61:J61),('RFM input'!$J$144*(1+vanilla3)^0.5)/A2stdlife)) -> 1.108297608 | L61: =IF(A2stdlife="n/a","n/a",IF(L$3>(A2stdlife+$F61),('RFM input'!$J$144*(1+vanilla3)^0.5)-SUM($J61:K61),('RFM input'!$J$144*(1+vanilla3)^0.5)/A2stdlife)) -> 1.108297608 | M61: =IF(A2stdlife="n/a","n/a",IF(M$3>(A2stdlife+$F61),('RFM input'!$J$144*(1+vanilla3)^0.5)-SUM($J61:L61),('RFM input'!$J$144*(1+vanilla3)^0.5)/A2stdlife)) -> 1.108297608 | N61: =IF(A2stdlife="n/a","n/a",IF(N$3>(A2stdlife+$F61),('RFM input'!$J$144*(1+vanilla3)^0.5)-SUM($J61:M61),('RFM input'!$J$144*(1+vanilla3)^0.5)/A2stdlife)) -> 1.108297608 | O61: =IF(A2stdlife="n/a","n/a",IF(O$3>(A2stdlife+$F61),('RFM input'!$J$144*(1+vanilla3)^0.5)-SUM($J61:N61),('RFM input'!$J$144*(1+vanilla3)^0.5)/A2stdlife)) -> 1.108297608 | P61: =IF(A2stdlife="n/a","n/a",IF(P$3>(A2stdlife+$F61),('RFM input'!$J$144*(1+vanilla3)^0.5)-SUM($J61:O61),('RFM input'!$J$144*(1+vanilla3)^0.5)/A2stdlife)) -> 1.108297608 | Q61: =IF(A2stdlife="n/a","n/a",IF(Q$3>(A2stdlife+$F61),('RFM input'!$J$144*(1+vanilla3)^0.5)-SUM($J61:P61),('RFM input'!$J$144*(1+vanilla3)^0.5)/A2stdlife)) -> 1.108297608
F62: 4 | L62: =IF(A2stdlife="n/a","n/a",IF(L$3>(A2stdlife+$F62),('RFM input'!$K$144*(1+vanilla4)^0.5)-SUM($K62:K62),('RFM input'!$K$144*(1+vanilla4)^0.5)/A2stdlife)) -> 0.801824593 | M62: =IF(A2stdlife="n/a","n/a",IF(M$3>(A2stdlife+$F62),('RFM input'!$K$144*(1+vanilla4)^0.5)-SUM($K62:L62),('RFM input'!$K$144*(1+vanilla4)^0.5)/A2stdlife)) -> 0.801824593 | N62: =IF(A2stdlife="n/a","n/a",IF(N$3>(A2stdlife+$F62),('RFM input'!$K$144*(1+vanilla4)^0.5)-SUM($K62:M62),('RFM input'!$K$144*(1+vanilla4)^0.5)/A2stdlife)) -> 0.801824593 | O62: =IF(A2stdlife="n/a","n/a",IF(O$3>(A2stdlife+$F62),('RFM input'!$K$144*(1+vanilla4)^0.5)-SUM($K62:N62),('RFM input'!$K$144*(1+vanilla4)^0.5)/A2stdlife)) -> 0.801824593 | P62: =IF(A2stdlife="n/a","n/a",IF(P$3>(A2stdlife+$F62),('RFM input'!$K$144*(1+vanilla4)^0.5)-SUM($K62:O62),('RFM input'!$K$144*(1+vanilla4)^0.5)/A2stdlife)) -> 0.801824593 | Q62: =IF(A2stdlife="n/a","n/a",IF(Q$3>(A2stdlife+$F62),('RFM input'!$K$144*(1+vanilla4)^0.5)-SUM($K62:P62),('RFM input'!$K$144*(1+vanilla4)^0.5)/A2stdlife)) -> 0.801824593
F63: 5 | M63: =IF(A2stdlife="n/a","n/a",IF(M$3>(A2stdlife+$F63),('RFM input'!$L$144*(1+vanilla5)^0.5)-SUM($L63:L63),('RFM input'!$L$144*(1+vanilla5)^0.5)/A2stdlife)) -> 1.285868714 | N63: =IF(A2stdlife="n/a","n/a",IF(N$3>(A2stdlife+$F63),('RFM input'!$L$144*(1+vanilla5)^0.5)-SUM($L63:M63),('RFM input'!$L$144*(1+vanilla5)^0.5)/A2stdlife)) -> 1.285868714 | O63: =IF(A2stdlife="n/a","n/a",IF(O$3>(A2stdlife+$F63),('RFM input'!$L$144*(1+vanilla5)^0.5)-SUM($L63:N63),('RFM input'!$L$144*(1+vanilla5)^0.5)/A2stdlife)) -> 1.285868714 | P63: =IF(A2stdlife="n/a","n/a",IF(P$3>(A2stdlife+$F63),('RFM input'!$L$144*(1+vanilla5)^0.5)-SUM($L63:O63),('RFM input'!$L$144*(1+vanilla5)^0.5)/A2stdlife)) -> 1.285868714 | Q63: =IF(A2stdlife="n/a","n/a",IF(Q$3>(A2stdlife+$F63),('RFM input'!$L$144*(1+vanilla5)^0.5)-SUM($L63:P63),('RFM input'!$L$144*(1+vanilla5)^0.5)/A2stdlife)) -> 1.285868714
F64: 6 | N64: =IF(A2stdlife="n/a","n/a",IF(N$3>(A2stdlife+$F64),('RFM input'!$M$144*(1+vanilla6)^0.5)-SUM($M64:M64),('RFM input'!$M$144*(1+vanilla6)^0.5)/A2stdlife)) -> 0.6218307533 | O64: =IF(A2stdlife="n/a","n/a",IF(O$3>(A2stdlife+$F64),('RFM input'!$M$144*(1+vanilla6)^0.5)-SUM($M64:N64),('RFM input'!$M$144*(1+vanilla6)^0.5)/A2stdlife)) -> 0.6218307533 | P64: =IF(A2stdlife="n/a","n/a",IF(P$3>(A2stdlife+$F64),('RFM input'!$M$144*(1+vanilla6)^0.5)-SUM($M64:O64),('RFM input'!$M$144*(1+vanilla6)^0.5)/A2stdlife)) -> 0.6218307533 | Q64: =IF(A2stdlife="n/a","n/a",IF(Q$3>(A2stdlife+$F64),('RFM input'!$M$144*(1+vanilla6)^0.5)-SUM($M64:P64),('RFM input'!$M$144*(1+vanilla6)^0.5)/A2stdlife)) -> 0.6218307533
F65: 7 | O65: =IF(A2stdlife="n/a","n/a",IF(O$3>(A2stdlife+$F65),('RFM input'!$N$144*(1+vanilla7)^0.5)-SUM($N65:N65),('RFM input'!$N$144*(1+vanilla7)^0.5)/A2stdlife)) -> 0 | P65: =IF(A2stdlife="n/a","n/a",IF(P$3>(A2stdlife+$F65),('RFM input'!$N$144*(1+vanilla7)^0.5)-SUM($N65:O65),('RFM input'!$N$144*(1+vanilla7)^0.5)/A2stdlife)) -> 0 | Q65: =IF(A2stdlife="n/a","n/a",IF(Q$3>(A2stdlife+$F65),('RFM input'!$N$144*(1+vanilla7)^0.5)-SUM($N65:P65),('RFM input'!$N$144*(1+vanilla7)^0.5)/A2stdlife)) -> 0
F66: 8 | P66: =IF(A2stdlife="n/a","n/a",IF(P$3>(A2stdlife+$F66),('RFM input'!$O$144*(1+vanilla8)^0.5)-SUM($O66:O66),('RFM input'!$O$144*(1+vanilla8)^0.5)/A2stdlife)) -> 0 | Q66: =IF(A2stdlife="n/a","n/a",IF(Q$3>(A2stdlife+$F66),('RFM input'!$O$144*(1+vanilla8)^0.5)-SUM($O66:P66),('RFM input'!$O$144*(1+vanilla8)^0.5)/A2stdlife)) -> 0
F67: 9 | Q67: =IF(A2stdlife="n/a","n/a",IF(Q$3>(A2stdlife+$F67),('RFM input'!$P$144*(1+vanilla9)^0.5)-SUM($P67:P67),('RFM input'!$P$144*(1+vanilla9)^0.5)/A2stdlife)) -> 0
F68: 10
D69: =Asset2 -> Distribution system assets | H69: =IF('RFM input'!$F$193='RFM input'!$H$192,-'RFM input'!H199,-SUM(H57:H68)) -> -34.56503454 | I69: =IF('RFM input'!$F$193='RFM input'!$H$192,-'RFM input'!I199,-SUM(I57:I68)) -> -35.92867683 | J69: =IF(COUNT($H69:I69)>='RFM input'!$W$7,0,IF('RFM input'!$F$193='RFM input'!$H$192,-'RFM input'!J199,-SUM(J57:J68))) -> -37.46287381 | K69: =IF(COUNT($H69:J69)>='RFM input'!$W$7,0,IF('RFM input'!$F$193='RFM input'!$H$192,-'RFM input'!K199,-SUM(K57:K68))) -> -38.96830928 | L69: =IF(COUNT($H69:K69)>='RFM input'!$W$7,0,IF('RFM input'!$F$193='RFM input'!$H$192,-'RFM input'!L199,-SUM(L57:L68))) -> -40.58592058 | M69: =IF(COUNT($H69:L69)>='RFM input'!$W$7,0,IF('RFM input'!$F$193='RFM input'!$H$192,-'RFM input'!M199,-SUM(M57:M68))) -> -20.22166859 | N69: =IF(COUNT($H69:M69)>='RFM input'!$W$7,0,IF('RFM input'!$F$193='RFM input'!$H$192,-'RFM input'!N199,-SUM(N57:N68))) -> 0 | O69: =IF(COUNT($H69:N69)>='RFM input'!$W$7,0,IF('RFM input'!$F$193='RFM input'!$H$192,-'RFM input'!O199,-SUM(O57:O68))) -> 0 | P69: =IF(COUNT($H69:O69)>='RFM input'!$W$7,0,IF('RFM input'!$F$193='RFM input'!$H$192,-'RFM input'!P199,-SUM(P57:P68))) -> 0 | Q69: =IF(COUNT($H69:P69)>='RFM input'!$W$7,0,IF('RFM input'!$F$193='RFM input'!$H$192,-'RFM input'!Q199,-SUM(Q57:Q68))) -> 0
C70: =Asset3 -> Metering | E70: Opening RAB | H70: =IF(H$3>A3remlife,A3value-SUM($G70:G70),IF(A3remlife="N/A","n/a",A3value/A3remlife)) -> n/a | I70: =IF(I$3>A3remlife,A3value-SUM($G70:H70),IF(A3remlife="N/A","n/a",A3value/A3remlife)) -> n/a | J70: =IF(J$3>A3remlife,A3value-SUM($G70:I70),IF(A3remlife="N/A","n/a",A3value/A3remlife)) -> n/a | K70: =IF(K$3>A3remlife,A3value-SUM($G70:J70),IF(A3remlife="N/A","n/a",A3value/A3remlife)) -> n/a | L70: =IF(L$3>A3remlife,A3value-SUM($G70:K70),IF(A3remlife="N/A","n/a",A3value/A3remlife)) -> n/a | M70: =IF(M$3>A3remlife,A3value-SUM($G70:L70),IF(A3remlife="N/A","n/a",A3value/A3remlife)) -> n/a | N70: =IF(N$3>A3remlife,A3value-SUM($G70:M70),IF(A3remlife="N/A","n/a",A3value/A3remlife)) -> n/a | O70: =IF(O$3>A3remlife,A3value-SUM($G70:N70),IF(A3remlife="N/A","n/a",A3value/A3remlife)) -> n/a | P70: =IF(P$3>A3remlife,A3value-SUM($G70:O70),IF(A3remlife="N/A","n/a",A3value/A3remlife)) -> n/a | Q70: =IF(Q$3>A3remlife,A3value-SUM($G70:P70),IF(A3remlife="N/A","n/a",A3value/A3remlife)) -> n/a
E71: Capex in year
F72: 1 | I72: =IF(A3stdlife="n/a","n/a",IF(I$3>(A3stdlife+$F72),('RFM input'!$H$145*(1+vanilla1)^0.5)-SUM($H72:H72),('RFM input'!$H$145*(1+vanilla1)^0.5)/A3stdlife)) -> n/a | J72: =IF(A3stdlife="n/a","n/a",IF(J$3>(A3stdlife+$F72),('RFM input'!$H$145*(1+vanilla1)^0.5)-SUM($H72:I72),('RFM input'!$H$145*(1+vanilla1)^0.5)/A3stdlife)) -> n/a | K72: =IF(A3stdlife="n/a","n/a",IF(K$3>(A3stdlife+$F72),('RFM input'!$H$145*(1+vanilla1)^0.5)-SUM($H72:J72),('RFM input'!$H$145*(1+vanilla1)^0.5)/A3stdlife)) -> n/a | L72: =IF(A3stdlife="n/a","n/a",IF(L$3>(A3stdlife+$F72),('RFM input'!$H$145*(1+vanilla1)^0.5)-SUM($H72:K72),('RFM input'!$H$145*(1+vanilla1)^0.5)/A3stdlife)) -> n/a | M72: =IF(A3stdlife="n/a","n/a",IF(M$3>(A3stdlife+$F72),('RFM input'!$H$145*(1+vanilla1)^0.5)-SUM($H72:L72),('RFM input'!$H$145*(1+vanilla1)^0.5)/A3stdlife)) -> n/a | N72: =IF(A3stdlife="n/a","n/a",IF(N$3>(A3stdlife+$F72),('RFM input'!$H$145*(1+vanilla1)^0.5)-SUM($H72:M72),('RFM input'!$H$145*(1+vanilla1)^0.5)/A3stdlife)) -> n/a | O72: =IF(A3stdlife="n/a","n/a",IF(O$3>(A3stdlife+$F72),('RFM input'!$H$145*(1+vanilla1)^0.5)-SUM($H72:N72),('RFM input'!$H$145*(1+vanilla1)^0.5)/A3stdlife)) -> n/a | P72: =IF(A3stdlife="n/a","n/a",IF(P$3>(A3stdlife+$F72),('RFM input'!$H$145*(1+vanilla1)^0.5)-SUM($H72:O72),('RFM input'!$H$145*(1+vanilla1)^0.5)/A3stdlife)) -> n/a | Q72: =IF(A3stdlife="n/a","n/a",IF(Q$3>(A3stdlife+$F72),('RFM input'!$H$145*(1+vanilla1)^0.5)-SUM($H72:P72),('RFM input'!$H$145*(1+vanilla1)^0.5)/A3stdlife)) -> n/a
F73: 2 | J73: =IF(A3stdlife="n/a","n/a",IF(J$3>(A3stdlife+$F73),('RFM input'!$I$145*(1+vanilla2)^0.5)-SUM($I73:I73),('RFM input'!$I$145*(1+vanilla2)^0.5)/A3stdlife)) -> n/a | K73: =IF(A3stdlife="n/a","n/a",IF(K$3>(A3stdlife+$F73),('RFM input'!$I$145*(1+vanilla2)^0.5)-SUM($I73:J73),('RFM input'!$I$145*(1+vanilla2)^0.5)/A3stdlife)) -> n/a | L73: =IF(A3stdlife="n/a","n/a",IF(L$3>(A3stdlife+$F73),('RFM input'!$I$145*(1+vanilla2)^0.5)-SUM($I73:K73),('RFM input'!$I$145*(1+vanilla2)^0.5)/A3stdlife)) -> n/a | M73: =IF(A3stdlife="n/a","n/a",IF(M$3>(A3stdlife+$F73),('RFM input'!$I$145*(1+vanilla2)^0.5)-SUM($I73:L73),('RFM input'!$I$145*(1+vanilla2)^0.5)/A3stdlife)) -> n/a | N73: =IF(A3stdlife="n/a","n/a",IF(N$3>(A3stdlife+$F73),('RFM input'!$I$145*(1+vanilla2)^0.5)-SUM($I73:M73),('RFM input'!$I$145*(1+vanilla2)^0.5)/A3stdlife)) -> n/a | O73: =IF(A3stdlife="n/a","n/a",IF(O$3>(A3stdlife+$F73),('RFM input'!$I$145*(1+vanilla2)^0.5)-SUM($I73:N73),('RFM input'!$I$145*(1+vanilla2)^0.5)/A3stdlife)) -> n/a | P73: =IF(A3stdlife="n/a","n/a",IF(P$3>(A3stdlife+$F73),('RFM input'!$I$145*(1+vanilla2)^0.5)-SUM($I73:O73),('RFM input'!$I$145*(1+vanilla2)^0.5)/A3stdlife)) -> n/a | Q73: =IF(A3stdlife="n/a","n/a",IF(Q$3>(A3stdlife+$F73),('RFM input'!$I$145*(1+vanilla2)^0.5)-SUM($I73:P73),('RFM input'!$I$145*(1+vanilla2)^0.5)/A3stdlife)) -> n/a
F74: 3 | K74: =IF(A3stdlife="n/a","n/a",IF(K$3>(A3stdlife+$F74),('RFM input'!$J$145*(1+vanilla3)^0.5)-SUM($J74:J74),('RFM input'!$J$145*(1+vanilla3)^0.5)/A3stdlife)) -> n/a | L74: =IF(A3stdlife="n/a","n/a",IF(L$3>(A3stdlife+$F74),('RFM input'!$J$145*(1+vanilla3)^0.5)-SUM($J74:K74),('RFM input'!$J$145*(1+vanilla3)^0.5)/A3stdlife)) -> n/a | M74: =IF(A3stdlife="n/a","n/a",IF(M$3>(A3stdlife+$F74),('RFM input'!$J$145*(1+vanilla3)^0.5)-SUM($J74:L74),('RFM input'!$J$145*(1+vanilla3)^0.5)/A3stdlife)) -> n/a | N74: =IF(A3stdlife="n/a","n/a",IF(N$3>(A3stdlife+$F74),('RFM input'!$J$145*(1+vanilla3)^0.5)-SUM($J74:M74),('RFM input'!$J$145*(1+vanilla3)^0.5)/A3stdlife)) -> n/a | O74: =IF(A3stdlife="n/a","n/a",IF(O$3>(A3stdlife+$F74),('RFM input'!$J$145*(1+vanilla3)^0.5)-SUM($J74:N74),('RFM input'!$J$145*(1+vanilla3)^0.5)/A3stdlife)) -> n/a | P74: =IF(A3stdlife="n/a","n/a",IF(P$3>(A3stdlife+$F74),('RFM input'!$J$145*(1+vanilla3)^0.5)-SUM($J74:O74),('RFM input'!$J$145*(1+vanilla3)^0.5)/A3stdlife)) -> n/a | Q74: =IF(A3stdlife="n/a","n/a",IF(Q$3>(A3stdlife+$F74),('RFM input'!$J$145*(1+vanilla3)^0.5)-SUM($J74:P74),('RFM input'!$J$145*(1+vanilla3)^0.5)/A3stdlife)) -> n/a
F75: 4 | L75: =IF(A3stdlife="n/a","n/a",IF(L$3>(A3stdlife+$F75),('RFM input'!$K$145*(1+vanilla4)^0.5)-SUM($K75:K75),('RFM input'!$K$145*(1+vanilla4)^0.5)/A3stdlife)) -> n/a | M75: =IF(A3stdlife="n/a","n/a",IF(M$3>(A3stdlife+$F75),('RFM input'!$K$145*(1+vanilla4)^0.5)-SUM($K75:L75),('RFM input'!$K$145*(1+vanilla4)^0.5)/A3stdlife)) -> n/a | N75: =IF(A3stdlife="n/a","n/a",IF(N$3>(A3stdlife+$F75),('RFM input'!$K$145*(1+vanilla4)^0.5)-SUM($K75:M75),('RFM input'!$K$145*(1+vanilla4)^0.5)/A3stdlife)) -> n/a | O75: =IF(A3stdlife="n/a","n/a",IF(O$3>(A3stdlife+$F75),('RFM input'!$K$145*(1+vanilla4)^0.5)-SUM($K75:N75),('RFM input'!$K$145*(1+vanilla4)^0.5)/A3stdlife)) -> n/a | P75: =IF(A3stdlife="n/a","n/a",IF(P$3>(A3stdlife+$F75),('RFM input'!$K$145*(1+vanilla4)^0.5)-SUM($K75:O75),('RFM input'!$K$145*(1+vanilla4)^0.5)/A3stdlife)) -> n/a | Q75: =IF(A3stdlife="n/a","n/a",IF(Q$3>(A3stdlife+$F75),('RFM input'!$K$145*(1+vanilla4)^0.5)-SUM($K75:P75),('RFM input'!$K$145*(1+vanilla4)^0.5)/A3stdlife)) -> n/a
F76: 5 | M76: =IF(A3stdlife="n/a","n/a",IF(M$3>(A3stdlife+$F76),('RFM input'!$L$145*(1+vanilla5)^0.5)-SUM($L76:L76),('RFM input'!$L$145*(1+vanilla5)^0.5)/A3stdlife)) -> n/a | N76: =IF(A3stdlife="n/a","n/a",IF(N$3>(A3stdlife+$F76),('RFM input'!$L$145*(1+vanilla5)^0.5)-SUM($L76:M76),('RFM input'!$L$145*(1+vanilla5)^0.5)/A3stdlife)) -> n/a | O76: =IF(A3stdlife="n/a","n/a",IF(O$3>(A3stdlife+$F76),('RFM input'!$L$145*(1+vanilla5)^0.5)-SUM($L76:N76),('RFM input'!$L$145*(1+vanilla5)^0.5)/A3stdlife)) -> n/a | P76: =IF(A3stdlife="n/a","n/a",IF(P$3>(A3stdlife+$F76),('RFM input'!$L$145*(1+vanilla5)^0.5)-SUM($L76:O76),('RFM input'!$L$145*(1+vanilla5)^0.5)/A3stdlife)) -> n/a | Q76: =IF(A3stdlife="n/a","n/a",IF(Q$3>(A3stdlife+$F76),('RFM input'!$L$145*(1+vanilla5)^0.5)-SUM($L76:P76),('RFM input'!$L$145*(1+vanilla5)^0.5)/A3stdlife)) -> n/a
F77: 6 | N77: =IF(A3stdlife="n/a","n/a",IF(N$3>(A3stdlife+$F77),('RFM input'!$M$145*(1+vanilla6)^0.5)-SUM($M77:M77),('RFM input'!$M$145*(1+vanilla6)^0.5)/A3stdlife)) -> n/a | O77: =IF(A3stdlife="n/a","n/a",IF(O$3>(A3stdlife+$F77),('RFM input'!$M$145*(1+vanilla6)^0.5)-SUM($M77:N77),('RFM input'!$M$145*(1+vanilla6)^0.5)/A3stdlife)) -> n/a | P77: =IF(A3stdlife="n/a","n/a",IF(P$3>(A3stdlife+$F77),('RFM input'!$M$145*(1+vanilla6)^0.5)-SUM($M77:O77),('RFM input'!$M$145*(1+vanilla6)^0.5)/A3stdlife)) -> n/a | Q77: =IF(A3stdlife="n/a","n/a",IF(Q$3>(A3stdlife+$F77),('RFM input'!$M$145*(1+vanilla6)^0.5)-SUM($M77:P77),('RFM input'!$M$145*(1+vanilla6)^0.5)/A3stdlife)) -> n/a
F78: 7 | O78: =IF(A3stdlife="n/a","n/a",IF(O$3>(A3stdlife+$F78),('RFM input'!$N$145*(1+vanilla7)^0.5)-SUM($N78:N78),('RFM input'!$N$145*(1+vanilla7)^0.5)/A3stdlife)) -> n/a | P78: =IF(A3stdlife="n/a","n/a",IF(P$3>(A3stdlife+$F78),('RFM input'!$N$145*(1+vanilla7)^0.5)-SUM($N78:O78),('RFM input'!$N$145*(1+vanilla7)^0.5)/A3stdlife)) -> n/a | Q78: =IF(A3stdlife="n/a","n/a",IF(Q$3>(A3stdlife+$F78),('RFM input'!$N$145*(1+vanilla7)^0.5)-SUM($N78:P78),('RFM input'!$N$145*(1+vanilla7)^0.5)/A3stdlife)) -> n/a
F79: 8 | P79: =IF(A3stdlife="n/a","n/a",IF(P$3>(A3stdlife+$F79),('RFM input'!$O$145*(1+vanilla8)^0.5)-SUM($O79:O79),('RFM input'!$O$145*(1+vanilla8)^0.5)/A3stdlife)) -> n/a | Q79: =IF(A3stdlife="n/a","n/a",IF(Q$3>(A3stdlife+$F79),('RFM input'!$O$145*(1+vanilla8)^0.5)-SUM($O79:P79),('RFM input'!$O$145*(1+vanilla8)^0.5)/A3stdlife)) -> n/a
F80: 9 | Q80: =IF(A3stdlife="n/a","n/a",IF(Q$3>(A3stdlife+$F80),('RFM input'!$P$145*(1+vanilla9)^0.5)-SUM($P80:P80),('RFM input'!$P$145*(1+vanilla9)^0.5)/A3stdlife)) -> n/a
F81: 10
D82: =Asset3 -> Metering | H82: =IF('RFM input'!$F$193='RFM input'!$H$192,-'RFM input'!H200,-SUM(H70:H81)) -> -0.03104215384 | I82: =IF('RFM input'!$F$193='RFM input'!$H$192,-'RFM input'!I200,-SUM(I70:I81)) -> 0 | J82: =IF(COUNT($H82:I82)>='RFM input'!$W$7,0,IF('RFM input'!$F$193='RFM input'!$H$192,-'RFM input'!J200,-SUM(J70:J81))) -> 0 | K82: =IF(COUNT($H82:J82)>='RFM input'!$W$7,0,IF('RFM input'!$F$193='RFM input'!$H$192,-'RFM input'!K200,-SUM(K70:K81))) -> 0 | L82: =IF(COUNT($H82:K82)>='RFM input'!$W$7,0,IF('RFM input'!$F$193='RFM input'!$H$192,-'RFM input'!L200,-SUM(L70:L81))) -> 0 | M82: =IF(COUNT($H82:L82)>='RFM input'!$W$7,0,IF('RFM input'!$F$193='RFM input'!$H$192,-'RFM input'!M200,-SUM(M70:M81))) -> 0 | N82: =IF(COUNT($H82:M82)>='RFM input'!$W$7,0,IF('RFM input'!$F$193='RFM input'!$H$192,-'RFM input'!N200,-SUM(N70:N81))) -> 0 | O82: =IF(COUNT($H82:N82)>='RFM input'!$W$7,0,IF('RFM input'!$F$193='RFM input'!$H$192,-'RFM input'!O200,-SUM(O70:O81))) -> 0 | P82: =IF(COUNT($H82:O82)>='RFM input'!$W$7,0,IF('RFM input'!$F$193='RFM input'!$H$192,-'RFM input'!P200,-SUM(P70:P81))) -> 0 | Q82: =IF(COUNT($H82:P82)>='RFM input'!$W$7,0,IF('RFM input'!$F$193='RFM input'!$H$192,-'RFM input'!Q200,-SUM(Q70:Q81))) -> 0
C83: =Asset4 -> Public Lighting | E83: Opening RAB | H83: =IF(H$3>A4remlife,A4value-SUM($G83:G83),IF(A4remlife="N/A","n/a",A4value/A4remlife)) -> n/a | I83: =IF(I$3>A4remlife,A4value-SUM($G83:H83),IF(A4remlife="N/A","n/a",A4value/A4remlife)) -> n/a | J83: =IF(J$3>A4remlife,A4value-SUM($G83:I83),IF(A4remlife="N/A","n/a",A4value/A4remlife)) -> n/a | K83: =IF(K$3>A4remlife,A4value-SUM($G83:J83),IF(A4remlife="N/A","n/a",A4value/A4remlife)) -> n/a | L83: =IF(L$3>A4remlife,A4value-SUM($G83:K83),IF(A4remlife="N/A","n/a",A4value/A4remlife)) -> n/a | M83: =IF(M$3>A4remlife,A4value-SUM($G83:L83),IF(A4remlife="N/A","n/a",A4value/A4remlife)) -> n/a | N83: =IF(N$3>A4remlife,A4value-SUM($G83:M83),IF(A4remlife="N/A","n/a",A4value/A4remlife)) -> n/a | O83: =IF(O$3>A4remlife,A4value-SUM($G83:N83),IF(A4remlife="N/A","n/a",A4value/A4remlife)) -> n/a | P83: =IF(P$3>A4remlife,A4value-SUM($G83:O83),IF(A4remlife="N/A","n/a",A4value/A4remlife)) -> n/a | Q83: =IF(Q$3>A4remlife,A4value-SUM($G83:P83),IF(A4remlife="N/A","n/a",A4value/A4remlife)) -> n/a
E84: Capex in year
F85: 1 | I85: =IF(A4stdlife="n/a","n/a",IF(I$3>(A4stdlife+$F85),('RFM input'!$H$146*(1+vanilla1)^0.5)-SUM($H85:H85),('RFM input'!$H$146*(1+vanilla1)^0.5)/A4stdlife)) -> n/a | J85: =IF(A4stdlife="n/a","n/a",IF(J$3>(A4stdlife+$F85),('RFM input'!$H$146*(1+vanilla1)^0.5)-SUM($H85:I85),('RFM input'!$H$146*(1+vanilla1)^0.5)/A4stdlife)) -> n/a | K85: =IF(A4stdlife="n/a","n/a",IF(K$3>(A4stdlife+$F85),('RFM input'!$H$146*(1+vanilla1)^0.5)-SUM($H85:J85),('RFM input'!$H$146*(1+vanilla1)^0.5)/A4stdlife)) -> n/a | L85: =IF(A4stdlife="n/a","n/a",IF(L$3>(A4stdlife+$F85),('RFM input'!$H$146*(1+vanilla1)^0.5)-SUM($H85:K85),('RFM input'!$H$146*(1+vanilla1)^0.5)/A4stdlife)) -> n/a | M85: =IF(A4stdlife="n/a","n/a",IF(M$3>(A4stdlife+$F85),('RFM input'!$H$146*(1+vanilla1)^0.5)-SUM($H85:L85),('RFM input'!$H$146*(1+vanilla1)^0.5)/A4stdlife)) -> n/a | N85: =IF(A4stdlife="n/a","n/a",IF(N$3>(A4stdlife+$F85),('RFM input'!$H$146*(1+vanilla1)^0.5)-SUM($H85:M85),('RFM input'!$H$146*(1+vanilla1)^0.5)/A4stdlife)) -> n/a | O85: =IF(A4stdlife="n/a","n/a",IF(O$3>(A4stdlife+$F85),('RFM input'!$H$146*(1+vanilla1)^0.5)-SUM($H85:N85),('RFM input'!$H$146*(1+vanilla1)^0.5)/A4stdlife)) -> n/a | P85: =IF(A4stdlife="n/a","n/a",IF(P$3>(A4stdlife+$F85),('RFM input'!$H$146*(1+vanilla1)^0.5)-SUM($H85:O85),('RFM input'!$H$146*(1+vanilla1)^0.5)/A4stdlife)) -> n/a | Q85: =IF(A4stdlife="n/a","n/a",IF(Q$3>(A4stdlife+$F85),('RFM input'!$H$146*(1+vanilla1)^0.5)-SUM($H85:P85),('RFM input'!$H$146*(1+vanilla1)^0.5)/A4stdlife)) -> n/a
F86: 2 | J86: =IF(A4stdlife="n/a","n/a",IF(J$3>(A4stdlife+$F86),('RFM input'!$I$146*(1+vanilla2)^0.5)-SUM($I86:I86),('RFM input'!$I$146*(1+vanilla2)^0.5)/A4stdlife)) -> n/a | K86: =IF(A4stdlife="n/a","n/a",IF(K$3>(A4stdlife+$F86),('RFM input'!$I$146*(1+vanilla2)^0.5)-SUM($I86:J86),('RFM input'!$I$146*(1+vanilla2)^0.5)/A4stdlife)) -> n/a | L86: =IF(A4stdlife="n/a","n/a",IF(L$3>(A4stdlife+$F86),('RFM input'!$I$146*(1+vanilla2)^0.5)-SUM($I86:K86),('RFM input'!$I$146*(1+vanilla2)^0.5)/A4stdlife)) -> n/a | M86: =IF(A4stdlife="n/a","n/a",IF(M$3>(A4stdlife+$F86),('RFM input'!$I$146*(1+vanilla2)^0.5)-SUM($I86:L86),('RFM input'!$I$146*(1+vanilla2)^0.5)/A4stdlife)) -> n/a | N86: =IF(A4stdlife="n/a","n/a",IF(N$3>(A4stdlife+$F86),('RFM input'!$I$146*(1+vanilla2)^0.5)-SUM($I86:M86),('RFM input'!$I$146*(1+vanilla2)^0.5)/A4stdlife)) -> n/a | O86: =IF(A4stdlife="n/a","n/a",IF(O$3>(A4stdlife+$F86),('RFM input'!$I$146*(1+vanilla2)^0.5)-SUM($I86:N86),('RFM input'!$I$146*(1+vanilla2)^0.5)/A4stdlife)) -> n/a | P86: =IF(A4stdlife="n/a","n/a",IF(P$3>(A4stdlife+$F86),('RFM input'!$I$146*(1+vanilla2)^0.5)-SUM($I86:O86),('RFM input'!$I$146*(1+vanilla2)^0.5)/A4stdlife)) -> n/a | Q86: =IF(A4stdlife="n/a","n/a",IF(Q$3>(A4stdlife+$F86),('RFM input'!$I$146*(1+vanilla2)^0.5)-SUM($I86:P86),('RFM input'!$I$146*(1+vanilla2)^0.5)/A4stdlife)) -> n/a
F87: 3 | K87: =IF(A4stdlife="n/a","n/a",IF(K$3>(A4stdlife+$F87),('RFM input'!$J$146*(1+vanilla3)^0.5)-SUM($J87:J87),('RFM input'!$J$146*(1+vanilla3)^0.5)/A4stdlife)) -> n/a | L87: =IF(A4stdlife="n/a","n/a",IF(L$3>(A4stdlife+$F87),('RFM input'!$J$146*(1+vanilla3)^0.5)-SUM($J87:K87),('RFM input'!$J$146*(1+vanilla3)^0.5)/A4stdlife)) -> n/a | M87: =IF(A4stdlife="n/a","n/a",IF(M$3>(A4stdlife+$F87),('RFM input'!$J$146*(1+vanilla3)^0.5)-SUM($J87:L87),('RFM input'!$J$146*(1+vanilla3)^0.5)/A4stdlife)) -> n/a | N87: =IF(A4stdlife="n/a","n/a",IF(N$3>(A4stdlife+$F87),('RFM input'!$J$146*(1+vanilla3)^0.5)-SUM($J87:M87),('RFM input'!$J$146*(1+vanilla3)^0.5)/A4stdlife)) -> n/a | O87: =IF(A4stdlife="n/a","n/a",IF(O$3>(A4stdlife+$F87),('RFM input'!$J$146*(1+vanilla3)^0.5)-SUM($J87:N87),('RFM input'!$J$146*(1+vanilla3)^0.5)/A4stdlife)) -> n/a | P87: =IF(A4stdlife="n/a","n/a",IF(P$3>(A4stdlife+$F87),('RFM input'!$J$146*(1+vanilla3)^0.5)-SUM($J87:O87),('RFM input'!$J$146*(1+vanilla3)^0.5)/A4stdlife)) -> n/a | Q87: =IF(A4stdlife="n/a","n/a",IF(Q$3>(A4stdlife+$F87),('RFM input'!$J$146*(1+vanilla3)^0.5)-SUM($J87:P87),('RFM input'!$J$146*(1+vanilla3)^0.5)/A4stdlife)) -> n/a
F88: 4 | L88: =IF(A4stdlife="n/a","n/a",IF(L$3>(A4stdlife+$F88),('RFM input'!$K$146*(1+vanilla4)^0.5)-SUM($K88:K88),('RFM input'!$K$146*(1+vanilla4)^0.5)/A4stdlife)) -> n/a | M88: =IF(A4stdlife="n/a","n/a",IF(M$3>(A4stdlife+$F88),('RFM input'!$K$146*(1+vanilla4)^0.5)-SUM($K88:L88),('RFM input'!$K$146*(1+vanilla4)^0.5)/A4stdlife)) -> n/a | N88: =IF(A4stdlife="n/a","n/a",IF(N$3>(A4stdlife+$F88),('RFM input'!$K$146*(1+vanilla4)^0.5)-SUM($K88:M88),('RFM input'!$K$146*(1+vanilla4)^0.5)/A4stdlife)) -> n/a | O88: =IF(A4stdlife="n/a","n/a",IF(O$3>(A4stdlife+$F88),('RFM input'!$K$146*(1+vanilla4)^0.5)-SUM($K88:N88),('RFM input'!$K$146*(1+vanilla4)^0.5)/A4stdlife)) -> n/a | P88: =IF(A4stdlife="n/a","n/a",IF(P$3>(A4stdlife+$F88),('RFM input'!$K$146*(1+vanilla4)^0.5)-SUM($K88:O88),('RFM input'!$K$146*(1+vanilla4)^0.5)/A4stdlife)) -> n/a | Q88: =IF(A4stdlife="n/a","n/a",IF(Q$3>(A4stdlife+$F88),('RFM input'!$K$146*(1+vanilla4)^0.5)-SUM($K88:P88),('RFM input'!$K$146*(1+vanilla4)^0.5)/A4stdlife)) -> n/a
F89: 5 | M89: =IF(A4stdlife="n/a","n/a",IF(M$3>(A4stdlife+$F89),('RFM input'!$L$146*(1+vanilla5)^0.5)-SUM($L89:L89),('RFM input'!$L$146*(1+vanilla5)^0.5)/A4stdlife)) -> n/a | N89: =IF(A4stdlife="n/a","n/a",IF(N$3>(A4stdlife+$F89),('RFM input'!$L$146*(1+vanilla5)^0.5)-SUM($L89:M89),('RFM input'!$L$146*(1+vanilla5)^0.5)/A4stdlife)) -> n/a | O89: =IF(A4stdlife="n/a","n/a",IF(O$3>(A4stdlife+$F89),('RFM input'!$L$146*(1+vanilla5)^0.5)-SUM($L89:N89),('RFM input'!$L$146*(1+vanilla5)^0.5)/A4stdlife)) -> n/a | P89: =IF(A4stdlife="n/a","n/a",IF(P$3>(A4stdlife+$F89),('RFM input'!$L$146*(1+vanilla5)^0.5)-SUM($L89:O89),('RFM input'!$L$146*(1+vanilla5)^0.5)/A4stdlife)) -> n/a | Q89: =IF(A4stdlife="n/a","n/a",IF(Q$3>(A4stdlife+$F89),('RFM input'!$L$146*(1+vanilla5)^0.5)-SUM($L89:P89),('RFM input'!$L$146*(1+vanilla5)^0.5)/A4stdlife)) -> n/a
F90: 6 | N90: =IF(A4stdlife="n/a","n/a",IF(N$3>(A4stdlife+$F90),('RFM input'!$M$146*(1+vanilla6)^0.5)-SUM($M90:M90),('RFM input'!$M$146*(1+vanilla6)^0.5)/A4stdlife)) -> n/a | O90: =IF(A4stdlife="n/a","n/a",IF(O$3>(A4stdlife+$F90),('RFM input'!$M$146*(1+vanilla6)^0.5)-SUM($M90:N90),('RFM input'!$M$146*(1+vanilla6)^0.5)/A4stdlife)) -> n/a | P90: =IF(A4stdlife="n/a","n/a",IF(P$3>(A4stdlife+$F90),('RFM input'!$M$146*(1+vanilla6)^0.5)-SUM($M90:O90),('RFM input'!$M$146*(1+vanilla6)^0.5)/A4stdlife)) -> n/a | Q90: =IF(A4stdlife="n/a","n/a",IF(Q$3>(A4stdlife+$F90),('RFM input'!$M$146*(1+vanilla6)^0.5)-SUM($M90:P90),('RFM input'!$M$146*(1+vanilla6)^0.5)/A4stdlife)) -> n/a
F91: 7 | O91: =IF(A4stdlife="n/a","n/a",IF(O$3>(A4stdlife+$F91),('RFM input'!$N$146*(1+vanilla7)^0.5)-SUM($N91:N91),('RFM input'!$N$146*(1+vanilla7)^0.5)/A4stdlife)) -> n/a | P91: =IF(A4stdlife="n/a","n/a",IF(P$3>(A4stdlife+$F91),('RFM input'!$N$146*(1+vanilla7)^0.5)-SUM($N91:O91),('RFM input'!$N$146*(1+vanilla7)^0.5)/A4stdlife)) -> n/a | Q91: =IF(A4stdlife="n/a","n/a",IF(Q$3>(A4stdlife+$F91),('RFM input'!$N$146*(1+vanilla7)^0.5)-SUM($N91:P91),('RFM input'!$N$146*(1+vanilla7)^0.5)/A4stdlife)) -> n/a
F92: 8 | P92: =IF(A4stdlife="n/a","n/a",IF(P$3>(A4stdlife+$F92),('RFM input'!$O$146*(1+vanilla8)^0.5)-SUM($O92:O92),('RFM input'!$O$146*(1+vanilla8)^0.5)/A4stdlife)) -> n/a | Q92: =IF(A4stdlife="n/a","n/a",IF(Q$3>(A4stdlife+$F92),('RFM input'!$O$146*(1+vanilla8)^0.5)-SUM($O92:P92),('RFM input'!$O$146*(1+vanilla8)^0.5)/A4stdlife)) -> n/a
F93: 9 | Q93: =IF(A4stdlife="n/a","n/a",IF(Q$3>(A4stdlife+$F93),('RFM input'!$P$146*(1+vanilla9)^0.5)-SUM($P93:P93),('RFM input'!$P$146*(1+vanilla9)^0.5)/A4stdlife)) -> n/a
F94: 10
D95: =Asset4 -> Public Lighting | H95: =IF('RFM input'!$F$193='RFM input'!$H$192,-'RFM input'!H201,-SUM(H83:H94)) -> -1.426741562 | I95: =IF('RFM input'!$F$193='RFM input'!$H$192,-'RFM input'!I201,-SUM(I83:I94)) -> -1.426741562 | J95: =IF(COUNT($H95:I95)>='RFM input'!$W$7,0,IF('RFM input'!$F$193='RFM input'!$H$192,-'RFM input'!J201,-SUM(J83:J94))) -> -1.426741562 | K95: =IF(COUNT($H95:J95)>='RFM input'!$W$7,0,IF('RFM input'!$F$193='RFM input'!$H$192,-'RFM input'!K201,-SUM(K83:K94))) -> -1.426741562 | L95: =IF(COUNT($H95:K95)>='RFM input'!$W$7,0,IF('RFM input'!$F$193='RFM input'!$H$192,-'RFM input'!L201,-SUM(L83:L94))) -> -1.426741562 | M95: =IF(COUNT($H95:L95)>='RFM input'!$W$7,0,IF('RFM input'!$F$193='RFM input'!$H$192,-'RFM input'!M201,-SUM(M83:M94))) -> -0.02600869703 | N95: =IF(COUNT($H95:M95)>='RFM input'!$W$7,0,IF('RFM input'!$F$193='RFM input'!$H$192,-'RFM input'!N201,-SUM(N83:N94))) -> 0 | O95: =IF(COUNT($H95:N95)>='RFM input'!$W$7,0,IF('RFM input'!$F$193='RFM input'!$H$192,-'RFM input'!O201,-SUM(O83:O94))) -> 0 | P95: =IF(COUNT($H95:O95)>='RFM input'!$W$7,0,IF('RFM input'!$F$193='RFM input'!$H$192,-'RFM input'!P201,-SUM(P83:P94))) -> 0 | Q95: =IF(COUNT($H95:P95)>='RFM input'!$W$7,0,IF('RFM input'!$F$193='RFM input'!$H$192,-'RFM input'!Q201,-SUM(Q83:Q94))) -> 0
C96: =Asset5 -> SCADA/Network control | E96: Opening RAB | H96: =IF(H$3>A5remlife,A5value-SUM($G96:G96),IF(A5remlife="N/A","n/a",A5value/A5remlife)) -> n/a | I96: =IF(I$3>A5remlife,A5value-SUM($G96:H96),IF(A5remlife="N/A","n/a",A5value/A5remlife)) -> n/a | J96: =IF(J$3>A5remlife,A5value-SUM($G96:I96),IF(A5remlife="N/A","n/a",A5value/A5remlife)) -> n/a | K96: =IF(K$3>A5remlife,A5value-SUM($G96:J96),IF(A5remlife="N/A","n/a",A5value/A5remlife)) -> n/a | L96: =IF(L$3>A5remlife,A5value-SUM($G96:K96),IF(A5remlife="N/A","n/a",A5value/A5remlife)) -> n/a | M96: =IF(M$3>A5remlife,A5value-SUM($G96:L96),IF(A5remlife="N/A","n/a",A5value/A5remlife)) -> n/a | N96: =IF(N$3>A5remlife,A5value-SUM($G96:M96),IF(A5remlife="N/A","n/a",A5value/A5remlife)) -> n/a | O96: =IF(O$3>A5remlife,A5value-SUM($G96:N96),IF(A5remlife="N/A","n/a",A5value/A5remlife)) -> n/a | P96: =IF(P$3>A5remlife,A5value-SUM($G96:O96),IF(A5remlife="N/A","n/a",A5value/A5remlife)) -> n/a | Q96: =IF(Q$3>A5remlife,A5value-SUM($G96:P96),IF(A5remlife="N/A","n/a",A5value/A5remlife)) -> n/a
E97: Capex in year
F98: 1 | I98: =IF(A5stdlife="n/a","n/a",IF(I$3>(A5stdlife+$F98),('RFM input'!$H$147*(1+vanilla1)^0.5)-SUM($H98:H98),('RFM input'!$H$147*(1+vanilla1)^0.5)/A5stdlife)) -> 0.0144576563 | J98: =IF(A5stdlife="n/a","n/a",IF(J$3>(A5stdlife+$F98),('RFM input'!$H$147*(1+vanilla1)^0.5)-SUM($H98:I98),('RFM input'!$H$147*(1+vanilla1)^0.5)/A5stdlife)) -> 0.0144576563 | K98: =IF(A5stdlife="n/a","n/a",IF(K$3>(A5stdlife+$F98),('RFM input'!$H$147*(1+vanilla1)^0.5)-SUM($H98:J98),('RFM input'!$H$147*(1+vanilla1)^0.5)/A5stdlife)) -> 0.0144576563 | L98: =IF(A5stdlife="n/a","n/a",IF(L$3>(A5stdlife+$F98),('RFM input'!$H$147*(1+vanilla1)^0.5)-SUM($H98:K98),('RFM input'!$H$147*(1+vanilla1)^0.5)/A5stdlife)) -> 0.0144576563 | M98: =IF(A5stdlife="n/a","n/a",IF(M$3>(A5stdlife+$F98),('RFM input'!$H$147*(1+vanilla1)^0.5)-SUM($H98:L98),('RFM input'!$H$147*(1+vanilla1)^0.5)/A5stdlife)) -> 0.0144576563 | N98: =IF(A5stdlife="n/a","n/a",IF(N$3>(A5stdlife+$F98),('RFM input'!$H$147*(1+vanilla1)^0.5)-SUM($H98:M98),('RFM input'!$H$147*(1+vanilla1)^0.5)/A5stdlife)) -> 0.0144576563 | O98: =IF(A5stdlife="n/a","n/a",IF(O$3>(A5stdlife+$F98),('RFM input'!$H$147*(1+vanilla1)^0.5)-SUM($H98:N98),('RFM input'!$H$147*(1+vanilla1)^0.5)/A5stdlife)) -> 0.0144576563 | P98: =IF(A5stdlife="n/a","n/a",IF(P$3>(A5stdlife+$F98),('RFM input'!$H$147*(1+vanilla1)^0.5)-SUM($H98:O98),('RFM input'!$H$147*(1+vanilla1)^0.5)/A5stdlife)) -> 0.0144576563 | Q98: =IF(A5stdlife="n/a","n/a",IF(Q$3>(A5stdlife+$F98),('RFM input'!$H$147*(1+vanilla1)^0.5)-SUM($H98:P98),('RFM input'!$H$147*(1+vanilla1)^0.5)/A5stdlife)) -> 0.0144576563
F99: 2 | J99: =IF(A5stdlife="n/a","n/a",IF(J$3>(A5stdlife+$F99),('RFM input'!$I$147*(1+vanilla2)^0.5)-SUM($I99:I99),('RFM input'!$I$147*(1+vanilla2)^0.5)/A5stdlife)) -> 0.2817290825 | K99: =IF(A5stdlife="n/a","n/a",IF(K$3>(A5stdlife+$F99),('RFM input'!$I$147*(1+vanilla2)^0.5)-SUM($I99:J99),('RFM input'!$I$147*(1+vanilla2)^0.5)/A5stdlife)) -> 0.2817290825 | L99: =IF(A5stdlife="n/a","n/a",IF(L$3>(A5stdlife+$F99),('RFM input'!$I$147*(1+vanilla2)^0.5)-SUM($I99:K99),('RFM input'!$I$147*(1+vanilla2)^0.5)/A5stdlife)) -> 0.2817290825 | M99: =IF(A5stdlife="n/a","n/a",IF(M$3>(A5stdlife+$F99),('RFM input'!$I$147*(1+vanilla2)^0.5)-SUM($I99:L99),('RFM input'!$I$147*(1+vanilla2)^0.5)/A5stdlife)) -> 0.2817290825 | N99: =IF(A5stdlife="n/a","n/a",IF(N$3>(A5stdlife+$F99),('RFM input'!$I$147*(1+vanilla2)^0.5)-SUM($I99:M99),('RFM input'!$I$147*(1+vanilla2)^0.5)/A5stdlife)) -> 0.2817290825 | O99: =IF(A5stdlife="n/a","n/a",IF(O$3>(A5stdlife+$F99),('RFM input'!$I$147*(1+vanilla2)^0.5)-SUM($I99:N99),('RFM input'!$I$147*(1+vanilla2)^0.5)/A5stdlife)) -> 0.2817290825 | P99: =IF(A5stdlife="n/a","n/a",IF(P$3>(A5stdlife+$F99),('RFM input'!$I$147*(1+vanilla2)^0.5)-SUM($I99:O99),('RFM input'!$I$147*(1+vanilla2)^0.5)/A5stdlife)) -> 0.2817290825 | Q99: =IF(A5stdlife="n/a","n/a",IF(Q$3>(A5stdlife+$F99),('RFM input'!$I$147*(1+vanilla2)^0.5)-SUM($I99:P99),('RFM input'!$I$147*(1+vanilla2)^0.5)/A5stdlife)) -> 0.2817290825
F100: 3 | K100: =IF(A5stdlife="n/a","n/a",IF(K$3>(A5stdlife+$F100),('RFM input'!$J$147*(1+vanilla3)^0.5)-SUM($J100:J100),('RFM input'!$J$147*(1+vanilla3)^0.5)/A5stdlife)) -> -0.001369441203 | L100: =IF(A5stdlife="n/a","n/a",IF(L$3>(A5stdlife+$F100),('RFM input'!$J$147*(1+vanilla3)^0.5)-SUM($J100:K100),('RFM input'!$J$147*(1+vanilla3)^0.5)/A5stdlife)) -> -0.001369441203 | M100: =IF(A5stdlife="n/a","n/a",IF(M$3>(A5stdlife+$F100),('RFM input'!$J$147*(1+vanilla3)^0.5)-SUM($J100:L100),('RFM input'!$J$147*(1+vanilla3)^0.5)/A5stdlife)) -> -0.001369441203 | N100: =IF(A5stdlife="n/a","n/a",IF(N$3>(A5stdlife+$F100),('RFM input'!$J$147*(1+vanilla3)^0.5)-SUM($J100:M100),('RFM input'!$J$147*(1+vanilla3)^0.5)/A5stdlife)) -> -0.001369441203 | O100: =IF(A5stdlife="n/a","n/a",IF(O$3>(A5stdlife+$F100),('RFM input'!$J$147*(1+vanilla3)^0.5)-SUM($J100:N100),('RFM input'!$J$147*(1+vanilla3)^0.5)/A5stdlife)) -> -0.001369441203 | P100: =IF(A5stdlife="n/a","n/a",IF(P$3>(A5stdlife+$F100),('RFM input'!$J$147*(1+vanilla3)^0.5)-SUM($J100:O100),('RFM input'!$J$147*(1+vanilla3)^0.5)/A5stdlife)) -> -0.001369441203 | Q100: =IF(A5stdlife="n/a","n/a",IF(Q$3>(A5stdlife+$F100),('RFM input'!$J$147*(1+vanilla3)^0.5)-SUM($J100:P100),('RFM input'!$J$147*(1+vanilla3)^0.5)/A5stdlife)) -> -0.001369441203
F101: 4 | L101: =IF(A5stdlife="n/a","n/a",IF(L$3>(A5stdlife+$F101),('RFM input'!$K$147*(1+vanilla4)^0.5)-SUM($K101:K101),('RFM input'!$K$147*(1+vanilla4)^0.5)/A5stdlife)) -> 0 | M101: =IF(A5stdlife="n/a","n/a",IF(M$3>(A5stdlife+$F101),('RFM input'!$K$147*(1+vanilla4)^0.5)-SUM($K101:L101),('RFM input'!$K$147*(1+vanilla4)^0.5)/A5stdlife)) -> 0 | N101: =IF(A5stdlife="n/a","n/a",IF(N$3>(A5stdlife+$F101),('RFM input'!$K$147*(1+vanilla4)^0.5)-SUM($K101:M101),('RFM input'!$K$147*(1+vanilla4)^0.5)/A5stdlife)) -> 0 | O101: =IF(A5stdlife="n/a","n/a",IF(O$3>(A5stdlife+$F101),('RFM input'!$K$147*(1+vanilla4)^0.5)-SUM($K101:N101),('RFM input'!$K$147*(1+vanilla4)^0.5)/A5stdlife)) -> 0 | P101: =IF(A5stdlife="n/a","n/a",IF(P$3>(A5stdlife+$F101),('RFM input'!$K$147*(1+vanilla4)^0.5)-SUM($K101:O101),('RFM input'!$K$147*(1+vanilla4)^0.5)/A5stdlife)) -> 0 | Q101: =IF(A5stdlife="n/a","n/a",IF(Q$3>(A5stdlife+$F101),('RFM input'!$K$147*(1+vanilla4)^0.5)-SUM($K101:P101),('RFM input'!$K$147*(1+vanilla4)^0.5)/A5stdlife)) -> 0
F102: 5 | M102: =IF(A5stdlife="n/a","n/a",IF(M$3>(A5stdlife+$F102),('RFM input'!$L$147*(1+vanilla5)^0.5)-SUM($L102:L102),('RFM input'!$L$147*(1+vanilla5)^0.5)/A5stdlife)) -> 0.03946263291 | N102: =IF(A5stdlife="n/a","n/a",IF(N$3>(A5stdlife+$F102),('RFM input'!$L$147*(1+vanilla5)^0.5)-SUM($L102:M102),('RFM input'!$L$147*(1+vanilla5)^0.5)/A5stdlife)) -> 0.03946263291 | O102: =IF(A5stdlife="n/a","n/a",IF(O$3>(A5stdlife+$F102),('RFM input'!$L$147*(1+vanilla5)^0.5)-SUM($L102:N102),('RFM input'!$L$147*(1+vanilla5)^0.5)/A5stdlife)) -> 0.03946263291 | P102: =IF(A5stdlife="n/a","n/a",IF(P$3>(A5stdlife+$F102),('RFM input'!$L$147*(1+vanilla5)^0.5)-SUM($L102:O102),('RFM input'!$L$147*(1+vanilla5)^0.5)/A5stdlife)) -> 0.03946263291 | Q102: =IF(A5stdlife="n/a","n/a",IF(Q$3>(A5stdlife+$F102),('RFM input'!$L$147*(1+vanilla5)^0.5)-SUM($L102:P102),('RFM input'!$L$147*(1+vanilla5)^0.5)/A5stdlife)) -> 0.03946263291
F103: 6 | N103: =IF(A5stdlife="n/a","n/a",IF(N$3>(A5stdlife+$F103),('RFM input'!$M$147*(1+vanilla6)^0.5)-SUM($M103:M103),('RFM input'!$M$147*(1+vanilla6)^0.5)/A5stdlife)) -> 0.02669845037 | O103: =IF(A5stdlife="n/a","n/a",IF(O$3>(A5stdlife+$F103),('RFM input'!$M$147*(1+vanilla6)^0.5)-SUM($M103:N103),('RFM input'!$M$147*(1+vanilla6)^0.5)/A5stdlife)) -> 0.02669845037 | P103: =IF(A5stdlife="n/a","n/a",IF(P$3>(A5stdlife+$F103),('RFM input'!$M$147*(1+vanilla6)^0.5)-SUM($M103:O103),('RFM input'!$M$147*(1+vanilla6)^0.5)/A5stdlife)) -> 0.02669845037 | Q103: =IF(A5stdlife="n/a","n/a",IF(Q$3>(A5stdlife+$F103),('RFM input'!$M$147*(1+vanilla6)^0.5)-SUM($M103:P103),('RFM input'!$M$147*(1+vanilla6)^0.5)/A5stdlife)) -> 0.02669845037
F104: 7 | O104: =IF(A5stdlife="n/a","n/a",IF(O$3>(A5stdlife+$F104),('RFM input'!$N$147*(1+vanilla7)^0.5)-SUM($N104:N104),('RFM input'!$N$147*(1+vanilla7)^0.5)/A5stdlife)) -> 0 | P104: =IF(A5stdlife="n/a","n/a",IF(P$3>(A5stdlife+$F104),('RFM input'!$N$147*(1+vanilla7)^0.5)-SUM($N104:O104),('RFM input'!$N$147*(1+vanilla7)^0.5)/A5stdlife)) -> 0 | Q104: =IF(A5stdlife="n/a","n/a",IF(Q$3>(A5stdlife+$F104),('RFM input'!$N$147*(1+vanilla7)^0.5)-SUM($N104:P104),('RFM input'!$N$147*(1+vanilla7)^0.5)/A5stdlife)) -> 0
F105: 8 | P105: =IF(A5stdlife="n/a","n/a",IF(P$3>(A5stdlife+$F105),('RFM input'!$O$147*(1+vanilla8)^0.5)-SUM($O105:O105),('RFM input'!$O$147*(1+vanilla8)^0.5)/A5stdlife)) -> 0 | Q105: =IF(A5stdlife="n/a","n/a",IF(Q$3>(A5stdlife+$F105),('RFM input'!$O$147*(1+vanilla8)^0.5)-SUM($O105:P105),('RFM input'!$O$147*(1+vanilla8)^0.5)/A5stdlife)) -> 0
F106: 9 | Q106: =IF(A5stdlife="n/a","n/a",IF(Q$3>(A5stdlife+$F106),('RFM input'!$P$147*(1+vanilla9)^0.5)-SUM($P106:P106),('RFM input'!$P$147*(1+vanilla9)^0.5)/A5stdlife)) -> 0
F107: 10
D108: =Asset5 -> SCADA/Network control | H108: =IF('RFM input'!$F$193='RFM input'!$H$192,-'RFM input'!H202,-SUM(H96:H107)) -> -0.2539436657 | I108: =IF('RFM input'!$F$193='RFM input'!$H$192,-'RFM input'!I202,-SUM(I96:I107)) -> -1.170323772 | J108: =IF(COUNT($H108:I108)>='RFM input'!$W$7,0,IF('RFM input'!$F$193='RFM input'!$H$192,-'RFM input'!J202,-SUM(J96:J107))) -> -1.788225751 | K108: =IF(COUNT($H108:J108)>='RFM input'!$W$7,0,IF('RFM input'!$F$193='RFM input'!$H$192,-'RFM input'!K202,-SUM(K96:K107))) -> -1.97522854 | L108: =IF(COUNT($H108:K108)>='RFM input'!$W$7,0,IF('RFM input'!$F$193='RFM input'!$H$192,-'RFM input'!L202,-SUM(L96:L107))) -> -3.101378293 | M108: =IF(COUNT($H108:L108)>='RFM input'!$W$7,0,IF('RFM input'!$F$193='RFM input'!$H$192,-'RFM input'!M202,-SUM(M96:M107))) -> 1.492244901 | N108: =IF(COUNT($H108:M108)>='RFM input'!$W$7,0,IF('RFM input'!$F$193='RFM input'!$H$192,-'RFM input'!N202,-SUM(N96:N107))) -> 0 | O108: =IF(COUNT($H108:N108)>='RFM input'!$W$7,0,IF('RFM input'!$F$193='RFM input'!$H$192,-'RFM input'!O202,-SUM(O96:O107))) -> 0 | P108: =IF(COUNT($H108:O108)>='RFM input'!$W$7,0,IF('RFM input'!$F$193='RFM input'!$H$192,-'RFM input'!P202,-SUM(P96:P107))) -> 0 | Q108: =IF(COUNT($H108:P108)>='RFM input'!$W$7,0,IF('RFM input'!$F$193='RFM input'!$H$192,-'RFM input'!Q202,-SUM(Q96:Q107))) -> 0
C109: =Asset6 -> Non network - IT | E109: Opening RAB | H109: =IF(H$3>A6remlife,A6value-SUM($G109:G109),IF(A6remlife="N/A","n/a",A6value/A6remlife)) -> n/a | I109: =IF(I$3>A6remlife,A6value-SUM($G109:H109),IF(A6remlife="N/A","n/a",A6value/A6remlife)) -> n/a | J109: =IF(J$3>A6remlife,A6value-SUM($G109:I109),IF(A6remlife="N/A","n/a",A6value/A6remlife)) -> n/a | K109: =IF(K$3>A6remlife,A6value-SUM($G109:J109),IF(A6remlife="N/A","n/a",A6value/A6remlife)) -> n/a | L109: =IF(L$3>A6remlife,A6value-SUM($G109:K109),IF(A6remlife="N/A","n/a",A6value/A6remlife)) -> n/a | M109: =IF(M$3>A6remlife,A6value-SUM($G109:L109),IF(A6remlife="N/A","n/a",A6value/A6remlife)) -> n/a | N109: =IF(N$3>A6remlife,A6value-SUM($G109:M109),IF(A6remlife="N/A","n/a",A6value/A6remlife)) -> n/a | O109: =IF(O$3>A6remlife,A6value-SUM($G109:N109),IF(A6remlife="N/A","n/a",A6value/A6remlife)) -> n/a | P109: =IF(P$3>A6remlife,A6value-SUM($G109:O109),IF(A6remlife="N/A","n/a",A6value/A6remlife)) -> n/a | Q109: =IF(Q$3>A6remlife,A6value-SUM($G109:P109),IF(A6remlife="N/A","n/a",A6value/A6remlife)) -> n/a
E110: Capex in year
F111: 1 | I111: =IF(A6stdlife="n/a","n/a",IF(I$3>(A6stdlife+$F111),('RFM input'!$H$148*(1+vanilla1)^0.5)-SUM($H111:H111),('RFM input'!$H$148*(1+vanilla1)^0.5)/A6stdlife)) -> 2.75073328 | J111: =IF(A6stdlife="n/a","n/a",IF(J$3>(A6stdlife+$F111),('RFM input'!$H$148*(1+vanilla1)^0.5)-SUM($H111:I111),('RFM input'!$H$148*(1+vanilla1)^0.5)/A6stdlife)) -> 2.75073328 | K111: =IF(A6stdlife="n/a","n/a",IF(K$3>(A6stdlife+$F111),('RFM input'!$H$148*(1+vanilla1)^0.5)-SUM($H111:J111),('RFM input'!$H$148*(1+vanilla1)^0.5)/A6stdlife)) -> 2.75073328 | L111: =IF(A6stdlife="n/a","n/a",IF(L$3>(A6stdlife+$F111),('RFM input'!$H$148*(1+vanilla1)^0.5)-SUM($H111:K111),('RFM input'!$H$148*(1+vanilla1)^0.5)/A6stdlife)) -> 2.75073328 | M111: =IF(A6stdlife="n/a","n/a",IF(M$3>(A6stdlife+$F111),('RFM input'!$H$148*(1+vanilla1)^0.5)-SUM($H111:L111),('RFM input'!$H$148*(1+vanilla1)^0.5)/A6stdlife)) -> 2.75073328 | N111: =IF(A6stdlife="n/a","n/a",IF(N$3>(A6stdlife+$F111),('RFM input'!$H$148*(1+vanilla1)^0.5)-SUM($H111:M111),('RFM input'!$H$148*(1+vanilla1)^0.5)/A6stdlife)) -> 0.649889367 | O111: =IF(A6stdlife="n/a","n/a",IF(O$3>(A6stdlife+$F111),('RFM input'!$H$148*(1+vanilla1)^0.5)-SUM($H111:N111),('RFM input'!$H$148*(1+vanilla1)^0.5)/A6stdlife)) -> 0 | P111: =IF(A6stdlife="n/a","n/a",IF(P$3>(A6stdlife+$F111),('RFM input'!$H$148*(1+vanilla1)^0.5)-SUM($H111:O111),('RFM input'!$H$148*(1+vanilla1)^0.5)/A6stdlife)) -> 0 | Q111: =IF(A6stdlife="n/a","n/a",IF(Q$3>(A6stdlife+$F111),('RFM input'!$H$148*(1+vanilla1)^0.5)-SUM($H111:P111),('RFM input'!$H$148*(1+vanilla1)^0.5)/A6stdlife)) -> 0
F112: 2 | J112: =IF(A6stdlife="n/a","n/a",IF(J$3>(A6stdlife+$F112),('RFM input'!$I$148*(1+vanilla2)^0.5)-SUM($I112:I112),('RFM input'!$I$148*(1+vanilla2)^0.5)/A6stdlife)) -> 5.885648266 | K112: =IF(A6stdlife="n/a","n/a",IF(K$3>(A6stdlife+$F112),('RFM input'!$I$148*(1+vanilla2)^0.5)-SUM($I112:J112),('RFM input'!$I$148*(1+vanilla2)^0.5)/A6stdlife)) -> 5.885648266 | L112: =IF(A6stdlife="n/a","n/a",IF(L$3>(A6stdlife+$F112),('RFM input'!$I$148*(1+vanilla2)^0.5)-SUM($I112:K112),('RFM input'!$I$148*(1+vanilla2)^0.5)/A6stdlife)) -> 5.885648266 | M112: =IF(A6stdlife="n/a","n/a",IF(M$3>(A6stdlife+$F112),('RFM input'!$I$148*(1+vanilla2)^0.5)-SUM($I112:L112),('RFM input'!$I$148*(1+vanilla2)^0.5)/A6stdlife)) -> 5.885648266 | N112: =IF(A6stdlife="n/a","n/a",IF(N$3>(A6stdlife+$F112),('RFM input'!$I$148*(1+vanilla2)^0.5)-SUM($I112:M112),('RFM input'!$I$148*(1+vanilla2)^0.5)/A6stdlife)) -> 5.885648266 | O112: =IF(A6stdlife="n/a","n/a",IF(O$3>(A6stdlife+$F112),('RFM input'!$I$148*(1+vanilla2)^0.5)-SUM($I112:N112),('RFM input'!$I$148*(1+vanilla2)^0.5)/A6stdlife)) -> 1.390545661 | P112: =IF(A6stdlife="n/a","n/a",IF(P$3>(A6stdlife+$F112),('RFM input'!$I$148*(1+vanilla2)^0.5)-SUM($I112:O112),('RFM input'!$I$148*(1+vanilla2)^0.5)/A6stdlife)) -> 0 | Q112: =IF(A6stdlife="n/a","n/a",IF(Q$3>(A6stdlife+$F112),('RFM input'!$I$148*(1+vanilla2)^0.5)-SUM($I112:P112),('RFM input'!$I$148*(1+vanilla2)^0.5)/A6stdlife)) -> 0
F113: 3 | K113: =IF(A6stdlife="n/a","n/a",IF(K$3>(A6stdlife+$F113),('RFM input'!$J$148*(1+vanilla3)^0.5)-SUM($J113:J113),('RFM input'!$J$148*(1+vanilla3)^0.5)/A6stdlife)) -> 4.008342171 | L113: =IF(A6stdlife="n/a","n/a",IF(L$3>(A6stdlife+$F113),('RFM input'!$J$148*(1+vanilla3)^0.5)-SUM($J113:K113),('RFM input'!$J$148*(1+vanilla3)^0.5)/A6stdlife)) -> 4.008342171 | M113: =IF(A6stdlife="n/a","n/a",IF(M$3>(A6stdlife+$F113),('RFM input'!$J$148*(1+vanilla3)^0.5)-SUM($J113:L113),('RFM input'!$J$148*(1+vanilla3)^0.5)/A6stdlife)) -> 4.008342171 | N113: =IF(A6stdlife="n/a","n/a",IF(N$3>(A6stdlife+$F113),('RFM input'!$J$148*(1+vanilla3)^0.5)-SUM($J113:M113),('RFM input'!$J$148*(1+vanilla3)^0.5)/A6stdlife)) -> 4.008342171 | O113: =IF(A6stdlife="n/a","n/a",IF(O$3>(A6stdlife+$F113),('RFM input'!$J$148*(1+vanilla3)^0.5)-SUM($J113:N113),('RFM input'!$J$148*(1+vanilla3)^0.5)/A6stdlife)) -> 4.008342171 | P113: =IF(A6stdlife="n/a","n/a",IF(P$3>(A6stdlife+$F113),('RFM input'!$J$148*(1+vanilla3)^0.5)-SUM($J113:O113),('RFM input'!$J$148*(1+vanilla3)^0.5)/A6stdlife)) -> 0.9470125568 | Q113: =IF(A6stdlife="n/a","n/a",IF(Q$3>(A6stdlife+$F113),('RFM input'!$J$148*(1+vanilla3)^0.5)-SUM($J113:P113),('RFM input'!$J$148*(1+vanilla3)^0.5)/A6stdlife)) -> 0
F114: 4 | L114: =IF(A6stdlife="n/a","n/a",IF(L$3>(A6stdlife+$F114),('RFM input'!$K$148*(1+vanilla4)^0.5)-SUM($K114:K114),('RFM input'!$K$148*(1+vanilla4)^0.5)/A6stdlife)) -> 3.992645368 | M114: =IF(A6stdlife="n/a","n/a",IF(M$3>(A6stdlife+$F114),('RFM input'!$K$148*(1+vanilla4)^0.5)-SUM($K114:L114),('RFM input'!$K$148*(1+vanilla4)^0.5)/A6stdlife)) -> 3.992645368 | N114: =IF(A6stdlife="n/a","n/a",IF(N$3>(A6stdlife+$F114),('RFM input'!$K$148*(1+vanilla4)^0.5)-SUM($K114:M114),('RFM input'!$K$148*(1+vanilla4)^0.5)/A6stdlife)) -> 3.992645368 | O114: =IF(A6stdlife="n/a","n/a",IF(O$3>(A6stdlife+$F114),('RFM input'!$K$148*(1+vanilla4)^0.5)-SUM($K114:N114),('RFM input'!$K$148*(1+vanilla4)^0.5)/A6stdlife)) -> 3.992645368 | P114: =IF(A6stdlife="n/a","n/a",IF(P$3>(A6stdlife+$F114),('RFM input'!$K$148*(1+vanilla4)^0.5)-SUM($K114:O114),('RFM input'!$K$148*(1+vanilla4)^0.5)/A6stdlife)) -> 3.992645368 | Q114: =IF(A6stdlife="n/a","n/a",IF(Q$3>(A6stdlife+$F114),('RFM input'!$K$148*(1+vanilla4)^0.5)-SUM($K114:P114),('RFM input'!$K$148*(1+vanilla4)^0.5)/A6stdlife)) -> 0.9433040237
F115: 5 | M115: =IF(A6stdlife="n/a","n/a",IF(M$3>(A6stdlife+$F115),('RFM input'!$L$148*(1+vanilla5)^0.5)-SUM($L115:L115),('RFM input'!$L$148*(1+vanilla5)^0.5)/A6stdlife)) -> 4.183112738 | N115: =IF(A6stdlife="n/a","n/a",IF(N$3>(A6stdlife+$F115),('RFM input'!$L$148*(1+vanilla5)^0.5)-SUM($L115:M115),('RFM input'!$L$148*(1+vanilla5)^0.5)/A6stdlife)) -> 4.183112738 | O115: =IF(A6stdlife="n/a","n/a",IF(O$3>(A6stdlife+$F115),('RFM input'!$L$148*(1+vanilla5)^0.5)-SUM($L115:N115),('RFM input'!$L$148*(1+vanilla5)^0.5)/A6stdlife)) -> 4.183112738 | P115: =IF(A6stdlife="n/a","n/a",IF(P$3>(A6stdlife+$F115),('RFM input'!$L$148*(1+vanilla5)^0.5)-SUM($L115:O115),('RFM input'!$L$148*(1+vanilla5)^0.5)/A6stdlife)) -> 4.183112738 | Q115: =IF(A6stdlife="n/a","n/a",IF(Q$3>(A6stdlife+$F115),('RFM input'!$L$148*(1+vanilla5)^0.5)-SUM($L115:P115),('RFM input'!$L$148*(1+vanilla5)^0.5)/A6stdlife)) -> 4.183112738
F116: 6 | N116: =IF(A6stdlife="n/a","n/a",IF(N$3>(A6stdlife+$F116),('RFM input'!$M$148*(1+vanilla6)^0.5)-SUM($M116:M116),('RFM input'!$M$148*(1+vanilla6)^0.5)/A6stdlife)) -> 2.395192642 | O116: =IF(A6stdlife="n/a","n/a",IF(O$3>(A6stdlife+$F116),('RFM input'!$M$148*(1+vanilla6)^0.5)-SUM($M116:N116),('RFM input'!$M$148*(1+vanilla6)^0.5)/A6stdlife)) -> 2.395192642 | P116: =IF(A6stdlife="n/a","n/a",IF(P$3>(A6stdlife+$F116),('RFM input'!$M$148*(1+vanilla6)^0.5)-SUM($M116:O116),('RFM input'!$M$148*(1+vanilla6)^0.5)/A6stdlife)) -> 2.395192642 | Q116: =IF(A6stdlife="n/a","n/a",IF(Q$3>(A6stdlife+$F116),('RFM input'!$M$148*(1+vanilla6)^0.5)-SUM($M116:P116),('RFM input'!$M$148*(1+vanilla6)^0.5)/A6stdlife)) -> 2.395192642
F117: 7 | O117: =IF(A6stdlife="n/a","n/a",IF(O$3>(A6stdlife+$F117),('RFM input'!$N$148*(1+vanilla7)^0.5)-SUM($N117:N117),('RFM input'!$N$148*(1+vanilla7)^0.5)/A6stdlife)) -> 0 | P117: =IF(A6stdlife="n/a","n/a",IF(P$3>(A6stdlife+$F117),('RFM input'!$N$148*(1+vanilla7)^0.5)-SUM($N117:O117),('RFM input'!$N$148*(1+vanilla7)^0.5)/A6stdlife)) -> 0 | Q117: =IF(A6stdlife="n/a","n/a",IF(Q$3>(A6stdlife+$F117),('RFM input'!$N$148*(1+vanilla7)^0.5)-SUM($N117:P117),('RFM input'!$N$148*(1+vanilla7)^0.5)/A6stdlife)) -> 0
F118: 8 | P118: =IF(A6stdlife="n/a","n/a",IF(P$3>(A6stdlife+$F118),('RFM input'!$O$148*(1+vanilla8)^0.5)-SUM($O118:O118),('RFM input'!$O$148*(1+vanilla8)^0.5)/A6stdlife)) -> 0 | Q118: =IF(A6stdlife="n/a","n/a",IF(Q$3>(A6stdlife+$F118),('RFM input'!$O$148*(1+vanilla8)^0.5)-SUM($O118:P118),('RFM input'!$O$148*(1+vanilla8)^0.5)/A6stdlife)) -> 0
F119: 9 | Q119: =IF(A6stdlife="n/a","n/a",IF(Q$3>(A6stdlife+$F119),('RFM input'!$P$148*(1+vanilla9)^0.5)-SUM($P119:P119),('RFM input'!$P$148*(1+vanilla9)^0.5)/A6stdlife)) -> 0
F120: 10
D121: =Asset6 -> Non network - IT | H121: =IF('RFM input'!$F$193='RFM input'!$H$192,-'RFM input'!H203,-SUM(H109:H120)) -> -30.84922053 | I121: =IF('RFM input'!$F$193='RFM input'!$H$192,-'RFM input'!I203,-SUM(I109:I120)) -> -17.65847017 | J121: =IF(COUNT($H121:I121)>='RFM input'!$W$7,0,IF('RFM input'!$F$193='RFM input'!$H$192,-'RFM input'!J203,-SUM(J109:J120))) -> -20.02060057 | K121: =IF(COUNT($H121:J121)>='RFM input'!$W$7,0,IF('RFM input'!$F$193='RFM input'!$H$192,-'RFM input'!K203,-SUM(K109:K120))) -> -21.98617019 | L121: =IF(COUNT($H121:K121)>='RFM input'!$W$7,0,IF('RFM input'!$F$193='RFM input'!$H$192,-'RFM input'!L203,-SUM(L109:L120))) -> -23.64547007 | M121: =IF(COUNT($H121:L121)>='RFM input'!$W$7,0,IF('RFM input'!$F$193='RFM input'!$H$192,-'RFM input'!M203,-SUM(M109:M120))) -> -7.562490734 | N121: =IF(COUNT($H121:M121)>='RFM input'!$W$7,0,IF('RFM input'!$F$193='RFM input'!$H$192,-'RFM input'!N203,-SUM(N109:N120))) -> 0 | O121: =IF(COUNT($H121:N121)>='RFM input'!$W$7,0,IF('RFM input'!$F$193='RFM input'!$H$192,-'RFM input'!O203,-SUM(O109:O120))) -> 0 | P121: =IF(COUNT($H121:O121)>='RFM input'!$W$7,0,IF('RFM input'!$F$193='RFM input'!$H$192,-'RFM input'!P203,-SUM(P109:P120))) -> 0 | Q121: =IF(COUNT($H121:P121)>='RFM input'!$W$7,0,IF('RFM input'!$F$193='RFM input'!$H$192,-'RFM input'!Q203,-SUM(Q109:Q120))) -> 0
C122: =Asset7 -> Non network - other | E122: Opening RAB | H122: =IF(H$3>A7remlife,A7value-SUM($G122:G122),IF(A7remlife="N/A","n/a",A7value/A7remlife)) -> n/a | I122: =IF(I$3>A7remlife,A7value-SUM($G122:H122),IF(A7remlife="N/A","n/a",A7value/A7remlife)) -> n/a | J122: =IF(J$3>A7remlife,A7value-SUM($G122:I122),IF(A7remlife="N/A","n/a",A7value/A7remlife)) -> n/a | K122: =IF(K$3>A7remlife,A7value-SUM($G122:J122),IF(A7remlife="N/A","n/a",A7value/A7remlife)) -> n/a | L122: =IF(L$3>A7remlife,A7value-SUM($G122:K122),IF(A7remlife="N/A","n/a",A7value/A7remlife)) -> n/a | M122: =IF(M$3>A7remlife,A7value-SUM($G122:L122),IF(A7remlife="N/A","n/a",A7value/A7remlife)) -> n/a | N122: =IF(N$3>A7remlife,A7value-SUM($G122:M122),IF(A7remlife="N/A","n/a",A7value/A7remlife)) -> n/a | O122: =IF(O$3>A7remlife,A7value-SUM($G122:N122),IF(A7remlife="N/A","n/a",A7value/A7remlife)) -> n/a | P122: =IF(P$3>A7remlife,A7value-SUM($G122:O122),IF(A7remlife="N/A","n/a",A7value/A7remlife)) -> n/a | Q122: =IF(Q$3>A7remlife,A7value-SUM($G122:P122),IF(A7remlife="N/A","n/a",A7value/A7remlife)) -> n/a
E123: Capex in year
F124: 1 | I124: =IF(A7stdlife="n/a","n/a",IF(I$3>(A7stdlife+$F124),('RFM input'!$H$149*(1+vanilla1)^0.5)-SUM($H124:H124),('RFM input'!$H$149*(1+vanilla1)^0.5)/A7stdlife)) -> 0.1813928793 | J124: =IF(A7stdlife="n/a","n/a",IF(J$3>(A7stdlife+$F124),('RFM input'!$H$149*(1+vanilla1)^0.5)-SUM($H124:I124),('RFM input'!$H$149*(1+vanilla1)^0.5)/A7stdlife)) -> 0.1813928793 | K124: =IF(A7stdlife="n/a","n/a",IF(K$3>(A7stdlife+$F124),('RFM input'!$H$149*(1+vanilla1)^0.5)-SUM($H124:J124),('RFM input'!$H$149*(1+vanilla1)^0.5)/A7stdlife)) -> 0.1813928793 | L124: =IF(A7stdlife="n/a","n/a",IF(L$3>(A7stdlife+$F124),('RFM input'!$H$149*(1+vanilla1)^0.5)-SUM($H124:K124),('RFM input'!$H$149*(1+vanilla1)^0.5)/A7stdlife)) -> 0.1813928793 | M124: =IF(A7stdlife="n/a","n/a",IF(M$3>(A7stdlife+$F124),('RFM input'!$H$149*(1+vanilla1)^0.5)-SUM($H124:L124),('RFM input'!$H$149*(1+vanilla1)^0.5)/A7stdlife)) -> 0.1813928793 | N124: =IF(A7stdlife="n/a","n/a",IF(N$3>(A7stdlife+$F124),('RFM input'!$H$149*(1+vanilla1)^0.5)-SUM($H124:M124),('RFM input'!$H$149*(1+vanilla1)^0.5)/A7stdlife)) -> 0.1813928793 | O124: =IF(A7stdlife="n/a","n/a",IF(O$3>(A7stdlife+$F124),('RFM input'!$H$149*(1+vanilla1)^0.5)-SUM($H124:N124),('RFM input'!$H$149*(1+vanilla1)^0.5)/A7stdlife)) -> 0.1813928793 | P124: =IF(A7stdlife="n/a","n/a",IF(P$3>(A7stdlife+$F124),('RFM input'!$H$149*(1+vanilla1)^0.5)-SUM($H124:O124),('RFM input'!$H$149*(1+vanilla1)^0.5)/A7stdlife)) -> 0.1813928793 | Q124: =IF(A7stdlife="n/a","n/a",IF(Q$3>(A7stdlife+$F124),('RFM input'!$H$149*(1+vanilla1)^0.5)-SUM($H124:P124),('RFM input'!$H$149*(1+vanilla1)^0.5)/A7stdlife)) -> 0.1813928793
F125: 2 | J125: =IF(A7stdlife="n/a","n/a",IF(J$3>(A7stdlife+$F125),('RFM input'!$I$149*(1+vanilla2)^0.5)-SUM($I125:I125),('RFM input'!$I$149*(1+vanilla2)^0.5)/A7stdlife)) -> 0.6563535801 | K125: =IF(A7stdlife="n/a","n/a",IF(K$3>(A7stdlife+$F125),('RFM input'!$I$149*(1+vanilla2)^0.5)-SUM($I125:J125),('RFM input'!$I$149*(1+vanilla2)^0.5)/A7stdlife)) -> 0.6563535801 | L125: =IF(A7stdlife="n/a","n/a",IF(L$3>(A7stdlife+$F125),('RFM input'!$I$149*(1+vanilla2)^0.5)-SUM($I125:K125),('RFM input'!$I$149*(1+vanilla2)^0.5)/A7stdlife)) -> 0.6563535801 | M125: =IF(A7stdlife="n/a","n/a",IF(M$3>(A7stdlife+$F125),('RFM input'!$I$149*(1+vanilla2)^0.5)-SUM($I125:L125),('RFM input'!$I$149*(1+vanilla2)^0.5)/A7stdlife)) -> 0.6563535801 | N125: =IF(A7stdlife="n/a","n/a",IF(N$3>(A7stdlife+$F125),('RFM input'!$I$149*(1+vanilla2)^0.5)-SUM($I125:M125),('RFM input'!$I$149*(1+vanilla2)^0.5)/A7stdlife)) -> 0.6563535801 | O125: =IF(A7stdlife="n/a","n/a",IF(O$3>(A7stdlife+$F125),('RFM input'!$I$149*(1+vanilla2)^0.5)-SUM($I125:N125),('RFM input'!$I$149*(1+vanilla2)^0.5)/A7stdlife)) -> 0.6563535801 | P125: =IF(A7stdlife="n/a","n/a",IF(P$3>(A7stdlife+$F125),('RFM input'!$I$149*(1+vanilla2)^0.5)-SUM($I125:O125),('RFM input'!$I$149*(1+vanilla2)^0.5)/A7stdlife)) -> 0.6563535801 | Q125: =IF(A7stdlife="n/a","n/a",IF(Q$3>(A7stdlife+$F125),('RFM input'!$I$149*(1+vanilla2)^0.5)-SUM($I125:P125),('RFM input'!$I$149*(1+vanilla2)^0.5)/A7stdlife)) -> 0.6563535801
F126: 3 | K126: =IF(A7stdlife="n/a","n/a",IF(K$3>(A7stdlife+$F126),('RFM input'!$J$149*(1+vanilla3)^0.5)-SUM($J126:J126),('RFM input'!$J$149*(1+vanilla3)^0.5)/A7stdlife)) -> 0.1388221272 | L126: =IF(A7stdlife="n/a","n/a",IF(L$3>(A7stdlife+$F126),('RFM input'!$J$149*(1+vanilla3)^0.5)-SUM($J126:K126),('RFM input'!$J$149*(1+vanilla3)^0.5)/A7stdlife)) -> 0.1388221272 | M126: =IF(A7stdlife="n/a","n/a",IF(M$3>(A7stdlife+$F126),('RFM input'!$J$149*(1+vanilla3)^0.5)-SUM($J126:L126),('RFM input'!$J$149*(1+vanilla3)^0.5)/A7stdlife)) -> 0.1388221272 | N126: =IF(A7stdlife="n/a","n/a",IF(N$3>(A7stdlife+$F126),('RFM input'!$J$149*(1+vanilla3)^0.5)-SUM($J126:M126),('RFM input'!$J$149*(1+vanilla3)^0.5)/A7stdlife)) -> 0.1388221272 | O126: =IF(A7stdlife="n/a","n/a",IF(O$3>(A7stdlife+$F126),('RFM input'!$J$149*(1+vanilla3)^0.5)-SUM($J126:N126),('RFM input'!$J$149*(1+vanilla3)^0.5)/A7stdlife)) -> 0.1388221272 | P126: =IF(A7stdlife="n/a","n/a",IF(P$3>(A7stdlife+$F126),('RFM input'!$J$149*(1+vanilla3)^0.5)-SUM($J126:O126),('RFM input'!$J$149*(1+vanilla3)^0.5)/A7stdlife)) -> 0.1388221272 | Q126: =IF(A7stdlife="n/a","n/a",IF(Q$3>(A7stdlife+$F126),('RFM input'!$J$149*(1+vanilla3)^0.5)-SUM($J126:P126),('RFM input'!$J$149*(1+vanilla3)^0.5)/A7stdlife)) -> 0.1388221272
F127: 4 | L127: =IF(A7stdlife="n/a","n/a",IF(L$3>(A7stdlife+$F127),('RFM input'!$K$149*(1+vanilla4)^0.5)-SUM($K127:K127),('RFM input'!$K$149*(1+vanilla4)^0.5)/A7stdlife)) -> 0.1410512722 | M127: =IF(A7stdlife="n/a","n/a",IF(M$3>(A7stdlife+$F127),('RFM input'!$K$149*(1+vanilla4)^0.5)-SUM($K127:L127),('RFM input'!$K$149*(1+vanilla4)^0.5)/A7stdlife)) -> 0.1410512722 | N127: =IF(A7stdlife="n/a","n/a",IF(N$3>(A7stdlife+$F127),('RFM input'!$K$149*(1+vanilla4)^0.5)-SUM($K127:M127),('RFM input'!$K$149*(1+vanilla4)^0.5)/A7stdlife)) -> 0.1410512722 | O127: =IF(A7stdlife="n/a","n/a",IF(O$3>(A7stdlife+$F127),('RFM input'!$K$149*(1+vanilla4)^0.5)-SUM($K127:N127),('RFM input'!$K$149*(1+vanilla4)^0.5)/A7stdlife)) -> 0.1410512722 | P127: =IF(A7stdlife="n/a","n/a",IF(P$3>(A7stdlife+$F127),('RFM input'!$K$149*(1+vanilla4)^0.5)-SUM($K127:O127),('RFM input'!$K$149*(1+vanilla4)^0.5)/A7stdlife)) -> 0.1410512722 | Q127: =IF(A7stdlife="n/a","n/a",IF(Q$3>(A7stdlife+$F127),('RFM input'!$K$149*(1+vanilla4)^0.5)-SUM($K127:P127),('RFM input'!$K$149*(1+vanilla4)^0.5)/A7stdlife)) -> 0.1410512722
F128: 5 | M128: =IF(A7stdlife="n/a","n/a",IF(M$3>(A7stdlife+$F128),('RFM input'!$L$149*(1+vanilla5)^0.5)-SUM($L128:L128),('RFM input'!$L$149*(1+vanilla5)^0.5)/A7stdlife)) -> 0.2948029159 | N128: =IF(A7stdlife="n/a","n/a",IF(N$3>(A7stdlife+$F128),('RFM input'!$L$149*(1+vanilla5)^0.5)-SUM($L128:M128),('RFM input'!$L$149*(1+vanilla5)^0.5)/A7stdlife)) -> 0.2948029159 | O128: =IF(A7stdlife="n/a","n/a",IF(O$3>(A7stdlife+$F128),('RFM input'!$L$149*(1+vanilla5)^0.5)-SUM($L128:N128),('RFM input'!$L$149*(1+vanilla5)^0.5)/A7stdlife)) -> 0.2948029159 | P128: =IF(A7stdlife="n/a","n/a",IF(P$3>(A7stdlife+$F128),('RFM input'!$L$149*(1+vanilla5)^0.5)-SUM($L128:O128),('RFM input'!$L$149*(1+vanilla5)^0.5)/A7stdlife)) -> 0.2948029159 | Q128: =IF(A7stdlife="n/a","n/a",IF(Q$3>(A7stdlife+$F128),('RFM input'!$L$149*(1+vanilla5)^0.5)-SUM($L128:P128),('RFM input'!$L$149*(1+vanilla5)^0.5)/A7stdlife)) -> 0.2948029159
F129: 6 | N129: =IF(A7stdlife="n/a","n/a",IF(N$3>(A7stdlife+$F129),('RFM input'!$M$149*(1+vanilla6)^0.5)-SUM($M129:M129),('RFM input'!$M$149*(1+vanilla6)^0.5)/A7stdlife)) -> 0.0134651064 | O129: =IF(A7stdlife="n/a","n/a",IF(O$3>(A7stdlife+$F129),('RFM input'!$M$149*(1+vanilla6)^0.5)-SUM($M129:N129),('RFM input'!$M$149*(1+vanilla6)^0.5)/A7stdlife)) -> 0.0134651064 | P129: =IF(A7stdlife="n/a","n/a",IF(P$3>(A7stdlife+$F129),('RFM input'!$M$149*(1+vanilla6)^0.5)-SUM($M129:O129),('RFM input'!$M$149*(1+vanilla6)^0.5)/A7stdlife)) -> 0.0134651064 | Q129: =IF(A7stdlife="n/a","n/a",IF(Q$3>(A7stdlife+$F129),('RFM input'!$M$149*(1+vanilla6)^0.5)-SUM($M129:P129),('RFM input'!$M$149*(1+vanilla6)^0.5)/A7stdlife)) -> 0.0134651064
F130: 7 | O130: =IF(A7stdlife="n/a","n/a",IF(O$3>(A7stdlife+$F130),('RFM input'!$N$149*(1+vanilla7)^0.5)-SUM($N130:N130),('RFM input'!$N$149*(1+vanilla7)^0.5)/A7stdlife)) -> 0 | P130: =IF(A7stdlife="n/a","n/a",IF(P$3>(A7stdlife+$F130),('RFM input'!$N$149*(1+vanilla7)^0.5)-SUM($N130:O130),('RFM input'!$N$149*(1+vanilla7)^0.5)/A7stdlife)) -> 0 | Q130: =IF(A7stdlife="n/a","n/a",IF(Q$3>(A7stdlife+$F130),('RFM input'!$N$149*(1+vanilla7)^0.5)-SUM($N130:P130),('RFM input'!$N$149*(1+vanilla7)^0.5)/A7stdlife)) -> 0
F131: 8 | P131: =IF(A7stdlife="n/a","n/a",IF(P$3>(A7stdlife+$F131),('RFM input'!$O$149*(1+vanilla8)^0.5)-SUM($O131:O131),('RFM input'!$O$149*(1+vanilla8)^0.5)/A7stdlife)) -> 0 | Q131: =IF(A7stdlife="n/a","n/a",IF(Q$3>(A7stdlife+$F131),('RFM input'!$O$149*(1+vanilla8)^0.5)-SUM($O131:P131),('RFM input'!$O$149*(1+vanilla8)^0.5)/A7stdlife)) -> 0
F132: 9 | Q132: =IF(A7stdlife="n/a","n/a",IF(Q$3>(A7stdlife+$F132),('RFM input'!$P$149*(1+vanilla9)^0.5)-SUM($P132:P132),('RFM input'!$P$149*(1+vanilla9)^0.5)/A7stdlife)) -> 0
F133: 10
D134: =Asset7 -> Non network - other | H134: =IF('RFM input'!$F$193='RFM input'!$H$192,-'RFM input'!H204,-SUM(H122:H133)) -> -6.086114175 | I134: =IF('RFM input'!$F$193='RFM input'!$H$192,-'RFM input'!I204,-SUM(I122:I133)) -> -6.651488127 | J134: =IF(COUNT($H134:I134)>='RFM input'!$W$7,0,IF('RFM input'!$F$193='RFM input'!$H$192,-'RFM input'!J204,-SUM(J122:J133))) -> -6.814251029 | K134: =IF(COUNT($H134:J134)>='RFM input'!$W$7,0,IF('RFM input'!$F$193='RFM input'!$H$192,-'RFM input'!K204,-SUM(K122:K133))) -> -6.978773811 | L134: =IF(COUNT($H134:K134)>='RFM input'!$W$7,0,IF('RFM input'!$F$193='RFM input'!$H$192,-'RFM input'!L204,-SUM(L122:L133))) -> -7.217332737 | M134: =IF(COUNT($H134:L134)>='RFM input'!$W$7,0,IF('RFM input'!$F$193='RFM input'!$H$192,-'RFM input'!M204,-SUM(M122:M133))) -> -3.736897851 | N134: =IF(COUNT($H134:M134)>='RFM input'!$W$7,0,IF('RFM input'!$F$193='RFM input'!$H$192,-'RFM input'!N204,-SUM(N122:N133))) -> 0 | O134: =IF(COUNT($H134:N134)>='RFM input'!$W$7,0,IF('RFM input'!$F$193='RFM input'!$H$192,-'RFM input'!O204,-SUM(O122:O133))) -> 0 | P134: =IF(COUNT($H134:O134)>='RFM input'!$W$7,0,IF('RFM input'!$F$193='RFM input'!$H$192,-'RFM input'!P204,-SUM(P122:P133))) -> 0 | Q134: =IF(COUNT($H134:P134)>='RFM input'!$W$7,0,IF('RFM input'!$F$193='RFM input'!$H$192,-'RFM input'!Q204,-SUM(Q122:Q133))) -> 0
C135: =Asset8 -> Land | E135: Opening RAB | H135: =IF(H$3>A8remlife,A8value-SUM($G135:G135),IF(A8remlife="N/A","n/a",A8value/A8remlife)) -> n/a | I135: =IF(I$3>A8remlife,A8value-SUM($G135:H135),IF(A8remlife="N/A","n/a",A8value/A8remlife)) -> n/a | J135: =IF(J$3>A8remlife,A8value-SUM($G135:I135),IF(A8remlife="N/A","n/a",A8value/A8remlife)) -> n/a | K135: =IF(K$3>A8remlife,A8value-SUM($G135:J135),IF(A8remlife="N/A","n/a",A8value/A8remlife)) -> n/a | L135: =IF(L$3>A8remlife,A8value-SUM($G135:K135),IF(A8remlife="N/A","n/a",A8value/A8remlife)) -> n/a | M135: =IF(M$3>A8remlife,A8value-SUM($G135:L135),IF(A8remlife="N/A","n/a",A8value/A8remlife)) -> n/a | N135: =IF(N$3>A8remlife,A8value-SUM($G135:M135),IF(A8remlife="N/A","n/a",A8value/A8remlife)) -> n/a | O135: =IF(O$3>A8remlife,A8value-SUM($G135:N135),IF(A8remlife="N/A","n/a",A8value/A8remlife)) -> n/a | P135: =IF(P$3>A8remlife,A8value-SUM($G135:O135),IF(A8remlife="N/A","n/a",A8value/A8remlife)) -> n/a | Q135: =IF(Q$3>A8remlife,A8value-SUM($G135:P135),IF(A8remlife="N/A","n/a",A8value/A8remlife)) -> n/a
E136: Capex in year
F137: 1 | I137: =IF(A8stdlife="n/a","n/a",IF(I$3>(A8stdlife+$F137),('RFM input'!$H$150*(1+vanilla1)^0.5)-SUM($H137:H137),('RFM input'!$H$150*(1+vanilla1)^0.5)/A8stdlife)) -> n/a | J137: =IF(A8stdlife="n/a","n/a",IF(J$3>(A8stdlife+$F137),('RFM input'!$H$150*(1+vanilla1)^0.5)-SUM($H137:I137),('RFM input'!$H$150*(1+vanilla1)^0.5)/A8stdlife)) -> n/a | K137: =IF(A8stdlife="n/a","n/a",IF(K$3>(A8stdlife+$F137),('RFM input'!$H$150*(1+vanilla1)^0.5)-SUM($H137:J137),('RFM input'!$H$150*(1+vanilla1)^0.5)/A8stdlife)) -> n/a | L137: =IF(A8stdlife="n/a","n/a",IF(L$3>(A8stdlife+$F137),('RFM input'!$H$150*(1+vanilla1)^0.5)-SUM($H137:K137),('RFM input'!$H$150*(1+vanilla1)^0.5)/A8stdlife)) -> n/a | M137: =IF(A8stdlife="n/a","n/a",IF(M$3>(A8stdlife+$F137),('RFM input'!$H$150*(1+vanilla1)^0.5)-SUM($H137:L137),('RFM input'!$H$150*(1+vanilla1)^0.5)/A8stdlife)) -> n/a | N137: =IF(A8stdlife="n/a","n/a",IF(N$3>(A8stdlife+$F137),('RFM input'!$H$150*(1+vanilla1)^0.5)-SUM($H137:M137),('RFM input'!$H$150*(1+vanilla1)^0.5)/A8stdlife)) -> n/a | O137: =IF(A8stdlife="n/a","n/a",IF(O$3>(A8stdlife+$F137),('RFM input'!$H$150*(1+vanilla1)^0.5)-SUM($H137:N137),('RFM input'!$H$150*(1+vanilla1)^0.5)/A8stdlife)) -> n/a | P137: =IF(A8stdlife="n/a","n/a",IF(P$3>(A8stdlife+$F137),('RFM input'!$H$150*(1+vanilla1)^0.5)-SUM($H137:O137),('RFM input'!$H$150*(1+vanilla1)^0.5)/A8stdlife)) -> n/a | Q137: =IF(A8stdlife="n/a","n/a",IF(Q$3>(A8stdlife+$F137),('RFM input'!$H$150*(1+vanilla1)^0.5)-SUM($H137:P137),('RFM input'!$H$150*(1+vanilla1)^0.5)/A8stdlife)) -> n/a
F138: 2 | J138: =IF(A8stdlife="n/a","n/a",IF(J$3>(A8stdlife+$F138),('RFM input'!$I$150*(1+vanilla2)^0.5)-SUM($I138:I138),('RFM input'!$I$150*(1+vanilla2)^0.5)/A8stdlife)) -> n/a | K138: =IF(A8stdlife="n/a","n/a",IF(K$3>(A8stdlife+$F138),('RFM input'!$I$150*(1+vanilla2)^0.5)-SUM($I138:J138),('RFM input'!$I$150*(1+vanilla2)^0.5)/A8stdlife)) -> n/a | L138: =IF(A8stdlife="n/a","n/a",IF(L$3>(A8stdlife+$F138),('RFM input'!$I$150*(1+vanilla2)^0.5)-SUM($I138:K138),('RFM input'!$I$150*(1+vanilla2)^0.5)/A8stdlife)) -> n/a | M138: =IF(A8stdlife="n/a","n/a",IF(M$3>(A8stdlife+$F138),('RFM input'!$I$150*(1+vanilla2)^0.5)-SUM($I138:L138),('RFM input'!$I$150*(1+vanilla2)^0.5)/A8stdlife)) -> n/a | N138: =IF(A8stdlife="n/a","n/a",IF(N$3>(A8stdlife+$F138),('RFM input'!$I$150*(1+vanilla2)^0.5)-SUM($I138:M138),('RFM input'!$I$150*(1+vanilla2)^0.5)/A8stdlife)) -> n/a | O138: =IF(A8stdlife="n/a","n/a",IF(O$3>(A8stdlife+$F138),('RFM input'!$I$150*(1+vanilla2)^0.5)-SUM($I138:N138),('RFM input'!$I$150*(1+vanilla2)^0.5)/A8stdlife)) -> n/a | P138: =IF(A8stdlife="n/a","n/a",IF(P$3>(A8stdlife+$F138),('RFM input'!$I$150*(1+vanilla2)^0.5)-SUM($I138:O138),('RFM input'!$I$150*(1+vanilla2)^0.5)/A8stdlife)) -> n/a | Q138: =IF(A8stdlife="n/a","n/a",IF(Q$3>(A8stdlife+$F138),('RFM input'!$I$150*(1+vanilla2)^0.5)-SUM($I138:P138),('RFM input'!$I$150*(1+vanilla2)^0.5)/A8stdlife)) -> n/a
F139: 3 | K139: =IF(A8stdlife="n/a","n/a",IF(K$3>(A8stdlife+$F139),('RFM input'!$J$150*(1+vanilla3)^0.5)-SUM($J139:J139),('RFM input'!$J$150*(1+vanilla3)^0.5)/A8stdlife)) -> n/a | L139: =IF(A8stdlife="n/a","n/a",IF(L$3>(A8stdlife+$F139),('RFM input'!$J$150*(1+vanilla3)^0.5)-SUM($J139:K139),('RFM input'!$J$150*(1+vanilla3)^0.5)/A8stdlife)) -> n/a | M139: =IF(A8stdlife="n/a","n/a",IF(M$3>(A8stdlife+$F139),('RFM input'!$J$150*(1+vanilla3)^0.5)-SUM($J139:L139),('RFM input'!$J$150*(1+vanilla3)^0.5)/A8stdlife)) -> n/a | N139: =IF(A8stdlife="n/a","n/a",IF(N$3>(A8stdlife+$F139),('RFM input'!$J$150*(1+vanilla3)^0.5)-SUM($J139:M139),('RFM input'!$J$150*(1+vanilla3)^0.5)/A8stdlife)) -> n/a | O139: =IF(A8stdlife="n/a","n/a",IF(O$3>(A8stdlife+$F139),('RFM input'!$J$150*(1+vanilla3)^0.5)-SUM($J139:N139),('RFM input'!$J$150*(1+vanilla3)^0.5)/A8stdlife)) -> n/a | P139: =IF(A8stdlife="n/a","n/a",IF(P$3>(A8stdlife+$F139),('RFM input'!$J$150*(1+vanilla3)^0.5)-SUM($J139:O139),('RFM input'!$J$150*(1+vanilla3)^0.5)/A8stdlife)) -> n/a | Q139: =IF(A8stdlife="n/a","n/a",IF(Q$3>(A8stdlife+$F139),('RFM input'!$J$150*(1+vanilla3)^0.5)-SUM($J139:P139),('RFM input'!$J$150*(1+vanilla3)^0.5)/A8stdlife)) -> n/a
F140: 4 | L140: =IF(A8stdlife="n/a","n/a",IF(L$3>(A8stdlife+$F140),('RFM input'!$K$150*(1+vanilla4)^0.5)-SUM($K140:K140),('RFM input'!$K$150*(1+vanilla4)^0.5)/A8stdlife)) -> n/a | M140: =IF(A8stdlife="n/a","n/a",IF(M$3>(A8stdlife+$F140),('RFM input'!$K$150*(1+vanilla4)^0.5)-SUM($K140:L140),('RFM input'!$K$150*(1+vanilla4)^0.5)/A8stdlife)) -> n/a | N140: =IF(A8stdlife="n/a","n/a",IF(N$3>(A8stdlife+$F140),('RFM input'!$K$150*(1+vanilla4)^0.5)-SUM($K140:M140),('RFM input'!$K$150*(1+vanilla4)^0.5)/A8stdlife)) -> n/a | O140: =IF(A8stdlife="n/a","n/a",IF(O$3>(A8stdlife+$F140),('RFM input'!$K$150*(1+vanilla4)^0.5)-SUM($K140:N140),('RFM input'!$K$150*(1+vanilla4)^0.5)/A8stdlife)) -> n/a | P140: =IF(A8stdlife="n/a","n/a",IF(P$3>(A8stdlife+$F140),('RFM input'!$K$150*(1+vanilla4)^0.5)-SUM($K140:O140),('RFM input'!$K$150*(1+vanilla4)^0.5)/A8stdlife)) -> n/a | Q140: =IF(A8stdlife="n/a","n/a",IF(Q$3>(A8stdlife+$F140),('RFM input'!$K$150*(1+vanilla4)^0.5)-SUM($K140:P140),('RFM input'!$K$150*(1+vanilla4)^0.5)/A8stdlife)) -> n/a
F141: 5 | M141: =IF(A8stdlife="n/a","n/a",IF(M$3>(A8stdlife+$F141),('RFM input'!$L$150*(1+vanilla5)^0.5)-SUM($L141:L141),('RFM input'!$L$150*(1+vanilla5)^0.5)/A8stdlife)) -> n/a | N141: =IF(A8stdlife="n/a","n/a",IF(N$3>(A8stdlife+$F141),('RFM input'!$L$150*(1+vanilla5)^0.5)-SUM($L141:M141),('RFM input'!$L$150*(1+vanilla5)^0.5)/A8stdlife)) -> n/a | O141: =IF(A8stdlife="n/a","n/a",IF(O$3>(A8stdlife+$F141),('RFM input'!$L$150*(1+vanilla5)^0.5)-SUM($L141:N141),('RFM input'!$L$150*(1+vanilla5)^0.5)/A8stdlife)) -> n/a | P141: =IF(A8stdlife="n/a","n/a",IF(P$3>(A8stdlife+$F141),('RFM input'!$L$150*(1+vanilla5)^0.5)-SUM($L141:O141),('RFM input'!$L$150*(1+vanilla5)^0.5)/A8stdlife)) -> n/a | Q141: =IF(A8stdlife="n/a","n/a",IF(Q$3>(A8stdlife+$F141),('RFM input'!$L$150*(1+vanilla5)^0.5)-SUM($L141:P141),('RFM input'!$L$150*(1+vanilla5)^0.5)/A8stdlife)) -> n/a
F142: 6 | N142: =IF(A8stdlife="n/a","n/a",IF(N$3>(A8stdlife+$F142),('RFM input'!$M$150*(1+vanilla6)^0.5)-SUM($M142:M142),('RFM input'!$M$150*(1+vanilla6)^0.5)/A8stdlife)) -> n/a | O142: =IF(A8stdlife="n/a","n/a",IF(O$3>(A8stdlife+$F142),('RFM input'!$M$150*(1+vanilla6)^0.5)-SUM($M142:N142),('RFM input'!$M$150*(1+vanilla6)^0.5)/A8stdlife)) -> n/a | P142: =IF(A8stdlife="n/a","n/a",IF(P$3>(A8stdlife+$F142),('RFM input'!$M$150*(1+vanilla6)^0.5)-SUM($M142:O142),('RFM input'!$M$150*(1+vanilla6)^0.5)/A8stdlife)) -> n/a | Q142: =IF(A8stdlife="n/a","n/a",IF(Q$3>(A8stdlife+$F142),('RFM input'!$M$150*(1+vanilla6)^0.5)-SUM($M142:P142),('RFM input'!$M$150*(1+vanilla6)^0.5)/A8stdlife)) -> n/a
F143: 7 | O143: =IF(A8stdlife="n/a","n/a",IF(O$3>(A8stdlife+$F143),('RFM input'!$N$150*(1+vanilla7)^0.5)-SUM($N143:N143),('RFM input'!$N$150*(1+vanilla7)^0.5)/A8stdlife)) -> n/a | P143: =IF(A8stdlife="n/a","n/a",IF(P$3>(A8stdlife+$F143),('RFM input'!$N$150*(1+vanilla7)^0.5)-SUM($N143:O143),('RFM input'!$N$150*(1+vanilla7)^0.5)/A8stdlife)) -> n/a | Q143: =IF(A8stdlife="n/a","n/a",IF(Q$3>(A8stdlife+$F143),('RFM input'!$N$150*(1+vanilla7)^0.5)-SUM($N143:P143),('RFM input'!$N$150*(1+vanilla7)^0.5)/A8stdlife)) -> n/a
F144: 8 | P144: =IF(A8stdlife="n/a","n/a",IF(P$3>(A8stdlife+$F144),('RFM input'!$O$150*(1+vanilla8)^0.5)-SUM($O144:O144),('RFM input'!$O$150*(1+vanilla8)^0.5)/A8stdlife)) -> n/a | Q144: =IF(A8stdlife="n/a","n/a",IF(Q$3>(A8stdlife+$F144),('RFM input'!$O$150*(1+vanilla8)^0.5)-SUM($O144:P144),('RFM input'!$O$150*(1+vanilla8)^0.5)/A8stdlife)) -> n/a
F145: 9 | Q145: =IF(A8stdlife="n/a","n/a",IF(Q$3>(A8stdlife+$F145),('RFM input'!$P$150*(1+vanilla9)^0.5)-SUM($P145:P145),('RFM input'!$P$150*(1+vanilla9)^0.5)/A8stdlife)) -> n/a
F146: 10
D147: =Asset8 -> Land | H147: =IF('RFM input'!$F$193='RFM input'!$H$192,-'RFM input'!H205,-SUM(H135:H146)) -> 0 | I147: =IF('RFM input'!$F$193='RFM input'!$H$192,-'RFM input'!I205,-SUM(I135:I146)) -> 0 | J147: =IF(COUNT($H147:I147)>='RFM input'!$W$7,0,IF('RFM input'!$F$193='RFM input'!$H$192,-'RFM input'!J205,-SUM(J135:J146))) -> 0 | K147: =IF(COUNT($H147:J147)>='RFM input'!$W$7,0,IF('RFM input'!$F$193='RFM input'!$H$192,-'RFM input'!K205,-SUM(K135:K146))) -> 0 | L147: =IF(COUNT($H147:K147)>='RFM input'!$W$7,0,IF('RFM input'!$F$193='RFM input'!$H$192,-'RFM input'!L205,-SUM(L135:L146))) -> 0 | M147: =IF(COUNT($H147:L147)>='RFM input'!$W$7,0,IF('RFM input'!$F$193='RFM input'!$H$192,-'RFM input'!M205,-SUM(M135:M146))) -> 0 | N147: =IF(COUNT($H147:M147)>='RFM input'!$W$7,0,IF('RFM input'!$F$193='RFM input'!$H$192,-'RFM input'!N205,-SUM(N135:N146))) -> 0 | O147: =IF(COUNT($H147:N147)>='RFM input'!$W$7,0,IF('RFM input'!$F$193='RFM input'!$H$192,-'RFM input'!O205,-SUM(O135:O146))) -> 0 | P147: =IF(COUNT($H147:O147)>='RFM input'!$W$7,0,IF('RFM input'!$F$193='RFM input'!$H$192,-'RFM input'!P205,-SUM(P135:P146))) -> 0 | Q147: =IF(COUNT($H147:P147)>='RFM input'!$W$7,0,IF('RFM input'!$F$193='RFM input'!$H$192,-'RFM input'!Q205,-SUM(Q135:Q146))) -> 0
C148: =Asset9 -> 0 | E148: Opening RAB | H148: =IF(H$3>A9remlife,A9value-SUM($G148:G148),IF(A9remlife="N/A","n/a",A9value/A9remlife)) -> 0 | I148: =IF(I$3>A9remlife,A9value-SUM($G148:H148),IF(A9remlife="N/A","n/a",A9value/A9remlife)) -> 0 | J148: =IF(J$3>A9remlife,A9value-SUM($G148:I148),IF(A9remlife="N/A","n/a",A9value/A9remlife)) -> 0 | K148: =IF(K$3>A9remlife,A9value-SUM($G148:J148),IF(A9remlife="N/A","n/a",A9value/A9remlife)) -> 0 | L148: =IF(L$3>A9remlife,A9value-SUM($G148:K148),IF(A9remlife="N/A","n/a",A9value/A9remlife)) -> 0 | M148: =IF(M$3>A9remlife,A9value-SUM($G148:L148),IF(A9remlife="N/A","n/a",A9value/A9remlife)) -> 0 | N148: =IF(N$3>A9remlife,A9value-SUM($G148:M148),IF(A9remlife="N/A","n/a",A9value/A9remlife)) -> 0 | O148: =IF(O$3>A9remlife,A9value-SUM($G148:N148),IF(A9remlife="N/A","n/a",A9value/A9remlife)) -> 0 | P148: =IF(P$3>A9remlife,A9value-SUM($G148:O148),IF(A9remlife="N/A","n/a",A9value/A9remlife)) -> 0 | Q148: =IF(Q$3>A9remlife,A9value-SUM($G148:P148),IF(A9remlife="N/A","n/a",A9value/A9remlife)) -> 0
E149: Capex in year
F150: 1 | I150: =IF(A9stdlife="n/a","n/a",IF(I$3>(A9stdlife+$F150),('RFM input'!$H$151*(1+vanilla1)^0.5)-SUM($H150:H150),('RFM input'!$H$151*(1+vanilla1)^0.5)/A9stdlife)) -> 0 | J150: =IF(A9stdlife="n/a","n/a",IF(J$3>(A9stdlife+$F150),('RFM input'!$H$151*(1+vanilla1)^0.5)-SUM($H150:I150),('RFM input'!$H$151*(1+vanilla1)^0.5)/A9stdlife)) -> 0 | K150: =IF(A9stdlife="n/a","n/a",IF(K$3>(A9stdlife+$F150),('RFM input'!$H$151*(1+vanilla1)^0.5)-SUM($H150:J150),('RFM input'!$H$151*(1+vanilla1)^0.5)/A9stdlife)) -> 0 | L150: =IF(A9stdlife="n/a","n/a",IF(L$3>(A9stdlife+$F150),('RFM input'!$H$151*(1+vanilla1)^0.5)-SUM($H150:K150),('RFM input'!$H$151*(1+vanilla1)^0.5)/A9stdlife)) -> 0 | M150: =IF(A9stdlife="n/a","n/a",IF(M$3>(A9stdlife+$F150),('RFM input'!$H$151*(1+vanilla1)^0.5)-SUM($H150:L150),('RFM input'!$H$151*(1+vanilla1)^0.5)/A9stdlife)) -> 0 | N150: =IF(A9stdlife="n/a","n/a",IF(N$3>(A9stdlife+$F150),('RFM input'!$H$151*(1+vanilla1)^0.5)-SUM($H150:M150),('RFM input'!$H$151*(1+vanilla1)^0.5)/A9stdlife)) -> 0 | O150: =IF(A9stdlife="n/a","n/a",IF(O$3>(A9stdlife+$F150),('RFM input'!$H$151*(1+vanilla1)^0.5)-SUM($H150:N150),('RFM input'!$H$151*(1+vanilla1)^0.5)/A9stdlife)) -> 0 | P150: =IF(A9stdlife="n/a","n/a",IF(P$3>(A9stdlife+$F150),('RFM input'!$H$151*(1+vanilla1)^0.5)-SUM($H150:O150),('RFM input'!$H$151*(1+vanilla1)^0.5)/A9stdlife)) -> 0 | Q150: =IF(A9stdlife="n/a","n/a",IF(Q$3>(A9stdlife+$F150),('RFM input'!$H$151*(1+vanilla1)^0.5)-SUM($H150:P150),('RFM input'!$H$151*(1+vanilla1)^0.5)/A9stdlife)) -> 0
F151: 2 | J151: =IF(A9stdlife="n/a","n/a",IF(J$3>(A9stdlife+$F151),('RFM input'!$I$151*(1+vanilla2)^0.5)-SUM($I151:I151),('RFM input'!$I$151*(1+vanilla2)^0.5)/A9stdlife)) -> 0 | K151: =IF(A9stdlife="n/a","n/a",IF(K$3>(A9stdlife+$F151),('RFM input'!$I$151*(1+vanilla2)^0.5)-SUM($I151:J151),('RFM input'!$I$151*(1+vanilla2)^0.5)/A9stdlife)) -> 0 | L151: =IF(A9stdlife="n/a","n/a",IF(L$3>(A9stdlife+$F151),('RFM input'!$I$151*(1+vanilla2)^0.5)-SUM($I151:K151),('RFM input'!$I$151*(1+vanilla2)^0.5)/A9stdlife)) -> 0 | M151: =IF(A9stdlife="n/a","n/a",IF(M$3>(A9stdlife+$F151),('RFM input'!$I$151*(1+vanilla2)^0.5)-SUM($I151:L151),('RFM input'!$I$151*(1+vanilla2)^0.5)/A9stdlife)) -> 0 | N151: =IF(A9stdlife="n/a","n/a",IF(N$3>(A9stdlife+$F151),('RFM input'!$I$151*(1+vanilla2)^0.5)-SUM($I151:M151),('RFM input'!$I$151*(1+vanilla2)^0.5)/A9stdlife)) -> 0 | O151: =IF(A9stdlife="n/a","n/a",IF(O$3>(A9stdlife+$F151),('RFM input'!$I$151*(1+vanilla2)^0.5)-SUM($I151:N151),('RFM input'!$I$151*(1+vanilla2)^0.5)/A9stdlife)) -> 0 | P151: =IF(A9stdlife="n/a","n/a",IF(P$3>(A9stdlife+$F151),('RFM input'!$I$151*(1+vanilla2)^0.5)-SUM($I151:O151),('RFM input'!$I$151*(1+vanilla2)^0.5)/A9stdlife)) -> 0 | Q151: =IF(A9stdlife="n/a","n/a",IF(Q$3>(A9stdlife+$F151),('RFM input'!$I$151*(1+vanilla2)^0.5)-SUM($I151:P151),('RFM input'!$I$151*(1+vanilla2)^0.5)/A9stdlife)) -> 0
F152: 3 | K152: =IF(A9stdlife="n/a","n/a",IF(K$3>(A9stdlife+$F152),('RFM input'!$J$151*(1+vanilla3)^0.5)-SUM($J152:J152),('RFM input'!$J$151*(1+vanilla3)^0.5)/A9stdlife)) -> 0 | L152: =IF(A9stdlife="n/a","n/a",IF(L$3>(A9stdlife+$F152),('RFM input'!$J$151*(1+vanilla3)^0.5)-SUM($J152:K152),('RFM input'!$J$151*(1+vanilla3)^0.5)/A9stdlife)) -> 0 | M152: =IF(A9stdlife="n/a","n/a",IF(M$3>(A9stdlife+$F152),('RFM input'!$J$151*(1+vanilla3)^0.5)-SUM($J152:L152),('RFM input'!$J$151*(1+vanilla3)^0.5)/A9stdlife)) -> 0 | N152: =IF(A9stdlife="n/a","n/a",IF(N$3>(A9stdlife+$F152),('RFM input'!$J$151*(1+vanilla3)^0.5)-SUM($J152:M152),('RFM input'!$J$151*(1+vanilla3)^0.5)/A9stdlife)) -> 0 | O152: =IF(A9stdlife="n/a","n/a",IF(O$3>(A9stdlife+$F152),('RFM input'!$J$151*(1+vanilla3)^0.5)-SUM($J152:N152),('RFM input'!$J$151*(1+vanilla3)^0.5)/A9stdlife)) -> 0 | P152: =IF(A9stdlife="n/a","n/a",IF(P$3>(A9stdlife+$F152),('RFM input'!$J$151*(1+vanilla3)^0.5)-SUM($J152:O152),('RFM input'!$J$151*(1+vanilla3)^0.5)/A9stdlife)) -> 0 | Q152: =IF(A9stdlife="n/a","n/a",IF(Q$3>(A9stdlife+$F152),('RFM input'!$J$151*(1+vanilla3)^0.5)-SUM($J152:P152),('RFM input'!$J$151*(1+vanilla3)^0.5)/A9stdlife)) -> 0
F153: 4 | L153: =IF(A9stdlife="n/a","n/a",IF(L$3>(A9stdlife+$F153),('RFM input'!$K$151*(1+vanilla4)^0.5)-SUM($K153:K153),('RFM input'!$K$151*(1+vanilla4)^0.5)/A9stdlife)) -> 0 | M153: =IF(A9stdlife="n/a","n/a",IF(M$3>(A9stdlife+$F153),('RFM input'!$K$151*(1+vanilla4)^0.5)-SUM($K153:L153),('RFM input'!$K$151*(1+vanilla4)^0.5)/A9stdlife)) -> 0 | N153: =IF(A9stdlife="n/a","n/a",IF(N$3>(A9stdlife+$F153),('RFM input'!$K$151*(1+vanilla4)^0.5)-SUM($K153:M153),('RFM input'!$K$151*(1+vanilla4)^0.5)/A9stdlife)) -> 0 | O153: =IF(A9stdlife="n/a","n/a",IF(O$3>(A9stdlife+$F153),('RFM input'!$K$151*(1+vanilla4)^0.5)-SUM($K153:N153),('RFM input'!$K$151*(1+vanilla4)^0.5)/A9stdlife)) -> 0 | P153: =IF(A9stdlife="n/a","n/a",IF(P$3>(A9stdlife+$F153),('RFM input'!$K$151*(1+vanilla4)^0.5)-SUM($K153:O153),('RFM input'!$K$151*(1+vanilla4)^0.5)/A9stdlife)) -> 0 | Q153: =IF(A9stdlife="n/a","n/a",IF(Q$3>(A9stdlife+$F153),('RFM input'!$K$151*(1+vanilla4)^0.5)-SUM($K153:P153),('RFM input'!$K$151*(1+vanilla4)^0.5)/A9stdlife)) -> 0
F154: 5 | M154: =IF(A9stdlife="n/a","n/a",IF(M$3>(A9stdlife+$F154),('RFM input'!$L$151*(1+vanilla5)^0.5)-SUM($L154:L154),('RFM input'!$L$151*(1+vanilla5)^0.5)/A9stdlife)) -> 0 | N154: =IF(A9stdlife="n/a","n/a",IF(N$3>(A9stdlife+$F154),('RFM input'!$L$151*(1+vanilla5)^0.5)-SUM($L154:M154),('RFM input'!$L$151*(1+vanilla5)^0.5)/A9stdlife)) -> 0 | O154: =IF(A9stdlife="n/a","n/a",IF(O$3>(A9stdlife+$F154),('RFM input'!$L$151*(1+vanilla5)^0.5)-SUM($L154:N154),('RFM input'!$L$151*(1+vanilla5)^0.5)/A9stdlife)) -> 0 | P154: =IF(A9stdlife="n/a","n/a",IF(P$3>(A9stdlife+$F154),('RFM input'!$L$151*(1+vanilla5)^0.5)-SUM($L154:O154),('RFM input'!$L$151*(1+vanilla5)^0.5)/A9stdlife)) -> 0 | Q154: =IF(A9stdlife="n/a","n/a",IF(Q$3>(A9stdlife+$F154),('RFM input'!$L$151*(1+vanilla5)^0.5)-SUM($L154:P154),('RFM input'!$L$151*(1+vanilla5)^0.5)/A9stdlife)) -> 0
F155: 6 | N155: =IF(A9stdlife="n/a","n/a",IF(N$3>(A9stdlife+$F155),('RFM input'!$M$151*(1+vanilla6)^0.5)-SUM($M155:M155),('RFM input'!$M$151*(1+vanilla6)^0.5)/A9stdlife)) -> 0 | O155: =IF(A9stdlife="n/a","n/a",IF(O$3>(A9stdlife+$F155),('RFM input'!$M$151*(1+vanilla6)^0.5)-SUM($M155:N155),('RFM input'!$M$151*(1+vanilla6)^0.5)/A9stdlife)) -> 0 | P155: =IF(A9stdlife="n/a","n/a",IF(P$3>(A9stdlife+$F155),('RFM input'!$M$151*(1+vanilla6)^0.5)-SUM($M155:O155),('RFM input'!$M$151*(1+vanilla6)^0.5)/A9stdlife)) -> 0 | Q155: =IF(A9stdlife="n/a","n/a",IF(Q$3>(A9stdlife+$F155),('RFM input'!$M$151*(1+vanilla6)^0.5)-SUM($M155:P155),('RFM input'!$M$151*(1+vanilla6)^0.5)/A9stdlife)) -> 0
F156: 7 | O156: =IF(A9stdlife="n/a","n/a",IF(O$3>(A9stdlife+$F156),('RFM input'!$N$151*(1+vanilla7)^0.5)-SUM($N156:N156),('RFM input'!$N$151*(1+vanilla7)^0.5)/A9stdlife)) -> 0 | P156: =IF(A9stdlife="n/a","n/a",IF(P$3>(A9stdlife+$F156),('RFM input'!$N$151*(1+vanilla7)^0.5)-SUM($N156:O156),('RFM input'!$N$151*(1+vanilla7)^0.5)/A9stdlife)) -> 0 | Q156: =IF(A9stdlife="n/a","n/a",IF(Q$3>(A9stdlife+$F156),('RFM input'!$N$151*(1+vanilla7)^0.5)-SUM($N156:P156),('RFM input'!$N$151*(1+vanilla7)^0.5)/A9stdlife)) -> 0
F157: 8 | P157: =IF(A9stdlife="n/a","n/a",IF(P$3>(A9stdlife+$F157),('RFM input'!$O$151*(1+vanilla8)^0.5)-SUM($O157:O157),('RFM input'!$O$151*(1+vanilla8)^0.5)/A9stdlife)) -> 0 | Q157: =IF(A9stdlife="n/a","n/a",IF(Q$3>(A9stdlife+$F157),('RFM input'!$O$151*(1+vanilla8)^0.5)-SUM($O157:P157),('RFM input'!$O$151*(1+vanilla8)^0.5)/A9stdlife)) -> 0
F158: 9 | Q158: =IF(A9stdlife="n/a","n/a",IF(Q$3>(A9stdlife+$F158),('RFM input'!$P$151*(1+vanilla9)^0.5)-SUM($P158:P158),('RFM input'!$P$151*(1+vanilla9)^0.5)/A9stdlife)) -> 0
F159: 10
D160: =Asset9 -> 0 | H160: =IF('RFM input'!$F$193='RFM input'!$H$192,-'RFM input'!H206,-SUM(H148:H159)) -> 0 | I160: =IF('RFM input'!$F$193='RFM input'!$H$192,-'RFM input'!I206,-SUM(I148:I159)) -> 0 | J160: =IF(COUNT($H160:I160)>='RFM input'!$W$7,0,IF('RFM input'!$F$193='RFM input'!$H$192,-'RFM input'!J206,-SUM(J148:J159))) -> 0 | K160: =IF(COUNT($H160:J160)>='RFM input'!$W$7,0,IF('RFM input'!$F$193='RFM input'!$H$192,-'RFM input'!K206,-SUM(K148:K159))) -> 0 | L160: =IF(COUNT($H160:K160)>='RFM input'!$W$7,0,IF('RFM input'!$F$193='RFM input'!$H$192,-'RFM input'!L206,-SUM(L148:L159))) -> 0 | M160: =IF(COUNT($H160:L160)>='RFM input'!$W$7,0,IF('RFM input'!$F$193='RFM input'!$H$192,-'RFM input'!M206,-SUM(M148:M159))) -> 0 | N160: =IF(COUNT($H160:M160)>='RFM input'!$W$7,0,IF('RFM input'!$F$193='RFM input'!$H$192,-'RFM input'!N206,-SUM(N148:N159))) -> 0 | O160: =IF(COUNT($H160:N160)>='RFM input'!$W$7,0,IF('RFM input'!$F$193='RFM input'!$H$192,-'RFM input'!O206,-SUM(O148:O159))) -> 0 | P160: =IF(COUNT($H160:O160)>='RFM input'!$W$7,0,IF('RFM input'!$F$193='RFM input'!$H$192,-'RFM input'!P206,-SUM(P148:P159))) -> 0 | Q160: =IF(COUNT($H160:P160)>='RFM input'!$W$7,0,IF('RFM input'!$F$193='RFM input'!$H$192,-'RFM input'!Q206,-SUM(Q148:Q159))) -> 0
C161: =Asset10 -> 0 | E161: Opening RAB | H161: =IF(H$3>A10remlife,A10value-SUM($G161:G161),IF(A10remlife="N/A","n/a",A10value/A10remlife)) -> 0 | I161: =IF(I$3>A10remlife,A10value-SUM($G161:H161),IF(A10remlife="N/A","n/a",A10value/A10remlife)) -> 0 | J161: =IF(J$3>A10remlife,A10value-SUM($G161:I161),IF(A10remlife="N/A","n/a",A10value/A10remlife)) -> 0 | K161: =IF(K$3>A10remlife,A10value-SUM($G161:J161),IF(A10remlife="N/A","n/a",A10value/A10remlife)) -> 0 | L161: =IF(L$3>A10remlife,A10value-SUM($G161:K161),IF(A10remlife="N/A","n/a",A10value/A10remlife)) -> 0 | M161: =IF(M$3>A10remlife,A10value-SUM($G161:L161),IF(A10remlife="N/A","n/a",A10value/A10remlife)) -> 0 | N161: =IF(N$3>A10remlife,A10value-SUM($G161:M161),IF(A10remlife="N/A","n/a",A10value/A10remlife)) -> 0 | O161: =IF(O$3>A10remlife,A10value-SUM($G161:N161),IF(A10remlife="N/A","n/a",A10value/A10remlife)) -> 0 | P161: =IF(P$3>A10remlife,A10value-SUM($G161:O161),IF(A10remlife="N/A","n/a",A10value/A10remlife)) -> 0 | Q161: =IF(Q$3>A10remlife,A10value-SUM($G161:P161),IF(A10remlife="N/A","n/a",A10value/A10remlife)) -> 0
E162: Capex in year
F163: 1 | I163: =IF(A10stdlife="n/a","n/a",IF(I$3>(A10stdlife+$F163),('RFM input'!$H$152*(1+vanilla1)^0.5)-SUM($H163:H163),('RFM input'!$H$152*(1+vanilla1)^0.5)/A10stdlife)) -> 0 | J163: =IF(A10stdlife="n/a","n/a",IF(J$3>(A10stdlife+$F163),('RFM input'!$H$152*(1+vanilla1)^0.5)-SUM($H163:I163),('RFM input'!$H$152*(1+vanilla1)^0.5)/A10stdlife)) -> 0 | K163: =IF(A10stdlife="n/a","n/a",IF(K$3>(A10stdlife+$F163),('RFM input'!$H$152*(1+vanilla1)^0.5)-SUM($H163:J163),('RFM input'!$H$152*(1+vanilla1)^0.5)/A10stdlife)) -> 0 | L163: =IF(A10stdlife="n/a","n/a",IF(L$3>(A10stdlife+$F163),('RFM input'!$H$152*(1+vanilla1)^0.5)-SUM($H163:K163),('RFM input'!$H$152*(1+vanilla1)^0.5)/A10stdlife)) -> 0 | M163: =IF(A10stdlife="n/a","n/a",IF(M$3>(A10stdlife+$F163),('RFM input'!$H$152*(1+vanilla1)^0.5)-SUM($H163:L163),('RFM input'!$H$152*(1+vanilla1)^0.5)/A10stdlife)) -> 0 | N163: =IF(A10stdlife="n/a","n/a",IF(N$3>(A10stdlife+$F163),('RFM input'!$H$152*(1+vanilla1)^0.5)-SUM($H163:M163),('RFM input'!$H$152*(1+vanilla1)^0.5)/A10stdlife)) -> 0 | O163: =IF(A10stdlife="n/a","n/a",IF(O$3>(A10stdlife+$F163),('RFM input'!$H$152*(1+vanilla1)^0.5)-SUM($H163:N163),('RFM input'!$H$152*(1+vanilla1)^0.5)/A10stdlife)) -> 0 | P163: =IF(A10stdlife="n/a","n/a",IF(P$3>(A10stdlife+$F163),('RFM input'!$H$152*(1+vanilla1)^0.5)-SUM($H163:O163),('RFM input'!$H$152*(1+vanilla1)^0.5)/A10stdlife)) -> 0 | Q163: =IF(A10stdlife="n/a","n/a",IF(Q$3>(A10stdlife+$F163),('RFM input'!$H$152*(1+vanilla1)^0.5)-SUM($H163:P163),('RFM input'!$H$152*(1+vanilla1)^0.5)/A10stdlife)) -> 0
F164: 2 | J164: =IF(A10stdlife="n/a","n/a",IF(J$3>(A10stdlife+$F164),('RFM input'!$I$152*(1+vanilla2)^0.5)-SUM($I164:I164),('RFM input'!$I$152*(1+vanilla2)^0.5)/A10stdlife)) -> 0 | K164: =IF(A10stdlife="n/a","n/a",IF(K$3>(A10stdlife+$F164),('RFM input'!$I$152*(1+vanilla2)^0.5)-SUM($I164:J164),('RFM input'!$I$152*(1+vanilla2)^0.5)/A10stdlife)) -> 0 | L164: =IF(A10stdlife="n/a","n/a",IF(L$3>(A10stdlife+$F164),('RFM input'!$I$152*(1+vanilla2)^0.5)-SUM($I164:K164),('RFM input'!$I$152*(1+vanilla2)^0.5)/A10stdlife)) -> 0 | M164: =IF(A10stdlife="n/a","n/a",IF(M$3>(A10stdlife+$F164),('RFM input'!$I$152*(1+vanilla2)^0.5)-SUM($I164:L164),('RFM input'!$I$152*(1+vanilla2)^0.5)/A10stdlife)) -> 0 | N164: =IF(A10stdlife="n/a","n/a",IF(N$3>(A10stdlife+$F164),('RFM input'!$I$152*(1+vanilla2)^0.5)-SUM($I164:M164),('RFM input'!$I$152*(1+vanilla2)^0.5)/A10stdlife)) -> 0 | O164: =IF(A10stdlife="n/a","n/a",IF(O$3>(A10stdlife+$F164),('RFM input'!$I$152*(1+vanilla2)^0.5)-SUM($I164:N164),('RFM input'!$I$152*(1+vanilla2)^0.5)/A10stdlife)) -> 0 | P164: =IF(A10stdlife="n/a","n/a",IF(P$3>(A10stdlife+$F164),('RFM input'!$I$152*(1+vanilla2)^0.5)-SUM($I164:O164),('RFM input'!$I$152*(1+vanilla2)^0.5)/A10stdlife)) -> 0 | Q164: =IF(A10stdlife="n/a","n/a",IF(Q$3>(A10stdlife+$F164),('RFM input'!$I$152*(1+vanilla2)^0.5)-SUM($I164:P164),('RFM input'!$I$152*(1+vanilla2)^0.5)/A10stdlife)) -> 0
F165: 3 | K165: =IF(A10stdlife="n/a","n/a",IF(K$3>(A10stdlife+$F165),('RFM input'!$J$152*(1+vanilla3)^0.5)-SUM($J165:J165),('RFM input'!$J$152*(1+vanilla3)^0.5)/A10stdlife)) -> 0 | L165: =IF(A10stdlife="n/a","n/a",IF(L$3>(A10stdlife+$F165),('RFM input'!$J$152*(1+vanilla3)^0.5)-SUM($J165:K165),('RFM input'!$J$152*(1+vanilla3)^0.5)/A10stdlife)) -> 0 | M165: =IF(A10stdlife="n/a","n/a",IF(M$3>(A10stdlife+$F165),('RFM input'!$J$152*(1+vanilla3)^0.5)-SUM($J165:L165),('RFM input'!$J$152*(1+vanilla3)^0.5)/A10stdlife)) -> 0 | N165: =IF(A10stdlife="n/a","n/a",IF(N$3>(A10stdlife+$F165),('RFM input'!$J$152*(1+vanilla3)^0.5)-SUM($J165:M165),('RFM input'!$J$152*(1+vanilla3)^0.5)/A10stdlife)) -> 0 | O165: =IF(A10stdlife="n/a","n/a",IF(O$3>(A10stdlife+$F165),('RFM input'!$J$152*(1+vanilla3)^0.5)-SUM($J165:N165),('RFM input'!$J$152*(1+vanilla3)^0.5)/A10stdlife)) -> 0 | P165: =IF(A10stdlife="n/a","n/a",IF(P$3>(A10stdlife+$F165),('RFM input'!$J$152*(1+vanilla3)^0.5)-SUM($J165:O165),('RFM input'!$J$152*(1+vanilla3)^0.5)/A10stdlife)) -> 0 | Q165: =IF(A10stdlife="n/a","n/a",IF(Q$3>(A10stdlife+$F165),('RFM input'!$J$152*(1+vanilla3)^0.5)-SUM($J165:P165),('RFM input'!$J$152*(1+vanilla3)^0.5)/A10stdlife)) -> 0
F166: 4 | L166: =IF(A10stdlife="n/a","n/a",IF(L$3>(A10stdlife+$F166),('RFM input'!$K$152*(1+vanilla4)^0.5)-SUM($K166:K166),('RFM input'!$K$152*(1+vanilla4)^0.5)/A10stdlife)) -> 0 | M166: =IF(A10stdlife="n/a","n/a",IF(M$3>(A10stdlife+$F166),('RFM input'!$K$152*(1+vanilla4)^0.5)-SUM($K166:L166),('RFM input'!$K$152*(1+vanilla4)^0.5)/A10stdlife)) -> 0 | N166: =IF(A10stdlife="n/a","n/a",IF(N$3>(A10stdlife+$F166),('RFM input'!$K$152*(1+vanilla4)^0.5)-SUM($K166:M166),('RFM input'!$K$152*(1+vanilla4)^0.5)/A10stdlife)) -> 0 | O166: =IF(A10stdlife="n/a","n/a",IF(O$3>(A10stdlife+$F166),('RFM input'!$K$152*(1+vanilla4)^0.5)-SUM($K166:N166),('RFM input'!$K$152*(1+vanilla4)^0.5)/A10stdlife)) -> 0 | P166: =IF(A10stdlife="n/a","n/a",IF(P$3>(A10stdlife+$F166),('RFM input'!$K$152*(1+vanilla4)^0.5)-SUM($K166:O166),('RFM input'!$K$152*(1+vanilla4)^0.5)/A10stdlife)) -> 0 | Q166: =IF(A10stdlife="n/a","n/a",IF(Q$3>(A10stdlife+$F166),('RFM input'!$K$152*(1+vanilla4)^0.5)-SUM($K166:P166),('RFM input'!$K$152*(1+vanilla4)^0.5)/A10stdlife)) -> 0
F167: 5 | M167: =IF(A10stdlife="n/a","n/a",IF(M$3>(A10stdlife+$F167),('RFM input'!$L$152*(1+vanilla5)^0.5)-SUM($L167:L167),('RFM input'!$L$152*(1+vanilla5)^0.5)/A10stdlife)) -> 0 | N167: =IF(A10stdlife="n/a","n/a",IF(N$3>(A10stdlife+$F167),('RFM input'!$L$152*(1+vanilla5)^0.5)-SUM($L167:M167),('RFM input'!$L$152*(1+vanilla5)^0.5)/A10stdlife)) -> 0 | O167: =IF(A10stdlife="n/a","n/a",IF(O$3>(A10stdlife+$F167),('RFM input'!$L$152*(1+vanilla5)^0.5)-SUM($L167:N167),('RFM input'!$L$152*(1+vanilla5)^0.5)/A10stdlife)) -> 0 | P167: =IF(A10stdlife="n/a","n/a",IF(P$3>(A10stdlife+$F167),('RFM input'!$L$152*(1+vanilla5)^0.5)-SUM($L167:O167),('RFM input'!$L$152*(1+vanilla5)^0.5)/A10stdlife)) -> 0 | Q167: =IF(A10stdlife="n/a","n/a",IF(Q$3>(A10stdlife+$F167),('RFM input'!$L$152*(1+vanilla5)^0.5)-SUM($L167:P167),('RFM input'!$L$152*(1+vanilla5)^0.5)/A10stdlife)) -> 0
F168: 6 | N168: =IF(A10stdlife="n/a","n/a",IF(N$3>(A10stdlife+$F168),('RFM input'!$M$152*(1+vanilla6)^0.5)-SUM($M168:M168),('RFM input'!$M$152*(1+vanilla6)^0.5)/A10stdlife)) -> 0 | O168: =IF(A10stdlife="n/a","n/a",IF(O$3>(A10stdlife+$F168),('RFM input'!$M$152*(1+vanilla6)^0.5)-SUM($M168:N168),('RFM input'!$M$152*(1+vanilla6)^0.5)/A10stdlife)) -> 0 | P168: =IF(A10stdlife="n/a","n/a",IF(P$3>(A10stdlife+$F168),('RFM input'!$M$152*(1+vanilla6)^0.5)-SUM($M168:O168),('RFM input'!$M$152*(1+vanilla6)^0.5)/A10stdlife)) -> 0 | Q168: =IF(A10stdlife="n/a","n/a",IF(Q$3>(A10stdlife+$F168),('RFM input'!$M$152*(1+vanilla6)^0.5)-SUM($M168:P168),('RFM input'!$M$152*(1+vanilla6)^0.5)/A10stdlife)) -> 0
F169: 7 | O169: =IF(A10stdlife="n/a","n/a",IF(O$3>(A10stdlife+$F169),('RFM input'!$N$152*(1+vanilla7)^0.5)-SUM($N169:N169),('RFM input'!$N$152*(1+vanilla7)^0.5)/A10stdlife)) -> 0 | P169: =IF(A10stdlife="n/a","n/a",IF(P$3>(A10stdlife+$F169),('RFM input'!$N$152*(1+vanilla7)^0.5)-SUM($N169:O169),('RFM input'!$N$152*(1+vanilla7)^0.5)/A10stdlife)) -> 0 | Q169: =IF(A10stdlife="n/a","n/a",IF(Q$3>(A10stdlife+$F169),('RFM input'!$N$152*(1+vanilla7)^0.5)-SUM($N169:P169),('RFM input'!$N$152*(1+vanilla7)^0.5)/A10stdlife)) -> 0
F170: 8 | P170: =IF(A10stdlife="n/a","n/a",IF(P$3>(A10stdlife+$F170),('RFM input'!$O$152*(1+vanilla8)^0.5)-SUM($O170:O170),('RFM input'!$O$152*(1+vanilla8)^0.5)/A10stdlife)) -> 0 | Q170: =IF(A10stdlife="n/a","n/a",IF(Q$3>(A10stdlife+$F170),('RFM input'!$O$152*(1+vanilla8)^0.5)-SUM($O170:P170),('RFM input'!$O$152*(1+vanilla8)^0.5)/A10stdlife)) -> 0
F171: 9 | Q171: =IF(A10stdlife="n/a","n/a",IF(Q$3>(A10stdlife+$F171),('RFM input'!$P$152*(1+vanilla9)^0.5)-SUM($P171:P171),('RFM input'!$P$152*(1+vanilla9)^0.5)/A10stdlife)) -> 0
F172: 10
D173: =Asset10 -> 0 | H173: =IF('RFM input'!$F$193='RFM input'!$H$192,-'RFM input'!H207,-SUM(H161:H172)) -> 0 | I173: =IF('RFM input'!$F$193='RFM input'!$H$192,-'RFM input'!I207,-SUM(I161:I172)) -> 0 | J173: =IF(COUNT($H173:I173)>='RFM input'!$W$7,0,IF('RFM input'!$F$193='RFM input'!$H$192,-'RFM input'!J207,-SUM(J161:J172))) -> 0 | K173: =IF(COUNT($H173:J173)>='RFM input'!$W$7,0,IF('RFM input'!$F$193='RFM input'!$H$192,-'RFM input'!K207,-SUM(K161:K172))) -> 0 | L173: =IF(COUNT($H173:K173)>='RFM input'!$W$7,0,IF('RFM input'!$F$193='RFM input'!$H$192,-'RFM input'!L207,-SUM(L161:L172))) -> 0 | M173: =IF(COUNT($H173:L173)>='RFM input'!$W$7,0,IF('RFM input'!$F$193='RFM input'!$H$192,-'RFM input'!M207,-SUM(M161:M172))) -> 0 | N173: =IF(COUNT($H173:M173)>='RFM input'!$W$7,0,IF('RFM input'!$F$193='RFM input'!$H$192,-'RFM input'!N207,-SUM(N161:N172))) -> 0 | O173: =IF(COUNT($H173:N173)>='RFM input'!$W$7,0,IF('RFM input'!$F$193='RFM input'!$H$192,-'RFM input'!O207,-SUM(O161:O172))) -> 0 | P173: =IF(COUNT($H173:O173)>='RFM input'!$W$7,0,IF('RFM input'!$F$193='RFM input'!$H$192,-'RFM input'!P207,-SUM(P161:P172))) -> 0 | Q173: =IF(COUNT($H173:P173)>='RFM input'!$W$7,0,IF('RFM input'!$F$193='RFM input'!$H$192,-'RFM input'!Q207,-SUM(Q161:Q172))) -> 0
C174: =Asset11 -> 0 | E174: Opening RAB | H174: =IF(H$3>A11remlife,A11value-SUM($G174:G174),IF(A11remlife="N/A","n/a",A11value/A11remlife)) -> 0 | I174: =IF(I$3>A11remlife,A11value-SUM($G174:H174),IF(A11remlife="N/A","n/a",A11value/A11remlife)) -> 0 | J174: =IF(J$3>A11remlife,A11value-SUM($G174:I174),IF(A11remlife="N/A","n/a",A11value/A11remlife)) -> 0 | K174: =IF(K$3>A11remlife,A11value-SUM($G174:J174),IF(A11remlife="N/A","n/a",A11value/A11remlife)) -> 0 | L174: =IF(L$3>A11remlife,A11value-SUM($G174:K174),IF(A11remlife="N/A","n/a",A11value/A11remlife)) -> 0 | M174: =IF(M$3>A11remlife,A11value-SUM($G174:L174),IF(A11remlife="N/A","n/a",A11value/A11remlife)) -> 0 | N174: =IF(N$3>A11remlife,A11value-SUM($G174:M174),IF(A11remlife="N/A","n/a",A11value/A11remlife)) -> 0 | O174: =IF(O$3>A11remlife,A11value-SUM($G174:N174),IF(A11remlife="N/A","n/a",A11value/A11remlife)) -> 0 | P174: =IF(P$3>A11remlife,A11value-SUM($G174:O174),IF(A11remlife="N/A","n/a",A11value/A11remlife)) -> 0 | Q174: =IF(Q$3>A11remlife,A11value-SUM($G174:P174),IF(A11remlife="N/A","n/a",A11value/A11remlife)) -> 0
E175: Capex in year
F176: 1 | I176: =IF(A11stdlife="n/a","n/a",IF(I$3>(A11stdlife+$F176),('RFM input'!$H$153*(1+vanilla1)^0.5)-SUM($H176:H176),('RFM input'!$H$153*(1+vanilla1)^0.5)/A11stdlife)) -> 0 | J176: =IF(A11stdlife="n/a","n/a",IF(J$3>(A11stdlife+$F176),('RFM input'!$H$153*(1+vanilla1)^0.5)-SUM($H176:I176),('RFM input'!$H$153*(1+vanilla1)^0.5)/A11stdlife)) -> 0 | K176: =IF(A11stdlife="n/a","n/a",IF(K$3>(A11stdlife+$F176),('RFM input'!$H$153*(1+vanilla1)^0.5)-SUM($H176:J176),('RFM input'!$H$153*(1+vanilla1)^0.5)/A11stdlife)) -> 0 | L176: =IF(A11stdlife="n/a","n/a",IF(L$3>(A11stdlife+$F176),('RFM input'!$H$153*(1+vanilla1)^0.5)-SUM($H176:K176),('RFM input'!$H$153*(1+vanilla1)^0.5)/A11stdlife)) -> 0 | M176: =IF(A11stdlife="n/a","n/a",IF(M$3>(A11stdlife+$F176),('RFM input'!$H$153*(1+vanilla1)^0.5)-SUM($H176:L176),('RFM input'!$H$153*(1+vanilla1)^0.5)/A11stdlife)) -> 0 | N176: =IF(A11stdlife="n/a","n/a",IF(N$3>(A11stdlife+$F176),('RFM input'!$H$153*(1+vanilla1)^0.5)-SUM($H176:M176),('RFM input'!$H$153*(1+vanilla1)^0.5)/A11stdlife)) -> 0 | O176: =IF(A11stdlife="n/a","n/a",IF(O$3>(A11stdlife+$F176),('RFM input'!$H$153*(1+vanilla1)^0.5)-SUM($H176:N176),('RFM input'!$H$153*(1+vanilla1)^0.5)/A11stdlife)) -> 0 | P176: =IF(A11stdlife="n/a","n/a",IF(P$3>(A11stdlife+$F176),('RFM input'!$H$153*(1+vanilla1)^0.5)-SUM($H176:O176),('RFM input'!$H$153*(1+vanilla1)^0.5)/A11stdlife)) -> 0 | Q176: =IF(A11stdlife="n/a","n/a",IF(Q$3>(A11stdlife+$F176),('RFM input'!$H$153*(1+vanilla1)^0.5)-SUM($H176:P176),('RFM input'!$H$153*(1+vanilla1)^0.5)/A11stdlife)) -> 0
F177: 2 | J177: =IF(A11stdlife="n/a","n/a",IF(J$3>(A11stdlife+$F177),('RFM input'!$I$153*(1+vanilla2)^0.5)-SUM($I177:I177),('RFM input'!$I$153*(1+vanilla2)^0.5)/A11stdlife)) -> 0 | K177: =IF(A11stdlife="n/a","n/a",IF(K$3>(A11stdlife+$F177),('RFM input'!$I$153*(1+vanilla2)^0.5)-SUM($I177:J177),('RFM input'!$I$153*(1+vanilla2)^0.5)/A11stdlife)) -> 0 | L177: =IF(A11stdlife="n/a","n/a",IF(L$3>(A11stdlife+$F177),('RFM input'!$I$153*(1+vanilla2)^0.5)-SUM($I177:K177),('RFM input'!$I$153*(1+vanilla2)^0.5)/A11stdlife)) -> 0 | M177: =IF(A11stdlife="n/a","n/a",IF(M$3>(A11stdlife+$F177),('RFM input'!$I$153*(1+vanilla2)^0.5)-SUM($I177:L177),('RFM input'!$I$153*(1+vanilla2)^0.5)/A11stdlife)) -> 0 | N177: =IF(A11stdlife="n/a","n/a",IF(N$3>(A11stdlife+$F177),('RFM input'!$I$153*(1+vanilla2)^0.5)-SUM($I177:M177),('RFM input'!$I$153*(1+vanilla2)^0.5)/A11stdlife)) -> 0 | O177: =IF(A11stdlife="n/a","n/a",IF(O$3>(A11stdlife+$F177),('RFM input'!$I$153*(1+vanilla2)^0.5)-SUM($I177:N177),('RFM input'!$I$153*(1+vanilla2)^0.5)/A11stdlife)) -> 0 | P177: =IF(A11stdlife="n/a","n/a",IF(P$3>(A11stdlife+$F177),('RFM input'!$I$153*(1+vanilla2)^0.5)-SUM($I177:O177),('RFM input'!$I$153*(1+vanilla2)^0.5)/A11stdlife)) -> 0 | Q177: =IF(A11stdlife="n/a","n/a",IF(Q$3>(A11stdlife+$F177),('RFM input'!$I$153*(1+vanilla2)^0.5)-SUM($I177:P177),('RFM input'!$I$153*(1+vanilla2)^0.5)/A11stdlife)) -> 0
F178: 3 | K178: =IF(A11stdlife="n/a","n/a",IF(K$3>(A11stdlife+$F178),('RFM input'!$J$153*(1+vanilla3)^0.5)-SUM($J178:J178),('RFM input'!$J$153*(1+vanilla3)^0.5)/A11stdlife)) -> 0 | L178: =IF(A11stdlife="n/a","n/a",IF(L$3>(A11stdlife+$F178),('RFM input'!$J$153*(1+vanilla3)^0.5)-SUM($J178:K178),('RFM input'!$J$153*(1+vanilla3)^0.5)/A11stdlife)) -> 0 | M178: =IF(A11stdlife="n/a","n/a",IF(M$3>(A11stdlife+$F178),('RFM input'!$J$153*(1+vanilla3)^0.5)-SUM($J178:L178),('RFM input'!$J$153*(1+vanilla3)^0.5)/A11stdlife)) -> 0 | N178: =IF(A11stdlife="n/a","n/a",IF(N$3>(A11stdlife+$F178),('RFM input'!$J$153*(1+vanilla3)^0.5)-SUM($J178:M178),('RFM input'!$J$153*(1+vanilla3)^0.5)/A11stdlife)) -> 0 | O178: =IF(A11stdlife="n/a","n/a",IF(O$3>(A11stdlife+$F178),('RFM input'!$J$153*(1+vanilla3)^0.5)-SUM($J178:N178),('RFM input'!$J$153*(1+vanilla3)^0.5)/A11stdlife)) -> 0 | P178: =IF(A11stdlife="n/a","n/a",IF(P$3>(A11stdlife+$F178),('RFM input'!$J$153*(1+vanilla3)^0.5)-SUM($J178:O178),('RFM input'!$J$153*(1+vanilla3)^0.5)/A11stdlife)) -> 0 | Q178: =IF(A11stdlife="n/a","n/a",IF(Q$3>(A11stdlife+$F178),('RFM input'!$J$153*(1+vanilla3)^0.5)-SUM($J178:P178),('RFM input'!$J$153*(1+vanilla3)^0.5)/A11stdlife)) -> 0
F179: 4 | L179: =IF(A11stdlife="n/a","n/a",IF(L$3>(A11stdlife+$F179),('RFM input'!$K$153*(1+vanilla4)^0.5)-SUM($K179:K179),('RFM input'!$K$153*(1+vanilla4)^0.5)/A11stdlife)) -> 0 | M179: =IF(A11stdlife="n/a","n/a",IF(M$3>(A11stdlife+$F179),('RFM input'!$K$153*(1+vanilla4)^0.5)-SUM($K179:L179),('RFM input'!$K$153*(1+vanilla4)^0.5)/A11stdlife)) -> 0 | N179: =IF(A11stdlife="n/a","n/a",IF(N$3>(A11stdlife+$F179),('RFM input'!$K$153*(1+vanilla4)^0.5)-SUM($K179:M179),('RFM input'!$K$153*(1+vanilla4)^0.5)/A11stdlife)) -> 0 | O179: =IF(A11stdlife="n/a","n/a",IF(O$3>(A11stdlife+$F179),('RFM input'!$K$153*(1+vanilla4)^0.5)-SUM($K179:N179),('RFM input'!$K$153*(1+vanilla4)^0.5)/A11stdlife)) -> 0 | P179: =IF(A11stdlife="n/a","n/a",IF(P$3>(A11stdlife+$F179),('RFM input'!$K$153*(1+vanilla4)^0.5)-SUM($K179:O179),('RFM input'!$K$153*(1+vanilla4)^0.5)/A11stdlife)) -> 0 | Q179: =IF(A11stdlife="n/a","n/a",IF(Q$3>(A11stdlife+$F179),('RFM input'!$K$153*(1+vanilla4)^0.5)-SUM($K179:P179),('RFM input'!$K$153*(1+vanilla4)^0.5)/A11stdlife)) -> 0
F180: 5 | M180: =IF(A11stdlife="n/a","n/a",IF(M$3>(A11stdlife+$F180),('RFM input'!$L$153*(1+vanilla5)^0.5)-SUM($L180:L180),('RFM input'!$L153*(1+vanilla5)^0.5)/A11stdlife)) -> 0 | N180: =IF(A11stdlife="n/a","n/a",IF(N$3>(A11stdlife+$F180),('RFM input'!$L$153*(1+vanilla5)^0.5)-SUM($L180:M180),('RFM input'!$L153*(1+vanilla5)^0.5)/A11stdlife)) -> 0 | O180: =IF(A11stdlife="n/a","n/a",IF(O$3>(A11stdlife+$F180),('RFM input'!$L$153*(1+vanilla5)^0.5)-SUM($L180:N180),('RFM input'!$L153*(1+vanilla5)^0.5)/A11stdlife)) -> 0 | P180: =IF(A11stdlife="n/a","n/a",IF(P$3>(A11stdlife+$F180),('RFM input'!$L$153*(1+vanilla5)^0.5)-SUM($L180:O180),('RFM input'!$L153*(1+vanilla5)^0.5)/A11stdlife)) -> 0 | Q180: =IF(A11stdlife="n/a","n/a",IF(Q$3>(A11stdlife+$F180),('RFM input'!$L$153*(1+vanilla5)^0.5)-SUM($L180:P180),('RFM input'!$L153*(1+vanilla5)^0.5)/A11stdlife)) -> 0
F181: 6 | N181: =IF(A11stdlife="n/a","n/a",IF(N$3>(A11stdlife+$F181),('RFM input'!$M$153*(1+vanilla6)^0.5)-SUM($M181:M181),('RFM input'!$M$153*(1+vanilla6)^0.5)/A11stdlife)) -> 0 | O181: =IF(A11stdlife="n/a","n/a",IF(O$3>(A11stdlife+$F181),('RFM input'!$M$153*(1+vanilla6)^0.5)-SUM($M181:N181),('RFM input'!$M$153*(1+vanilla6)^0.5)/A11stdlife)) -> 0 | P181: =IF(A11stdlife="n/a","n/a",IF(P$3>(A11stdlife+$F181),('RFM input'!$M$153*(1+vanilla6)^0.5)-SUM($M181:O181),('RFM input'!$M$153*(1+vanilla6)^0.5)/A11stdlife)) -> 0 | Q181: =IF(A11stdlife="n/a","n/a",IF(Q$3>(A11stdlife+$F181),('RFM input'!$M$153*(1+vanilla6)^0.5)-SUM($M181:P181),('RFM input'!$M$153*(1+vanilla6)^0.5)/A11stdlife)) -> 0
F182: 7 | O182: =IF(A11stdlife="n/a","n/a",IF(O$3>(A11stdlife+$F182),('RFM input'!$N$153*(1+vanilla7)^0.5)-SUM($N182:N182),('RFM input'!$N$153*(1+vanilla7)^0.5)/A11stdlife)) -> 0 | P182: =IF(A11stdlife="n/a","n/a",IF(P$3>(A11stdlife+$F182),('RFM input'!$N$153*(1+vanilla7)^0.5)-SUM($N182:O182),('RFM input'!$N$153*(1+vanilla7)^0.5)/A11stdlife)) -> 0 | Q182: =IF(A11stdlife="n/a","n/a",IF(Q$3>(A11stdlife+$F182),('RFM input'!$N$153*(1+vanilla7)^0.5)-SUM($N182:P182),('RFM input'!$N$153*(1+vanilla7)^0.5)/A11stdlife)) -> 0
F183: 8 | P183: =IF(A11stdlife="n/a","n/a",IF(P$3>(A11stdlife+$F183),('RFM input'!$O$153*(1+vanilla8)^0.5)-SUM($O183:O183),('RFM input'!$O$153*(1+vanilla8)^0.5)/A11stdlife)) -> 0 | Q183: =IF(A11stdlife="n/a","n/a",IF(Q$3>(A11stdlife+$F183),('RFM input'!$O$153*(1+vanilla8)^0.5)-SUM($O183:P183),('RFM input'!$O$153*(1+vanilla8)^0.5)/A11stdlife)) -> 0
F184: 9 | Q184: =IF(A11stdlife="n/a","n/a",IF(Q$3>(A11stdlife+$F184),('RFM input'!$P$153*(1+vanilla9)^0.5)-SUM($P184:P184),('RFM input'!$P$153*(1+vanilla9)^0.5)/A11stdlife)) -> 0
F185: 10
D186: =Asset11 -> 0 | H186: =IF('RFM input'!$F$193='RFM input'!$H$192,-'RFM input'!H208,-SUM(H174:H185)) -> 0 | I186: =IF('RFM input'!$F$193='RFM input'!$H$192,-'RFM input'!I208,-SUM(I174:I185)) -> 0 | J186: =IF(COUNT($H186:I186)>='RFM input'!$W$7,0,IF('RFM input'!$F$193='RFM input'!$H$192,-'RFM input'!J208,-SUM(J174:J185))) -> 0 | K186: =IF(COUNT($H186:J186)>='RFM input'!$W$7,0,IF('RFM input'!$F$193='RFM input'!$H$192,-'RFM input'!K208,-SUM(K174:K185))) -> 0 | L186: =IF(COUNT($H186:K186)>='RFM input'!$W$7,0,IF('RFM input'!$F$193='RFM input'!$H$192,-'RFM input'!L208,-SUM(L174:L185))) -> 0 | M186: =IF(COUNT($H186:L186)>='RFM input'!$W$7,0,IF('RFM input'!$F$193='RFM input'!$H$192,-'RFM input'!M208,-SUM(M174:M185))) -> 0 | N186: =IF(COUNT($H186:M186)>='RFM input'!$W$7,0,IF('RFM input'!$F$193='RFM input'!$H$192,-'RFM input'!N208,-SUM(N174:N185))) -> 0 | O186: =IF(COUNT($H186:N186)>='RFM input'!$W$7,0,IF('RFM input'!$F$193='RFM input'!$H$192,-'RFM input'!O208,-SUM(O174:O185))) -> 0 | P186: =IF(COUNT($H186:O186)>='RFM input'!$W$7,0,IF('RFM input'!$F$193='RFM input'!$H$192,-'RFM input'!P208,-SUM(P174:P185))) -> 0 | Q186: =IF(COUNT($H186:P186)>='RFM input'!$W$7,0,IF('RFM input'!$F$193='RFM input'!$H$192,-'RFM input'!Q208,-SUM(Q174:Q185))) -> 0
C187: =Asset12 -> 0 | E187: Opening RAB | H187: =IF(H$3>A12remlife,A12value-SUM($G187:G187),IF(A12remlife="N/A","n/a",A12value/A12remlife)) -> 0 | I187: =IF(I$3>A12remlife,A12value-SUM($G187:H187),IF(A12remlife="N/A","n/a",A12value/A12remlife)) -> 0 | J187: =IF(J$3>A12remlife,A12value-SUM($G187:I187),IF(A12remlife="N/A","n/a",A12value/A12remlife)) -> 0 | K187: =IF(K$3>A12remlife,A12value-SUM($G187:J187),IF(A12remlife="N/A","n/a",A12value/A12remlife)) -> 0 | L187: =IF(L$3>A12remlife,A12value-SUM($G187:K187),IF(A12remlife="N/A","n/a",A12value/A12remlife)) -> 0 | M187: =IF(M$3>A12remlife,A12value-SUM($G187:L187),IF(A12remlife="N/A","n/a",A12value/A12remlife)) -> 0 | N187: =IF(N$3>A12remlife,A12value-SUM($G187:M187),IF(A12remlife="N/A","n/a",A12value/A12remlife)) -> 0 | O187: =IF(O$3>A12remlife,A12value-SUM($G187:N187),IF(A12remlife="N/A","n/a",A12value/A12remlife)) -> 0 | P187: =IF(P$3>A12remlife,A12value-SUM($G187:O187),IF(A12remlife="N/A","n/a",A12value/A12remlife)) -> 0 | Q187: =IF(Q$3>A12remlife,A12value-SUM($G187:P187),IF(A12remlife="N/A","n/a",A12value/A12remlife)) -> 0
E188: Capex in year
F189: 1 | I189: =IF(A12stdlife="n/a","n/a",IF(I$3>(A12stdlife+$F189),('RFM input'!$H$154*(1+vanilla1)^0.5)-SUM($H189:H189),('RFM input'!$H$154*(1+vanilla1)^0.5)/A12stdlife)) -> 0 | J189: =IF(A12stdlife="n/a","n/a",IF(J$3>(A12stdlife+$F189),('RFM input'!$H$154*(1+vanilla1)^0.5)-SUM($H189:I189),('RFM input'!$H$154*(1+vanilla1)^0.5)/A12stdlife)) -> 0 | K189: =IF(A12stdlife="n/a","n/a",IF(K$3>(A12stdlife+$F189),('RFM input'!$H$154*(1+vanilla1)^0.5)-SUM($H189:J189),('RFM input'!$H$154*(1+vanilla1)^0.5)/A12stdlife)) -> 0 | L189: =IF(A12stdlife="n/a","n/a",IF(L$3>(A12stdlife+$F189),('RFM input'!$H$154*(1+vanilla1)^0.5)-SUM($H189:K189),('RFM input'!$H$154*(1+vanilla1)^0.5)/A12stdlife)) -> 0 | M189: =IF(A12stdlife="n/a","n/a",IF(M$3>(A12stdlife+$F189),('RFM input'!$H$154*(1+vanilla1)^0.5)-SUM($H189:L189),('RFM input'!$H$154*(1+vanilla1)^0.5)/A12stdlife)) -> 0 | N189: =IF(A12stdlife="n/a","n/a",IF(N$3>(A12stdlife+$F189),('RFM input'!$H$154*(1+vanilla1)^0.5)-SUM($H189:M189),('RFM input'!$H$154*(1+vanilla1)^0.5)/A12stdlife)) -> 0 | O189: =IF(A12stdlife="n/a","n/a",IF(O$3>(A12stdlife+$F189),('RFM input'!$H$154*(1+vanilla1)^0.5)-SUM($H189:N189),('RFM input'!$H$154*(1+vanilla1)^0.5)/A12stdlife)) -> 0 | P189: =IF(A12stdlife="n/a","n/a",IF(P$3>(A12stdlife+$F189),('RFM input'!$H$154*(1+vanilla1)^0.5)-SUM($H189:O189),('RFM input'!$H$154*(1+vanilla1)^0.5)/A12stdlife)) -> 0 | Q189: =IF(A12stdlife="n/a","n/a",IF(Q$3>(A12stdlife+$F189),('RFM input'!$H$154*(1+vanilla1)^0.5)-SUM($H189:P189),('RFM input'!$H$154*(1+vanilla1)^0.5)/A12stdlife)) -> 0
F190: 2 | J190: =IF(A12stdlife="n/a","n/a",IF(J$3>(A12stdlife+$F190),('RFM input'!$I$154*(1+vanilla2)^0.5)-SUM($I190:I190),('RFM input'!$I$154*(1+vanilla2)^0.5)/A12stdlife)) -> 0 | K190: =IF(A12stdlife="n/a","n/a",IF(K$3>(A12stdlife+$F190),('RFM input'!$I$154*(1+vanilla2)^0.5)-SUM($I190:J190),('RFM input'!$I$154*(1+vanilla2)^0.5)/A12stdlife)) -> 0 | L190: =IF(A12stdlife="n/a","n/a",IF(L$3>(A12stdlife+$F190),('RFM input'!$I$154*(1+vanilla2)^0.5)-SUM($I190:K190),('RFM input'!$I$154*(1+vanilla2)^0.5)/A12stdlife)) -> 0 | M190: =IF(A12stdlife="n/a","n/a",IF(M$3>(A12stdlife+$F190),('RFM input'!$I$154*(1+vanilla2)^0.5)-SUM($I190:L190),('RFM input'!$I$154*(1+vanilla2)^0.5)/A12stdlife)) -> 0 | N190: =IF(A12stdlife="n/a","n/a",IF(N$3>(A12stdlife+$F190),('RFM input'!$I$154*(1+vanilla2)^0.5)-SUM($I190:M190),('RFM input'!$I$154*(1+vanilla2)^0.5)/A12stdlife)) -> 0 | O190: =IF(A12stdlife="n/a","n/a",IF(O$3>(A12stdlife+$F190),('RFM input'!$I$154*(1+vanilla2)^0.5)-SUM($I190:N190),('RFM input'!$I$154*(1+vanilla2)^0.5)/A12stdlife)) -> 0 | P190: =IF(A12stdlife="n/a","n/a",IF(P$3>(A12stdlife+$F190),('RFM input'!$I$154*(1+vanilla2)^0.5)-SUM($I190:O190),('RFM input'!$I$154*(1+vanilla2)^0.5)/A12stdlife)) -> 0 | Q190: =IF(A12stdlife="n/a","n/a",IF(Q$3>(A12stdlife+$F190),('RFM input'!$I$154*(1+vanilla2)^0.5)-SUM($I190:P190),('RFM input'!$I$154*(1+vanilla2)^0.5)/A12stdlife)) -> 0
F191: 3 | K191: =IF(A12stdlife="n/a","n/a",IF(K$3>(A12stdlife+$F191),('RFM input'!$J$154*(1+vanilla3)^0.5)-SUM($J191:J191),('RFM input'!$J$154*(1+vanilla3)^0.5)/A12stdlife)) -> 0 | L191: =IF(A12stdlife="n/a","n/a",IF(L$3>(A12stdlife+$F191),('RFM input'!$J$154*(1+vanilla3)^0.5)-SUM($J191:K191),('RFM input'!$J$154*(1+vanilla3)^0.5)/A12stdlife)) -> 0 | M191: =IF(A12stdlife="n/a","n/a",IF(M$3>(A12stdlife+$F191),('RFM input'!$J$154*(1+vanilla3)^0.5)-SUM($J191:L191),('RFM input'!$J$154*(1+vanilla3)^0.5)/A12stdlife)) -> 0 | N191: =IF(A12stdlife="n/a","n/a",IF(N$3>(A12stdlife+$F191),('RFM input'!$J$154*(1+vanilla3)^0.5)-SUM($J191:M191),('RFM input'!$J$154*(1+vanilla3)^0.5)/A12stdlife)) -> 0 | O191: =IF(A12stdlife="n/a","n/a",IF(O$3>(A12stdlife+$F191),('RFM input'!$J$154*(1+vanilla3)^0.5)-SUM($J191:N191),('RFM input'!$J$154*(1+vanilla3)^0.5)/A12stdlife)) -> 0 | P191: =IF(A12stdlife="n/a","n/a",IF(P$3>(A12stdlife+$F191),('RFM input'!$J$154*(1+vanilla3)^0.5)-SUM($J191:O191),('RFM input'!$J$154*(1+vanilla3)^0.5)/A12stdlife)) -> 0 | Q191: =IF(A12stdlife="n/a","n/a",IF(Q$3>(A12stdlife+$F191),('RFM input'!$J$154*(1+vanilla3)^0.5)-SUM($J191:P191),('RFM input'!$J$154*(1+vanilla3)^0.5)/A12stdlife)) -> 0
F192: 4 | L192: =IF(A12stdlife="n/a","n/a",IF(L$3>(A12stdlife+$F192),('RFM input'!$K$154*(1+vanilla4)^0.5)-SUM($K192:K192),('RFM input'!$K$154*(1+vanilla4)^0.5)/A12stdlife)) -> 0 | M192: =IF(A12stdlife="n/a","n/a",IF(M$3>(A12stdlife+$F192),('RFM input'!$K$154*(1+vanilla4)^0.5)-SUM($K192:L192),('RFM input'!$K$154*(1+vanilla4)^0.5)/A12stdlife)) -> 0 | N192: =IF(A12stdlife="n/a","n/a",IF(N$3>(A12stdlife+$F192),('RFM input'!$K$154*(1+vanilla4)^0.5)-SUM($K192:M192),('RFM input'!$K$154*(1+vanilla4)^0.5)/A12stdlife)) -> 0 | O192: =IF(A12stdlife="n/a","n/a",IF(O$3>(A12stdlife+$F192),('RFM input'!$K$154*(1+vanilla4)^0.5)-SUM($K192:N192),('RFM input'!$K$154*(1+vanilla4)^0.5)/A12stdlife)) -> 0 | P192: =IF(A12stdlife="n/a","n/a",IF(P$3>(A12stdlife+$F192),('RFM input'!$K$154*(1+vanilla4)^0.5)-SUM($K192:O192),('RFM input'!$K$154*(1+vanilla4)^0.5)/A12stdlife)) -> 0 | Q192: =IF(A12stdlife="n/a","n/a",IF(Q$3>(A12stdlife+$F192),('RFM input'!$K$154*(1+vanilla4)^0.5)-SUM($K192:P192),('RFM input'!$K$154*(1+vanilla4)^0.5)/A12stdlife)) -> 0
F193: 5 | M193: =IF(A12stdlife="n/a","n/a",IF(M$3>(A12stdlife+$F193),('RFM input'!$L$154*(1+vanilla5)^0.5)-SUM($L193:L193),('RFM input'!$L$154*(1+vanilla5)^0.5)/A12stdlife)) -> 0 | N193: =IF(A12stdlife="n/a","n/a",IF(N$3>(A12stdlife+$F193),('RFM input'!$L$154*(1+vanilla5)^0.5)-SUM($L193:M193),('RFM input'!$L$154*(1+vanilla5)^0.5)/A12stdlife)) -> 0 | O193: =IF(A12stdlife="n/a","n/a",IF(O$3>(A12stdlife+$F193),('RFM input'!$L$154*(1+vanilla5)^0.5)-SUM($L193:N193),('RFM input'!$L$154*(1+vanilla5)^0.5)/A12stdlife)) -> 0 | P193: =IF(A12stdlife="n/a","n/a",IF(P$3>(A12stdlife+$F193),('RFM input'!$L$154*(1+vanilla5)^0.5)-SUM($L193:O193),('RFM input'!$L$154*(1+vanilla5)^0.5)/A12stdlife)) -> 0 | Q193: =IF(A12stdlife="n/a","n/a",IF(Q$3>(A12stdlife+$F193),('RFM input'!$L$154*(1+vanilla5)^0.5)-SUM($L193:P193),('RFM input'!$L$154*(1+vanilla5)^0.5)/A12stdlife)) -> 0
F194: 6 | N194: =IF(A12stdlife="n/a","n/a",IF(N$3>(A12stdlife+$F194),('RFM input'!$M$154*(1+vanilla6)^0.5)-SUM($M194:M194),('RFM input'!$M$154*(1+vanilla6)^0.5)/A12stdlife)) -> 0 | O194: =IF(A12stdlife="n/a","n/a",IF(O$3>(A12stdlife+$F194),('RFM input'!$M$154*(1+vanilla6)^0.5)-SUM($M194:N194),('RFM input'!$M$154*(1+vanilla6)^0.5)/A12stdlife)) -> 0 | P194: =IF(A12stdlife="n/a","n/a",IF(P$3>(A12stdlife+$F194),('RFM input'!$M$154*(1+vanilla6)^0.5)-SUM($M194:O194),('RFM input'!$M$154*(1+vanilla6)^0.5)/A12stdlife)) -> 0 | Q194: =IF(A12stdlife="n/a","n/a",IF(Q$3>(A12stdlife+$F194),('RFM input'!$M$154*(1+vanilla6)^0.5)-SUM($M194:P194),('RFM input'!$M$154*(1+vanilla6)^0.5)/A12stdlife)) -> 0
F195: 7 | O195: =IF(A12stdlife="n/a","n/a",IF(O$3>(A12stdlife+$F195),('RFM input'!$N$154*(1+vanilla7)^0.5)-SUM($N195:N195),('RFM input'!$N$154*(1+vanilla7)^0.5)/A12stdlife)) -> 0 | P195: =IF(A12stdlife="n/a","n/a",IF(P$3>(A12stdlife+$F195),('RFM input'!$N$154*(1+vanilla7)^0.5)-SUM($N195:O195),('RFM input'!$N$154*(1+vanilla7)^0.5)/A12stdlife)) -> 0 | Q195: =IF(A12stdlife="n/a","n/a",IF(Q$3>(A12stdlife+$F195),('RFM input'!$N$154*(1+vanilla7)^0.5)-SUM($N195:P195),('RFM input'!$N$154*(1+vanilla7)^0.5)/A12stdlife)) -> 0
F196: 8 | P196: =IF(A12stdlife="n/a","n/a",IF(P$3>(A12stdlife+$F196),('RFM input'!$O$154*(1+vanilla8)^0.5)-SUM($O196:O196),('RFM input'!$O$154*(1+vanilla8)^0.5)/A12stdlife)) -> 0 | Q196: =IF(A12stdlife="n/a","n/a",IF(Q$3>(A12stdlife+$F196),('RFM input'!$O$154*(1+vanilla8)^0.5)-SUM($O196:P196),('RFM input'!$O$154*(1+vanilla8)^0.5)/A12stdlife)) -> 0
F197: 9 | Q197: =IF(A12stdlife="n/a","n/a",IF(Q$3>(A12stdlife+$F197),('RFM input'!$P$154*(1+vanilla9)^0.5)-SUM($P197:P197),('RFM input'!$P$154*(1+vanilla9)^0.5)/A12stdlife)) -> 0
F198: 10
D199: =Asset12 -> 0 | H199: =IF('RFM input'!$F$193='RFM input'!$H$192,-'RFM input'!H209,-SUM(H187:H198)) -> 0 | I199: =IF('RFM input'!$F$193='RFM input'!$H$192,-'RFM input'!I209,-SUM(I187:I198)) -> 0 | J199: =IF(COUNT($H199:I199)>='RFM input'!$W$7,0,IF('RFM input'!$F$193='RFM input'!$H$192,-'RFM input'!J209,-SUM(J187:J198))) -> 0 | K199: =IF(COUNT($H199:J199)>='RFM input'!$W$7,0,IF('RFM input'!$F$193='RFM input'!$H$192,-'RFM input'!K209,-SUM(K187:K198))) -> 0 | L199: =IF(COUNT($H199:K199)>='RFM input'!$W$7,0,IF('RFM input'!$F$193='RFM input'!$H$192,-'RFM input'!L209,-SUM(L187:L198))) -> 0 | M199: =IF(COUNT($H199:L199)>='RFM input'!$W$7,0,IF('RFM input'!$F$193='RFM input'!$H$192,-'RFM input'!M209,-SUM(M187:M198))) -> 0 | N199: =IF(COUNT($H199:M199)>='RFM input'!$W$7,0,IF('RFM input'!$F$193='RFM input'!$H$192,-'RFM input'!N209,-SUM(N187:N198))) -> 0 | O199: =IF(COUNT($H199:N199)>='RFM input'!$W$7,0,IF('RFM input'!$F$193='RFM input'!$H$192,-'RFM input'!O209,-SUM(O187:O198))) -> 0 | P199: =IF(COUNT($H199:O199)>='RFM input'!$W$7,0,IF('RFM input'!$F$193='RFM input'!$H$192,-'RFM input'!P209,-SUM(P187:P198))) -> 0 | Q199: =IF(COUNT($H199:P199)>='RFM input'!$W$7,0,IF('RFM input'!$F$193='RFM input'!$H$192,-'RFM input'!Q209,-SUM(Q187:Q198))) -> 0
C200: =Asset13 -> 0 | E200: Opening RAB | H200: =IF(H$3>A13remlife,A13value-SUM($G200:G200),IF(A13remlife="N/A","n/a",A13value/A13remlife)) -> 0 | I200: =IF(I$3>A13remlife,A13value-SUM($G200:H200),IF(A13remlife="N/A","n/a",A13value/A13remlife)) -> 0 | J200: =IF(J$3>A13remlife,A13value-SUM($G200:I200),IF(A13remlife="N/A","n/a",A13value/A13remlife)) -> 0 | K200: =IF(K$3>A13remlife,A13value-SUM($G200:J200),IF(A13remlife="N/A","n/a",A13value/A13remlife)) -> 0 | L200: =IF(L$3>A13remlife,A13value-SUM($G200:K200),IF(A13remlife="N/A","n/a",A13value/A13remlife)) -> 0 | M200: =IF(M$3>A13remlife,A13value-SUM($G200:L200),IF(A13remlife="N/A","n/a",A13value/A13remlife)) -> 0 | N200: =IF(N$3>A13remlife,A13value-SUM($G200:M200),IF(A13remlife="N/A","n/a",A13value/A13remlife)) -> 0 | O200: =IF(O$3>A13remlife,A13value-SUM($G200:N200),IF(A13remlife="N/A","n/a",A13value/A13remlife)) -> 0 | P200: =IF(P$3>A13remlife,A13value-SUM($G200:O200),IF(A13remlife="N/A","n/a",A13value/A13remlife)) -> 0 | Q200: =IF(Q$3>A13remlife,A13value-SUM($G200:P200),IF(A13remlife="N/A","n/a",A13value/A13remlife)) -> 0
E201: Capex in year
F202: 1 | I202: =IF(A13stdlife="n/a","n/a",IF(I$3>(A13stdlife+$F202),('RFM input'!$H$155*(1+vanilla1)^0.5)-SUM($H202:H202),('RFM input'!$H$155*(1+vanilla1)^0.5)/A13stdlife)) -> 0 | J202: =IF(A13stdlife="n/a","n/a",IF(J$3>(A13stdlife+$F202),('RFM input'!$H$155*(1+vanilla1)^0.5)-SUM($H202:I202),('RFM input'!$H$155*(1+vanilla1)^0.5)/A13stdlife)) -> 0 | K202: =IF(A13stdlife="n/a","n/a",IF(K$3>(A13stdlife+$F202),('RFM input'!$H$155*(1+vanilla1)^0.5)-SUM($H202:J202),('RFM input'!$H$155*(1+vanilla1)^0.5)/A13stdlife)) -> 0 | L202: =IF(A13stdlife="n/a","n/a",IF(L$3>(A13stdlife+$F202),('RFM input'!$H$155*(1+vanilla1)^0.5)-SUM($H202:K202),('RFM input'!$H$155*(1+vanilla1)^0.5)/A13stdlife)) -> 0 | M202: =IF(A13stdlife="n/a","n/a",IF(M$3>(A13stdlife+$F202),('RFM input'!$H$155*(1+vanilla1)^0.5)-SUM($H202:L202),('RFM input'!$H$155*(1+vanilla1)^0.5)/A13stdlife)) -> 0 | N202: =IF(A13stdlife="n/a","n/a",IF(N$3>(A13stdlife+$F202),('RFM input'!$H$155*(1+vanilla1)^0.5)-SUM($H202:M202),('RFM input'!$H$155*(1+vanilla1)^0.5)/A13stdlife)) -> 0 | O202: =IF(A13stdlife="n/a","n/a",IF(O$3>(A13stdlife+$F202),('RFM input'!$H$155*(1+vanilla1)^0.5)-SUM($H202:N202),('RFM input'!$H$155*(1+vanilla1)^0.5)/A13stdlife)) -> 0 | P202: =IF(A13stdlife="n/a","n/a",IF(P$3>(A13stdlife+$F202),('RFM input'!$H$155*(1+vanilla1)^0.5)-SUM($H202:O202),('RFM input'!$H$155*(1+vanilla1)^0.5)/A13stdlife)) -> 0 | Q202: =IF(A13stdlife="n/a","n/a",IF(Q$3>(A13stdlife+$F202),('RFM input'!$H$155*(1+vanilla1)^0.5)-SUM($H202:P202),('RFM input'!$H$155*(1+vanilla1)^0.5)/A13stdlife)) -> 0
F203: 2 | J203: =IF(A13stdlife="n/a","n/a",IF(J$3>(A13stdlife+$F203),('RFM input'!$I$155*(1+vanilla2)^0.5)-SUM($I203:I203),('RFM input'!$I$155*(1+vanilla2)^0.5)/A13stdlife)) -> 0 | K203: =IF(A13stdlife="n/a","n/a",IF(K$3>(A13stdlife+$F203),('RFM input'!$I$155*(1+vanilla2)^0.5)-SUM($I203:J203),('RFM input'!$I$155*(1+vanilla2)^0.5)/A13stdlife)) -> 0 | L203: =IF(A13stdlife="n/a","n/a",IF(L$3>(A13stdlife+$F203),('RFM input'!$I$155*(1+vanilla2)^0.5)-SUM($I203:K203),('RFM input'!$I$155*(1+vanilla2)^0.5)/A13stdlife)) -> 0 | M203: =IF(A13stdlife="n/a","n/a",IF(M$3>(A13stdlife+$F203),('RFM input'!$I$155*(1+vanilla2)^0.5)-SUM($I203:L203),('RFM input'!$I$155*(1+vanilla2)^0.5)/A13stdlife)) -> 0 | N203: =IF(A13stdlife="n/a","n/a",IF(N$3>(A13stdlife+$F203),('RFM input'!$I$155*(1+vanilla2)^0.5)-SUM($I203:M203),('RFM input'!$I$155*(1+vanilla2)^0.5)/A13stdlife)) -> 0 | O203: =IF(A13stdlife="n/a","n/a",IF(O$3>(A13stdlife+$F203),('RFM input'!$I$155*(1+vanilla2)^0.5)-SUM($I203:N203),('RFM input'!$I$155*(1+vanilla2)^0.5)/A13stdlife)) -> 0 | P203: =IF(A13stdlife="n/a","n/a",IF(P$3>(A13stdlife+$F203),('RFM input'!$I$155*(1+vanilla2)^0.5)-SUM($I203:O203),('RFM input'!$I$155*(1+vanilla2)^0.5)/A13stdlife)) -> 0 | Q203: =IF(A13stdlife="n/a","n/a",IF(Q$3>(A13stdlife+$F203),('RFM input'!$I$155*(1+vanilla2)^0.5)-SUM($I203:P203),('RFM input'!$I$155*(1+vanilla2)^0.5)/A13stdlife)) -> 0
F204: 3 | K204: =IF(A13stdlife="n/a","n/a",IF(K$3>(A13stdlife+$F204),('RFM input'!$J$155*(1+vanilla3)^0.5)-SUM($J204:J204),('RFM input'!$J$155*(1+vanilla3)^0.5)/A13stdlife)) -> 0 | L204: =IF(A13stdlife="n/a","n/a",IF(L$3>(A13stdlife+$F204),('RFM input'!$J$155*(1+vanilla3)^0.5)-SUM($J204:K204),('RFM input'!$J$155*(1+vanilla3)^0.5)/A13stdlife)) -> 0 | M204: =IF(A13stdlife="n/a","n/a",IF(M$3>(A13stdlife+$F204),('RFM input'!$J$155*(1+vanilla3)^0.5)-SUM($J204:L204),('RFM input'!$J$155*(1+vanilla3)^0.5)/A13stdlife)) -> 0 | N204: =IF(A13stdlife="n/a","n/a",IF(N$3>(A13stdlife+$F204),('RFM input'!$J$155*(1+vanilla3)^0.5)-SUM($J204:M204),('RFM input'!$J$155*(1+vanilla3)^0.5)/A13stdlife)) -> 0 | O204: =IF(A13stdlife="n/a","n/a",IF(O$3>(A13stdlife+$F204),('RFM input'!$J$155*(1+vanilla3)^0.5)-SUM($J204:N204),('RFM input'!$J$155*(1+vanilla3)^0.5)/A13stdlife)) -> 0 | P204: =IF(A13stdlife="n/a","n/a",IF(P$3>(A13stdlife+$F204),('RFM input'!$J$155*(1+vanilla3)^0.5)-SUM($J204:O204),('RFM input'!$J$155*(1+vanilla3)^0.5)/A13stdlife)) -> 0 | Q204: =IF(A13stdlife="n/a","n/a",IF(Q$3>(A13stdlife+$F204),('RFM input'!$J$155*(1+vanilla3)^0.5)-SUM($J204:P204),('RFM input'!$J$155*(1+vanilla3)^0.5)/A13stdlife)) -> 0
F205: 4 | L205: =IF(A13stdlife="n/a","n/a",IF(L$3>(A13stdlife+$F205),('RFM input'!$K$155*(1+vanilla4)^0.5)-SUM($K205:K205),('RFM input'!$K$155*(1+vanilla4)^0.5)/A13stdlife)) -> 0 | M205: =IF(A13stdlife="n/a","n/a",IF(M$3>(A13stdlife+$F205),('RFM input'!$K$155*(1+vanilla4)^0.5)-SUM($K205:L205),('RFM input'!$K$155*(1+vanilla4)^0.5)/A13stdlife)) -> 0 | N205: =IF(A13stdlife="n/a","n/a",IF(N$3>(A13stdlife+$F205),('RFM input'!$K$155*(1+vanilla4)^0.5)-SUM($K205:M205),('RFM input'!$K$155*(1+vanilla4)^0.5)/A13stdlife)) -> 0 | O205: =IF(A13stdlife="n/a","n/a",IF(O$3>(A13stdlife+$F205),('RFM input'!$K$155*(1+vanilla4)^0.5)-SUM($K205:N205),('RFM input'!$K$155*(1+vanilla4)^0.5)/A13stdlife)) -> 0 | P205: =IF(A13stdlife="n/a","n/a",IF(P$3>(A13stdlife+$F205),('RFM input'!$K$155*(1+vanilla4)^0.5)-SUM($K205:O205),('RFM input'!$K$155*(1+vanilla4)^0.5)/A13stdlife)) -> 0 | Q205: =IF(A13stdlife="n/a","n/a",IF(Q$3>(A13stdlife+$F205),('RFM input'!$K$155*(1+vanilla4)^0.5)-SUM($K205:P205),('RFM input'!$K$155*(1+vanilla4)^0.5)/A13stdlife)) -> 0
... 477 more rows

Sheet Total RAB roll forward
C2: ='DMS input'!$C$16&" - Total Asset Roll Forward"&" - DNSP RFM - version "&Intro!$M$4 -> JEN - Total Asset Roll Forward - DNSP RFM - version 2
G3: 0 | H3: =G3+1 -> 1 | I3: 2 | J3: 3 | K3: 4 | L3: 5 | M3: 6
C4: Year | G4: ='RFM input'!G40 -> 2015 | H4: ='RFM input'!H40 -> 2016 | I4: ='RFM input'!I40 -> 2017 | J4: ='RFM input'!J40 -> 2018 | K4: ='RFM input'!K40 -> 2019 | L4: ='RFM input'!L40 -> 2020 | M4: ='RFM input'!M40 -> 2021 | N4: ='RFM input'!N40 -> 2022 | O4: ='RFM input'!O40 -> 2023 | P4: ='RFM input'!P40 -> 2024 | Q4: ='RFM input'!Q40 -> 2025
C5: Asset Values ($m Nominal)
C7: Nominal Opening Regulatory Asset Base | G7: =SUM(G8:G37) -> 1115.568691 | H7: 1186.79749 | I7: 1238.193476 | J7: 1312.527835 | K7: 1386.147677 | L7: 1428.435554 | M7: 1483.654417 | N7: 0 | O7: 0 | P7: 0 | Q7: 0
D8: =Asset1 -> Subtransmission | G8: ='RAB roll forward'!G438 -> 219.3726611 | H8: =G8+G40+G72+G104+G136+G168 -> 243.1445036 | I8: =H8+H40+H72 -> 250.817384 | J8: =IF(COUNT($H8:I8)>='RFM input'!$W$7,0, I8+I40+I72) -> 268.535565 | K8: =IF(COUNT($H8:J8)>='RFM input'!$W$7,0, J8+J40+J72) -> 309.9142919 | L8: =IF(COUNT($H8:K8)>='RFM input'!$W$7,0, K8+K40+K72) -> 337.8089193 | M8: =IF(COUNT($H8:L8)>='RFM input'!$W$7,0, L8+L40+L72) -> 357.2586796 | N8: =IF(COUNT($H8:M8)>='RFM input'!$W$7,0, M8+M40+M72) -> 0 | O8: =IF(COUNT($H8:N8)>='RFM input'!$W$7,0, N8+N40+N72) -> 0 | P8: =IF(COUNT($H8:O8)>='RFM input'!$W$7,0, O8+O40+O72) -> 0 | Q8: =IF(COUNT($H8:P8)>='RFM input'!$W$7,0, P8+P40+P72) -> 0
D9: =Asset2 -> Distribution system assets | G9: ='RAB roll forward'!G439 -> 765.1273813 | H9: 803.6415105 | I9: 859.7377138 | J9: =IF(COUNT($H9:I9)>='RFM input'!$W$7,0, I9+I41+I73) -> 891.9757745 | K9: =IF(COUNT($H9:J9)>='RFM input'!$W$7,0, J9+J41+J73) -> 927.3732713 | L9: =IF(COUNT($H9:K9)>='RFM input'!$W$7,0, K9+K41+K73) -> 947.3842181 | M9: =IF(COUNT($H9:L9)>='RFM input'!$W$7,0, L9+L41+L73) -> 987.4336404 | N9: =IF(COUNT($H9:M9)>='RFM input'!$W$7,0, M9+M41+M73) -> 0 | O9: =IF(COUNT($H9:N9)>='RFM input'!$W$7,0, N9+N41+N73) -> 0 | P9: =IF(COUNT($H9:O9)>='RFM input'!$W$7,0, O9+O41+O73) -> 0 | Q9: =IF(COUNT($H9:P9)>='RFM input'!$W$7,0, P9+P41+P73) -> 0
D10: =Asset3 -> Metering | G10: ='RAB roll forward'!G440 -> 2.675748922 | H10: 0.03104215384 | I10: 3.150257832e-15 | J10: =IF(COUNT($H10:I10)>='RFM input'!$W$7,0, I10+I42+I74) -> 3.182493029e-15 | K10: =IF(COUNT($H10:J10)>='RFM input'!$W$7,0, J10+J42+J74) -> 3.244032949e-15 | L10: =IF(COUNT($H10:K10)>='RFM input'!$W$7,0, K10+K42+K74) -> 3.311433814e-15 | M10: =IF(COUNT($H10:L10)>='RFM input'!$W$7,0, L10+L42+L74) -> 3.364182318e-15 | N10: =IF(COUNT($H10:M10)>='RFM input'!$W$7,0, M10+M42+M74) -> 0 | O10: =IF(COUNT($H10:N10)>='RFM input'!$W$7,0, N10+N42+N74) -> 0 | P10: =IF(COUNT($H10:O10)>='RFM input'!$W$7,0, O10+O42+O74) -> 0 | Q10: =IF(COUNT($H10:P10)>='RFM input'!$W$7,0, P10+P42+P74) -> 0
D11: =Asset4 -> Public Lighting | G11: ='RAB roll forward'!G441 -> 8.418200598 | H11: 7.185725204 | I11: 5.845993782 | J11: =IF(COUNT($H11:I11)>='RFM input'!$W$7,0, I11+I43+I75) -> 4.442695844 | K11: =IF(COUNT($H11:J11)>='RFM input'!$W$7,0, J11+J43+J75) -> 3.037194592 | L11: =IF(COUNT($H11:K11)>='RFM input'!$W$7,0, K11+K43+K75) -> 1.577901436 | M11: =IF(COUNT($H11:L11)>='RFM input'!$W$7,0, L11+L43+L75) -> 0.05638901642 | N11: =IF(COUNT($H11:M11)>='RFM input'!$W$7,0, M11+M43+M75) -> 0 | O11: =IF(COUNT($H11:N11)>='RFM input'!$W$7,0, N11+N43+N75) -> 0 | P11: =IF(COUNT($H11:O11)>='RFM input'!$W$7,0, O11+O43+O75) -> 0 | Q11: =IF(COUNT($H11:P11)>='RFM input'!$W$7,0, P11+P43+P75) -> 0
D12: =Asset5 -> SCADA/Network control | G12: ='RAB roll forward'!G442 -> 0.9170957033 | H12: 1.961810916 | I12: 1.880431633 | J12: =IF(COUNT($H12:I12)>='RFM input'!$W$7,0, I12+I44+I76) -> 3.588630974 | K12: =IF(COUNT($H12:J12)>='RFM input'!$W$7,0, J12+J44+J76) -> 1.774430792 | L12: =IF(COUNT($H12:K12)>='RFM input'!$W$7,0, K12+K44+K76) -> -0.2963585988 | M12: =IF(COUNT($H12:L12)>='RFM input'!$W$7,0, L12+L44+L76) -> -3.235310946 | N12: =IF(COUNT($H12:M12)>='RFM input'!$W$7,0, M12+M44+M76) -> 0 | O12: =IF(COUNT($H12:N12)>='RFM input'!$W$7,0, N12+N44+N76) -> 0 | P12: =IF(COUNT($H12:O12)>='RFM input'!$W$7,0, O12+O44+O76) -> 0 | Q12: =IF(COUNT($H12:P12)>='RFM input'!$W$7,0, P12+P44+P76) -> 0
D13: =Asset6 -> Non network - IT | G13: ='RAB roll forward'!G443 -> 57.71546746 | H13: 54.49368095 | I13: 38.62286817 | J13: =IF(COUNT($H13:I13)>='RFM input'!$W$7,0, I13+I45+I77) -> 52.5139279 | K13: =IF(COUNT($H13:J13)>='RFM input'!$W$7,0, J13+J45+J77) -> 54.54139435 | L13: =IF(COUNT($H13:K13)>='RFM input'!$W$7,0, K13+K45+K77) -> 54.52257097 | M13: =IF(COUNT($H13:L13)>='RFM input'!$W$7,0, L13+L45+L77) -> 53.50310268 | N13: =IF(COUNT($H13:M13)>='RFM input'!$W$7,0, M13+M45+M77) -> 0 | O13: =IF(COUNT($H13:N13)>='RFM input'!$W$7,0, N13+N45+N77) -> 0 | P13: =IF(COUNT($H13:O13)>='RFM input'!$W$7,0, O13+O45+O77) -> 0 | Q13: =IF(COUNT($H13:P13)>='RFM input'!$W$7,0, P13+P45+P77) -> 0
D14: =Asset7 -> Non network - other | G14: ='RAB roll forward'!G444 -> 61.34213641 | H14: 76.33921685 | I14: 75.77124678 | J14: =IF(COUNT($H14:I14)>='RFM input'!$W$7,0, I14+I46+I78) -> 86.01674966 | K14: =IF(COUNT($H14:J14)>='RFM input'!$W$7,0, J14+J46+J78) -> 84.0692546 | L14: =IF(COUNT($H14:K14)>='RFM input'!$W$7,0, K14+K46+K78) -> 82.01214521 | M14: =IF(COUNT($H14:L14)>='RFM input'!$W$7,0, L14+L46+L78) -> 83.22964224 | N14: =IF(COUNT($H14:M14)>='RFM input'!$W$7,0, M14+M46+M78) -> 0 | O14: =IF(COUNT($H14:N14)>='RFM input'!$W$7,0, N14+N46+N78) -> 0 | P14: =IF(COUNT($H14:O14)>='RFM input'!$W$7,0, O14+O46+O78) -> 0 | Q14: =IF(COUNT($H14:P14)>='RFM input'!$W$7,0, P14+P46+P78) -> 0
D15: =Asset8 -> Land | G15: ='RAB roll forward'!G445 -> 0 | H15: 0 | I15: 0 | J15: =IF(COUNT($H15:I15)>='RFM input'!$W$7,0, I15+I47+I79) -> 0 | K15: =IF(COUNT($H15:J15)>='RFM input'!$W$7,0, J15+J47+J79) -> 0 | L15: =IF(COUNT($H15:K15)>='RFM input'!$W$7,0, K15+K47+K79) -> 0 | M15: =IF(COUNT($H15:L15)>='RFM input'!$W$7,0, L15+L47+L79) -> 0.0223314472 | N15: =IF(COUNT($H15:M15)>='RFM input'!$W$7,0, M15+M47+M79) -> 0 | O15: =IF(COUNT($H15:N15)>='RFM input'!$W$7,0, N15+N47+N79) -> 0 | P15: =IF(COUNT($H15:O15)>='RFM input'!$W$7,0, O15+O47+O79) -> 0 | Q15: =IF(COUNT($H15:P15)>='RFM input'!$W$7,0, P15+P47+P79) -> 0
D16: =Asset9 -> 0 | G16: ='RAB roll forward'!G446 -> 0 | H16: 0 | I16: 0 | J16: =IF(COUNT($H16:I16)>='RFM input'!$W$7,0, I16+I48+I80) -> 0 | K16: =IF(COUNT($H16:J16)>='RFM input'!$W$7,0, J16+J48+J80) -> 0 | L16: =IF(COUNT($H16:K16)>='RFM input'!$W$7,0, K16+K48+K80) -> 0 | M16: =IF(COUNT($H16:L16)>='RFM input'!$W$7,0, L16+L48+L80) -> 0 | N16: =IF(COUNT($H16:M16)>='RFM input'!$W$7,0, M16+M48+M80) -> 0 | O16: =IF(COUNT($H16:N16)>='RFM input'!$W$7,0, N16+N48+N80) -> 0 | P16: =IF(COUNT($H16:O16)>='RFM input'!$W$7,0, O16+O48+O80) -> 0 | Q16: =IF(COUNT($H16:P16)>='RFM input'!$W$7,0, P16+P48+P80) -> 0
D17: =Asset10 -> 0 | G17: ='RAB roll forward'!G447 -> 0 | H17: 0 | I17: 0 | J17: =IF(COUNT($H17:I17)>='RFM input'!$W$7,0, I17+I49+I81) -> 0 | K17: =IF(COUNT($H17:J17)>='RFM input'!$W$7,0, J17+J49+J81) -> 0 | L17: =IF(COUNT($H17:K17)>='RFM input'!$W$7,0, K17+K49+K81) -> 0 | M17: =IF(COUNT($H17:L17)>='RFM input'!$W$7,0, L17+L49+L81) -> 0 | N17: =IF(COUNT($H17:M17)>='RFM input'!$W$7,0, M17+M49+M81) -> 0 | O17: =IF(COUNT($H17:N17)>='RFM input'!$W$7,0, N17+N49+N81) -> 0 | P17: =IF(COUNT($H17:O17)>='RFM input'!$W$7,0, O17+O49+O81) -> 0 | Q17: =IF(COUNT($H17:P17)>='RFM input'!$W$7,0, P17+P49+P81) -> 0
D18: =Asset11 -> 0 | G18: ='RAB roll forward'!G448 -> 0 | H18: 0 | I18: 0 | J18: =IF(COUNT($H18:I18)>='RFM input'!$W$7,0, I18+I50+I82) -> 0 | K18: =IF(COUNT($H18:J18)>='RFM input'!$W$7,0, J18+J50+J82) -> 0 | L18: =IF(COUNT($H18:K18)>='RFM input'!$W$7,0, K18+K50+K82) -> 0 | M18: =IF(COUNT($H18:L18)>='RFM input'!$W$7,0, L18+L50+L82) -> 0 | N18: =IF(COUNT($H18:M18)>='RFM input'!$W$7,0, M18+M50+M82) -> 0 | O18: =IF(COUNT($H18:N18)>='RFM input'!$W$7,0, N18+N50+N82) -> 0 | P18: =IF(COUNT($H18:O18)>='RFM input'!$W$7,0, O18+O50+O82) -> 0 | Q18: =IF(COUNT($H18:P18)>='RFM input'!$W$7,0, P18+P50+P82) -> 0
D19: =Asset12 -> 0 | G19: ='RAB roll forward'!G449 -> 0 | H19: 0 | I19: 0 | J19: =IF(COUNT($H19:I19)>='RFM input'!$W$7,0, I19+I51+I83) -> 0 | K19: =IF(COUNT($H19:J19)>='RFM input'!$W$7,0, J19+J51+J83) -> 0 | L19: =IF(COUNT($H19:K19)>='RFM input'!$W$7,0, K19+K51+K83) -> 0 | M19: =IF(COUNT($H19:L19)>='RFM input'!$W$7,0, L19+L51+L83) -> 0 | N19: =IF(COUNT($H19:M19)>='RFM input'!$W$7,0, M19+M51+M83) -> 0 | O19: =IF(COUNT($H19:N19)>='RFM input'!$W$7,0, N19+N51+N83) -> 0 | P19: =IF(COUNT($H19:O19)>='RFM input'!$W$7,0, O19+O51+O83) -> 0 | Q19: =IF(COUNT($H19:P19)>='RFM input'!$W$7,0, P19+P51+P83) -> 0
D20: =Asset13 -> 0 | G20: ='RAB roll forward'!G450 -> 0 | H20: 0 | I20: 0 | J20: =IF(COUNT($H20:I20)>='RFM input'!$W$7,0, I20+I52+I84) -> 0 | K20: =IF(COUNT($H20:J20)>='RFM input'!$W$7,0, J20+J52+J84) -> 0 | L20: =IF(COUNT($H20:K20)>='RFM input'!$W$7,0, K20+K52+K84) -> 0 | M20: =IF(COUNT($H20:L20)>='RFM input'!$W$7,0, L20+L52+L84) -> 0 | N20: =IF(COUNT($H20:M20)>='RFM input'!$W$7,0, M20+M52+M84) -> 0 | O20: =IF(COUNT($H20:N20)>='RFM input'!$W$7,0, N20+N52+N84) -> 0 | P20: =IF(COUNT($H20:O20)>='RFM input'!$W$7,0, O20+O52+O84) -> 0 | Q20: =IF(COUNT($H20:P20)>='RFM input'!$W$7,0, P20+P52+P84) -> 0
D21: =Asset14 -> 0 | G21: ='RAB roll forward'!G451 -> 0 | H21: 0 | I21: 0 | J21: =IF(COUNT($H21:I21)>='RFM input'!$W$7,0, I21+I53+I85) -> 0 | K21: =IF(COUNT($H21:J21)>='RFM input'!$W$7,0, J21+J53+J85) -> 0 | L21: =IF(COUNT($H21:K21)>='RFM input'!$W$7,0, K21+K53+K85) -> 0 | M21: =IF(COUNT($H21:L21)>='RFM input'!$W$7,0, L21+L53+L85) -> 0 | N21: =IF(COUNT($H21:M21)>='RFM input'!$W$7,0, M21+M53+M85) -> 0 | O21: =IF(COUNT($H21:N21)>='RFM input'!$W$7,0, N21+N53+N85) -> 0 | P21: =IF(COUNT($H21:O21)>='RFM input'!$W$7,0, O21+O53+O85) -> 0 | Q21: =IF(COUNT($H21:P21)>='RFM input'!$W$7,0, P21+P53+P85) -> 0
D22: =Asset15 -> 0 | G22: ='RAB roll forward'!G452 -> 0 | H22: 0 | I22: 0 | J22: =IF(COUNT($H22:I22)>='RFM input'!$W$7,0, I22+I54+I86) -> 0 | K22: =IF(COUNT($H22:J22)>='RFM input'!$W$7,0, J22+J54+J86) -> 0 | L22: =IF(COUNT($H22:K22)>='RFM input'!$W$7,0, K22+K54+K86) -> 0 | M22: =IF(COUNT($H22:L22)>='RFM input'!$W$7,0, L22+L54+L86) -> 0 | N22: =IF(COUNT($H22:M22)>='RFM input'!$W$7,0, M22+M54+M86) -> 0 | O22: =IF(COUNT($H22:N22)>='RFM input'!$W$7,0, N22+N54+N86) -> 0 | P22: =IF(COUNT($H22:O22)>='RFM input'!$W$7,0, O22+O54+O86) -> 0 | Q22: =IF(COUNT($H22:P22)>='RFM input'!$W$7,0, P22+P54+P86) -> 0
D23: =Asset16 -> 0 | G23: ='RAB roll forward'!G453 -> 0 | H23: 0 | I23: 0 | J23: =IF(COUNT($H23:I23)>='RFM input'!$W$7,0, I23+I55+I87) -> 0 | K23: =IF(COUNT($H23:J23)>='RFM input'!$W$7,0, J23+J55+J87) -> 0 | L23: =IF(COUNT($H23:K23)>='RFM input'!$W$7,0, K23+K55+K87) -> 0 | M23: =IF(COUNT($H23:L23)>='RFM input'!$W$7,0, L23+L55+L87) -> 0 | N23: =IF(COUNT($H23:M23)>='RFM input'!$W$7,0, M23+M55+M87) -> 0 | O23: =IF(COUNT($H23:N23)>='RFM input'!$W$7,0, N23+N55+N87) -> 0 | P23: =IF(COUNT($H23:O23)>='RFM input'!$W$7,0, O23+O55+O87) -> 0 | Q23: =IF(COUNT($H23:P23)>='RFM input'!$W$7,0, P23+P55+P87) -> 0
D24: =Asset17 -> 0 | G24: ='RAB roll forward'!G454 -> 0 | H24: 0 | I24: 0 | J24: =IF(COUNT($H24:I24)>='RFM input'!$W$7,0, I24+I56+I88) -> 0 | K24: =IF(COUNT($H24:J24)>='RFM input'!$W$7,0, J24+J56+J88) -> 0 | L24: =IF(COUNT($H24:K24)>='RFM input'!$W$7,0, K24+K56+K88) -> 0 | M24: =IF(COUNT($H24:L24)>='RFM input'!$W$7,0, L24+L56+L88) -> 0 | N24: =IF(COUNT($H24:M24)>='RFM input'!$W$7,0, M24+M56+M88) -> 0 | O24: =IF(COUNT($H24:N24)>='RFM input'!$W$7,0, N24+N56+N88) -> 0 | P24: =IF(COUNT($H24:O24)>='RFM input'!$W$7,0, O24+O56+O88) -> 0 | Q24: =IF(COUNT($H24:P24)>='RFM input'!$W$7,0, P24+P56+P88) -> 0
D25: =Asset18 -> 0 | G25: ='RAB roll forward'!G455 -> 0 | H25: 0 | I25: 0 | J25: =IF(COUNT($H25:I25)>='RFM input'!$W$7,0, I25+I57+I89) -> 0 | K25: =IF(COUNT($H25:J25)>='RFM input'!$W$7,0, J25+J57+J89) -> 0 | L25: =IF(COUNT($H25:K25)>='RFM input'!$W$7,0, K25+K57+K89) -> 0 | M25: =IF(COUNT($H25:L25)>='RFM input'!$W$7,0, L25+L57+L89) -> 0 | N25: =IF(COUNT($H25:M25)>='RFM input'!$W$7,0, M25+M57+M89) -> 0 | O25: =IF(COUNT($H25:N25)>='RFM input'!$W$7,0, N25+N57+N89) -> 0 | P25: =IF(COUNT($H25:O25)>='RFM input'!$W$7,0, O25+O57+O89) -> 0 | Q25: =IF(COUNT($H25:P25)>='RFM input'!$W$7,0, P25+P57+P89) -> 0
D26: =Asset19 -> 0 | G26: ='RAB roll forward'!G456 -> 0 | H26: 0 | I26: 0 | J26: =IF(COUNT($H26:I26)>='RFM input'!$W$7,0, I26+I58+I90) -> 0 | K26: =IF(COUNT($H26:J26)>='RFM input'!$W$7,0, J26+J58+J90) -> 0 | L26: =IF(COUNT($H26:K26)>='RFM input'!$W$7,0, K26+K58+K90) -> 0 | M26: =IF(COUNT($H26:L26)>='RFM input'!$W$7,0, L26+L58+L90) -> 0 | N26: =IF(COUNT($H26:M26)>='RFM input'!$W$7,0, M26+M58+M90) -> 0 | O26: =IF(COUNT($H26:N26)>='RFM input'!$W$7,0, N26+N58+N90) -> 0 | P26: =IF(COUNT($H26:O26)>='RFM input'!$W$7,0, O26+O58+O90) -> 0 | Q26: =IF(COUNT($H26:P26)>='RFM input'!$W$7,0, P26+P58+P90) -> 0
D27: =Asset20 -> 0 | G27: ='RAB roll forward'!G457 -> 0 | H27: 0 | I27: 0 | J27: =IF(COUNT($H27:I27)>='RFM input'!$W$7,0, I27+I59+I91) -> 0 | K27: =IF(COUNT($H27:J27)>='RFM input'!$W$7,0, J27+J59+J91) -> 0 | L27: =IF(COUNT($H27:K27)>='RFM input'!$W$7,0, K27+K59+K91) -> 0 | M27: =IF(COUNT($H27:L27)>='RFM input'!$W$7,0, L27+L59+L91) -> 0 | N27: =IF(COUNT($H27:M27)>='RFM input'!$W$7,0, M27+M59+M91) -> 0 | O27: =IF(COUNT($H27:N27)>='RFM input'!$W$7,0, N27+N59+N91) -> 0 | P27: =IF(COUNT($H27:O27)>='RFM input'!$W$7,0, O27+O59+O91) -> 0 | Q27: =IF(COUNT($H27:P27)>='RFM input'!$W$7,0, P27+P59+P91) -> 0
D28: =Asset21 -> 0 | G28: ='RAB roll forward'!G458 -> 0 | H28: 0 | I28: 0 | J28: =IF(COUNT($H28:I28)>='RFM input'!$W$7,0, I28+I60+I92) -> 0 | K28: =IF(COUNT($H28:J28)>='RFM input'!$W$7,0, J28+J60+J92) -> 0 | L28: =IF(COUNT($H28:K28)>='RFM input'!$W$7,0, K28+K60+K92) -> 0 | M28: =IF(COUNT($H28:L28)>='RFM input'!$W$7,0, L28+L60+L92) -> 0 | N28: =IF(COUNT($H28:M28)>='RFM input'!$W$7,0, M28+M60+M92) -> 0 | O28: =IF(COUNT($H28:N28)>='RFM input'!$W$7,0, N28+N60+N92) -> 0 | P28: =IF(COUNT($H28:O28)>='RFM input'!$W$7,0, O28+O60+O92) -> 0 | Q28: =IF(COUNT($H28:P28)>='RFM input'!$W$7,0, P28+P60+P92) -> 0
D29: =Asset22 -> 0 | G29: ='RAB roll forward'!G459 -> 0 | H29: 0 | I29: 0 | J29: =IF(COUNT($H29:I29)>='RFM input'!$W$7,0, I29+I61+I93) -> 0 | K29: =IF(COUNT($H29:J29)>='RFM input'!$W$7,0, J29+J61+J93) -> 0 | L29: =IF(COUNT($H29:K29)>='RFM input'!$W$7,0, K29+K61+K93) -> 0 | M29: =IF(COUNT($H29:L29)>='RFM input'!$W$7,0, L29+L61+L93) -> 0 | N29: =IF(COUNT($H29:M29)>='RFM input'!$W$7,0, M29+M61+M93) -> 0 | O29: =IF(COUNT($H29:N29)>='RFM input'!$W$7,0, N29+N61+N93) -> 0 | P29: =IF(COUNT($H29:O29)>='RFM input'!$W$7,0, O29+O61+O93) -> 0 | Q29: =IF(COUNT($H29:P29)>='RFM input'!$W$7,0, P29+P61+P93) -> 0
D30: =Asset23 -> 0 | G30: ='RAB roll forward'!G460 -> 0 | H30: 0 | I30: 0 | J30: =IF(COUNT($H30:I30)>='RFM input'!$W$7,0, I30+I62+I94) -> 0 | K30: =IF(COUNT($H30:J30)>='RFM input'!$W$7,0, J30+J62+J94) -> 0 | L30: =IF(COUNT($H30:K30)>='RFM input'!$W$7,0, K30+K62+K94) -> 0 | M30: =IF(COUNT($H30:L30)>='RFM input'!$W$7,0, L30+L62+L94) -> 0 | N30: =IF(COUNT($H30:M30)>='RFM input'!$W$7,0, M30+M62+M94) -> 0 | O30: =IF(COUNT($H30:N30)>='RFM input'!$W$7,0, N30+N62+N94) -> 0 | P30: =IF(COUNT($H30:O30)>='RFM input'!$W$7,0, O30+O62+O94) -> 0 | Q30: =IF(COUNT($H30:P30)>='RFM input'!$W$7,0, P30+P62+P94) -> 0
D31: =Asset24 -> 0 | G31: ='RAB roll forward'!G461 -> 0 | H31: 0 | I31: 0 | J31: =IF(COUNT($H31:I31)>='RFM input'!$W$7,0, I31+I63+I95) -> 0 | K31: =IF(COUNT($H31:J31)>='RFM input'!$W$7,0, J31+J63+J95) -> 0 | L31: =IF(COUNT($H31:K31)>='RFM input'!$W$7,0, K31+K63+K95) -> 0 | M31: =IF(COUNT($H31:L31)>='RFM input'!$W$7,0, L31+L63+L95) -> 0 | N31: =IF(COUNT($H31:M31)>='RFM input'!$W$7,0, M31+M63+M95) -> 0 | O31: =IF(COUNT($H31:N31)>='RFM input'!$W$7,0, N31+N63+N95) -> 0 | P31: =IF(COUNT($H31:O31)>='RFM input'!$W$7,0, O31+O63+O95) -> 0 | Q31: =IF(COUNT($H31:P31)>='RFM input'!$W$7,0, P31+P63+P95) -> 0
D32: =Asset25 -> 0 | G32: ='RAB roll forward'!G462 -> 0 | H32: 0 | I32: 0 | J32: =IF(COUNT($H32:I32)>='RFM input'!$W$7,0, I32+I64+I96) -> 0 | K32: =IF(COUNT($H32:J32)>='RFM input'!$W$7,0, J32+J64+J96) -> 0 | L32: =IF(COUNT($H32:K32)>='RFM input'!$W$7,0, K32+K64+K96) -> 0 | M32: =IF(COUNT($H32:L32)>='RFM input'!$W$7,0, L32+L64+L96) -> 0 | N32: =IF(COUNT($H32:M32)>='RFM input'!$W$7,0, M32+M64+M96) -> 0 | O32: =IF(COUNT($H32:N32)>='RFM input'!$W$7,0, N32+N64+N96) -> 0 | P32: =IF(COUNT($H32:O32)>='RFM input'!$W$7,0, O32+O64+O96) -> 0 | Q32: =IF(COUNT($H32:P32)>='RFM input'!$W$7,0, P32+P64+P96) -> 0
D33: =Asset26 -> 0 | G33: ='RAB roll forward'!G463 -> 0 | H33: 0 | I33: 0 | J33: =IF(COUNT($H33:I33)>='RFM input'!$W$7,0, I33+I65+I97) -> 0 | K33: =IF(COUNT($H33:J33)>='RFM input'!$W$7,0, J33+J65+J97) -> 0 | L33: =IF(COUNT($H33:K33)>='RFM input'!$W$7,0, K33+K65+K97) -> 0 | M33: =IF(COUNT($H33:L33)>='RFM input'!$W$7,0, L33+L65+L97) -> 0 | N33: =IF(COUNT($H33:M33)>='RFM input'!$W$7,0, M33+M65+M97) -> 0 | O33: =IF(COUNT($H33:N33)>='RFM input'!$W$7,0, N33+N65+N97) -> 0 | P33: =IF(COUNT($H33:O33)>='RFM input'!$W$7,0, O33+O65+O97) -> 0 | Q33: =IF(COUNT($H33:P33)>='RFM input'!$W$7,0, P33+P65+P97) -> 0
D34: =Asset27 -> 0 | G34: ='RAB roll forward'!G464 -> 0 | H34: 0 | I34: 0 | J34: =IF(COUNT($H34:I34)>='RFM input'!$W$7,0, I34+I66+I98) -> 0 | K34: =IF(COUNT($H34:J34)>='RFM input'!$W$7,0, J34+J66+J98) -> 0 | L34: =IF(COUNT($H34:K34)>='RFM input'!$W$7,0, K34+K66+K98) -> 0 | M34: =IF(COUNT($H34:L34)>='RFM input'!$W$7,0, L34+L66+L98) -> 0 | N34: =IF(COUNT($H34:M34)>='RFM input'!$W$7,0, M34+M66+M98) -> 0 | O34: =IF(COUNT($H34:N34)>='RFM input'!$W$7,0, N34+N66+N98) -> 0 | P34: =IF(COUNT($H34:O34)>='RFM input'!$W$7,0, O34+O66+O98) -> 0 | Q34: =IF(COUNT($H34:P34)>='RFM input'!$W$7,0, P34+P66+P98) -> 0
D35: =Asset28 -> 0 | G35: ='RAB roll forward'!G465 -> 0 | H35: 0 | I35: 0 | J35: =IF(COUNT($H35:I35)>='RFM input'!$W$7,0, I35+I67+I99) -> 0 | K35: =IF(COUNT($H35:J35)>='RFM input'!$W$7,0, J35+J67+J99) -> 0 | L35: =IF(COUNT($H35:K35)>='RFM input'!$W$7,0, K35+K67+K99) -> 0 | M35: =IF(COUNT($H35:L35)>='RFM input'!$W$7,0, L35+L67+L99) -> 0 | N35: =IF(COUNT($H35:M35)>='RFM input'!$W$7,0, M35+M67+M99) -> 0 | O35: =IF(COUNT($H35:N35)>='RFM input'!$W$7,0, N35+N67+N99) -> 0 | P35: =IF(COUNT($H35:O35)>='RFM input'!$W$7,0, O35+O67+O99) -> 0 | Q35: =IF(COUNT($H35:P35)>='RFM input'!$W$7,0, P35+P67+P99) -> 0
D36: =Asset29 -> 0 | G36: ='RAB roll forward'!G466 -> 0 | H36: 0 | I36: 0 | J36: =IF(COUNT($H36:I36)>='RFM input'!$W$7,0, I36+I68+I100) -> 0 | K36: =IF(COUNT($H36:J36)>='RFM input'!$W$7,0, J36+J68+J100) -> 0 | L36: =IF(COUNT($H36:K36)>='RFM input'!$W$7,0, K36+K68+K100) -> 0 | M36: =IF(COUNT($H36:L36)>='RFM input'!$W$7,0, L36+L68+L100) -> 0 | N36: =IF(COUNT($H36:M36)>='RFM input'!$W$7,0, M36+M68+M100) -> 0 | O36: =IF(COUNT($H36:N36)>='RFM input'!$W$7,0, N36+N68+N100) -> 0 | P36: =IF(COUNT($H36:O36)>='RFM input'!$W$7,0, O36+O68+O100) -> 0 | Q36: =IF(COUNT($H36:P36)>='RFM input'!$W$7,0, P36+P68+P100) -> 0
D37: =Asset30 -> Equity raising costs | G37: ='RAB roll forward'!G467 -> 0 | H37: 0 | I37: 5.517838215 | J37: =IF(COUNT($H37:I37)>='RFM input'!$W$7,0, I37+I69+I101) -> 5.454490976 | K37: =IF(COUNT($H37:J37)>='RFM input'!$W$7,0, J37+J69+J101) -> 5.437838974 | L37: =IF(COUNT($H37:K37)>='RFM input'!$W$7,0, K37+K69+K101) -> 5.426157299 | M37: =IF(COUNT($H37:L37)>='RFM input'!$W$7,0, L37+L69+L101) -> 5.385942908 | N37: =IF(COUNT($H37:M37)>='RFM input'!$W$7,0, M37+M69+M101) -> 0 | O37: =IF(COUNT($H37:N37)>='RFM input'!$W$7,0, N37+N69+N101) -> 0 | P37: =IF(COUNT($H37:O37)>='RFM input'!$W$7,0, O37+O69+O101) -> 0 | Q37: =IF(COUNT($H37:P37)>='RFM input'!$W$7,0, P37+P69+P101) -> 0
C39: Nominal Actual Net Capex | G39: =SUM(G40:G69) -> 137.0843077 | H39: 115.8886277 | I39: 134.678605 | J39: 128.4450859 | K39: 100.2347203 | L39: 126.1325735 | M39: 61.58589775 | N39: 0 | O39: 0 | P39: 0 | Q39: 0
D40: =Asset1 -> Subtransmission | G40: ='RAB roll forward'!G470 -> 21.54764772 | H40: ='RAB roll forward'!H470 -> 12.10456242 | I40: ='RAB roll forward'!I470 -> 23.60825818 | J40: ='RAB roll forward'!J470 -> 45.6967832 | K40: ='RAB roll forward'!K470 -> 31.9597241 | L40: ='RAB roll forward'!L470 -> 25.24758032 | M40: ='RAB roll forward'!M470 -> 12.78382085 | N40: ='RAB roll forward'!N470 -> 0 | O40: ='RAB roll forward'!O470 -> 0 | P40: ='RAB roll forward'!P470 -> 0 | Q40: ='RAB roll forward'!Q470 -> 0
D41: =Asset2 -> Distribution system assets | G41: ='RAB roll forward'!G471 -> 84.83414948 | H41: ='RAB roll forward'!H471 -> 79.04157434 | I41: ='RAB roll forward'!I471 -> 60.28544999 | J41: ='RAB roll forward'!J471 -> 57.31025425 | K41: ='RAB roll forward'!K471 -> 42.3239443 | L41: ='RAB roll forward'!L471 -> 68.95517039 | M41: ='RAB roll forward'!M471 -> 33.75255418 | N41: ='RAB roll forward'!N471 -> 0 | O41: ='RAB roll forward'!O471 -> 0 | P41: ='RAB roll forward'!P471 -> 0 | Q41: ='RAB roll forward'!Q471 -> 0
D42: =Asset3 -> Metering | G42: ='RAB roll forward'!G472 -> 0 | H42: ='RAB roll forward'!H472 -> 0 | I42: ='RAB roll forward'!I472 -> 0 | J42: ='RAB roll forward'!J472 -> 0 | K42: ='RAB roll forward'!K472 -> 0 | L42: ='RAB roll forward'!L472 -> 0 | M42: ='RAB roll forward'!M472 -> 0 | N42: ='RAB roll forward'!N472 -> 0 | O42: ='RAB roll forward'!O472 -> 0 | P42: ='RAB roll forward'!P472 -> 0 | Q42: ='RAB roll forward'!Q472 -> 0
D43: =Asset4 -> Public Lighting | G43: ='RAB roll forward'!G473 -> 0 | H43: ='RAB roll forward'!H473 -> 0 | I43: ='RAB roll forward'!I473 -> 0 | J43: ='RAB roll forward'!J473 -> 0 | K43: ='RAB roll forward'!K473 -> 0 | L43: ='RAB roll forward'!L473 -> 0 | M43: ='RAB roll forward'!M473 -> 0 | N43: ='RAB roll forward'!N473 -> 0 | O43: ='RAB roll forward'!O473 -> 0 | P43: ='RAB roll forward'!P473 -> 0 | Q43: ='RAB roll forward'!Q473 -> 0
D44: =Asset5 -> SCADA/Network control | G44: ='RAB roll forward'!G474 -> 0.01726683579 | H44: ='RAB roll forward'!H474 -> 0.1467609114 | I44: ='RAB roll forward'!I474 -> 2.88911977 | J44: ='RAB roll forward'!J474 -> -0.01431512192 | K44: ='RAB roll forward'!K474 -> 0 | L44: ='RAB roll forward'!L474 -> 0.4277913369 | M44: ='RAB roll forward'!M474 -> 0.2929518351 | N44: ='RAB roll forward'!N474 -> 0 | O44: ='RAB roll forward'!O474 -> 0 | P44: ='RAB roll forward'!P474 -> 0 | Q44: ='RAB roll forward'!Q474 -> 0
D45: =Asset6 -> Non network - IT | G45: ='RAB roll forward'!G475 -> 9.227487357 | H45: ='RAB roll forward'!H475 -> 14.62117323 | I45: ='RAB roll forward'!I475 -> 31.6045351 | J45: ='RAB roll forward'!J475 -> 21.94005365 | K45: ='RAB roll forward'!K475 -> 22.30819629 | L45: ='RAB roll forward'!L475 -> 23.74470257 | M45: ='RAB roll forward'!M475 -> 13.76169262 | N45: ='RAB roll forward'!N475 -> 0 | O45: ='RAB roll forward'!O475 -> 0 | P45: ='RAB roll forward'!P475 -> 0 | Q45: ='RAB roll forward'!Q475 -> 0
D46: =Asset7 -> Non network - other | G46: ='RAB roll forward'!G476 -> 21.45775628 | H46: ='RAB roll forward'!H476 -> 4.456718566 | I46: ='RAB roll forward'!I476 -> 16.291242 | J46: ='RAB roll forward'!J476 -> 3.512309894 | K46: ='RAB roll forward'!K476 -> 3.64285565 | L46: ='RAB roll forward'!L476 -> 7.734997438 | M46: ='RAB roll forward'!M476 -> 0.3576040502 | N46: ='RAB roll forward'!N476 -> 0 | O46: ='RAB roll forward'!O476 -> 0 | P46: ='RAB roll forward'!P476 -> 0 | Q46: ='RAB roll forward'!Q476 -> 0
D47: =Asset8 -> Land | G47: ='RAB roll forward'!G477 -> 0 | H47: ='RAB roll forward'!H477 -> 0 | I47: ='RAB roll forward'!I477 -> 0 | J47: ='RAB roll forward'!J477 -> 0 | K47: ='RAB roll forward'!K477 -> 0 | L47: ='RAB roll forward'!L477 -> 0.0223314472 | M47: ='RAB roll forward'!M477 -> 0.03247887271 | N47: ='RAB roll forward'!N477 -> 0 | O47: ='RAB roll forward'!O477 -> 0 | P47: ='RAB roll forward'!P477 -> 0 | Q47: ='RAB roll forward'!Q477 -> 0
D48: =Asset9 -> 0 | G48: ='RAB roll forward'!G478 -> 0 | H48: ='RAB roll forward'!H478 -> 0 | I48: ='RAB roll forward'!I478 -> 0 | J48: ='RAB roll forward'!J478 -> 0 | K48: ='RAB roll forward'!K478 -> 0 | L48: ='RAB roll forward'!L478 -> 0 | M48: ='RAB roll forward'!M478 -> 0 | N48: ='RAB roll forward'!N478 -> 0 | O48: ='RAB roll forward'!O478 -> 0 | P48: ='RAB roll forward'!P478 -> 0 | Q48: ='RAB roll forward'!Q478 -> 0
D49: =Asset10 -> 0 | G49: ='RAB roll forward'!G479 -> 0 | H49: ='RAB roll forward'!H479 -> 0 | I49: ='RAB roll forward'!I479 -> 0 | J49: ='RAB roll forward'!J479 -> 0 | K49: ='RAB roll forward'!K479 -> 0 | L49: ='RAB roll forward'!L479 -> 0 | M49: ='RAB roll forward'!M479 -> 0 | N49: ='RAB roll forward'!N479 -> 0 | O49: ='RAB roll forward'!O479 -> 0 | P49: ='RAB roll forward'!P479 -> 0 | Q49: ='RAB roll forward'!Q479 -> 0
D50: =Asset11 -> 0 | G50: ='RAB roll forward'!G480 -> 0 | H50: ='RAB roll forward'!H480 -> 0 | I50: ='RAB roll forward'!I480 -> 0 | J50: ='RAB roll forward'!J480 -> 0 | K50: ='RAB roll forward'!K480 -> 0 | L50: ='RAB roll forward'!L480 -> 0 | M50: ='RAB roll forward'!M480 -> 0 | N50: ='RAB roll forward'!N480 -> 0 | O50: ='RAB roll forward'!O480 -> 0 | P50: ='RAB roll forward'!P480 -> 0 | Q50: ='RAB roll forward'!Q480 -> 0
D51: =Asset12 -> 0 | G51: ='RAB roll forward'!G481 -> 0 | H51: ='RAB roll forward'!H481 -> 0 | I51: ='RAB roll forward'!I481 -> 0 | J51: ='RAB roll forward'!J481 -> 0 | K51: ='RAB roll forward'!K481 -> 0 | L51: ='RAB roll forward'!L481 -> 0 | M51: ='RAB roll forward'!M481 -> 0 | N51: ='RAB roll forward'!N481 -> 0 | O51: ='RAB roll forward'!O481 -> 0 | P51: ='RAB roll forward'!P481 -> 0 | Q51: ='RAB roll forward'!Q481 -> 0
D52: =Asset13 -> 0 | G52: ='RAB roll forward'!G482 -> 0 | H52: ='RAB roll forward'!H482 -> 0 | I52: ='RAB roll forward'!I482 -> 0 | J52: ='RAB roll forward'!J482 -> 0 | K52: ='RAB roll forward'!K482 -> 0 | L52: ='RAB roll forward'!L482 -> 0 | M52: ='RAB roll forward'!M482 -> 0 | N52: ='RAB roll forward'!N482 -> 0 | O52: ='RAB roll forward'!O482 -> 0 | P52: ='RAB roll forward'!P482 -> 0 | Q52: ='RAB roll forward'!Q482 -> 0
D53: =Asset14 -> 0 | G53: ='RAB roll forward'!G483 -> 0 | H53: ='RAB roll forward'!H483 -> 0 | I53: ='RAB roll forward'!I483 -> 0 | J53: ='RAB roll forward'!J483 -> 0 | K53: ='RAB roll forward'!K483 -> 0 | L53: ='RAB roll forward'!L483 -> 0 | M53: ='RAB roll forward'!M483 -> 0 | N53: ='RAB roll forward'!N483 -> 0 | O53: ='RAB roll forward'!O483 -> 0 | P53: ='RAB roll forward'!P483 -> 0 | Q53: ='RAB roll forward'!Q483 -> 0
D54: =Asset15 -> 0 | G54: ='RAB roll forward'!G484 -> 0 | H54: ='RAB roll forward'!H484 -> 0 | I54: ='RAB roll forward'!I484 -> 0 | J54: ='RAB roll forward'!J484 -> 0 | K54: ='RAB roll forward'!K484 -> 0 | L54: ='RAB roll forward'!L484 -> 0 | M54: ='RAB roll forward'!M484 -> 0 | N54: ='RAB roll forward'!N484 -> 0 | O54: ='RAB roll forward'!O484 -> 0 | P54: ='RAB roll forward'!P484 -> 0 | Q54: ='RAB roll forward'!Q484 -> 0
D55: =Asset16 -> 0 | G55: ='RAB roll forward'!G485 -> 0 | H55: ='RAB roll forward'!H485 -> 0 | I55: ='RAB roll forward'!I485 -> 0 | J55: ='RAB roll forward'!J485 -> 0 | K55: ='RAB roll forward'!K485 -> 0 | L55: ='RAB roll forward'!L485 -> 0 | M55: ='RAB roll forward'!M485 -> 0 | N55: ='RAB roll forward'!N485 -> 0 | O55: ='RAB roll forward'!O485 -> 0 | P55: ='RAB roll forward'!P485 -> 0 | Q55: ='RAB roll forward'!Q485 -> 0
D56: =Asset17 -> 0 | G56: ='RAB roll forward'!G486 -> 0 | H56: ='RAB roll forward'!H486 -> 0 | I56: ='RAB roll forward'!I486 -> 0 | J56: ='RAB roll forward'!J486 -> 0 | K56: ='RAB roll forward'!K486 -> 0 | L56: ='RAB roll forward'!L486 -> 0 | M56: ='RAB roll forward'!M486 -> 0 | N56: ='RAB roll forward'!N486 -> 0 | O56: ='RAB roll forward'!O486 -> 0 | P56: ='RAB roll forward'!P486 -> 0 | Q56: ='RAB roll forward'!Q486 -> 0
D57: =Asset18 -> 0 | G57: ='RAB roll forward'!G487 -> 0 | H57: ='RAB roll forward'!H487 -> 0 | I57: ='RAB roll forward'!I487 -> 0 | J57: ='RAB roll forward'!J487 -> 0 | K57: ='RAB roll forward'!K487 -> 0 | L57: ='RAB roll forward'!L487 -> 0 | M57: ='RAB roll forward'!M487 -> 0 | N57: ='RAB roll forward'!N487 -> 0 | O57: ='RAB roll forward'!O487 -> 0 | P57: ='RAB roll forward'!P487 -> 0 | Q57: ='RAB roll forward'!Q487 -> 0
D58: =Asset19 -> 0 | G58: ='RAB roll forward'!G488 -> 0 | H58: ='RAB roll forward'!H488 -> 0 | I58: ='RAB roll forward'!I488 -> 0 | J58: ='RAB roll forward'!J488 -> 0 | K58: ='RAB roll forward'!K488 -> 0 | L58: ='RAB roll forward'!L488 -> 0 | M58: ='RAB roll forward'!M488 -> 0 | N58: ='RAB roll forward'!N488 -> 0 | O58: ='RAB roll forward'!O488 -> 0 | P58: ='RAB roll forward'!P488 -> 0 | Q58: ='RAB roll forward'!Q488 -> 0
D59: =Asset20 -> 0 | G59: ='RAB roll forward'!G489 -> 0 | H59: ='RAB roll forward'!H489 -> 0 | I59: ='RAB roll forward'!I489 -> 0 | J59: ='RAB roll forward'!J489 -> 0 | K59: ='RAB roll forward'!K489 -> 0 | L59: ='RAB roll forward'!L489 -> 0 | M59: ='RAB roll forward'!M489 -> 0 | N59: ='RAB roll forward'!N489 -> 0 | O59: ='RAB roll forward'!O489 -> 0 | P59: ='RAB roll forward'!P489 -> 0 | Q59: ='RAB roll forward'!Q489 -> 0
D60: =Asset21 -> 0 | G60: ='RAB roll forward'!G490 -> 0 | H60: ='RAB roll forward'!H490 -> 0 | I60: ='RAB roll forward'!I490 -> 0 | J60: ='RAB roll forward'!J490 -> 0 | K60: ='RAB roll forward'!K490 -> 0 | L60: ='RAB roll forward'!L490 -> 0 | M60: ='RAB roll forward'!M490 -> 0 | N60: ='RAB roll forward'!N490 -> 0 | O60: ='RAB roll forward'!O490 -> 0 | P60: ='RAB roll forward'!P490 -> 0 | Q60: ='RAB roll forward'!Q490 -> 0
D61: =Asset22 -> 0 | G61: ='RAB roll forward'!G491 -> 0 | H61: ='RAB roll forward'!H491 -> 0 | I61: ='RAB roll forward'!I491 -> 0 | J61: ='RAB roll forward'!J491 -> 0 | K61: ='RAB roll forward'!K491 -> 0 | L61: ='RAB roll forward'!L491 -> 0 | M61: ='RAB roll forward'!M491 -> 0 | N61: ='RAB roll forward'!N491 -> 0 | O61: ='RAB roll forward'!O491 -> 0 | P61: ='RAB roll forward'!P491 -> 0 | Q61: ='RAB roll forward'!Q491 -> 0
D62: =Asset23 -> 0 | G62: ='RAB roll forward'!G492 -> 0 | H62: ='RAB roll forward'!H492 -> 0 | I62: ='RAB roll forward'!I492 -> 0 | J62: ='RAB roll forward'!J492 -> 0 | K62: ='RAB roll forward'!K492 -> 0 | L62: ='RAB roll forward'!L492 -> 0 | M62: ='RAB roll forward'!M492 -> 0 | N62: ='RAB roll forward'!N492 -> 0 | O62: ='RAB roll forward'!O492 -> 0 | P62: ='RAB roll forward'!P492 -> 0 | Q62: ='RAB roll forward'!Q492 -> 0
D63: =Asset24 -> 0 | G63: ='RAB roll forward'!G493 -> 0 | H63: ='RAB roll forward'!H493 -> 0 | I63: ='RAB roll forward'!I493 -> 0 | J63: ='RAB roll forward'!J493 -> 0 | K63: ='RAB roll forward'!K493 -> 0 | L63: ='RAB roll forward'!L493 -> 0 | M63: ='RAB roll forward'!M493 -> 0 | N63: ='RAB roll forward'!N493 -> 0 | O63: ='RAB roll forward'!O493 -> 0 | P63: ='RAB roll forward'!P493 -> 0 | Q63: ='RAB roll forward'!Q493 -> 0
D64: =Asset25 -> 0 | G64: ='RAB roll forward'!G494 -> 0 | H64: ='RAB roll forward'!H494 -> 0 | I64: ='RAB roll forward'!I494 -> 0 | J64: ='RAB roll forward'!J494 -> 0 | K64: ='RAB roll forward'!K494 -> 0 | L64: ='RAB roll forward'!L494 -> 0 | M64: ='RAB roll forward'!M494 -> 0 | N64: ='RAB roll forward'!N494 -> 0 | O64: ='RAB roll forward'!O494 -> 0 | P64: ='RAB roll forward'!P494 -> 0 | Q64: ='RAB roll forward'!Q494 -> 0
D65: =Asset26 -> 0 | G65: ='RAB roll forward'!G495 -> 0 | H65: ='RAB roll forward'!H495 -> 0 | I65: ='RAB roll forward'!I495 -> 0 | J65: ='RAB roll forward'!J495 -> 0 | K65: ='RAB roll forward'!K495 -> 0 | L65: ='RAB roll forward'!L495 -> 0 | M65: ='RAB roll forward'!M495 -> 0 | N65: ='RAB roll forward'!N495 -> 0 | O65: ='RAB roll forward'!O495 -> 0 | P65: ='RAB roll forward'!P495 -> 0 | Q65: ='RAB roll forward'!Q495 -> 0
D66: =Asset27 -> 0 | G66: ='RAB roll forward'!G496 -> 0 | H66: ='RAB roll forward'!H496 -> 0 | I66: ='RAB roll forward'!I496 -> 0 | J66: ='RAB roll forward'!J496 -> 0 | K66: ='RAB roll forward'!K496 -> 0 | L66: ='RAB roll forward'!L496 -> 0 | M66: ='RAB roll forward'!M496 -> 0 | N66: ='RAB roll forward'!N496 -> 0 | O66: ='RAB roll forward'!O496 -> 0 | P66: ='RAB roll forward'!P496 -> 0 | Q66: ='RAB roll forward'!Q496 -> 0
D67: =Asset28 -> 0 | G67: ='RAB roll forward'!G497 -> 0 | H67: ='RAB roll forward'!H497 -> 0 | I67: ='RAB roll forward'!I497 -> 0 | J67: ='RAB roll forward'!J497 -> 0 | K67: ='RAB roll forward'!K497 -> 0 | L67: ='RAB roll forward'!L497 -> 0 | M67: ='RAB roll forward'!M497 -> 0 | N67: ='RAB roll forward'!N497 -> 0 | O67: ='RAB roll forward'!O497 -> 0 | P67: ='RAB roll forward'!P497 -> 0 | Q67: ='RAB roll forward'!Q497 -> 0
D68: =Asset29 -> 0 | G68: ='RAB roll forward'!G498 -> 0 | H68: ='RAB roll forward'!H498 -> 0 | I68: ='RAB roll forward'!I498 -> 0 | J68: ='RAB roll forward'!J498 -> 0 | K68: ='RAB roll forward'!K498 -> 0 | L68: ='RAB roll forward'!L498 -> 0 | M68: ='RAB roll forward'!M498 -> 0 | N68: ='RAB roll forward'!N498 -> 0 | O68: ='RAB roll forward'!O498 -> 0 | P68: ='RAB roll forward'!P498 -> 0 | Q68: ='RAB roll forward'!Q498 -> 0
